Workbook

Sheet INDEX
B1: Sheets Names | C1: Go to Sheets
B2: =IFERROR(REPLACE(INDEX(MySheets,ROW()),1,FIND("]",INDEX(MySheets,ROW())),""),"") -> INSERT | C2: =HYPERLINK("#'"&B2&"'!a1",B2) -> INSERT
B3: =IFERROR(REPLACE(INDEX(MySheets,ROW()),1,FIND("]",INDEX(MySheets,ROW())),""),"") -> Decleration | C3: =HYPERLINK("#'"&B3&"'!a1",B3) -> Decleration
B4: =IFERROR(REPLACE(INDEX(MySheets,ROW()),1,FIND("]",INDEX(MySheets,ROW())),""),"") -> TERM1 | C4: TERM1
B5: =IFERROR(REPLACE(INDEX(MySheets,ROW()),1,FIND("]",INDEX(MySheets,ROW())),""),"") -> TERM2 | C5: TERM2
B6: =IFERROR(REPLACE(INDEX(MySheets,ROW()),1,FIND("]",INDEX(MySheets,ROW())),""),"") -> TERM3 | C6: TERM3
B7: =IFERROR(REPLACE(INDEX(MySheets,ROW()),1,FIND("]",INDEX(MySheets,ROW())),""),"") -> TERM4 | C7: TERM4
B8: =IFERROR(REPLACE(INDEX(MySheets,ROW()),1,FIND("]",INDEX(MySheets,ROW())),""),"") -> SASAMS TERM1 | C8: SASAMS TERM1
B9: =IFERROR(REPLACE(INDEX(MySheets,ROW()),1,FIND("]",INDEX(MySheets,ROW())),""),"") -> SASAMS TERM2 | C9: SASAMS TERM2
B10: =IFERROR(REPLACE(INDEX(MySheets,ROW()),1,FIND("]",INDEX(MySheets,ROW())),""),"") -> SASAMS TERM3 | C10: SASAMS TERM3
B11: =IFERROR(REPLACE(INDEX(MySheets,ROW()),1,FIND("]",INDEX(MySheets,ROW())),""),"") -> SASAMS TERM4 | C11: SASAMS TERM4
B12: =IFERROR(REPLACE(INDEX(MySheets,ROW()),1,FIND("]",INDEX(MySheets,ROW())),""),"") -> PAT Civil Detailed | C12: PAT Civil Detailed
B13: =IFERROR(REPLACE(INDEX(MySheets,ROW()),1,FIND("]",INDEX(MySheets,ROW())),""),"") -> Civil Assessment | C13: Civil Assessment
B14: =IFERROR(REPLACE(INDEX(MySheets,ROW()),1,FIND("]",INDEX(MySheets,ROW())),""),"") -> FIN PAT MARK SHEET | C14: FIN PAT MARK SHEET
B15: =IFERROR(REPLACE(INDEX(MySheets,ROW()),1,FIND("]",INDEX(MySheets,ROW())),""),"") -> FIN MARK SHEET | C15: FIN MARK SHEET
B16: =IFERROR(REPLACE(INDEX(MySheets,ROW()),1,FIND("]",INDEX(MySheets,ROW())),""),"") -> Term1 Sign | C16: Term1 Sign
B17: =IFERROR(REPLACE(INDEX(MySheets,ROW()),1,FIND("]",INDEX(MySheets,ROW())),""),"") -> Term2 Sign | C17: Term2 Sign
B18: =IFERROR(REPLACE(INDEX(MySheets,ROW()),1,FIND("]",INDEX(MySheets,ROW())),""),"") -> Term3 Sign | C18: Term3 Sign
B19: =IFERROR(REPLACE(INDEX(MySheets,ROW()),1,FIND("]",INDEX(MySheets,ROW())),""),"") -> Term4 Sign | C19: Term4 Sign
B20: =IFERROR(REPLACE(INDEX(MySheets,ROW()),1,FIND("]",INDEX(MySheets,ROW())),""),"") -> PAT Sign | C20: PAT Sign
B22: =IFERROR(REPLACE(INDEX(MySheets,ROW()),1,FIND("]",INDEX(MySheets,ROW())),""),"") -> 
B23: =IFERROR(REPLACE(INDEX(MySheets,ROW()),1,FIND("]",INDEX(MySheets,ROW())),""),"") -> 

Sheet INSERT
A2: Class | B2: Admission | C2: SURNAME | D2: NAME | E2: Gender | F2: CELLPHONE NR. | G2: E-MAIL ADRESS | I2: INFORMATION
I3: Name of School:
I4: Grade:
I5: Your Initials and Surname:
I6: Initials and Surname of HOD for EGD:
I7: Your EGD SES Initials and Surname:
D103: Total amount of learners on mark sheet | E103: =COUNTA(C3:C102) -> 0

Sheet Decleration
N1: Surname: | Q1: 41 | S1: =$V$2 -> 0 | V1: 1
A2: DECLARATION OF AUTHENTICITY | N2: Name: | O2: =IFERROR(VLOOKUP($O$1,INSERT!C3:D102,2,FALSE),"") ->  | Q2: =OFFSET(INSERT!$C$2,$Q$1,0) -> 0
A4: To be submitted with each learner's practical assessment task portfolio
B6: NAME OF SCHOOL: | D6: =INSERT!$J$3 -> 0
B8: NAME OF LEARNER: | D8: =O2&" "&O1 -> 
E9: (SURNAME AND INITIALS)
B11: Learner information:
B12: I hereby declare that all the contents of the practical assessment task submitted by myself for assessment is my own original work and has not been plagiarised, copied from someone else or previously submitted for assessment. By signing this page, you as learner commit yourself to the responsibilities and your cooperation to submit the 2022, grade 11 PAT as part of your (2022) year mark. By failing to submit this PAT before the date of moderation (October 2022), it will be seen as an exam irregularity resulting a zero (0) mark for EGD (despite all exam and SBA efforts committed) during your grade 11 year for 2022.
B16: SIGNATURE OF CANIDATE | H16: DATE
B19: NAME OF TEACHER: | D19: =INSERT!$J$5 -> 0
E20: (SURNAME AND INITIALS)
B22: Teacher information:
B23: By signing this page, you as the teacher of above-mentioned learner, indicate that all the information was given to the learner during term 1 of 2022 and that the terms and conditions as well as the consequences of no submission of the 2022, grade 11 PAT was explained to the learner.
B27: SIGNATURE OF TEACHER | H27: DATE
D29: SCHOOL STAMP

Sheet TERM1
B2: ENGINEERING GRAPHICS AND DESIGN
I3: PROGRAM OF ASSESSMENT : TERM 1
I4: CD1 Mechanical analytical | AA4: CD2 1st Mechanical assembly | AS4: CD3 2nd Mechanical Assembly | BK4: CD4 Isometric drawing | CC4: TERM TEST
E5: School: | F5: =INSERT!J3 -> 0 | I5: CD 1.1 | J5: CD 1.2 | K5: CD 1.3 | Y5: TOTAL CD1 | Z5: TOTAL | AA5: CD 2.1 | AB5: CD 2.2 | AC5: CD 2.3 | AQ5: TOTAL CD2 | AR5: TOTAL | AS5: CD 3.1 | AT5: CD 3.2 | AU5: CD 3.3 | BI5: TOTAL CD3 | BJ5: TOTAL | BK5: CD 4.1 | BL5: CD 4.2 | BM5: CD 4.3 | CA5: TOTAL CD4 | CB5: TOTAL | CC5: TEST 1 | CE5: TEST 2 | CG5: TEST TOTAL
E6: Grade: | F6: =INSERT!J4 -> 0
E7: Teacher: | F7: =INSERT!J5 -> 0
E8: HOD: | F8: =INSERT!J6 -> 0
E9: EGD SES: | F9: =INSERT!J7 -> 0
I11: 1.1 | J11: 1.2 | K11: 1.3 | L11: 1.4 | M11: 1.5 | N11: 1.6 | O11: 1.7 | P11: 1.8 | Q11: 1.9 | R11: 1.1 | S11: 1.11 | T11: 1.12 | U11: 1.13 | V11: 1.14 | W11: 1.15 | X11: 1.16 | AA11: 2.1 | AB11: 2.2 | AC11: 2.3 | AD11: 2.4 | AE11: 2.5 | AF11: 2.6 | AG11: 2.7 | AH11: 2.8 | AI11: 2.9 | AJ11: 2.1 | AK11: 2.11 | AL11: 2.12 | AM11: 2.13 | AN11: 2.14 | AO11: 2.15 | AP11: 2.16 | AS11: 3.1 | AT11: 3.2 | AU11: 3.3 | AV11: 3.4 | AW11: 3.5 | AX11: 3.6 | AY11: 3.7 | AZ11: 3.8 | BA11: 3.9 | BB11: 3.1 | BC11: 3.11 | BD11: 3.12 | BE11: 3.13 | BF11: 3.14 | BG11: 3.15 | BH11: 3.16 | BK11: 4.1 | BL11: 4.2 | BM11: 4.3 | BN11: 4.4 | BO11: 4.5 | BP11: 4.6 | BQ11: 4.7 | BR11: 4.8 | BS11: 4.9 | BT11: 4.1 | BU11: 4.11 | BV11: 4.12 | BW11: 4.13 | BX11: 4.14 | BY11: 4.15 | BZ11: 4.16
B12: Nr. | D12: Class | E12: Admission | F12: SURNAME | G12: NAME | H12: GENDER | Y12: =SUM(I12:X12) -> 0 | Z12: 10 | AQ12: =SUM(AA12:AP12) -> 0 | AR12: 10 | BI12: =SUM(AS12:BH12) -> 0 | BJ12: 10 | CA12: =SUM(BK12:BZ12) -> 0 | CB12: 10 | CC12: 50 | CG12: 60
I13: =IF(I12>0,"","X") -> X | J13: =IF(J12>0,"","X") -> X | K13: X | L13: X | M13: X | N13: X | O13: X | P13: X | Q13: X | R13: X | S13: X | T13: X | U13: X | V13: X | W13: X | X13: X | Y13: =SUM(100/Y12) ->  | AA13: =IF(AA12>0,"","X") -> X | AB13: X | AC13: X | AD13: X | AE13: X | AF13: X | AG13: X | AH13: X | AI13: X | AJ13: X | AK13: X | AL13: X | AM13: X | AN13: X | AO13: X | AP13: X | AQ13: =SUM(100/AQ12) ->  | AS13: =IF(AS12>0,"","X") -> X | AT13: X | AU13: X | AV13: X | AW13: X | AX13: X | AY13: X | AZ13: X | BA13: X | BB13: X | BC13: X | BD13: X | BE13: X | BF13: X | BG13: X | BH13: X | BI13: =SUM(100/BI12) ->  | BK13: =IF(BK12>0,"","X") -> X | BL13: X | BM13: X | BN13: X | BO13: X | BP13: X | BQ13: X | BR13: X | BS13: X | BT13: X | BU13: X | BV13: X | BW13: X | BX13: X | BY13: X | BZ13: X | CA13: =SUM(100/CA12) ->  | CC13: =SUM(100/CC12)*(CG12/100) -> 1.2 | CE13: =IFERROR(SUM(100/CE12)*(CG12/100),"") ->  | CF13: =COUNT(CC12,CE12) -> 1
H14: DATE:
A16: =IF(CH16=0,"X","") ->  | B16: 1 | C16: 1 | D16: =INSERT!A3 -> 0 | E16: =INSERT!B3 -> 0 | F16: =INSERT!C3 -> 0 | G16: =INSERT!D3 -> 0 | H16: =INSERT!E3 -> 0 | Y16: =SUM(I16:X16) -> 0 | Z16: =IFERROR(ROUND((SUM(Y16*$Y$13)/10),0),"0") -> 0 | AQ16: =SUM(AA16:AP16) -> 0 | AR16: =IFERROR(ROUND((SUM(AQ16*$AQ$13)/10),0),"0") -> 0 | BI16: =SUM(AS16:BH16) -> 0 | BJ16: =IFERROR(ROUND((SUM(BI16*$BI$13)/10),0),"0") -> 0 | CA16: =SUM(BK16:BZ16) -> 0 | CB16: =IFERROR(ROUND((SUM(CA16*$CA$13)/10),0),"0") -> 0 | CF16: =IFERROR(ROUND(SUM(CE16*$CE$13),0),"") ->  | CG16: =ROUND(IF($CF$13=1,CD16,IF($CF$13=2,(CF16+CD16)/2)),0) -> 0 | CH16: =COUNTA(D16:G16,I16,AA16,AS16,BK16,CC16:CE16) -> 4
B17: =B16+1 -> 2 | C17: 2 | D17: =INSERT!A4 -> 0 | E17: =INSERT!B4 -> 0 | F17: =INSERT!C4 -> 0 | G17: =INSERT!D4 -> 0 | H17: =INSERT!E4 -> 0 | Y17: 0 | Z17: 0 | AQ17: 0 | AR17: 0 | BI17: 0 | BJ17: 0 | CA17: 0 | CB17: 0 | CG17: 0 | CH17: 4
B18: =B17+1 -> 3 | C18: 3 | D18: =INSERT!A5 -> 0 | E18: =INSERT!B5 -> 0 | F18: =INSERT!C5 -> 0 | G18: =INSERT!D5 -> 0 | H18: =INSERT!E5 -> 0 | Y18: 0 | Z18: 0 | AQ18: 0 | AR18: 0 | BI18: 0 | BJ18: 0 | CA18: 0 | CB18: 0 | CG18: 0 | CH18: 4
B19: 4 | C19: 4 | D19: =INSERT!A6 -> 0 | E19: =INSERT!B6 -> 0 | F19: =INSERT!C6 -> 0 | G19: =INSERT!D6 -> 0 | H19: =INSERT!E6 -> 0 | Y19: 0 | Z19: 0 | AQ19: 0 | AR19: 0 | BI19: 0 | BJ19: 0 | CA19: 0 | CB19: 0 | CG19: 0 | CH19: 4
B20: 5 | C20: 5 | D20: =INSERT!A7 -> 0 | E20: =INSERT!B7 -> 0 | F20: =INSERT!C7 -> 0 | G20: =INSERT!D7 -> 0 | H20: =INSERT!E7 -> 0 | Y20: 0 | Z20: 0 | AQ20: 0 | AR20: 0 | BI20: 0 | BJ20: 0 | CA20: 0 | CB20: 0 | CG20: 0 | CH20: 4
B21: 6 | C21: 6 | D21: =INSERT!A8 -> 0 | E21: =INSERT!B8 -> 0 | F21: =INSERT!C8 -> 0 | G21: =INSERT!D8 -> 0 | H21: =INSERT!E8 -> 0 | Y21: 0 | Z21: 0 | AQ21: 0 | AR21: 0 | BI21: 0 | BJ21: 0 | CA21: 0 | CB21: 0 | CG21: 0 | CH21: 4
B22: 7 | C22: 7 | D22: =INSERT!A9 -> 0 | E22: =INSERT!B9 -> 0 | F22: =INSERT!C9 -> 0 | G22: =INSERT!D9 -> 0 | H22: =INSERT!E9 -> 0 | Y22: 0 | Z22: 0 | AQ22: 0 | AR22: 0 | BI22: 0 | BJ22: 0 | CA22: 0 | CB22: 0 | CG22: 0 | CH22: 4
B23: 8 | C23: 8 | D23: =INSERT!A10 -> 0 | E23: =INSERT!B10 -> 0 | F23: =INSERT!C10 -> 0 | G23: =INSERT!D10 -> 0 | H23: =INSERT!E10 -> 0 | Y23: 0 | Z23: 0 | AQ23: 0 | AR23: 0 | BI23: 0 | BJ23: 0 | CA23: 0 | CB23: 0 | CG23: 0 | CH23: 4
B24: =B23+1 -> 9 | C24: 9 | D24: =INSERT!A11 -> 0 | E24: =INSERT!B11 -> 0 | F24: =INSERT!C11 -> 0 | G24: =INSERT!D11 -> 0 | H24: =INSERT!E11 -> 0 | Y24: 0 | Z24: 0 | AQ24: 0 | AR24: 0 | BI24: 0 | BJ24: 0 | CA24: 0 | CB24: 0 | CG24: 0 | CH24: 4
B25: 10 | C25: 10 | D25: =INSERT!A12 -> 0 | E25: =INSERT!B12 -> 0 | F25: =INSERT!C12 -> 0 | G25: =INSERT!D12 -> 0 | H25: =INSERT!E12 -> 0 | Y25: 0 | Z25: 0 | AQ25: 0 | AR25: 0 | BI25: 0 | BJ25: 0 | CA25: 0 | CB25: 0 | CG25: 0 | CH25: 4
B26: 11 | C26: 11 | D26: =INSERT!A13 -> 0 | E26: =INSERT!B13 -> 0 | F26: =INSERT!C13 -> 0 | G26: =INSERT!D13 -> 0 | H26: =INSERT!E13 -> 0 | Y26: 0 | Z26: 0 | AQ26: 0 | AR26: 0 | BI26: 0 | BJ26: 0 | CA26: 0 | CB26: 0 | CG26: 0 | CH26: 4
B27: 12 | C27: 12 | D27: =INSERT!A14 -> 0 | E27: =INSERT!B14 -> 0 | F27: =INSERT!C14 -> 0 | G27: =INSERT!D14 -> 0 | H27: =INSERT!E14 -> 0 | Y27: 0 | Z27: 0 | AQ27: 0 | AR27: 0 | BI27: 0 | BJ27: 0 | CA27: 0 | CB27: 0 | CG27: 0 | CH27: 4
B28: 13 | C28: 13 | D28: =INSERT!A15 -> 0 | E28: =INSERT!B15 -> 0 | F28: =INSERT!C15 -> 0 | G28: =INSERT!D15 -> 0 | H28: =INSERT!E15 -> 0 | Y28: 0 | Z28: 0 | AQ28: 0 | AR28: 0 | BI28: 0 | BJ28: 0 | CA28: 0 | CB28: 0 | CG28: 0 | CH28: 4
B29: 14 | C29: 14 | D29: =INSERT!A16 -> 0 | E29: =INSERT!B16 -> 0 | F29: =INSERT!C16 -> 0 | G29: =INSERT!D16 -> 0 | H29: =INSERT!E16 -> 0 | Y29: 0 | Z29: 0 | AQ29: 0 | AR29: 0 | BI29: 0 | BJ29: 0 | CA29: 0 | CB29: 0 | CG29: 0 | CH29: 4
B30: 15 | C30: 15 | D30: =INSERT!A17 -> 0 | E30: =INSERT!B17 -> 0 | F30: =INSERT!C17 -> 0 | G30: =INSERT!D17 -> 0 | H30: =INSERT!E17 -> 0 | Y30: 0 | Z30: 0 | AQ30: 0 | AR30: 0 | BI30: 0 | BJ30: 0 | CA30: 0 | CB30: 0 | CG30: 0 | CH30: 4
B31: 16 | C31: 16 | D31: =INSERT!A18 -> 0 | E31: =INSERT!B18 -> 0 | F31: =INSERT!C18 -> 0 | G31: =INSERT!D18 -> 0 | H31: =INSERT!E18 -> 0 | Y31: 0 | Z31: 0 | AQ31: 0 | AR31: 0 | BI31: 0 | BJ31: 0 | CA31: 0 | CB31: 0 | CG31: 0 | CH31: 4
B32: 17 | C32: 17 | D32: =INSERT!A19 -> 0 | E32: =INSERT!B19 -> 0 | F32: =INSERT!C19 -> 0 | G32: =INSERT!D19 -> 0 | H32: =INSERT!E19 -> 0 | Y32: 0 | Z32: 0 | AQ32: 0 | AR32: 0 | BI32: 0 | BJ32: 0 | CA32: 0 | CB32: 0 | CG32: 0 | CH32: 4
B33: 18 | C33: 18 | D33: =INSERT!A20 -> 0 | E33: =INSERT!B20 -> 0 | F33: =INSERT!C20 -> 0 | G33: =INSERT!D20 -> 0 | H33: =INSERT!E20 -> 0 | Y33: 0 | Z33: 0 | AQ33: 0 | AR33: 0 | BI33: 0 | BJ33: 0 | CA33: 0 | CB33: 0 | CG33: 0 | CH33: 4
B34: 19 | C34: 19 | D34: =INSERT!A21 -> 0 | E34: =INSERT!B21 -> 0 | F34: =INSERT!C21 -> 0 | G34: =INSERT!D21 -> 0 | H34: =INSERT!E21 -> 0 | Y34: 0 | Z34: 0 | AQ34: 0 | AR34: 0 | BI34: 0 | BJ34: 0 | CA34: 0 | CB34: 0 | CG34: 0 | CH34: 4
B35: 20 | C35: 20 | D35: =INSERT!A22 -> 0 | E35: =INSERT!B22 -> 0 | F35: =INSERT!C22 -> 0 | G35: =INSERT!D22 -> 0 | H35: =INSERT!E22 -> 0 | Y35: 0 | Z35: 0 | AQ35: 0 | AR35: 0 | BI35: 0 | BJ35: 0 | CA35: 0 | CB35: 0 | CG35: 0 | CH35: 4
B36: 21 | C36: 21 | D36: =INSERT!A23 -> 0 | E36: =INSERT!B23 -> 0 | F36: =INSERT!C23 -> 0 | G36: =INSERT!D23 -> 0 | H36: =INSERT!E23 -> 0 | Y36: 0 | Z36: 0 | AQ36: 0 | AR36: 0 | BI36: 0 | BJ36: 0 | CA36: 0 | CB36: 0 | CG36: 0 | CH36: 4
B37: 22 | C37: 22 | D37: =INSERT!A24 -> 0 | E37: =INSERT!B24 -> 0 | F37: =INSERT!C24 -> 0 | G37: =INSERT!D24 -> 0 | H37: =INSERT!E24 -> 0 | Y37: 0 | Z37: 0 | AQ37: 0 | AR37: 0 | BI37: 0 | BJ37: 0 | CA37: 0 | CB37: 0 | CG37: 0 | CH37: 4
B38: 23 | C38: 23 | D38: =INSERT!A25 -> 0 | E38: =INSERT!B25 -> 0 | F38: =INSERT!C25 -> 0 | G38: =INSERT!D25 -> 0 | H38: =INSERT!E25 -> 0 | Y38: 0 | Z38: 0 | AQ38: 0 | AR38: 0 | BI38: 0 | BJ38: 0 | CA38: 0 | CB38: 0 | CG38: 0 | CH38: 4
B39: 24 | C39: 24 | D39: =INSERT!A26 -> 0 | E39: =INSERT!B26 -> 0 | F39: =INSERT!C26 -> 0 | G39: =INSERT!D26 -> 0 | H39: =INSERT!E26 -> 0 | Y39: 0 | Z39: 0 | AQ39: 0 | AR39: 0 | BI39: 0 | BJ39: 0 | CA39: 0 | CB39: 0 | CG39: 0 | CH39: 4
B40: 25 | C40: 25 | D40: =INSERT!A27 -> 0 | E40: =INSERT!B27 -> 0 | F40: =INSERT!C27 -> 0 | G40: =INSERT!D27 -> 0 | H40: =INSERT!E27 -> 0 | Y40: 0 | Z40: 0 | AQ40: 0 | AR40: 0 | BI40: 0 | BJ40: 0 | CA40: 0 | CB40: 0 | CG40: 0 | CH40: 4
B41: 26 | C41: 26 | D41: =INSERT!A28 -> 0 | E41: =INSERT!B28 -> 0 | F41: =INSERT!C28 -> 0 | G41: =INSERT!D28 -> 0 | H41: =INSERT!E28 -> 0 | Y41: 0 | Z41: 0 | AQ41: 0 | AR41: 0 | BI41: 0 | BJ41: 0 | CA41: 0 | CB41: 0 | CG41: 0 | CH41: 4
B42: 27 | C42: 27 | D42: =INSERT!A29 -> 0 | E42: =INSERT!B29 -> 0 | F42: =INSERT!C29 -> 0 | G42: =INSERT!D29 -> 0 | H42: =INSERT!E29 -> 0 | Y42: 0 | Z42: 0 | AQ42: 0 | AR42: 0 | BI42: 0 | BJ42: 0 | CA42: 0 | CB42: 0 | CG42: 0 | CH42: 4
A43: =IF(CH43=0,"X","") ->  | B43: 28 | C43: 28 | D43: =INSERT!A30 -> 0 | E43: =INSERT!B30 -> 0 | F43: =INSERT!C30 -> 0 | G43: =INSERT!D30 -> 0 | H43: =INSERT!E30 -> 0 | Y43: 0 | Z43: 0 | AQ43: 0 | AR43: 0 | BI43: 0 | BJ43: 0 | CA43: 0 | CB43: 0 | CG43: 0 | CH43: 4
A44: =IF(CH44=0,"X","") ->  | B44: 29 | C44: 29 | D44: =INSERT!A31 -> 0 | E44: =INSERT!B31 -> 0 | F44: =INSERT!C31 -> 0 | G44: =INSERT!D31 -> 0 | H44: =INSERT!E31 -> 0 | Y44: 0 | Z44: 0 | AQ44: 0 | AR44: 0 | BI44: 0 | BJ44: 0 | CA44: 0 | CB44: 0 | CG44: 0 | CH44: 4
B45: 30 | C45: 30 | D45: =INSERT!A32 -> 0 | E45: =INSERT!B32 -> 0 | F45: =INSERT!C32 -> 0 | G45: =INSERT!D32 -> 0 | H45: =INSERT!E32 -> 0 | Y45: 0 | Z45: 0 | AQ45: 0 | AR45: 0 | BI45: 0 | BJ45: 0 | CA45: 0 | CB45: 0 | CG45: 0 | CH45: 4
B46: 31 | C46: 31 | D46: =INSERT!A33 -> 0 | E46: =INSERT!B33 -> 0 | F46: =INSERT!C33 -> 0 | G46: =INSERT!D33 -> 0 | H46: =INSERT!E33 -> 0 | Y46: 0 | Z46: 0 | AQ46: 0 | AR46: 0 | BI46: 0 | BJ46: 0 | CA46: 0 | CB46: 0 | CG46: 0 | CH46: 4
B47: =B46+1 -> 32 | C47: 32 | D47: =INSERT!A34 -> 0 | E47: =INSERT!B34 -> 0 | F47: =INSERT!C34 -> 0 | G47: =INSERT!D34 -> 0 | H47: =INSERT!E34 -> 0 | Y47: 0 | Z47: 0 | AQ47: 0 | AR47: 0 | BI47: 0 | BJ47: 0 | CA47: 0 | CB47: 0 | CG47: 0 | CH47: 4
B48: 33 | C48: 33 | D48: =INSERT!A35 -> 0 | E48: =INSERT!B35 -> 0 | F48: =INSERT!C35 -> 0 | G48: =INSERT!D35 -> 0 | H48: =INSERT!E35 -> 0 | Y48: =SUM(I48:X48) -> 0 | Z48: =IFERROR(ROUND((SUM(Y48*$Y$13)/10),0),"0") -> 0 | AQ48: =SUM(AA48:AP48) -> 0 | AR48: =IFERROR(ROUND((SUM(AQ48*$AQ$13)/10),0),"0") -> 0 | BI48: =SUM(AS48:BH48) -> 0 | BJ48: =IFERROR(ROUND((SUM(BI48*$BI$13)/10),0),"0") -> 0 | CA48: =SUM(BK48:BZ48) -> 0 | CB48: =IFERROR(ROUND((SUM(CA48*$CA$13)/10),0),"0") -> 0 | CF48: =IFERROR(ROUND(SUM(CE48*$CE$13),0),"") ->  | CG48: =ROUND(IF($CF$13=1,CD48,IF($CF$13=2,(CF48+CD48)/2)),0) -> 0 | CH48: =COUNTA(D48:G48,I48,AA48,AS48,BK48,CC48:CE48) -> 4
B49: =B48+1 -> 34 | C49: 34 | D49: =INSERT!A36 -> 0 | E49: =INSERT!B36 -> 0 | F49: =INSERT!C36 -> 0 | G49: =INSERT!D36 -> 0 | H49: =INSERT!E36 -> 0 | Y49: 0 | Z49: 0 | AQ49: 0 | AR49: 0 | BI49: 0 | BJ49: 0 | CA49: 0 | CB49: 0 | CG49: 0 | CH49: 4
B50: 35 | C50: 35 | D50: =INSERT!A37 -> 0 | E50: =INSERT!B37 -> 0 | F50: =INSERT!C37 -> 0 | G50: =INSERT!D37 -> 0 | H50: =INSERT!E37 -> 0 | Y50: 0 | Z50: 0 | AQ50: 0 | AR50: 0 | BI50: 0 | BJ50: 0 | CA50: 0 | CB50: 0 | CG50: 0 | CH50: 4
B51: 36 | C51: 36 | D51: =INSERT!A38 -> 0 | E51: =INSERT!B38 -> 0 | F51: =INSERT!C38 -> 0 | G51: =INSERT!D38 -> 0 | H51: =INSERT!E38 -> 0 | Y51: 0 | Z51: 0 | AQ51: 0 | AR51: 0 | BI51: 0 | BJ51: 0 | CA51: 0 | CB51: 0 | CG51: 0 | CH51: 4
B52: 37 | C52: 37 | D52: =INSERT!A39 -> 0 | E52: =INSERT!B39 -> 0 | F52: =INSERT!C39 -> 0 | G52: =INSERT!D39 -> 0 | H52: =INSERT!E39 -> 0 | Y52: 0 | Z52: 0 | AQ52: 0 | AR52: 0 | BI52: 0 | BJ52: 0 | CA52: 0 | CB52: 0 | CG52: 0 | CH52: 4
B53: 38 | C53: 38 | D53: =INSERT!A40 -> 0 | E53: =INSERT!B40 -> 0 | F53: =INSERT!C40 -> 0 | G53: =INSERT!D40 -> 0 | H53: =INSERT!E40 -> 0 | Y53: 0 | Z53: 0 | AQ53: 0 | AR53: 0 | BI53: 0 | BJ53: 0 | CA53: 0 | CB53: 0 | CG53: 0 | CH53: 4
B54: 39 | C54: 39 | D54: =INSERT!A41 -> 0 | E54: =INSERT!B41 -> 0 | F54: =INSERT!C41 -> 0 | G54: =INSERT!D41 -> 0 | H54: =INSERT!E41 -> 0 | Y54: 0 | Z54: 0 | AQ54: 0 | AR54: 0 | BI54: 0 | BJ54: 0 | CA54: 0 | CB54: 0 | CG54: 0 | CH54: 4
B55: 40 | C55: 40 | D55: =INSERT!A42 -> 0 | E55: =INSERT!B42 -> 0 | F55: =INSERT!C42 -> 0 | G55: =INSERT!D42 -> 0 | H55: =INSERT!E42 -> 0 | Y55: 0 | Z55: 0 | AQ55: 0 | AR55: 0 | BI55: 0 | BJ55: 0 | CA55: 0 | CB55: 0 | CG55: 0 | CH55: 4
B56: 41 | C56: 41 | D56: =INSERT!A43 -> 0 | E56: =INSERT!B43 -> 0 | F56: =INSERT!C43 -> 0 | G56: =INSERT!D43 -> 0 | H56: =INSERT!E43 -> 0 | Y56: 0 | Z56: 0 | AQ56: 0 | AR56: 0 | BI56: 0 | BJ56: 0 | CA56: 0 | CB56: 0 | CG56: 0 | CH56: 4
B57: 42 | C57: 42 | D57: =INSERT!A44 -> 0 | E57: =INSERT!B44 -> 0 | F57: =INSERT!C44 -> 0 | G57: =INSERT!D44 -> 0 | H57: =INSERT!E44 -> 0 | Y57: 0 | Z57: 0 | AQ57: 0 | AR57: 0 | BI57: 0 | BJ57: 0 | CA57: 0 | CB57: 0 | CG57: 0 | CH57: 4
B58: 43 | C58: 43 | D58: =INSERT!A45 -> 0 | E58: =INSERT!B45 -> 0 | F58: =INSERT!C45 -> 0 | G58: =INSERT!D45 -> 0 | H58: =INSERT!E45 -> 0 | Y58: 0 | Z58: 0 | AQ58: 0 | AR58: 0 | BI58: 0 | BJ58: 0 | CA58: 0 | CB58: 0 | CG58: 0 | CH58: 4
B59: 44 | C59: 44 | D59: =INSERT!A46 -> 0 | E59: =INSERT!B46 -> 0 | F59: =INSERT!C46 -> 0 | G59: =INSERT!D46 -> 0 | H59: =INSERT!E46 -> 0 | Y59: 0 | Z59: 0 | AQ59: 0 | AR59: 0 | BI59: 0 | BJ59: 0 | CA59: 0 | CB59: 0 | CG59: 0 | CH59: 4
B60: 45 | C60: 45 | D60: =INSERT!A47 -> 0 | E60: =INSERT!B47 -> 0 | F60: =INSERT!C47 -> 0 | G60: =INSERT!D47 -> 0 | H60: =INSERT!E47 -> 0 | Y60: 0 | Z60: 0 | AQ60: 0 | AR60: 0 | BI60: 0 | BJ60: 0 | CA60: 0 | CB60: 0 | CG60: 0 | CH60: 4
B61: 46 | C61: 46 | D61: =INSERT!A48 -> 0 | E61: =INSERT!B48 -> 0 | F61: =INSERT!C48 -> 0 | G61: =INSERT!D48 -> 0 | H61: =INSERT!E48 -> 0 | Y61: 0 | Z61: 0 | AQ61: 0 | AR61: 0 | BI61: 0 | BJ61: 0 | CA61: 0 | CB61: 0 | CG61: 0 | CH61: 4
B62: 47 | C62: 47 | D62: =INSERT!A49 -> 0 | E62: =INSERT!B49 -> 0 | F62: =INSERT!C49 -> 0 | G62: =INSERT!D49 -> 0 | H62: =INSERT!E49 -> 0 | Y62: 0 | Z62: 0 | AQ62: 0 | AR62: 0 | BI62: 0 | BJ62: 0 | CA62: 0 | CB62: 0 | CG62: 0 | CH62: 4
B63: 48 | C63: 48 | D63: =INSERT!A50 -> 0 | E63: =INSERT!B50 -> 0 | F63: =INSERT!C50 -> 0 | G63: =INSERT!D50 -> 0 | H63: =INSERT!E50 -> 0 | Y63: 0 | Z63: 0 | AQ63: 0 | AR63: 0 | BI63: 0 | BJ63: 0 | CA63: 0 | CB63: 0 | CG63: 0 | CH63: 4
B64: 49 | C64: 49 | D64: =INSERT!A51 -> 0 | E64: =INSERT!B51 -> 0 | F64: =INSERT!C51 -> 0 | G64: =INSERT!D51 -> 0 | H64: =INSERT!E51 -> 0 | Y64: 0 | Z64: 0 | AQ64: 0 | AR64: 0 | BI64: 0 | BJ64: 0 | CA64: 0 | CB64: 0 | CG64: 0 | CH64: 4
B65: 50 | C65: 50 | D65: =INSERT!A52 -> 0 | E65: =INSERT!B52 -> 0 | F65: =INSERT!C52 -> 0 | G65: =INSERT!D52 -> 0 | H65: =INSERT!E52 -> 0 | Y65: 0 | Z65: 0 | AQ65: 0 | AR65: 0 | BI65: 0 | BJ65: 0 | CA65: 0 | CB65: 0 | CG65: 0 | CH65: 4
B66: 51 | C66: 51 | D66: =INSERT!A53 -> 0 | E66: =INSERT!B53 -> 0 | F66: =INSERT!C53 -> 0 | G66: =INSERT!D53 -> 0 | H66: =INSERT!E53 -> 0 | Y66: 0 | Z66: 0 | AQ66: 0 | AR66: 0 | BI66: 0 | BJ66: 0 | CA66: 0 | CB66: 0 | CG66: 0 | CH66: 4
B67: 52 | C67: 52 | D67: =INSERT!A54 -> 0 | E67: =INSERT!B54 -> 0 | F67: =INSERT!C54 -> 0 | G67: =INSERT!D54 -> 0 | H67: =INSERT!E54 -> 0 | Y67: 0 | Z67: 0 | AQ67: 0 | AR67: 0 | BI67: 0 | BJ67: 0 | CA67: 0 | CB67: 0 | CG67: 0 | CH67: 4
B68: 53 | C68: 53 | D68: =INSERT!A55 -> 0 | E68: =INSERT!B55 -> 0 | F68: =INSERT!C55 -> 0 | G68: =INSERT!D55 -> 0 | H68: =INSERT!E55 -> 0 | Y68: 0 | Z68: 0 | AQ68: 0 | AR68: 0 | BI68: 0 | BJ68: 0 | CA68: 0 | CB68: 0 | CG68: 0 | CH68: 4
B69: 54 | C69: 54 | D69: =INSERT!A56 -> 0 | E69: =INSERT!B56 -> 0 | F69: =INSERT!C56 -> 0 | G69: =INSERT!D56 -> 0 | H69: =INSERT!E56 -> 0 | Y69: 0 | Z69: 0 | AQ69: 0 | AR69: 0 | BI69: 0 | BJ69: 0 | CA69: 0 | CB69: 0 | CG69: 0 | CH69: 4
B70: 55 | C70: 55 | D70: =INSERT!A57 -> 0 | E70: =INSERT!B57 -> 0 | F70: =INSERT!C57 -> 0 | G70: =INSERT!D57 -> 0 | H70: =INSERT!E57 -> 0 | Y70: 0 | Z70: 0 | AQ70: 0 | AR70: 0 | BI70: 0 | BJ70: 0 | CA70: 0 | CB70: 0 | CG70: 0 | CH70: 4
B71: 56 | C71: 56 | D71: =INSERT!A58 -> 0 | E71: =INSERT!B58 -> 0 | F71: =INSERT!C58 -> 0 | G71: =INSERT!D58 -> 0 | H71: =INSERT!E58 -> 0 | Y71: 0 | Z71: 0 | AQ71: 0 | AR71: 0 | BI71: 0 | BJ71: 0 | CA71: 0 | CB71: 0 | CG71: 0 | CH71: 4
B72: 57 | C72: 57 | D72: =INSERT!A59 -> 0 | E72: =INSERT!B59 -> 0 | F72: =INSERT!C59 -> 0 | G72: =INSERT!D59 -> 0 | H72: =INSERT!E59 -> 0 | Y72: 0 | Z72: 0 | AQ72: 0 | AR72: 0 | BI72: 0 | BJ72: 0 | CA72: 0 | CB72: 0 | CG72: 0 | CH72: 4
B73: 58 | C73: 58 | D73: =INSERT!A60 -> 0 | E73: =INSERT!B60 -> 0 | F73: =INSERT!C60 -> 0 | G73: =INSERT!D60 -> 0 | H73: =INSERT!E60 -> 0 | Y73: 0 | Z73: 0 | AQ73: 0 | AR73: 0 | BI73: 0 | BJ73: 0 | CA73: 0 | CB73: 0 | CG73: 0 | CH73: 4
B74: 59 | C74: 59 | D74: =INSERT!A61 -> 0 | E74: =INSERT!B61 -> 0 | F74: =INSERT!C61 -> 0 | G74: =INSERT!D61 -> 0 | H74: =INSERT!E61 -> 0 | Y74: 0 | Z74: 0 | AQ74: 0 | AR74: 0 | BI74: 0 | BJ74: 0 | CA74: 0 | CB74: 0 | CG74: 0 | CH74: 4
B75: 60 | C75: 60 | D75: =INSERT!A62 -> 0 | E75: =INSERT!B62 -> 0 | F75: =INSERT!C62 -> 0 | G75: =INSERT!D62 -> 0 | H75: =INSERT!E62 -> 0 | Y75: 0 | Z75: 0 | AQ75: 0 | AR75: 0 | BI75: 0 | BJ75: 0 | CA75: 0 | CB75: 0 | CG75: 0 | CH75: 4
B76: 61 | C76: 61 | D76: =INSERT!A63 -> 0 | E76: =INSERT!B63 -> 0 | F76: =INSERT!C63 -> 0 | G76: =INSERT!D63 -> 0 | H76: =INSERT!E63 -> 0 | Y76: 0 | Z76: 0 | AQ76: 0 | AR76: 0 | BI76: 0 | BJ76: 0 | CA76: 0 | CB76: 0 | CG76: 0 | CH76: 4
B77: 62 | C77: 62 | D77: =INSERT!A64 -> 0 | E77: =INSERT!B64 -> 0 | F77: =INSERT!C64 -> 0 | G77: =INSERT!D64 -> 0 | H77: =INSERT!E64 -> 0 | Y77: 0 | Z77: 0 | AQ77: 0 | AR77: 0 | BI77: 0 | BJ77: 0 | CA77: 0 | CB77: 0 | CG77: 0 | CH77: 4
B78: 63 | C78: 63 | D78: =INSERT!A65 -> 0 | E78: =INSERT!B65 -> 0 | F78: =INSERT!C65 -> 0 | G78: =INSERT!D65 -> 0 | H78: =INSERT!E65 -> 0 | Y78: 0 | Z78: 0 | AQ78: 0 | AR78: 0 | BI78: 0 | BJ78: 0 | CA78: 0 | CB78: 0 | CG78: 0 | CH78: 4
B79: 64 | C79: 64 | D79: =INSERT!A66 -> 0 | E79: =INSERT!B66 -> 0 | F79: =INSERT!C66 -> 0 | G79: =INSERT!D66 -> 0 | H79: =INSERT!E66 -> 0 | Y79: 0 | Z79: 0 | AQ79: 0 | AR79: 0 | BI79: 0 | BJ79: 0 | CA79: 0 | CB79: 0 | CG79: 0 | CH79: 4
B80: 65 | C80: 65 | D80: =INSERT!A67 -> 0 | E80: =INSERT!B67 -> 0 | F80: =INSERT!C67 -> 0 | G80: =INSERT!D67 -> 0 | H80: =INSERT!E67 -> 0 | Y80: =SUM(I80:X80) -> 0 | Z80: =IFERROR(ROUND((SUM(Y80*$Y$13)/10),0),"0") -> 0 | AQ80: =SUM(AA80:AP80) -> 0 | AR80: =IFERROR(ROUND((SUM(AQ80*$AQ$13)/10),0),"0") -> 0 | BI80: =SUM(AS80:BH80) -> 0 | BJ80: =IFERROR(ROUND((SUM(BI80*$BI$13)/10),0),"0") -> 0 | CA80: =SUM(BK80:BZ80) -> 0 | CB80: =IFERROR(ROUND((SUM(CA80*$CA$13)/10),0),"0") -> 0 | CF80: =IFERROR(ROUND(SUM(CE80*$CE$13),0),"") ->  | CG80: =ROUND(IF($CF$13=1,CD80,IF($CF$13=2,(CF80+CD80)/2)),0) -> 0 | CH80: =COUNTA(D80:G80,I80,AA80,AS80,BK80,CC80:CE80) -> 4
B81: 66 | C81: 66 | D81: =INSERT!A68 -> 0 | E81: =INSERT!B68 -> 0 | F81: =INSERT!C68 -> 0 | G81: =INSERT!D68 -> 0 | H81: =INSERT!E68 -> 0 | Y81: 0 | Z81: 0 | AQ81: 0 | AR81: 0 | BI81: 0 | BJ81: 0 | CA81: 0 | CB81: 0 | CG81: 0 | CH81: 4
B82: 67 | C82: 67 | D82: =INSERT!A69 -> 0 | E82: =INSERT!B69 -> 0 | F82: =INSERT!C69 -> 0 | G82: =INSERT!D69 -> 0 | H82: =INSERT!E69 -> 0 | Y82: 0 | Z82: 0 | AQ82: 0 | AR82: 0 | BI82: 0 | BJ82: 0 | CA82: 0 | CB82: 0 | CG82: 0 | CH82: 4
B83: 68 | C83: 68 | D83: =INSERT!A70 -> 0 | E83: =INSERT!B70 -> 0 | F83: =INSERT!C70 -> 0 | G83: =INSERT!D70 -> 0 | H83: =INSERT!E70 -> 0 | Y83: 0 | Z83: 0 | AQ83: 0 | AR83: 0 | BI83: 0 | BJ83: 0 | CA83: 0 | CB83: 0 | CG83: 0 | CH83: 4
B84: 69 | C84: 69 | D84: =INSERT!A71 -> 0 | E84: =INSERT!B71 -> 0 | F84: =INSERT!C71 -> 0 | G84: =INSERT!D71 -> 0 | H84: =INSERT!E71 -> 0 | Y84: 0 | Z84: 0 | AQ84: 0 | AR84: 0 | BI84: 0 | BJ84: 0 | CA84: 0 | CB84: 0 | CG84: 0 | CH84: 4
B85: 70 | C85: 70 | D85: =INSERT!A72 -> 0 | E85: =INSERT!B72 -> 0 | F85: =INSERT!C72 -> 0 | G85: =INSERT!D72 -> 0 | H85: =INSERT!E72 -> 0 | Y85: 0 | Z85: 0 | AQ85: 0 | AR85: 0 | BI85: 0 | BJ85: 0 | CA85: 0 | CB85: 0 | CG85: 0 | CH85: 4
B86: 71 | C86: 71 | D86: =INSERT!A73 -> 0 | E86: =INSERT!B73 -> 0 | F86: =INSERT!C73 -> 0 | G86: =INSERT!D73 -> 0 | H86: =INSERT!E73 -> 0 | Y86: 0 | Z86: 0 | AQ86: 0 | AR86: 0 | BI86: 0 | BJ86: 0 | CA86: 0 | CB86: 0 | CG86: 0 | CH86: 4
B87: 72 | C87: 72 | D87: =INSERT!A74 -> 0 | E87: =INSERT!B74 -> 0 | F87: =INSERT!C74 -> 0 | G87: =INSERT!D74 -> 0 | H87: =INSERT!E74 -> 0 | Y87: 0 | Z87: 0 | AQ87: 0 | AR87: 0 | BI87: 0 | BJ87: 0 | CA87: 0 | CB87: 0 | CG87: 0 | CH87: 4
B88: 73 | C88: 73 | D88: =INSERT!A75 -> 0 | E88: =INSERT!B75 -> 0 | F88: =INSERT!C75 -> 0 | G88: =INSERT!D75 -> 0 | H88: =INSERT!E75 -> 0 | Y88: 0 | Z88: 0 | AQ88: 0 | AR88: 0 | BI88: 0 | BJ88: 0 | CA88: 0 | CB88: 0 | CG88: 0 | CH88: 4
B89: 74 | C89: 74 | D89: =INSERT!A76 -> 0 | E89: =INSERT!B76 -> 0 | F89: =INSERT!C76 -> 0 | G89: =INSERT!D76 -> 0 | H89: =INSERT!E76 -> 0 | Y89: 0 | Z89: 0 | AQ89: 0 | AR89: 0 | BI89: 0 | BJ89: 0 | CA89: 0 | CB89: 0 | CG89: 0 | CH89: 4
B90: 75 | C90: 75 | D90: =INSERT!A77 -> 0 | E90: =INSERT!B77 -> 0 | F90: =INSERT!C77 -> 0 | G90: =INSERT!D77 -> 0 | H90: =INSERT!E77 -> 0 | Y90: 0 | Z90: 0 | AQ90: 0 | AR90: 0 | BI90: 0 | BJ90: 0 | CA90: 0 | CB90: 0 | CG90: 0 | CH90: 4
B91: 76 | C91: 76 | D91: =INSERT!A78 -> 0 | E91: =INSERT!B78 -> 0 | F91: =INSERT!C78 -> 0 | G91: =INSERT!D78 -> 0 | H91: =INSERT!E78 -> 0 | Y91: 0 | Z91: 0 | AQ91: 0 | AR91: 0 | BI91: 0 | BJ91: 0 | CA91: 0 | CB91: 0 | CG91: 0 | CH91: 4
B92: 77 | C92: 77 | D92: =INSERT!A79 -> 0 | E92: =INSERT!B79 -> 0 | F92: =INSERT!C79 -> 0 | G92: =INSERT!D79 -> 0 | H92: =INSERT!E79 -> 0 | Y92: 0 | Z92: 0 | AQ92: 0 | AR92: 0 | BI92: 0 | BJ92: 0 | CA92: 0 | CB92: 0 | CG92: 0 | CH92: 4
B93: 78 | C93: 78 | D93: =INSERT!A80 -> 0 | E93: =INSERT!B80 -> 0 | F93: =INSERT!C80 -> 0 | G93: =INSERT!D80 -> 0 | H93: =INSERT!E80 -> 0 | Y93: 0 | Z93: 0 | AQ93: 0 | AR93: 0 | BI93: 0 | BJ93: 0 | CA93: 0 | CB93: 0 | CG93: 0 | CH93: 4
B94: 79 | C94: 79 | D94: =INSERT!A81 -> 0 | E94: =INSERT!B81 -> 0 | F94: =INSERT!C81 -> 0 | G94: =INSERT!D81 -> 0 | H94: =INSERT!E81 -> 0 | Y94: 0 | Z94: 0 | AQ94: 0 | AR94: 0 | BI94: 0 | BJ94: 0 | CA94: 0 | CB94: 0 | CG94: 0 | CH94: 4
B95: 80 | C95: 80 | D95: =INSERT!A82 -> 0 | E95: =INSERT!B82 -> 0 | F95: =INSERT!C82 -> 0 | G95: =INSERT!D82 -> 0 | H95: =INSERT!E82 -> 0 | Y95: 0 | Z95: 0 | AQ95: 0 | AR95: 0 | BI95: 0 | BJ95: 0 | CA95: 0 | CB95: 0 | CG95: 0 | CH95: 4
B96: 81 | C96: 81 | D96: =INSERT!A83 -> 0 | E96: =INSERT!B83 -> 0 | F96: =INSERT!C83 -> 0 | G96: =INSERT!D83 -> 0 | H96: =INSERT!E83 -> 0 | Y96: 0 | Z96: 0 | AQ96: 0 | AR96: 0 | BI96: 0 | BJ96: 0 | CA96: 0 | CB96: 0 | CG96: 0 | CH96: 4
B97: 82 | C97: 82 | D97: =INSERT!A84 -> 0 | E97: =INSERT!B84 -> 0 | F97: =INSERT!C84 -> 0 | G97: =INSERT!D84 -> 0 | H97: =INSERT!E84 -> 0 | Y97: 0 | Z97: 0 | AQ97: 0 | AR97: 0 | BI97: 0 | BJ97: 0 | CA97: 0 | CB97: 0 | CG97: 0 | CH97: 4
B98: 83 | C98: 83 | D98: =INSERT!A85 -> 0 | E98: =INSERT!B85 -> 0 | F98: =INSERT!C85 -> 0 | G98: =INSERT!D85 -> 0 | H98: =INSERT!E85 -> 0 | Y98: 0 | Z98: 0 | AQ98: 0 | AR98: 0 | BI98: 0 | BJ98: 0 | CA98: 0 | CB98: 0 | CG98: 0 | CH98: 4
B99: 84 | C99: 84 | D99: =INSERT!A86 -> 0 | E99: =INSERT!B86 -> 0 | F99: =INSERT!C86 -> 0 | G99: =INSERT!D86 -> 0 | H99: =INSERT!E86 -> 0 | Y99: 0 | Z99: 0 | AQ99: 0 | AR99: 0 | BI99: 0 | BJ99: 0 | CA99: 0 | CB99: 0 | CG99: 0 | CH99: 4
B100: 85 | C100: 85 | D100: =INSERT!A87 -> 0 | E100: =INSERT!B87 -> 0 | F100: =INSERT!C87 -> 0 | G100: =INSERT!D87 -> 0 | H100: =INSERT!E87 -> 0 | Y100: 0 | Z100: 0 | AQ100: 0 | AR100: 0 | BI100: 0 | BJ100: 0 | CA100: 0 | CB100: 0 | CG100: 0 | CH100: 4
B101: 86 | C101: 86 | D101: =INSERT!A88 -> 0 | E101: =INSERT!B88 -> 0 | F101: =INSERT!C88 -> 0 | G101: =INSERT!D88 -> 0 | H101: =INSERT!E88 -> 0 | Y101: 0 | Z101: 0 | AQ101: 0 | AR101: 0 | BI101: 0 | BJ101: 0 | CA101: 0 | CB101: 0 | CG101: 0 | CH101: 4
B102: 87 | C102: 87 | D102: =INSERT!A89 -> 0 | E102: =INSERT!B89 -> 0 | F102: =INSERT!C89 -> 0 | G102: =INSERT!D89 -> 0 | H102: =INSERT!E89 -> 0 | Y102: 0 | Z102: 0 | AQ102: 0 | AR102: 0 | BI102: 0 | BJ102: 0 | CA102: 0 | CB102: 0 | CG102: 0 | CH102: 4
B103: 88 | C103: 88 | D103: =INSERT!A90 -> 0 | E103: =INSERT!B90 -> 0 | F103: =INSERT!C90 -> 0 | G103: =INSERT!D90 -> 0 | H103: =INSERT!E90 -> 0 | Y103: 0 | Z103: 0 | AQ103: 0 | AR103: 0 | BI103: 0 | BJ103: 0 | CA103: 0 | CB103: 0 | CG103: 0 | CH103: 4
B104: 89 | C104: 89 | D104: =INSERT!A91 -> 0 | E104: =INSERT!B91 -> 0 | F104: =INSERT!C91 -> 0 | G104: =INSERT!D91 -> 0 | H104: =INSERT!E91 -> 0 | Y104: 0 | Z104: 0 | AQ104: 0 | AR104: 0 | BI104: 0 | BJ104: 0 | CA104: 0 | CB104: 0 | CG104: 0 | CH104: 4
B105: 90 | C105: 90 | D105: =INSERT!A92 -> 0 | E105: =INSERT!B92 -> 0 | F105: =INSERT!C92 -> 0 | G105: =INSERT!D92 -> 0 | H105: =INSERT!E92 -> 0 | Y105: 0 | Z105: 0 | AQ105: 0 | AR105: 0 | BI105: 0 | BJ105: 0 | CA105: 0 | CB105: 0 | CG105: 0 | CH105: 4
B106: 91 | C106: 91 | D106: =INSERT!A93 -> 0 | E106: =INSERT!B93 -> 0 | F106: =INSERT!C93 -> 0 | G106: =INSERT!D93 -> 0 | H106: =INSERT!E93 -> 0 | Y106: 0 | Z106: 0 | AQ106: 0 | AR106: 0 | BI106: 0 | BJ106: 0 | CA106: 0 | CB106: 0 | CG106: 0 | CH106: 4
B107: 92 | C107: 92 | D107: =INSERT!A94 -> 0 | E107: =INSERT!B94 -> 0 | F107: =INSERT!C94 -> 0 | G107: =INSERT!D94 -> 0 | H107: =INSERT!E94 -> 0 | Y107: 0 | Z107: 0 | AQ107: 0 | AR107: 0 | BI107: 0 | BJ107: 0 | CA107: 0 | CB107: 0 | CG107: 0 | CH107: 4
A108: =IF(CH108=0,"X","") ->  | B108: 93 | C108: 93 | D108: =INSERT!A95 -> 0 | E108: =INSERT!B95 -> 0 | F108: =INSERT!C95 -> 0 | G108: =INSERT!D95 -> 0 | H108: =INSERT!E95 -> 0 | Y108: 0 | Z108: 0 | AQ108: 0 | AR108: 0 | BI108: 0 | BJ108: 0 | CA108: 0 | CB108: 0 | CG108: 0 | CH108: 4
B109: 94 | C109: 94 | D109: =INSERT!A96 -> 0 | E109: =INSERT!B96 -> 0 | F109: =INSERT!C96 -> 0 | G109: =INSERT!D96 -> 0 | H109: =INSERT!E96 -> 0 | Y109: 0 | Z109: 0 | AQ109: 0 | AR109: 0 | BI109: 0 | BJ109: 0 | CA109: 0 | CB109: 0 | CG109: 0 | CH109: 4
B110: 95 | C110: 95 | D110: =INSERT!A97 -> 0 | E110: =INSERT!B97 -> 0 | F110: =INSERT!C97 -> 0 | G110: =INSERT!D97 -> 0 | H110: =INSERT!E97 -> 0 | Y110: 0 | Z110: 0 | AQ110: 0 | AR110: 0 | BI110: 0 | BJ110: 0 | CA110: 0 | CB110: 0 | CG110: 0 | CH110: 4
B111: 96 | C111: 96 | D111: =INSERT!A98 -> 0 | E111: =INSERT!B98 -> 0 | F111: =INSERT!C98 -> 0 | G111: =INSERT!D98 -> 0 | H111: =INSERT!E98 -> 0 | Y111: 0 | Z111: 0 | AQ111: 0 | AR111: 0 | BI111: 0 | BJ111: 0 | CA111: 0 | CB111: 0 | CG111: 0 | CH111: 4
B112: 97 | C112: 97 | D112: =INSERT!A99 -> 0 | E112: =INSERT!B99 -> 0 | F112: =INSERT!C99 -> 0 | G112: =INSERT!D99 -> 0 | H112: =INSERT!E99 -> 0 | Y112: =SUM(I112:X112) -> 0 | Z112: =IFERROR(ROUND((SUM(Y112*$Y$13)/10),0),"0") -> 0 | AQ112: =SUM(AA112:AP112) -> 0 | AR112: =IFERROR(ROUND((SUM(AQ112*$AQ$13)/10),0),"0") -> 0 | BI112: =SUM(AS112:BH112) -> 0 | BJ112: =IFERROR(ROUND((SUM(BI112*$BI$13)/10),0),"0") -> 0 | CA112: =SUM(BK112:BZ112) -> 0 | CB112: =IFERROR(ROUND((SUM(CA112*$CA$13)/10),0),"0") -> 0 | CF112: =IFERROR(ROUND(SUM(CE112*$CE$13),0),"") ->  | CG112: =ROUND(IF($CF$13=1,CD112,IF($CF$13=2,(CF112+CD112)/2)),0) -> 0 | CH112: 4
B113: 98 | C113: 98 | D113: =INSERT!A100 -> 0 | E113: =INSERT!B100 -> 0 | F113: =INSERT!C100 -> 0 | G113: =INSERT!D100 -> 0 | H113: =INSERT!E100 -> 0 | Y113: 0 | Z113: 0 | AQ113: 0 | AR113: 0 | BI113: 0 | BJ113: 0 | CA113: 0 | CB113: 0 | CG113: 0 | CH113: 4
B114: 99 | C114: 99 | D114: =INSERT!A101 -> 0 | E114: =INSERT!B101 -> 0 | F114: =INSERT!C101 -> 0 | G114: =INSERT!D101 -> 0 | H114: =INSERT!E101 -> 0 | Y114: 0 | Z114: 0 | AQ114: 0 | AR114: 0 | BI114: 0 | BJ114: 0 | CA114: 0 | CB114: 0 | CG114: 0 | CH114: 4
B115: 100 | C115: 100 | D115: =INSERT!A102 -> 0 | E115: =INSERT!B102 -> 0 | F115: =INSERT!C102 -> 0 | G115: =INSERT!D102 -> 0 | H115: =INSERT!E102 -> 0 | Y115: 0 | Z115: 0 | AQ115: 0 | AR115: 0 | BI115: 0 | BJ115: 0 | CA115: 0 | CB115: 0 | CG115: 0 | CH115: 4
B116: Total amount of learners on mark sheet | F116: 0 | G116: TOTAL | I116: =SUM(I16:I115) -> 0 | J116: 0 | K116: 0 | L116: 0 | M116: =SUM(M16:M115) -> 0 | N116: 0 | O116: 0 | P116: 0 | Q116: 0 | R116: 0 | S116: 0 | T116: 0 | U116: 0 | V116: 0 | W116: 0 | X116: 0 | Y116: 0 | Z116: 0 | AA116: 0 | AB116: 0 | AC116: 0 | AD116: 0 | AE116: 0 | AF116: =SUM(AF16:AF115) -> 0 | AG116: 0 | AH116: 0 | AI116: 0 | AJ116: 0 | AK116: 0 | AL116: 0 | AM116: 0 | AN116: 0 | AO116: 0 | AP116: 0 | AQ116: 0 | AR116: 0 | AS116: 0 | AT116: 0 | AU116: 0 | AV116: 0 | AW116: =SUM(AW16:AW115) -> 0 | AX116: 0 | AY116: 0 | AZ116: 0 | BA116: 0 | BB116: 0 | BC116: 0 | BD116: 0 | BE116: 0 | BF116: 0 | BG116: 0 | BH116: 0 | BI116: 0 | BJ116: 0 | BK116: 0 | BL116: 0 | BM116: 0 | BN116: 0 | BO116: =SUM(BO16:BO115) -> 0 | BP116: 0 | BQ116: 0 | BR116: 0 | BS116: 0 | BT116: 0 | BU116: 0 | BV116: 0 | BW116: 0 | BX116: 0 | BY116: 0 | BZ116: 0 | CA116: 0 | CB116: 0 | CC116: 0 | CD116: 0 | CE116: 0 | CF116: =SUM(CF16:CF115) -> 0 | CG116: 0
F117: 0 | G117: AVERAGE | I117: =IFERROR(SUM(I116/I120),"0") -> 0 | J117: =IFERROR(SUM(J116/J120),"0") -> 0 | K117: 0 | L117: 0 | M117: =IFERROR(SUM(M116/M120),"0") -> 0 | N117: 0 | O117: 0 | P117: 0 | Q117: 0 | R117: 0 | S117: 0 | T117: 0 | U117: 0 | V117: 0 | W117: 0 | X117: 0 | Y117: =IFERROR(SUM(Y116/B120),"0") -> 0 | Z117: =IFERROR(SUM(Z116/B120),"0") -> 0 | AA117: 0 | AB117: 0 | AC117: 0 | AD117: 0 | AE117: 0 | AF117: =IFERROR(SUM(AF116/AF120),"0") -> 0 | AG117: 0 | AH117: 0 | AI117: 0 | AJ117: 0 | AK117: 0 | AL117: 0 | AM117: 0 | AN117: 0 | AO117: 0 | AP117: 0 | AQ117: =IFERROR(SUM(AQ116/B120),"0") -> 0 | AR117: =IFERROR(SUM(AR116/B120),"0") -> 0 | AS117: 0 | AT117: 0 | AU117: 0 | AV117: 0 | AW117: =IFERROR(SUM(AW116/AW120),"0") -> 0 | AX117: 0 | AY117: 0 | AZ117: 0 | BA117: 0 | BB117: 0 | BC117: 0 | BD117: 0 | BE117: 0 | BF117: 0 | BG117: 0 | BH117: 0 | BI117: =IFERROR(SUM(BI116/B120),"0") -> 0 | BJ117: =IFERROR(SUM(BJ116/B120),"0") -> 0 | BK117: 0 | BL117: 0 | BM117: 0 | BN117: 0 | BO117: =IFERROR(SUM(BO116/BO120),"0") -> 0 | BP117: 0 | BQ117: 0 | BR117: 0 | BS117: 0 | BT117: 0 | BU117: 0 | BV117: 0 | BW117: 0 | BX117: 0 | BY117: 0 | BZ117: 0 | CA117: =IFERROR(SUM(CA116/B120),"0") -> 0 | CB117: =IFERROR(SUM(CB116/B120),"0") -> 0 | CC117: 0 | CD117: 0 | CE117: 0 | CF117: =IFERROR(SUM(CF116/CF120),"0") -> 0 | CG117: =IFERROR(SUM(CG116/B120),"0") -> 0
F118: 0 | G118: PERCENTAGE | I118: =IFERROR(ROUND((SUM(I117/I12)*100),0),"0") -> 0 | J118: =IFERROR(ROUND((SUM(J117/J12)*100),0),"0") -> 0 | K118: 0 | L118: 0 | M118: =IFERROR(ROUND((SUM(M117/M12)*100),0),"0") -> 0 | N118: 0 | O118: 0 | P118: 0 | Q118: 0 | R118: 0 | S118: 0 | T118: 0 | U118: 0 | V118: 0 | W118: 0 | X118: 0 | Y118: 0 | Z118: 0 | AA118: 0 | AB118: 0 | AC118: 0 | AD118: 0 | AE118: 0 | AF118: =IFERROR(ROUND((SUM(AF117/AF12)*100),0),"0") -> 0 | AG118: 0 | AH118: 0 | AI118: 0 | AJ118: 0 | AK118: 0 | AL118: 0 | AM118: 0 | AN118: 0 | AO118: 0 | AP118: 0 | AQ118: 0 | AR118: 0 | AS118: 0 | AT118: 0 | AU118: 0 | AV118: 0 | AW118: =IFERROR(ROUND((SUM(AW117/AW12)*100),0),"0") -> 0 | AX118: 0 | AY118: 0 | AZ118: 0 | BA118: 0 | BB118: 0 | BC118: 0 | BD118: 0 | BE118: 0 | BF118: 0 | BG118: 0 | BH118: 0 | BI118: 0 | BJ118: 0 | BK118: 0 | BL118: 0 | BM118: 0 | BN118: 0 | BO118: =IFERROR(ROUND((SUM(BO117/BO12)*100),0),"0") -> 0 | BP118: 0 | BQ118: 0 | BR118: 0 | BS118: 0 | BT118: 0 | BU118: 0 | BV118: 0 | BW118: 0 | BX118: 0 | BY118: 0 | BZ118: 0 | CA118: 0 | CB118: 0 | CC118: 0 | CD118: 0 | CE118: 0 | CF118: =IFERROR(ROUND((SUM(CF117/CF12)*100),0),"0") -> 0 | CG118: 0
F119: 0 | G119: 0
B120: =INSERT!$E$103 -> 0 | F120: 0 | G120: TOTAL HANDED IN | I120: =COUNT(I16:I115) -> 0 | J120: =COUNT(J16:J115) -> 0 | K120: =COUNT(K16:K115) -> 0 | L120: 0 | M120: =COUNT(M16:M115) -> 0 | N120: 0 | O120: 0 | P120: 0 | Q120: 0 | R120: 0 | S120: 0 | T120: 0 | U120: 0 | V120: 0 | W120: 0 | X120: =COUNT(X16:X115) -> 0 | AA120: =COUNT(AA16:AA115) -> 0 | AB120: =COUNT(AB16:AB115) -> 0 | AC120: =COUNT(AC16:AC115) -> 0 | AD120: 0 | AE120: 0 | AF120: =COUNT(AF16:AF115) -> 0 | AG120: 0 | AH120: 0 | AI120: 0 | AJ120: 0 | AK120: 0 | AL120: 0 | AM120: 0 | AN120: 0 | AO120: 0 | AP120: =COUNT(AP16:AP115) -> 0 | AS120: =COUNT(AS16:AS115) -> 0 | AT120: =COUNT(AT16:AT115) -> 0 | AU120: =COUNT(AU16:AU115) -> 0 | AV120: 0 | AW120: =COUNT(AW16:AW115) -> 0 | AX120: 0 | AY120: 0 | AZ120: 0 | BA120: 0 | BB120: 0 | BC120: 0 | BD120: 0 | BE120: 0 | BF120: 0 | BG120: 0 | BH120: =COUNT(BH16:BH115) -> 0 | BK120: =COUNT(BK16:BK115) -> 0 | BL120: =COUNT(BL16:BL115) -> 0 | BM120: =COUNT(BM16:BM115) -> 0 | BN120: 0 | BO120: =COUNT(BO16:BO115) -> 0 | BP120: 0 | BQ120: 0 | BR120: 0 | BS120: 0 | BT120: 0 | BU120: 0 | BV120: 0 | BW120: 0 | BX120: 0 | BY120: 0 | BZ120: =COUNT(BZ16:BZ115) -> 0 | CC120: =COUNT(CC16:CC115) -> 0 | CD120: 0 | CE120: 0

Sheet TERM2
B2: ENGINEERING GRAPHICS AND DESIGN
I3: PROGRAM OF ASSESSMENT : TERM 2 | BQ3: JUNE EXAM | BW3: JUNE EXAM
I4: CD5 2-point perspective | AA4: CD6 Floor Plan & Elevations | AS4: CD7 Sectional Elevation | BK4: JUNE EXAM | BQ4: PAPER 1 | BW4: PAPER 2
A5: 17 | E5: School: | F5: =INSERT!J3 -> 0 | I5: CD 5.1 | J5: CD 5.2 | K5: CD 5.3 | Y5: TOTAL CD7 | Z5: TOTAL | AA5: CD 6.1 | AB5: CD 6.2 | AC5: CD 6.3 | AQ5: TOTAL CD8 | AR5: TOTAL | AS5: CD 7.1 | AT5: CD 7.2 | AU5: CD 7.3 | BI5: TOTAL CD9 | BJ5: TOTAL | BK5: PAPER 1 | BM5: PAPER 2 | BO5: EXAM TOTAL | BP5: LEVELS | BQ5: Question 1 | BR5: Question 2 | BS5: Question 3 | BT5: Question 4 | BU5: TOTAL | BV5: TOTAL = 200 | BW5: Question 1 | BX5: Question 2 | BY5: Question 3 | BZ5: Question 4 | CA5: TOTAL | CB5: TOTAL = 200
E6: Grade: | F6: =INSERT!J4 -> 0
E7: Teacher: | F7: =INSERT!J5 -> 0
E8: HOD: | F8: =INSERT!J6 -> 0
E9: EGD SES: | F9: =INSERT!J7 -> 0 | G9: =INSERT!K7 -> 0 | H9: =INSERT!L7 -> 0
I11: 7.1 | J11: 7.2 | K11: 7.3 | L11: 7.4 | M11: 7.5 | N11: 7.6 | O11: 7.7 | P11: 7.8 | Q11: 7.9 | R11: 7.1 | S11: 7.11 | T11: 7.12 | U11: 7.13 | V11: 7.14 | W11: 7.15 | X11: 7.16 | AA11: 8.1 | AB11: 8.2 | AC11: 8.3 | AD11: 8.4 | AE11: 8.5 | AF11: 8.6 | AG11: 8.7 | AH11: 8.8 | AI11: 8.9 | AJ11: 8.1 | AK11: 8.11 | AL11: 8.12 | AM11: 8.13 | AN11: 8.14 | AO11: 8.15 | AP11: 8.16 | AS11: 9.1 | AT11: 9.2 | AU11: 9.3 | AV11: 9.4 | AW11: 9.5 | AX11: 9.6 | AY11: 9.7 | AZ11: 9.8 | BA11: 9.9 | BB11: 9.1 | BC11: 9.11 | BD11: 9.12 | BE11: 9.13 | BF11: 9.14 | BG11: 9.15 | BH11: 9.16
B12: Nr. | D12: Class | E12: Admission | F12: SURNAME | G12: NAME | H12: GENDER | Y12: =SUM(I12:X12) -> 0 | Z12: 10 | AQ12: =SUM(AA12:AP12) -> 0 | AR12: 10 | BI12: =SUM(AS12:BH12) -> 0 | BJ12: 10 | BK12: =$BV$12 -> 75 | BM12: =$CB$12 -> 75 | BO12: =SUM(BK12:BM12) -> 150 | BQ12: 30 | BR12: 24 | BS12: 35 | BT12: 71 | BU12: =SUM(BQ12:BT12) -> 160 | BV12: =SUM(BU12*$BU$13) -> 75 | BW12: 25 | BX12: 31 | BY12: 28 | BZ12: 64.5 | CA12: =SUM(BW12:BZ12) -> 148.5 | CB12: =SUM(CA12*$CA$13) -> 75
I13: =IF(I12>0,"","X") -> X | J13: X | K13: X | L13: X | M13: X | N13: X | O13: X | P13: X | Q13: X | R13: X | S13: X | T13: X | U13: X | V13: X | W13: X | X13: X | Y13: =SUM(100/Y12) ->  | AA13: =IF(AA12>0,"","X") -> X | AB13: X | AC13: X | AD13: X | AE13: X | AF13: X | AG13: X | AH13: X | AI13: X | AJ13: X | AK13: X | AL13: X | AM13: X | AN13: X | AO13: X | AP13: X | AQ13: =SUM(100/AQ12) ->  | AS13: =IF(AS12>0,"","X") -> X | AT13: X | AU13: X | AV13: X | AW13: X | AX13: X | AY13: X | AZ13: X | BA13: X | BB13: X | BC13: X | BD13: X | BE13: X | BF13: X | BG13: X | BH13: X | BI13: =SUM(100/BI12) ->  | BK13: =SUM(100/BK12)*0.5 -> 0.6666666667 | BM13: =IFERROR((SUM(100/BM12)*0.5),"0") -> 0.6666666667 | BN13: =COUNT(BQ12)+COUNT(BW12) -> 2 | BU13: =IFERROR(SUM(75/BU12),"0") -> 0.46875 | CA13: =IFERROR(SUM(75/CA12),"0") -> 0.5050505051
H14: DATE:
A16: =SUM(COUNTA(F16)+COUNT(B16)) -> 2 | B16: 1 | C16: 1 | D16: =INSERT!A3 -> 0 | E16: =INSERT!B3 -> 0 | F16: =INSERT!C3 -> 0 | G16: =INSERT!D3 -> 0 | H16: =INSERT!E3 -> 0 | Y16: =SUM(I16:X16) -> 0 | Z16: =IFERROR((ROUND((SUM(Y16*$Y$13)/10),0)),0) -> 0 | AQ16: =SUM(AA16:AP16) -> 0 | AR16: =IFERROR((ROUND((SUM(AQ16*$AQ$13)/10),0)),0) -> 0 | BI16: =SUM(AS16:BH16) -> 0 | BJ16: =IFERROR((ROUND((SUM(BI16*$BI$13)/10),0)),0) -> 0 | BK16: =ROUND((BV16),0) -> 0 | BL16: =SUM(BK16*$BK$13) -> 0 | BM16: =ROUND((CB16),0) -> 0 | BN16: =SUM(BM16*$BM$13) -> 0 | BO16: =SUM(BK16+BM16) -> 0 | BP16: =IF(BO16>79.4,"7",IF(BO16>69.4,"6",IF(BO16>59.4,"5",IF(BO16>49.4,"4",IF(BO16>39.4,"3",IF(BO16>29.4,"2",IF(BO16>0,"1",IF(BO16=0,"",IF(BO16=-1,""))))))))) ->  | BU16: =SUM(BQ16:BT16) -> 0 | BV16: =ROUND(SUM(BU16*$BU$13),0) -> 0 | CA16: =SUM(BW16:BZ16) -> 0 | CB16: =ROUND(SUM(CA16*$CA$13),0) -> 0
B17: =B16+1 -> 2 | C17: 36 | D17: =INSERT!A4 -> 0 | E17: =INSERT!B4 -> 0 | F17: =INSERT!C4 -> 0 | G17: =INSERT!D4 -> 0 | H17: =INSERT!E4 -> 0 | Y17: 0 | Z17: 0 | AQ17: 0 | AR17: 0 | BI17: 0 | BJ17: 0 | BK17: 0 | BL17: 0 | BM17: 0 | BN17: 0 | BO17: =SUM(BK17+BM17) -> 0 | BU17: 0 | BV17: 0 | CA17: 0 | CB17: 0
B18: =B17+1 -> 3 | C18: 2 | D18: =INSERT!A5 -> 0 | E18: =INSERT!B5 -> 0 | F18: =INSERT!C5 -> 0 | G18: =INSERT!D5 -> 0 | H18: =INSERT!E5 -> 0 | Y18: 0 | Z18: 0 | AQ18: 0 | AR18: 0 | BI18: 0 | BJ18: 0 | BK18: 0 | BL18: 0 | BM18: 0 | BN18: 0 | BO18: 0 | BU18: 0 | BV18: 0 | CA18: 0 | CB18: 0
B19: 4 | C19: 3 | D19: =INSERT!A6 -> 0 | E19: =INSERT!B6 -> 0 | F19: =INSERT!C6 -> 0 | G19: =INSERT!D6 -> 0 | H19: =INSERT!E6 -> 0 | Y19: 0 | Z19: 0 | AQ19: 0 | AR19: 0 | BI19: 0 | BJ19: 0 | BK19: 0 | BL19: 0 | BM19: 0 | BN19: 0 | BO19: 0 | BU19: 0 | BV19: 0 | CA19: 0 | CB19: 0
B20: 5 | C20: 4 | D20: =INSERT!A7 -> 0 | E20: =INSERT!B7 -> 0 | F20: =INSERT!C7 -> 0 | G20: =INSERT!D7 -> 0 | H20: =INSERT!E7 -> 0 | Y20: 0 | Z20: 0 | AQ20: 0 | AR20: 0 | BI20: 0 | BJ20: 0 | BK20: 0 | BL20: 0 | BM20: 0 | BN20: 0 | BO20: 0 | BU20: 0 | BV20: 0 | CA20: 0 | CB20: 0
B21: 6 | C21: 5 | D21: =INSERT!A8 -> 0 | E21: =INSERT!B8 -> 0 | F21: =INSERT!C8 -> 0 | G21: =INSERT!D8 -> 0 | H21: =INSERT!E8 -> 0 | Y21: 0 | Z21: 0 | AQ21: 0 | AR21: 0 | BI21: 0 | BJ21: 0 | BK21: 0 | BL21: 0 | BM21: 0 | BN21: 0 | BO21: 0 | BU21: 0 | BV21: 0 | CA21: 0 | CB21: 0
B22: 7 | C22: 6 | D22: =INSERT!A9 -> 0 | E22: =INSERT!B9 -> 0 | F22: =INSERT!C9 -> 0 | G22: =INSERT!D9 -> 0 | H22: =INSERT!E9 -> 0 | Y22: 0 | Z22: 0 | AQ22: 0 | AR22: 0 | BI22: 0 | BJ22: 0 | BK22: 0 | BL22: 0 | BM22: 0 | BN22: 0 | BO22: 0 | BU22: 0 | BV22: 0 | CA22: 0 | CB22: 0
B23: 8 | C23: 7 | D23: =INSERT!A10 -> 0 | E23: =INSERT!B10 -> 0 | F23: =INSERT!C10 -> 0 | G23: =INSERT!D10 -> 0 | H23: =INSERT!E10 -> 0 | Y23: 0 | Z23: 0 | AQ23: 0 | AR23: 0 | BI23: 0 | BJ23: 0 | BK23: 0 | BL23: 0 | BM23: 0 | BN23: 0 | BO23: 0 | BU23: 0 | BV23: 0 | CA23: 0 | CB23: 0
B24: 9 | C24: 8 | D24: =INSERT!A11 -> 0 | E24: =INSERT!B11 -> 0 | F24: =INSERT!C11 -> 0 | G24: =INSERT!D11 -> 0 | H24: =INSERT!E11 -> 0 | Y24: 0 | Z24: 0 | AQ24: 0 | AR24: 0 | BI24: 0 | BJ24: 0 | BK24: 0 | BL24: 0 | BM24: 0 | BN24: 0 | BO24: 0 | BU24: 0 | BV24: 0 | CA24: 0 | CB24: 0
B25: 10 | C25: 9 | D25: =INSERT!A12 -> 0 | E25: =INSERT!B12 -> 0 | F25: =INSERT!C12 -> 0 | G25: =INSERT!D12 -> 0 | H25: =INSERT!E12 -> 0 | Y25: 0 | Z25: 0 | AQ25: 0 | AR25: 0 | BI25: 0 | BJ25: 0 | BK25: 0 | BL25: 0 | BM25: 0 | BN25: 0 | BO25: 0 | BU25: 0 | BV25: 0 | CA25: 0 | CB25: 0
B26: 11 | C26: 11 | D26: =INSERT!A13 -> 0 | E26: =INSERT!B13 -> 0 | F26: =INSERT!C13 -> 0 | G26: =INSERT!D13 -> 0 | H26: =INSERT!E13 -> 0 | Y26: 0 | Z26: 0 | AQ26: 0 | AR26: 0 | BI26: 0 | BJ26: 0 | BK26: 0 | BL26: 0 | BM26: 0 | BN26: 0 | BO26: 0 | BU26: 0 | BV26: 0 | CA26: 0 | CB26: 0
B27: 12 | C27: 12 | D27: =INSERT!A14 -> 0 | E27: =INSERT!B14 -> 0 | F27: =INSERT!C14 -> 0 | G27: =INSERT!D14 -> 0 | H27: =INSERT!E14 -> 0 | Y27: 0 | Z27: 0 | AQ27: 0 | AR27: 0 | BI27: 0 | BJ27: 0 | BK27: 0 | BL27: 0 | BM27: 0 | BN27: 0 | BO27: 0 | BU27: 0 | BV27: 0 | CA27: 0 | CB27: 0
B28: 13 | C28: 13 | D28: =INSERT!A15 -> 0 | E28: =INSERT!B15 -> 0 | F28: =INSERT!C15 -> 0 | G28: =INSERT!D15 -> 0 | H28: =INSERT!E15 -> 0 | Y28: 0 | Z28: 0 | AQ28: 0 | AR28: 0 | BI28: 0 | BJ28: 0 | BK28: 0 | BL28: 0 | BM28: 0 | BN28: 0 | BO28: 0 | BU28: 0 | BV28: 0 | CA28: 0 | CB28: 0
B29: 14 | C29: 14 | D29: =INSERT!A16 -> 0 | E29: =INSERT!B16 -> 0 | F29: =INSERT!C16 -> 0 | G29: =INSERT!D16 -> 0 | H29: =INSERT!E16 -> 0 | Y29: 0 | Z29: 0 | AQ29: 0 | AR29: 0 | BI29: 0 | BJ29: 0 | BK29: 0 | BL29: 0 | BM29: 0 | BN29: 0 | BO29: 0 | BU29: 0 | BV29: 0 | CA29: 0 | CB29: 0
B30: 15 | C30: 15 | D30: =INSERT!A17 -> 0 | E30: =INSERT!B17 -> 0 | F30: =INSERT!C17 -> 0 | G30: =INSERT!D17 -> 0 | H30: =INSERT!E17 -> 0 | Y30: 0 | Z30: 0 | AQ30: 0 | AR30: 0 | BI30: 0 | BJ30: 0 | BK30: 0 | BL30: 0 | BM30: 0 | BN30: 0 | BO30: 0 | BU30: 0 | BV30: 0 | CA30: 0 | CB30: 0
B31: 16 | C31: 16 | D31: =INSERT!A18 -> 0 | E31: =INSERT!B18 -> 0 | F31: =INSERT!C18 -> 0 | G31: =INSERT!D18 -> 0 | H31: =INSERT!E18 -> 0 | Y31: 0 | Z31: 0 | AQ31: 0 | AR31: 0 | BI31: 0 | BJ31: 0 | BK31: 0 | BL31: 0 | BM31: 0 | BN31: 0 | BO31: 0 | BU31: 0 | BV31: 0 | CA31: 0 | CB31: 0
B32: 17 | C32: 17 | D32: =INSERT!A19 -> 0 | E32: =INSERT!B19 -> 0 | F32: =INSERT!C19 -> 0 | G32: =INSERT!D19 -> 0 | H32: =INSERT!E19 -> 0 | Y32: 0 | Z32: 0 | AQ32: 0 | AR32: 0 | BI32: 0 | BJ32: 0 | BK32: 0 | BL32: 0 | BM32: 0 | BN32: 0 | BO32: 0 | BU32: 0 | BV32: 0 | CA32: 0 | CB32: 0
B33: 18 | C33: 18 | D33: =INSERT!A20 -> 0 | E33: =INSERT!B20 -> 0 | F33: =INSERT!C20 -> 0 | G33: =INSERT!D20 -> 0 | H33: =INSERT!E20 -> 0 | Y33: 0 | Z33: 0 | AQ33: 0 | AR33: 0 | BI33: 0 | BJ33: 0 | BK33: 0 | BL33: 0 | BM33: 0 | BN33: 0 | BO33: 0 | BU33: 0 | BV33: 0 | CA33: 0 | CB33: 0
B34: 19 | C34: 19 | D34: =INSERT!A21 -> 0 | E34: =INSERT!B21 -> 0 | F34: =INSERT!C21 -> 0 | G34: =INSERT!D21 -> 0 | H34: =INSERT!E21 -> 0 | Y34: 0 | Z34: 0 | AQ34: 0 | AR34: 0 | BI34: 0 | BJ34: 0 | BK34: 0 | BL34: 0 | BM34: 0 | BN34: 0 | BO34: 0 | BU34: 0 | BV34: 0 | CA34: 0 | CB34: 0
B35: 20 | C35: 20 | D35: =INSERT!A22 -> 0 | E35: =INSERT!B22 -> 0 | F35: =INSERT!C22 -> 0 | G35: =INSERT!D22 -> 0 | H35: =INSERT!E22 -> 0 | Y35: 0 | Z35: 0 | AQ35: 0 | AR35: 0 | BI35: 0 | BJ35: 0 | BK35: 0 | BL35: 0 | BM35: 0 | BN35: 0 | BO35: 0 | BU35: 0 | BV35: 0 | CA35: 0 | CB35: 0
B36: 21 | C36: 21 | D36: =INSERT!A23 -> 0 | E36: =INSERT!B23 -> 0 | F36: =INSERT!C23 -> 0 | G36: =INSERT!D23 -> 0 | H36: =INSERT!E23 -> 0 | Y36: 0 | Z36: 0 | AQ36: 0 | AR36: 0 | BI36: 0 | BJ36: 0 | BK36: 0 | BL36: 0 | BM36: 0 | BN36: 0 | BO36: 0 | BU36: 0 | BV36: 0 | CA36: 0 | CB36: 0
B37: 22 | C37: 22 | D37: =INSERT!A24 -> 0 | E37: =INSERT!B24 -> 0 | F37: =INSERT!C24 -> 0 | G37: =INSERT!D24 -> 0 | H37: =INSERT!E24 -> 0 | Y37: 0 | Z37: 0 | AQ37: 0 | AR37: 0 | BI37: 0 | BJ37: 0 | BK37: 0 | BL37: 0 | BM37: 0 | BN37: 0 | BO37: 0 | BU37: 0 | BV37: 0 | CA37: 0 | CB37: 0
B38: 23 | C38: 23 | D38: =INSERT!A25 -> 0 | E38: =INSERT!B25 -> 0 | F38: =INSERT!C25 -> 0 | G38: =INSERT!D25 -> 0 | H38: =INSERT!E25 -> 0 | Y38: 0 | Z38: 0 | AQ38: 0 | AR38: 0 | BI38: 0 | BJ38: 0 | BK38: 0 | BL38: 0 | BM38: 0 | BN38: 0 | BO38: 0 | BU38: 0 | BV38: 0 | CA38: 0 | CB38: 0
B39: 24 | C39: 24 | D39: =INSERT!A26 -> 0 | E39: =INSERT!B26 -> 0 | F39: =INSERT!C26 -> 0 | G39: =INSERT!D26 -> 0 | H39: =INSERT!E26 -> 0 | Y39: 0 | Z39: 0 | AQ39: 0 | AR39: 0 | BI39: 0 | BJ39: 0 | BK39: 0 | BL39: 0 | BM39: 0 | BN39: 0 | BO39: 0 | BU39: 0 | BV39: 0 | CA39: 0 | CB39: 0
B40: 25 | C40: 25 | D40: =INSERT!A27 -> 0 | E40: =INSERT!B27 -> 0 | F40: =INSERT!C27 -> 0 | G40: =INSERT!D27 -> 0 | H40: =INSERT!E27 -> 0 | Y40: 0 | Z40: 0 | AQ40: 0 | AR40: 0 | BI40: 0 | BJ40: 0 | BK40: 0 | BL40: 0 | BM40: 0 | BN40: 0 | BO40: 0 | BU40: 0 | BV40: 0 | CA40: 0 | CB40: 0
B41: 26 | C41: 26 | D41: =INSERT!A28 -> 0 | E41: =INSERT!B28 -> 0 | F41: =INSERT!C28 -> 0 | G41: =INSERT!D28 -> 0 | H41: =INSERT!E28 -> 0 | Y41: 0 | Z41: 0 | AQ41: 0 | AR41: 0 | BI41: 0 | BJ41: 0 | BK41: 0 | BL41: 0 | BM41: 0 | BN41: 0 | BO41: 0 | BU41: 0 | BV41: 0 | CA41: 0 | CB41: 0
B42: 27 | C42: 28 | D42: =INSERT!A29 -> 0 | E42: =INSERT!B29 -> 0 | F42: =INSERT!C29 -> 0 | G42: =INSERT!D29 -> 0 | H42: =INSERT!E29 -> 0 | Y42: 0 | Z42: 0 | AQ42: 0 | AR42: 0 | BI42: 0 | BJ42: 0 | BK42: 0 | BL42: 0 | BM42: 0 | BN42: 0 | BO42: 0 | BU42: 0 | BV42: 0 | CA42: 0 | CB42: 0
B43: 28 | C43: 29 | D43: =INSERT!A30 -> 0 | E43: =INSERT!B30 -> 0 | F43: =INSERT!C30 -> 0 | G43: =INSERT!D30 -> 0 | H43: =INSERT!E30 -> 0 | Y43: 0 | Z43: 0 | AQ43: 0 | AR43: 0 | BI43: 0 | BJ43: 0 | BK43: 0 | BL43: 0 | BM43: 0 | BN43: 0 | BO43: 0 | BU43: 0 | BV43: 0 | CA43: 0 | CB43: 0
B44: 29 | C44: 30 | D44: =INSERT!A31 -> 0 | E44: =INSERT!B31 -> 0 | F44: =INSERT!C31 -> 0 | G44: =INSERT!D31 -> 0 | H44: =INSERT!E31 -> 0 | Y44: 0 | Z44: 0 | AQ44: 0 | AR44: 0 | BI44: 0 | BJ44: 0 | BK44: 0 | BL44: 0 | BM44: 0 | BN44: 0 | BO44: 0 | BU44: 0 | BV44: 0 | CA44: 0 | CB44: 0
B45: 30 | C45: 31 | D45: =INSERT!A32 -> 0 | E45: =INSERT!B32 -> 0 | F45: =INSERT!C32 -> 0 | G45: =INSERT!D32 -> 0 | H45: =INSERT!E32 -> 0 | Y45: 0 | Z45: 0 | AQ45: 0 | AR45: 0 | BI45: 0 | BJ45: 0 | BK45: 0 | BL45: 0 | BM45: 0 | BN45: 0 | BO45: 0 | BU45: 0 | BV45: 0 | CA45: 0 | CB45: 0
B46: 31 | C46: 32 | D46: =INSERT!A33 -> 0 | E46: =INSERT!B33 -> 0 | F46: =INSERT!C33 -> 0 | G46: =INSERT!D33 -> 0 | H46: =INSERT!E33 -> 0 | Y46: 0 | Z46: 0 | AQ46: 0 | AR46: 0 | BI46: 0 | BJ46: 0 | BK46: 0 | BL46: 0 | BM46: 0 | BN46: 0 | BO46: 0 | BU46: 0 | BV46: 0 | CA46: 0 | CB46: 0
A47: =SUM(COUNTA(F47)+COUNT(B47)) -> 2 | B47: =B46+1 -> 32 | C47: 33 | D47: =INSERT!A34 -> 0 | E47: =INSERT!B34 -> 0 | F47: =INSERT!C34 -> 0 | G47: =INSERT!D34 -> 0 | H47: =INSERT!E34 -> 0 | Y47: 0 | Z47: 0 | AQ47: 0 | AR47: 0 | BI47: 0 | BJ47: 0 | BK47: 0 | BL47: 0 | BM47: 0 | BN47: 0 | BO47: 0 | BU47: 0 | BV47: 0 | CA47: 0 | CB47: 0
A48: 2 | B48: 33 | C48: 34 | D48: =INSERT!A35 -> 0 | E48: =INSERT!B35 -> 0 | F48: =INSERT!C35 -> 0 | G48: =INSERT!D35 -> 0 | H48: =INSERT!E35 -> 0 | Y48: =SUM(I48:X48) -> 0 | Z48: =IFERROR((ROUND((SUM(Y48*$Y$13)/10),0)),0) -> 0 | AQ48: =SUM(AA48:AP48) -> 0 | AR48: =IFERROR((ROUND((SUM(AQ48*$AQ$13)/10),0)),0) -> 0 | BI48: =SUM(AS48:BH48) -> 0 | BJ48: =IFERROR((ROUND((SUM(BI48*$BI$13)/10),0)),0) -> 0 | BK48: =ROUND((BV48),0) -> 0 | BL48: =SUM(BK48*$BK$13) -> 0 | BM48: =ROUND((CB48),0) -> 0 | BN48: =SUM(BM48*$BM$13) -> 0 | BO48: 0 | BP48: =IF(BO48>79.4,"7",IF(BO48>69.4,"6",IF(BO48>59.4,"5",IF(BO48>49.4,"4",IF(BO48>39.4,"3",IF(BO48>29.4,"2",IF(BO48>0,"1",IF(BO48=0,"",IF(BO48=-1,""))))))))) ->  | BU48: =SUM(BQ48:BT48) -> 0 | BV48: =ROUND(SUM(BU48*$BU$13),0) -> 0 | CA48: =SUM(BW48:BZ48) -> 0 | CB48: =ROUND(SUM(CA48*$CA$13),0) -> 0
A49: 2 | B49: 34 | C49: 37 | D49: =INSERT!A36 -> 0 | E49: =INSERT!B36 -> 0 | F49: =INSERT!C36 -> 0 | G49: =INSERT!D36 -> 0 | H49: =INSERT!E36 -> 0 | Y49: 0 | Z49: 0 | AQ49: 0 | AR49: 0 | BI49: 0 | BJ49: 0 | BK49: 0 | BL49: 0 | BM49: 0 | BN49: 0 | BO49: 0 | BU49: 0 | BV49: 0 | CA49: 0 | CB49: 0
A50: 2 | B50: 35 | C50: 35 | D50: =INSERT!A37 -> 0 | E50: =INSERT!B37 -> 0 | F50: =INSERT!C37 -> 0 | G50: =INSERT!D37 -> 0 | H50: =INSERT!E37 -> 0 | Y50: 0 | Z50: 0 | AQ50: 0 | AR50: 0 | BI50: 0 | BJ50: 0 | BK50: 0 | BL50: 0 | BM50: 0 | BN50: 0 | BO50: 0 | BU50: 0 | BV50: 0 | CA50: 0 | CB50: 0
A51: 2 | B51: 36 | C51: 10 | D51: =INSERT!A38 -> 0 | E51: =INSERT!B38 -> 0 | F51: =INSERT!C38 -> 0 | G51: =INSERT!D38 -> 0 | H51: =INSERT!E38 -> 0 | Y51: 0 | Z51: 0 | AQ51: 0 | AR51: 0 | BI51: 0 | BJ51: 0 | BK51: 0 | BL51: 0 | BM51: 0 | BN51: 0 | BO51: 0 | BU51: 0 | BV51: 0 | CA51: 0 | CB51: 0
A52: 2 | B52: 37 | C52: 27 | D52: =INSERT!A39 -> 0 | E52: =INSERT!B39 -> 0 | F52: =INSERT!C39 -> 0 | G52: =INSERT!D39 -> 0 | H52: =INSERT!E39 -> 0 | Y52: 0 | Z52: 0 | AQ52: 0 | AR52: 0 | BI52: 0 | BJ52: 0 | BK52: 0 | BL52: 0 | BM52: 0 | BN52: 0 | BO52: 0 | BU52: 0 | BV52: 0 | CA52: 0 | CB52: 0
B53: 38 | C53: 38 | D53: =INSERT!A40 -> 0 | E53: =INSERT!B40 -> 0 | F53: =INSERT!C40 -> 0 | G53: =INSERT!D40 -> 0 | H53: =INSERT!E40 -> 0 | Y53: 0 | Z53: 0 | AQ53: 0 | AR53: 0 | BI53: 0 | BJ53: 0 | BK53: 0 | BL53: 0 | BM53: 0 | BN53: 0 | BO53: 0 | BU53: 0 | BV53: 0 | CA53: 0 | CB53: 0
B54: 39 | C54: 39 | D54: =INSERT!A41 -> 0 | E54: =INSERT!B41 -> 0 | F54: =INSERT!C41 -> 0 | G54: =INSERT!D41 -> 0 | H54: =INSERT!E41 -> 0 | Y54: 0 | Z54: 0 | AQ54: 0 | AR54: 0 | BI54: 0 | BJ54: 0 | BK54: 0 | BL54: 0 | BM54: 0 | BN54: 0 | BO54: 0 | BU54: 0 | BV54: 0 | CA54: 0 | CB54: 0
B55: 40 | C55: 40 | D55: =INSERT!A42 -> 0 | E55: =INSERT!B42 -> 0 | F55: =INSERT!C42 -> 0 | G55: =INSERT!D42 -> 0 | H55: =INSERT!E42 -> 0 | Y55: 0 | Z55: 0 | AQ55: 0 | AR55: 0 | BI55: 0 | BJ55: 0 | BK55: 0 | BL55: 0 | BM55: 0 | BN55: 0 | BO55: 0 | BU55: 0 | BV55: 0 | CA55: 0 | CB55: 0
B56: 41 | C56: 41 | D56: =INSERT!A43 -> 0 | E56: =INSERT!B43 -> 0 | F56: =INSERT!C43 -> 0 | G56: =INSERT!D43 -> 0 | H56: =INSERT!E43 -> 0 | Y56: 0 | Z56: 0 | AQ56: 0 | AR56: 0 | BI56: 0 | BJ56: 0 | BK56: 0 | BL56: 0 | BM56: 0 | BN56: 0 | BO56: 0 | BU56: 0 | BV56: 0 | CA56: 0 | CB56: 0
B57: 42 | C57: 42 | D57: =INSERT!A44 -> 0 | E57: =INSERT!B44 -> 0 | F57: =INSERT!C44 -> 0 | G57: =INSERT!D44 -> 0 | H57: =INSERT!E44 -> 0 | Y57: 0 | Z57: 0 | AQ57: 0 | AR57: 0 | BI57: 0 | BJ57: 0 | BK57: 0 | BL57: 0 | BM57: 0 | BN57: 0 | BO57: 0 | BU57: 0 | BV57: 0 | CA57: 0 | CB57: 0
B58: 43 | C58: 43 | D58: =INSERT!A45 -> 0 | E58: =INSERT!B45 -> 0 | F58: =INSERT!C45 -> 0 | G58: =INSERT!D45 -> 0 | H58: =INSERT!E45 -> 0 | Y58: 0 | Z58: 0 | AQ58: 0 | AR58: 0 | BI58: 0 | BJ58: 0 | BK58: 0 | BL58: 0 | BM58: 0 | BN58: 0 | BO58: 0 | BU58: 0 | BV58: 0 | CA58: 0 | CB58: 0
B59: 44 | C59: 44 | D59: =INSERT!A46 -> 0 | E59: =INSERT!B46 -> 0 | F59: =INSERT!C46 -> 0 | G59: =INSERT!D46 -> 0 | H59: =INSERT!E46 -> 0 | Y59: 0 | Z59: 0 | AQ59: 0 | AR59: 0 | BI59: 0 | BJ59: 0 | BK59: 0 | BL59: 0 | BM59: 0 | BN59: 0 | BO59: 0 | BU59: 0 | BV59: 0 | CA59: 0 | CB59: 0
B60: 45 | C60: 45 | D60: =INSERT!A47 -> 0 | E60: =INSERT!B47 -> 0 | F60: =INSERT!C47 -> 0 | G60: =INSERT!D47 -> 0 | H60: =INSERT!E47 -> 0 | Y60: 0 | Z60: 0 | AQ60: 0 | AR60: 0 | BI60: 0 | BJ60: 0 | BK60: 0 | BL60: 0 | BM60: 0 | BN60: 0 | BO60: 0 | BU60: 0 | BV60: 0 | CA60: 0 | CB60: 0
B61: 46 | C61: 46 | D61: =INSERT!A48 -> 0 | E61: =INSERT!B48 -> 0 | F61: =INSERT!C48 -> 0 | G61: =INSERT!D48 -> 0 | H61: =INSERT!E48 -> 0 | Y61: 0 | Z61: 0 | AQ61: 0 | AR61: 0 | BI61: 0 | BJ61: 0 | BK61: 0 | BL61: 0 | BM61: 0 | BN61: 0 | BO61: 0 | BU61: 0 | BV61: 0 | CA61: 0 | CB61: 0
B62: 47 | C62: 47 | D62: =INSERT!A49 -> 0 | E62: =INSERT!B49 -> 0 | F62: =INSERT!C49 -> 0 | G62: =INSERT!D49 -> 0 | H62: =INSERT!E49 -> 0 | Y62: 0 | Z62: 0 | AQ62: 0 | AR62: 0 | BI62: 0 | BJ62: 0 | BK62: 0 | BL62: 0 | BM62: 0 | BN62: 0 | BO62: 0 | BU62: 0 | BV62: 0 | CA62: 0 | CB62: 0
B63: 48 | C63: 48 | D63: =INSERT!A50 -> 0 | E63: =INSERT!B50 -> 0 | F63: =INSERT!C50 -> 0 | G63: =INSERT!D50 -> 0 | H63: =INSERT!E50 -> 0 | Y63: 0 | Z63: 0 | AQ63: 0 | AR63: 0 | BI63: 0 | BJ63: 0 | BK63: 0 | BL63: 0 | BM63: 0 | BN63: 0 | BO63: 0 | BU63: 0 | BV63: 0 | CA63: 0 | CB63: 0
B64: 49 | C64: 49 | D64: =INSERT!A51 -> 0 | E64: =INSERT!B51 -> 0 | F64: =INSERT!C51 -> 0 | G64: =INSERT!D51 -> 0 | H64: =INSERT!E51 -> 0 | Y64: 0 | Z64: 0 | AQ64: 0 | AR64: 0 | BI64: 0 | BJ64: 0 | BK64: 0 | BL64: 0 | BM64: 0 | BN64: 0 | BO64: 0 | BU64: 0 | BV64: 0 | CA64: 0 | CB64: 0
B65: 50 | C65: 50 | D65: =INSERT!A52 -> 0 | E65: =INSERT!B52 -> 0 | F65: =INSERT!C52 -> 0 | G65: =INSERT!D52 -> 0 | H65: =INSERT!E52 -> 0 | Y65: 0 | Z65: 0 | AQ65: 0 | AR65: 0 | BI65: 0 | BJ65: 0 | BK65: 0 | BL65: 0 | BM65: 0 | BN65: 0 | BO65: 0 | BU65: 0 | BV65: 0 | CA65: 0 | CB65: 0
B66: 51 | C66: 51 | D66: =INSERT!A53 -> 0 | E66: =INSERT!B53 -> 0 | F66: =INSERT!C53 -> 0 | G66: =INSERT!D53 -> 0 | H66: =INSERT!E53 -> 0 | Y66: 0 | Z66: 0 | AQ66: 0 | AR66: 0 | BI66: 0 | BJ66: 0 | BK66: 0 | BL66: 0 | BM66: 0 | BN66: 0 | BO66: 0 | BU66: 0 | BV66: 0 | CA66: 0 | CB66: 0
B67: 52 | C67: 52 | D67: =INSERT!A54 -> 0 | E67: =INSERT!B54 -> 0 | F67: =INSERT!C54 -> 0 | G67: =INSERT!D54 -> 0 | H67: =INSERT!E54 -> 0 | Y67: 0 | Z67: 0 | AQ67: 0 | AR67: 0 | BI67: 0 | BJ67: 0 | BK67: 0 | BL67: 0 | BM67: 0 | BN67: 0 | BO67: 0 | BU67: 0 | BV67: 0 | CA67: 0 | CB67: 0
B68: 53 | C68: 53 | D68: =INSERT!A55 -> 0 | E68: =INSERT!B55 -> 0 | F68: =INSERT!C55 -> 0 | G68: =INSERT!D55 -> 0 | H68: =INSERT!E55 -> 0 | Y68: 0 | Z68: 0 | AQ68: 0 | AR68: 0 | BI68: 0 | BJ68: 0 | BK68: 0 | BL68: 0 | BM68: 0 | BN68: 0 | BO68: 0 | BU68: 0 | BV68: 0 | CA68: 0 | CB68: 0
B69: 54 | C69: 54 | D69: =INSERT!A56 -> 0 | E69: =INSERT!B56 -> 0 | F69: =INSERT!C56 -> 0 | G69: =INSERT!D56 -> 0 | H69: =INSERT!E56 -> 0 | Y69: 0 | Z69: 0 | AQ69: 0 | AR69: 0 | BI69: 0 | BJ69: 0 | BK69: 0 | BL69: 0 | BM69: 0 | BN69: 0 | BO69: 0 | BU69: 0 | BV69: 0 | CA69: 0 | CB69: 0
B70: 55 | C70: 55 | D70: =INSERT!A57 -> 0 | E70: =INSERT!B57 -> 0 | F70: =INSERT!C57 -> 0 | G70: =INSERT!D57 -> 0 | H70: =INSERT!E57 -> 0 | Y70: 0 | Z70: 0 | AQ70: 0 | AR70: 0 | BI70: 0 | BJ70: 0 | BK70: 0 | BL70: 0 | BM70: 0 | BN70: 0 | BO70: 0 | BU70: 0 | BV70: 0 | CA70: 0 | CB70: 0
B71: 56 | C71: 56 | D71: =INSERT!A58 -> 0 | E71: =INSERT!B58 -> 0 | F71: =INSERT!C58 -> 0 | G71: =INSERT!D58 -> 0 | H71: =INSERT!E58 -> 0 | Y71: 0 | Z71: 0 | AQ71: 0 | AR71: 0 | BI71: 0 | BJ71: 0 | BK71: 0 | BL71: 0 | BM71: 0 | BN71: 0 | BO71: 0 | BU71: 0 | BV71: 0 | CA71: 0 | CB71: 0
B72: 57 | C72: 57 | D72: =INSERT!A59 -> 0 | E72: =INSERT!B59 -> 0 | F72: =INSERT!C59 -> 0 | G72: =INSERT!D59 -> 0 | H72: =INSERT!E59 -> 0 | Y72: 0 | Z72: 0 | AQ72: 0 | AR72: 0 | BI72: 0 | BJ72: 0 | BK72: 0 | BL72: 0 | BM72: 0 | BN72: 0 | BO72: 0 | BU72: 0 | BV72: 0 | CA72: 0 | CB72: 0
A73: =SUM(COUNTA(F73)+COUNT(B73)) -> 2 | B73: 58 | C73: 58 | D73: =INSERT!A60 -> 0 | E73: =INSERT!B60 -> 0 | F73: =INSERT!C60 -> 0 | G73: =INSERT!D60 -> 0 | H73: =INSERT!E60 -> 0 | Y73: 0 | Z73: 0 | AQ73: 0 | AR73: 0 | BI73: 0 | BJ73: 0 | BK73: 0 | BL73: 0 | BM73: 0 | BN73: 0 | BO73: 0 | BU73: 0 | BV73: 0 | CA73: 0 | CB73: 0
A74: 2 | B74: 59 | C74: 59 | D74: =INSERT!A61 -> 0 | E74: =INSERT!B61 -> 0 | F74: =INSERT!C61 -> 0 | G74: =INSERT!D61 -> 0 | H74: =INSERT!E61 -> 0 | Y74: 0 | Z74: 0 | AQ74: 0 | AR74: 0 | BI74: 0 | BJ74: 0 | BK74: 0 | BL74: 0 | BM74: 0 | BN74: 0 | BO74: 0 | BU74: 0 | BV74: 0 | CA74: 0 | CB74: 0
A75: 2 | B75: 60 | C75: 60 | D75: =INSERT!A62 -> 0 | E75: =INSERT!B62 -> 0 | F75: =INSERT!C62 -> 0 | G75: =INSERT!D62 -> 0 | H75: =INSERT!E62 -> 0 | Y75: 0 | Z75: 0 | AQ75: 0 | AR75: 0 | BI75: 0 | BJ75: 0 | BK75: 0 | BL75: 0 | BM75: 0 | BN75: 0 | BO75: 0 | BU75: 0 | BV75: 0 | CA75: 0 | CB75: 0
A76: 2 | B76: 61 | C76: 61 | D76: =INSERT!A63 -> 0 | E76: =INSERT!B63 -> 0 | F76: =INSERT!C63 -> 0 | G76: =INSERT!D63 -> 0 | H76: =INSERT!E63 -> 0 | Y76: 0 | Z76: 0 | AQ76: 0 | AR76: 0 | BI76: 0 | BJ76: 0 | BK76: 0 | BL76: 0 | BM76: 0 | BN76: 0 | BO76: 0 | BU76: 0 | BV76: 0 | CA76: 0 | CB76: 0
A77: 2 | B77: 62 | C77: 62 | D77: =INSERT!A64 -> 0 | E77: =INSERT!B64 -> 0 | F77: =INSERT!C64 -> 0 | G77: =INSERT!D64 -> 0 | H77: =INSERT!E64 -> 0 | Y77: 0 | Z77: 0 | AQ77: 0 | AR77: 0 | BI77: 0 | BJ77: 0 | BK77: 0 | BL77: 0 | BM77: 0 | BN77: 0 | BO77: 0 | BU77: 0 | BV77: 0 | CA77: 0 | CB77: 0
A78: 2 | B78: 63 | C78: 63 | D78: =INSERT!A65 -> 0 | E78: =INSERT!B65 -> 0 | F78: =INSERT!C65 -> 0 | G78: =INSERT!D65 -> 0 | H78: =INSERT!E65 -> 0 | Y78: 0 | Z78: 0 | AQ78: 0 | AR78: 0 | BI78: 0 | BJ78: 0 | BK78: 0 | BL78: 0 | BM78: 0 | BN78: 0 | BO78: 0 | BU78: 0 | BV78: 0 | CA78: 0 | CB78: 0
A79: 2 | B79: 64 | C79: 64 | D79: =INSERT!A66 -> 0 | E79: =INSERT!B66 -> 0 | F79: =INSERT!C66 -> 0 | G79: =INSERT!D66 -> 0 | H79: =INSERT!E66 -> 0 | Y79: 0 | Z79: 0 | AQ79: 0 | AR79: 0 | BI79: 0 | BJ79: 0 | BK79: 0 | BL79: 0 | BM79: 0 | BN79: 0 | BO79: 0 | BU79: 0 | BV79: 0 | CA79: 0 | CB79: 0
A80: 2 | B80: 65 | C80: 65 | D80: =INSERT!A67 -> 0 | E80: =INSERT!B67 -> 0 | F80: =INSERT!C67 -> 0 | G80: =INSERT!D67 -> 0 | H80: =INSERT!E67 -> 0 | Y80: =SUM(I80:X80) -> 0 | Z80: =IFERROR((ROUND((SUM(Y80*$Y$13)/10),0)),0) -> 0 | AQ80: =SUM(AA80:AP80) -> 0 | AR80: =IFERROR((ROUND((SUM(AQ80*$AQ$13)/10),0)),0) -> 0 | BI80: =SUM(AS80:BH80) -> 0 | BJ80: =IFERROR((ROUND((SUM(BI80*$BI$13)/10),0)),0) -> 0 | BK80: =ROUND((BV80),0) -> 0 | BL80: =SUM(BK80*$BK$13) -> 0 | BM80: =ROUND((CB80),0) -> 0 | BN80: =SUM(BM80*$BM$13) -> 0 | BO80: 0 | BP80: =IF(BO80>79.4,"7",IF(BO80>69.4,"6",IF(BO80>59.4,"5",IF(BO80>49.4,"4",IF(BO80>39.4,"3",IF(BO80>29.4,"2",IF(BO80>0,"1",IF(BO80=0,"",IF(BO80=-1,""))))))))) ->  | BU80: =SUM(BQ80:BT80) -> 0 | BV80: =ROUND(SUM(BU80*$BU$13),0) -> 0 | CA80: =SUM(BW80:BZ80) -> 0 | CB80: =ROUND(SUM(CA80*$CA$13),0) -> 0
A81: 2 | B81: 66 | C81: 66 | D81: =INSERT!A68 -> 0 | E81: =INSERT!B68 -> 0 | F81: =INSERT!C68 -> 0 | G81: =INSERT!D68 -> 0 | H81: =INSERT!E68 -> 0 | Y81: 0 | Z81: 0 | AQ81: 0 | AR81: 0 | BI81: 0 | BJ81: 0 | BK81: 0 | BL81: 0 | BM81: 0 | BN81: 0 | BO81: =SUM(BK81+BM81) -> 0 | BU81: 0 | BV81: 0 | CA81: 0 | CB81: 0
A82: 2 | B82: =B81+1 -> 67 | C82: 67 | D82: =INSERT!A69 -> 0 | E82: =INSERT!B69 -> 0 | F82: =INSERT!C69 -> 0 | G82: =INSERT!D69 -> 0 | H82: =INSERT!E69 -> 0 | Y82: 0 | Z82: 0 | AQ82: 0 | AR82: 0 | BI82: 0 | BJ82: 0 | BK82: 0 | BL82: 0 | BM82: 0 | BN82: 0 | BO82: 0 | BU82: 0 | BV82: 0 | CA82: 0 | CB82: 0
A83: 2 | B83: 68 | C83: 68 | D83: =INSERT!A70 -> 0 | E83: =INSERT!B70 -> 0 | F83: =INSERT!C70 -> 0 | G83: =INSERT!D70 -> 0 | H83: =INSERT!E70 -> 0 | Y83: 0 | Z83: 0 | AQ83: 0 | AR83: 0 | BI83: 0 | BJ83: 0 | BK83: 0 | BL83: 0 | BM83: 0 | BN83: 0 | BO83: 0 | BU83: 0 | BV83: 0 | CA83: 0 | CB83: 0
A84: 2 | B84: 69 | C84: 69 | D84: =INSERT!A71 -> 0 | E84: =INSERT!B71 -> 0 | F84: =INSERT!C71 -> 0 | G84: =INSERT!D71 -> 0 | H84: =INSERT!E71 -> 0 | Y84: 0 | Z84: 0 | AQ84: 0 | AR84: 0 | BI84: 0 | BJ84: 0 | BK84: 0 | BL84: 0 | BM84: 0 | BN84: 0 | BO84: 0 | BU84: 0 | BV84: 0 | CA84: 0 | CB84: 0
A85: 2 | B85: 70 | C85: 70 | D85: =INSERT!A72 -> 0 | E85: =INSERT!B72 -> 0 | F85: =INSERT!C72 -> 0 | G85: =INSERT!D72 -> 0 | H85: =INSERT!E72 -> 0 | Y85: 0 | Z85: 0 | AQ85: 0 | AR85: 0 | BI85: 0 | BJ85: 0 | BK85: 0 | BL85: 0 | BM85: 0 | BN85: 0 | BO85: 0 | BU85: 0 | BV85: 0 | CA85: 0 | CB85: 0
A86: 2 | B86: 71 | C86: 71 | D86: =INSERT!A73 -> 0 | E86: =INSERT!B73 -> 0 | F86: =INSERT!C73 -> 0 | G86: =INSERT!D73 -> 0 | H86: =INSERT!E73 -> 0 | Y86: 0 | Z86: 0 | AQ86: 0 | AR86: 0 | BI86: 0 | BJ86: 0 | BK86: 0 | BL86: 0 | BM86: 0 | BN86: 0 | BO86: 0 | BU86: 0 | BV86: 0 | CA86: 0 | CB86: 0
A87: 2 | B87: 72 | C87: 72 | D87: =INSERT!A74 -> 0 | E87: =INSERT!B74 -> 0 | F87: =INSERT!C74 -> 0 | G87: =INSERT!D74 -> 0 | H87: =INSERT!E74 -> 0 | Y87: 0 | Z87: 0 | AQ87: 0 | AR87: 0 | BI87: 0 | BJ87: 0 | BK87: 0 | BL87: 0 | BM87: 0 | BN87: 0 | BO87: 0 | BU87: 0 | BV87: 0 | CA87: 0 | CB87: 0
A88: 2 | B88: 73 | C88: 73 | D88: =INSERT!A75 -> 0 | E88: =INSERT!B75 -> 0 | F88: =INSERT!C75 -> 0 | G88: =INSERT!D75 -> 0 | H88: =INSERT!E75 -> 0 | Y88: 0 | Z88: 0 | AQ88: 0 | AR88: 0 | BI88: 0 | BJ88: 0 | BK88: 0 | BL88: 0 | BM88: 0 | BN88: 0 | BO88: 0 | BU88: 0 | BV88: 0 | CA88: 0 | CB88: 0
A89: 2 | B89: 74 | C89: 74 | D89: =INSERT!A76 -> 0 | E89: =INSERT!B76 -> 0 | F89: =INSERT!C76 -> 0 | G89: =INSERT!D76 -> 0 | H89: =INSERT!E76 -> 0 | Y89: 0 | Z89: 0 | AQ89: 0 | AR89: 0 | BI89: 0 | BJ89: 0 | BK89: 0 | BL89: 0 | BM89: 0 | BN89: 0 | BO89: 0 | BU89: 0 | BV89: 0 | CA89: 0 | CB89: 0
A90: 2 | B90: 75 | C90: 75 | D90: =INSERT!A77 -> 0 | E90: =INSERT!B77 -> 0 | F90: =INSERT!C77 -> 0 | G90: =INSERT!D77 -> 0 | H90: =INSERT!E77 -> 0 | Y90: 0 | Z90: 0 | AQ90: 0 | AR90: 0 | BI90: 0 | BJ90: 0 | BK90: 0 | BL90: 0 | BM90: 0 | BN90: 0 | BO90: 0 | BU90: 0 | BV90: 0 | CA90: 0 | CB90: 0
A91: 2 | B91: 76 | C91: 76 | D91: =INSERT!A78 -> 0 | E91: =INSERT!B78 -> 0 | F91: =INSERT!C78 -> 0 | G91: =INSERT!D78 -> 0 | H91: =INSERT!E78 -> 0 | Y91: 0 | Z91: 0 | AQ91: 0 | AR91: 0 | BI91: 0 | BJ91: 0 | BK91: 0 | BL91: 0 | BM91: 0 | BN91: 0 | BO91: 0 | BU91: 0 | BV91: 0 | CA91: 0 | CB91: 0
A92: 2 | B92: 77 | C92: 77 | D92: =INSERT!A79 -> 0 | E92: =INSERT!B79 -> 0 | F92: =INSERT!C79 -> 0 | G92: =INSERT!D79 -> 0 | H92: =INSERT!E79 -> 0 | Y92: 0 | Z92: 0 | AQ92: 0 | AR92: 0 | BI92: 0 | BJ92: 0 | BK92: 0 | BL92: 0 | BM92: 0 | BN92: 0 | BO92: 0 | BU92: 0 | BV92: 0 | CA92: 0 | CB92: 0
A93: 2 | B93: 78 | C93: 78 | D93: =INSERT!A80 -> 0 | E93: =INSERT!B80 -> 0 | F93: =INSERT!C80 -> 0 | G93: =INSERT!D80 -> 0 | H93: =INSERT!E80 -> 0 | Y93: 0 | Z93: 0 | AQ93: 0 | AR93: 0 | BI93: 0 | BJ93: 0 | BK93: 0 | BL93: 0 | BM93: 0 | BN93: 0 | BO93: 0 | BU93: 0 | BV93: 0 | CA93: 0 | CB93: 0
A94: 2 | B94: 79 | C94: 79 | D94: =INSERT!A81 -> 0 | E94: =INSERT!B81 -> 0 | F94: =INSERT!C81 -> 0 | G94: =INSERT!D81 -> 0 | H94: =INSERT!E81 -> 0 | Y94: 0 | Z94: 0 | AQ94: 0 | AR94: 0 | BI94: 0 | BJ94: 0 | BK94: 0 | BL94: 0 | BM94: 0 | BN94: 0 | BO94: 0 | BU94: 0 | BV94: 0 | CA94: 0 | CB94: 0
A95: 2 | B95: 80 | C95: 80 | D95: =INSERT!A82 -> 0 | E95: =INSERT!B82 -> 0 | F95: =INSERT!C82 -> 0 | G95: =INSERT!D82 -> 0 | H95: =INSERT!E82 -> 0 | Y95: 0 | Z95: 0 | AQ95: 0 | AR95: 0 | BI95: 0 | BJ95: 0 | BK95: 0 | BL95: 0 | BM95: 0 | BN95: 0 | BO95: 0 | BU95: 0 | BV95: 0 | CA95: 0 | CB95: 0
A96: 2 | B96: 81 | C96: 81 | D96: =INSERT!A83 -> 0 | E96: =INSERT!B83 -> 0 | F96: =INSERT!C83 -> 0 | G96: =INSERT!D83 -> 0 | H96: =INSERT!E83 -> 0 | Y96: 0 | Z96: 0 | AQ96: 0 | AR96: 0 | BI96: 0 | BJ96: 0 | BK96: 0 | BL96: 0 | BM96: 0 | BN96: 0 | BO96: 0 | BU96: 0 | BV96: 0 | CA96: 0 | CB96: 0
A97: 2 | B97: 82 | C97: 82 | D97: =INSERT!A84 -> 0 | E97: =INSERT!B84 -> 0 | F97: =INSERT!C84 -> 0 | G97: =INSERT!D84 -> 0 | H97: =INSERT!E84 -> 0 | Y97: 0 | Z97: 0 | AQ97: 0 | AR97: 0 | BI97: 0 | BJ97: 0 | BK97: 0 | BL97: 0 | BM97: 0 | BN97: 0 | BO97: 0 | BU97: 0 | BV97: 0 | CA97: 0 | CB97: 0
A98: 2 | B98: 83 | C98: 83 | D98: =INSERT!A85 -> 0 | E98: =INSERT!B85 -> 0 | F98: =INSERT!C85 -> 0 | G98: =INSERT!D85 -> 0 | H98: =INSERT!E85 -> 0 | Y98: 0 | Z98: 0 | AQ98: 0 | AR98: 0 | BI98: 0 | BJ98: 0 | BK98: 0 | BL98: 0 | BM98: 0 | BN98: 0 | BO98: 0 | BU98: 0 | BV98: 0 | CA98: 0 | CB98: 0
A99: 2 | B99: 84 | C99: 84 | D99: =INSERT!A86 -> 0 | E99: =INSERT!B86 -> 0 | F99: =INSERT!C86 -> 0 | G99: =INSERT!D86 -> 0 | H99: =INSERT!E86 -> 0 | Y99: 0 | Z99: 0 | AQ99: 0 | AR99: 0 | BI99: 0 | BJ99: 0 | BK99: 0 | BL99: 0 | BM99: 0 | BN99: 0 | BO99: 0 | BU99: 0 | BV99: 0 | CA99: 0 | CB99: 0
A100: 2 | B100: 85 | C100: 85 | D100: =INSERT!A87 -> 0 | E100: =INSERT!B87 -> 0 | F100: =INSERT!C87 -> 0 | G100: =INSERT!D87 -> 0 | H100: =INSERT!E87 -> 0 | Y100: 0 | Z100: 0 | AQ100: 0 | AR100: 0 | BI100: 0 | BJ100: 0 | BK100: 0 | BL100: 0 | BM100: 0 | BN100: 0 | BO100: 0 | BU100: 0 | BV100: 0 | CA100: 0 | CB100: 0
A101: 2 | B101: 86 | C101: 86 | D101: =INSERT!A88 -> 0 | E101: =INSERT!B88 -> 0 | F101: =INSERT!C88 -> 0 | G101: =INSERT!D88 -> 0 | H101: =INSERT!E88 -> 0 | Y101: 0 | Z101: 0 | AQ101: 0 | AR101: 0 | BI101: 0 | BJ101: 0 | BK101: 0 | BL101: 0 | BM101: 0 | BN101: 0 | BO101: 0 | BU101: 0 | BV101: 0 | CA101: 0 | CB101: 0
A102: 2 | B102: 87 | C102: 87 | D102: =INSERT!A89 -> 0 | E102: =INSERT!B89 -> 0 | F102: =INSERT!C89 -> 0 | G102: =INSERT!D89 -> 0 | H102: =INSERT!E89 -> 0 | Y102: 0 | Z102: 0 | AQ102: 0 | AR102: 0 | BI102: 0 | BJ102: 0 | BK102: 0 | BL102: 0 | BM102: 0 | BN102: 0 | BO102: 0 | BU102: 0 | BV102: 0 | CA102: 0 | CB102: 0
A103: 2 | B103: 88 | C103: 88 | D103: =INSERT!A90 -> 0 | E103: =INSERT!B90 -> 0 | F103: =INSERT!C90 -> 0 | G103: =INSERT!D90 -> 0 | H103: =INSERT!E90 -> 0 | Y103: 0 | Z103: 0 | AQ103: 0 | AR103: 0 | BI103: 0 | BJ103: 0 | BK103: 0 | BL103: 0 | BM103: 0 | BN103: 0 | BO103: 0 | BU103: 0 | BV103: 0 | CA103: 0 | CB103: 0
A104: 2 | B104: 89 | C104: 89 | D104: =INSERT!A91 -> 0 | E104: =INSERT!B91 -> 0 | F104: =INSERT!C91 -> 0 | G104: =INSERT!D91 -> 0 | H104: =INSERT!E91 -> 0 | Y104: 0 | Z104: 0 | AQ104: 0 | AR104: 0 | BI104: 0 | BJ104: 0 | BK104: 0 | BL104: 0 | BM104: 0 | BN104: 0 | BO104: 0 | BU104: 0 | BV104: 0 | CA104: 0 | CB104: 0
A105: 2 | B105: 90 | C105: 90 | D105: =INSERT!A92 -> 0 | E105: =INSERT!B92 -> 0 | F105: =INSERT!C92 -> 0 | G105: =INSERT!D92 -> 0 | H105: =INSERT!E92 -> 0 | Y105: 0 | Z105: 0 | AQ105: 0 | AR105: 0 | BI105: 0 | BJ105: 0 | BK105: 0 | BL105: 0 | BM105: 0 | BN105: 0 | BO105: 0 | BU105: 0 | BV105: 0 | CA105: 0 | CB105: 0
A106: 2 | B106: 91 | C106: 91 | D106: =INSERT!A93 -> 0 | E106: =INSERT!B93 -> 0 | F106: =INSERT!C93 -> 0 | G106: =INSERT!D93 -> 0 | H106: =INSERT!E93 -> 0 | Y106: 0 | Z106: 0 | AQ106: 0 | AR106: 0 | BI106: 0 | BJ106: 0 | BK106: 0 | BL106: 0 | BM106: 0 | BN106: 0 | BO106: 0 | BU106: 0 | BV106: 0 | CA106: 0 | CB106: 0
A107: 2 | B107: 92 | C107: 92 | D107: =INSERT!A94 -> 0 | E107: =INSERT!B94 -> 0 | F107: =INSERT!C94 -> 0 | G107: =INSERT!D94 -> 0 | H107: =INSERT!E94 -> 0 | Y107: 0 | Z107: 0 | AQ107: 0 | AR107: 0 | BI107: 0 | BJ107: 0 | BK107: 0 | BL107: 0 | BM107: 0 | BN107: 0 | BO107: 0 | BU107: 0 | BV107: 0 | CA107: 0 | CB107: 0
A108: 2 | B108: 93 | C108: 93 | D108: =INSERT!A95 -> 0 | E108: =INSERT!B95 -> 0 | F108: =INSERT!C95 -> 0 | G108: =INSERT!D95 -> 0 | H108: =INSERT!E95 -> 0 | Y108: 0 | Z108: 0 | AQ108: 0 | AR108: 0 | BI108: 0 | BJ108: 0 | BK108: 0 | BL108: 0 | BM108: 0 | BN108: 0 | BO108: 0 | BU108: 0 | BV108: 0 | CA108: 0 | CB108: 0
A109: 2 | B109: 94 | C109: 94 | D109: =INSERT!A96 -> 0 | E109: =INSERT!B96 -> 0 | F109: =INSERT!C96 -> 0 | G109: =INSERT!D96 -> 0 | H109: =INSERT!E96 -> 0 | Y109: 0 | Z109: 0 | AQ109: 0 | AR109: 0 | BI109: 0 | BJ109: 0 | BK109: 0 | BL109: 0 | BM109: 0 | BN109: 0 | BO109: 0 | BU109: 0 | BV109: 0 | CA109: 0 | CB109: 0
A110: 2 | B110: 95 | C110: 95 | D110: =INSERT!A97 -> 0 | E110: =INSERT!B97 -> 0 | F110: =INSERT!C97 -> 0 | G110: =INSERT!D97 -> 0 | H110: =INSERT!E97 -> 0 | Y110: 0 | Z110: 0 | AQ110: 0 | AR110: 0 | BI110: 0 | BJ110: 0 | BK110: 0 | BL110: 0 | BM110: 0 | BN110: 0 | BO110: 0 | BU110: 0 | BV110: 0 | CA110: 0 | CB110: 0
A111: 2 | B111: 96 | C111: 96 | D111: =INSERT!A98 -> 0 | E111: =INSERT!B98 -> 0 | F111: =INSERT!C98 -> 0 | G111: =INSERT!D98 -> 0 | H111: =INSERT!E98 -> 0 | Y111: 0 | Z111: 0 | AQ111: 0 | AR111: 0 | BI111: 0 | BJ111: 0 | BK111: 0 | BL111: 0 | BM111: 0 | BN111: 0 | BO111: 0 | BU111: 0 | BV111: 0 | CA111: 0 | CB111: 0
A112: 2 | B112: 97 | C112: 97 | D112: =INSERT!A99 -> 0 | E112: =INSERT!B99 -> 0 | F112: =INSERT!C99 -> 0 | G112: =INSERT!D99 -> 0 | H112: =INSERT!E99 -> 0 | Y112: =SUM(I112:X112) -> 0 | Z112: =IFERROR((ROUND((SUM(Y112*$Y$13)/10),0)),0) -> 0 | AQ112: =SUM(AA112:AP112) -> 0 | AR112: =IFERROR((ROUND((SUM(AQ112*$AQ$13)/10),0)),0) -> 0 | BI112: =SUM(AS112:BH112) -> 0 | BJ112: =IFERROR((ROUND((SUM(BI112*$BI$13)/10),0)),0) -> 0 | BK112: 0 | BL112: =SUM(BK112*$BK$13) -> 0 | BM112: 0 | BN112: =SUM(BM112*$BM$13) -> 0 | BO112: 0 | BP112: =IF(BO112>79.4,"7",IF(BO112>69.4,"6",IF(BO112>59.4,"5",IF(BO112>49.4,"4",IF(BO112>39.4,"3",IF(BO112>29.4,"2",IF(BO112>0,"1",IF(BO112=0,"",IF(BO112=-1,""))))))))) ->  | BU112: =SUM(BQ112:BT112) -> 0 | BV112: =ROUND(SUM(BU112*$BU$13),0) -> 0 | CA112: =SUM(BW112:BZ112) -> 0 | CB112: =ROUND(SUM(CA112*$CA$13),0) -> 0
A113: 2 | B113: 98 | C113: 98 | D113: =INSERT!A100 -> 0 | E113: =INSERT!B100 -> 0 | F113: =INSERT!C100 -> 0 | G113: =INSERT!D100 -> 0 | H113: =INSERT!E100 -> 0 | Y113: 0 | Z113: 0 | AQ113: 0 | AR113: 0 | BI113: 0 | BJ113: 0 | BK113: 0 | BL113: 0 | BM113: 0 | BN113: 0 | BO113: 0 | BU113: 0 | BV113: 0 | CA113: 0 | CB113: 0
A114: 2 | B114: 99 | C114: 99 | D114: =INSERT!A101 -> 0 | E114: =INSERT!B101 -> 0 | F114: =INSERT!C101 -> 0 | G114: =INSERT!D101 -> 0 | H114: =INSERT!E101 -> 0 | Y114: 0 | Z114: 0 | AQ114: 0 | AR114: 0 | BI114: 0 | BJ114: 0 | BK114: 0 | BL114: 0 | BM114: 0 | BN114: 0 | BO114: 0 | BU114: 0 | BV114: 0 | CA114: 0 | CB114: 0
A115: 2 | B115: 100 | C115: 100 | D115: =INSERT!A102 -> 0 | E115: =INSERT!B102 -> 0 | F115: =INSERT!C102 -> 0 | G115: =INSERT!D102 -> 0 | H115: =INSERT!E102 -> 0 | Y115: 0 | Z115: 0 | AQ115: 0 | AR115: 0 | BI115: 0 | BJ115: 0 | BK115: 0 | BL115: 0 | BM115: 0 | BN115: 0 | BO115: 0 | BU115: 0 | BV115: 0 | CA115: 0 | CB115: 0
B116: Total amount of learners on mark sheet | F116: x | G116: TOTAL | I116: =SUM(I16:I115) -> 0 | J116: 0 | K116: 0 | L116: 0 | M116: =SUM(M16:M115) -> 0 | N116: 0 | O116: 0 | P116: 0 | Q116: 0 | R116: 0 | S116: 0 | T116: 0 | U116: 0 | V116: 0 | W116: 0 | X116: 0 | Y116: =SUMIF(Y16:Y115,">0") -> 0 | Z116: 0 | AA116: 0 | AB116: 0 | AC116: 0 | AD116: 0 | AE116: =SUM(AE16:AE115) -> 0 | AF116: 0 | AG116: 0 | AH116: 0 | AI116: 0 | AJ116: 0 | AK116: 0 | AL116: 0 | AM116: 0 | AN116: 0 | AO116: 0 | AP116: 0 | AQ116: =SUMIF(AQ16:AQ115,">0") -> 0 | AR116: 0 | AS116: 0 | AT116: 0 | AU116: 0 | AV116: 0 | AW116: =SUM(AW16:AW115) -> 0 | AX116: 0 | AY116: 0 | AZ116: 0 | BA116: 0 | BB116: 0 | BC116: 0 | BD116: 0 | BE116: 0 | BF116: 0 | BG116: 0 | BH116: 0 | BI116: =SUM(BI16:BI115) -> 0 | BJ116: =SUM(BJ16:BJ115) -> 0 | BK116: =SUMIF(BK16:BK115,">0") -> 0 | BL116: =SUMIF(BL16:BL115,">0") -> 0 | BM116: 0 | BN116: 0 | BO116: 0 | BQ116: =SUMIF(BQ16:BQ115,">0") -> 0 | BR116: 0 | BS116: 0 | BT116: 0 | BU116: 0 | BV116: 0 | BW116: =SUMIF(BW16:BW115,">0") -> 0 | BX116: 0 | BY116: 0 | BZ116: 0 | CA116: 0 | CB116: 0
F117: x | G117: AVERAGE | I117: =IFERROR(SUM(I116/I120),"0") -> 0 | J117: =IFERROR(SUM(J116/J120),"0") -> 0 | K117: 0 | L117: 0 | M117: =IFERROR(SUM(M116/M120),"0") -> 0 | N117: 0 | O117: 0 | P117: 0 | Q117: 0 | R117: 0 | S117: 0 | T117: 0 | U117: 0 | V117: 0 | W117: 0 | X117: 0 | Y117: =IFERROR(SUM(Y116/$B$120),"0") -> 0 | Z117: 0 | AA117: 0 | AB117: 0 | AC117: 0 | AD117: 0 | AE117: =IFERROR(SUM(AE116/AE120),"0") -> 0 | AF117: 0 | AG117: 0 | AH117: 0 | AI117: 0 | AJ117: 0 | AK117: 0 | AL117: 0 | AM117: 0 | AN117: 0 | AO117: 0 | AP117: 0 | AQ117: =IFERROR(SUM(AQ116/$B$120),"0") -> 0 | AR117: 0 | AS117: 0 | AT117: 0 | AU117: 0 | AV117: 0 | AW117: =IFERROR(SUM(AW116/AW120),"0") -> 0 | AX117: 0 | AY117: 0 | AZ117: 0 | BA117: 0 | BB117: 0 | BC117: 0 | BD117: 0 | BE117: 0 | BF117: 0 | BG117: 0 | BH117: =IFERROR(SUM(BH116/BH120),"0") -> 0 | BI117: =IFERROR(SUM(BI116/$B$120),"0") -> 0 | BJ117: 0 | BK117: 0 | BL117: 0 | BM117: 0 | BN117: 0 | BO117: 0 | BQ117: =IFERROR(SUM(BQ116/$B$120),"0") -> 0 | BR117: =IFERROR(SUM(BR116/$B$120),"0") -> 0 | BS117: 0 | BT117: 0 | BU117: 0 | BV117: 0 | BW117: 0 | BX117: 0 | BY117: 0 | BZ117: 0 | CA117: 0 | CB117: 0
F118: x | G118: PERCENTAGE | I118: =IFERROR(ROUND((SUM(I117/I12)*100),0),"0") -> 0 | J118: =IFERROR(ROUND((SUM(J117/J12)*100),0),"0") -> 0 | K118: 0 | L118: 0 | M118: =IFERROR(ROUND((SUM(M117/M12)*100),0),"0") -> 0 | N118: 0 | O118: 0 | P118: 0 | Q118: 0 | R118: 0 | S118: 0 | T118: 0 | U118: 0 | V118: 0 | W118: 0 | X118: 0 | Y118: 0 | Z118: 0 | AA118: 0 | AB118: 0 | AC118: 0 | AD118: 0 | AE118: =IFERROR(ROUND((SUM(AE117/AE12)*100),0),"0") -> 0 | AF118: 0 | AG118: 0 | AH118: 0 | AI118: 0 | AJ118: 0 | AK118: 0 | AL118: 0 | AM118: 0 | AN118: 0 | AO118: 0 | AP118: 0 | AQ118: 0 | AR118: 0 | AS118: 0 | AT118: 0 | AU118: 0 | AV118: 0 | AW118: 0 | AX118: 0 | AY118: 0 | AZ118: 0 | BA118: 0 | BB118: 0 | BC118: 0 | BD118: 0 | BE118: 0 | BF118: 0 | BG118: 0 | BH118: 0 | BI118: 0 | BJ118: 0 | BK118: 0 | BL118: 0 | BM118: 0 | BN118: 0 | BO118: 0 | BQ118: =IFERROR(ROUND((SUM(BQ117/BQ12)*100),0),"0") -> 0 | BR118: 0 | BS118: 0 | BT118: 0 | BU118: 0 | BV118: 0 | BW118: 0 | BX118: 0 | BY118: 0 | BZ118: 0 | CA118: 0 | CB118: 0
F119: x | G119: 0
B120: =INSERT!$E$103 -> 0 | F120: x | G120: TOTAL HANDED IN | I120: =COUNT(I16:I115) -> 0 | J120: =COUNT(J16:J115) -> 0 | K120: =COUNT(K16:K115) -> 0 | L120: 0 | M120: =COUNT(M16:M115) -> 0 | N120: 0 | O120: 0 | P120: 0 | Q120: 0 | R120: 0 | S120: 0 | T120: 0 | U120: 0 | V120: 0 | W120: 0 | X120: =COUNT(X16:X115) -> 0 | AA120: =COUNT(AA16:AA115) -> 0 | AB120: =COUNT(AB16:AB115) -> 0 | AC120: =COUNT(AC16:AC115) -> 0 | AD120: 0 | AE120: =COUNT(AE16:AE115) -> 0 | AF120: 0 | AG120: 0 | AH120: 0 | AI120: 0 | AJ120: 0 | AK120: 0 | AL120: 0 | AM120: 0 | AN120: 0 | AO120: 0 | AP120: =COUNT(AP16:AP115) -> 0 | AS120: =COUNT(AS16:AS115) -> 0 | AT120: =COUNT(AT16:AT115) -> 0 | AU120: =COUNT(AU16:AU115) -> 0 | AV120: 0 | AW120: =COUNT(AW16:AW115) -> 0 | AX120: 0 | AY120: 0 | AZ120: 0 | BA120: 0 | BB120: 0 | BC120: 0 | BD120: 0 | BE120: 0 | BF120: 0 | BG120: 0 | BH120: =COUNT(BH16:BH115) -> 0 | BK120: EXAM LEVELS
A121: x | B121: x | D121: x | E121: x | F121: x | G121: x | H121: x | I121: x | J121: x | K121: x | L121: x | W121: x | X121: x | Y121: x | Z121: x | AA121: x | AB121: x | AC121: x | AD121: x | AO121: x | AP121: x | AQ121: x | AR121: x | AS121: x | AT121: x | AU121: x | AV121: x | BG121: x | BH121: x | BI121: x | BJ121: x | BK121: LEVEL 1 | BO121: LEVEL 2 | BQ121: LEVEL 3 | BS121: LEVEL 4 | BU121: LEVEL 5 | BW121: LEVEL 6 | BY121: LEVEL 7
A122: x | B122: x | D122: x | E122: x | F122: x | G122: x | H122: x | I122: x | J122: x | K122: x | L122: x | W122: x | X122: x | Y122: x | Z122: x | AA122: x | AB122: x | AC122: x | AD122: x | AO122: x | AP122: x | AQ122: x | AR122: x | AS122: x | AT122: x | AU122: x | AV122: x | BG122: x | BH122: x | BI122: x | BJ122: x | BK122: 0 - 29 | BO122: 30 - 39 | BQ122: 40 - 49 | BS122: 50 - 59 | BU122: 60 - 69 | BW122: 70 - 79 | BY122: 80 - 100
A123: x | B123: x | D123: x | E123: x | F123: x | G123: x | H123: x | I123: x | J123: x | K123: x | L123: x | W123: x | X123: x | Y123: x | Z123: x | AA123: x | AB123: x | AC123: x | AD123: x | AO123: x | AP123: x | AQ123: x | AR123: x | AS123: x | AT123: x | AU123: x | AV123: x | BG123: x | BH123: x | BI123: x | BJ123: x | BK123: =COUNTIF($BP$16:$BP$115,1) -> 0 | BO123: =COUNTIF($BP$16:$BP$115,2) -> 0 | BQ123: =COUNTIF($BP$16:$BP$115,3) -> 0 | BS123: =COUNTIF($BP$16:$BP$115,4) -> 0 | BU123: =COUNTIF($BP$16:$BP$115,5) -> 0 | BW123: =COUNTIF($BP$16:$BP$115,6) -> 0 | BY123: =COUNTIF($BP$16:$BP$115,7) -> 0

Sheet TERM3
B2: ENGINEERING GRAPHICS AND DESIGN
I3: PROGRAM OF ASSESSMENT : TERM 3
I4: CD8 1st Solid Geometry two adjacent Solids sectioned | AA4: CD9 2nd Solid Geometry Sectioned Solid with a hole | AS4: CD10 1st Interpenetration & Development (Two prisms) | BK4: CD11 2nd Interpenetration & Development (Including a cylinder(s)) | CC4: CD12 3rd Mechanical Assembly | CU4: TERM TEST
A5: 17 | E5: School: | F5: =INSERT!J3 -> 0 | I5: CD 8.1 | J5: CD 8.2 | K5: CD 8.3 | Y5: TOTAL CD1 | Z5: TOTAL | AA5: CD 9.1 | AB5: CD 9.2 | AC5: CD 9.3 | AQ5: TOTAL CD2 | AR5: TOTAL | AS5: CD 10.1 | AT5: CD 10.2 | AU5: CD 10.3 | BI5: TOTAL CD3 | BJ5: TOTAL | BK5: CD 11.1 | BL5: CD 11.2 | BM5: CD 11.3 | CA5: TOTAL CD10 | CB5: TOTAL | CC5: CD 12.1 | CD5: CD 12.2 | CE5: CD 12.3 | CS5: TOTAL CD15 | CT5: TOTAL | CU5: TEST 1 | CV5: TEST 2 | CY5: TEST TOTAL
E6: Grade: | F6: =INSERT!J4 -> 0
E7: Teacher: | F7: =INSERT!J5 -> 0
E8: HOD: | F8: =INSERT!J6 -> 0
E9: EGD SES: | F9: =INSERT!J7 -> 0 | G9: =INSERT!K7 -> 0 | H9: =INSERT!L7 -> 0
I11: 11.1 | J11: 11.2 | K11: 11.3 | L11: 11.4 | M11: 11.5 | N11: 11.6 | O11: 11.7 | P11: 11.8 | Q11: 11.9 | R11: 11.1 | S11: 11.11 | T11: 11.12 | U11: 11.13 | V11: 11.14 | W11: 11.15 | X11: 11.16 | AA11: 12.1 | AB11: 12.2 | AC11: 12.3 | AD11: 12.4 | AE11: 12.5 | AF11: 12.6 | AG11: 12.7 | AH11: 12.8 | AI11: 12.9 | AJ11: 12.1 | AK11: 12.11 | AL11: 12.12 | AM11: 12.13 | AN11: 12.14 | AO11: 12.15 | AP11: 12.16 | AS11: 13.1 | AT11: 13.2 | AU11: 13.3 | AV11: 13.4 | AW11: 13.5 | AX11: 13.6 | AY11: 13.7 | AZ11: 13.8 | BA11: 13.9 | BB11: 13.1 | BC11: 13.11 | BD11: 13.12 | BE11: 13.13 | BF11: 13.14 | BG11: 13.15 | BH11: 13.16 | BK11: 14.1 | BL11: 14.2 | BM11: 14.3 | BN11: 14.4 | BO11: 14.5 | BP11: 14.6 | BQ11: 14.7 | BR11: 14.8 | BS11: 14.9 | BT11: 14.1 | BU11: 14.11 | BV11: 14.12 | BW11: 14.13 | BX11: 14.14 | BY11: 14.15 | BZ11: 14.16 | CC11: 15.1 | CD11: 15.2 | CE11: 15.3 | CF11: 15.4 | CG11: 15.5 | CH11: 15.6 | CI11: 15.7 | CJ11: 15.8 | CK11: 15.9 | CL11: 15.1 | CM11: 15.11 | CN11: 15.12 | CO11: 15.13 | CP11: 15.14 | CQ11: 15.15 | CR11: 15.6
B12: Nr. | D12: Class | E12: Admission | F12: SURNAME | G12: NAME | H12: GENDER | I12: 30 | Y12: =SUM(I12:X12) -> 30 | Z12: 10 | AA12: 49 | AQ12: =SUM(AA12:AP12) -> 49 | AR12: 10 | AS12: 39 | BI12: =SUM(AS12:BH12) -> 39 | BJ12: 10 | BK12: 46 | CA12: =SUM(BK12:BZ12) -> 46 | CB12: 10 | CC12: 75 | CS12: =SUM(CC12:CR12) -> 75 | CT12: 10 | CY12: 50
I13: =IF(I12>0,"","X") ->  | J13: X | K13: X | L13: X | M13: X | N13: X | O13: X | P13: X | Q13: X | R13: X | S13: X | T13: X | U13: X | V13: X | W13: X | X13: X | Y13: =IFERROR(SUM(100/Y12),"0") -> 3.333333333 | AA13: =IF(AA12>0,"","X") ->  | AB13: X | AC13: X | AD13: X | AE13: X | AF13: X | AG13: X | AH13: X | AI13: X | AJ13: X | AK13: X | AL13: X | AM13: X | AN13: X | AO13: X | AP13: X | AQ13: =IFERROR(SUM(100/AQ12),"0") -> 2.040816327 | AS13: =IF(AS12>0,"","X") ->  | AT13: X | AU13: X | AV13: X | AW13: X | AX13: X | AY13: X | AZ13: X | BA13: X | BB13: X | BC13: X | BD13: X | BE13: X | BF13: X | BG13: X | BH13: X | BI13: =IFERROR(SUM(100/BI12),"0") -> 2.564102564 | BK13: =IF(BK12>0,"","X") ->  | BL13: X | BM13: X | BN13: X | BO13: X | BP13: X | BQ13: X | BR13: X | BS13: X | BT13: X | BU13: X | BV13: X | BW13: X | BX13: X | BY13: X | BZ13: X | CA13: =IFERROR(SUM(100/CA12),"0") -> 2.173913043 | CC13: =IF(CC12>0,"","X") ->  | CD13: X | CE13: X | CF13: X | CG13: X | CH13: X | CI13: X | CJ13: X | CK13: X | CL13: X | CM13: X | CN13: X | CO13: X | CP13: X | CQ13: X | CR13: X | CS13: =IFERROR(SUM(100/CS12),"0") -> 1.333333333 | CU13: =SUM(100/CU12)*0.5 ->  | CV13: =SUM(100/CV12)*0.5 ->  | CX13: =COUNT(CU12)+COUNT(CV12) -> 0
H14: DATE:
A16: =SUM(COUNTA(F16)+COUNT(B16)) -> 2 | B16: 1 | C16: 3 | D16: =INSERT!A3 -> 0 | E16: =INSERT!B3 -> 0 | F16: =INSERT!C3 -> 0 | G16: =INSERT!D3 -> 0 | H16: =INSERT!E3 -> 0 | Y16: =SUM(I16:X16) -> 0 | Z16: =ROUND((SUM(Y16*$Y$13)/10),0) -> 0 | AQ16: =SUM(AA16:AP16) -> 0 | AR16: =ROUND((SUM(AQ16*$AQ$13)/10),0) -> 0 | BI16: =SUM(AS16:BH16) -> 0 | BJ16: =ROUND((SUM(BI16*$BI$13)/10),0) -> 0 | CA16: =SUM(BK16:BZ16) -> 0 | CB16: =ROUND((SUM(CA16*$CA$13)/10),0) -> 0 | CS16: =SUM(CC16:CR16) -> 0 | CT16: =ROUND((SUM(CS16*$CS$13)/10),0) -> 0 | CW16: =SUM(CU16*$CU$13) ->  | CX16: =SUM(CV16*$CV$13) ->  | CY16: =ROUND(IF($CX$13=1,CW16,IF($CX$13=2,(CX16+CW16)/2)),0) -> 0
B17: =B16+1 -> 2 | C17: 36 | D17: =INSERT!A4 -> 0 | E17: =INSERT!B4 -> 0 | F17: =INSERT!C4 -> 0 | G17: =INSERT!D4 -> 0 | H17: =INSERT!E4 -> 0 | Y17: 0 | Z17: 0 | AQ17: 0 | AR17: 0 | BI17: 0 | BJ17: 0 | CA17: 0 | CB17: 0 | CS17: 0 | CT17: 0 | CY17: 0
B18: 3 | C18: 2 | D18: =INSERT!A5 -> 0 | E18: =INSERT!B5 -> 0 | F18: =INSERT!C5 -> 0 | G18: =INSERT!D5 -> 0 | H18: =INSERT!E5 -> 0 | Y18: 0 | Z18: 0 | AQ18: 0 | AR18: 0 | BI18: 0 | BJ18: 0 | CA18: 0 | CB18: 0 | CS18: 0 | CT18: 0 | CY18: 0
B19: 4 | C19: 1 | D19: =INSERT!A6 -> 0 | E19: =INSERT!B6 -> 0 | F19: =INSERT!C6 -> 0 | G19: =INSERT!D6 -> 0 | H19: =INSERT!E6 -> 0 | Y19: 0 | Z19: 0 | AQ19: 0 | AR19: 0 | BI19: 0 | BJ19: 0 | CA19: 0 | CB19: 0 | CS19: 0 | CT19: 0 | CY19: 0
B20: 5 | C20: 4 | D20: =INSERT!A7 -> 0 | E20: =INSERT!B7 -> 0 | F20: =INSERT!C7 -> 0 | G20: =INSERT!D7 -> 0 | H20: =INSERT!E7 -> 0 | Y20: 0 | Z20: 0 | AQ20: 0 | AR20: 0 | BI20: 0 | BJ20: 0 | CA20: 0 | CB20: 0 | CS20: 0 | CT20: 0 | CY20: 0
B21: 6 | C21: 5 | D21: =INSERT!A8 -> 0 | E21: =INSERT!B8 -> 0 | F21: =INSERT!C8 -> 0 | G21: =INSERT!D8 -> 0 | H21: =INSERT!E8 -> 0 | Y21: 0 | Z21: 0 | AQ21: 0 | AR21: 0 | BI21: 0 | BJ21: 0 | CA21: 0 | CB21: 0 | CS21: 0 | CT21: 0 | CY21: 0
B22: 7 | C22: 6 | D22: =INSERT!A9 -> 0 | E22: =INSERT!B9 -> 0 | F22: =INSERT!C9 -> 0 | G22: =INSERT!D9 -> 0 | H22: =INSERT!E9 -> 0 | Y22: 0 | Z22: 0 | AQ22: 0 | AR22: 0 | BI22: 0 | BJ22: 0 | CA22: 0 | CB22: 0 | CS22: 0 | CT22: 0 | CY22: 0
B23: 8 | C23: 7 | D23: =INSERT!A10 -> 0 | E23: =INSERT!B10 -> 0 | F23: =INSERT!C10 -> 0 | G23: =INSERT!D10 -> 0 | H23: =INSERT!E10 -> 0 | Y23: 0 | Z23: 0 | AQ23: 0 | AR23: 0 | BI23: 0 | BJ23: 0 | CA23: 0 | CB23: 0 | CS23: 0 | CT23: 0 | CY23: 0
B24: 9 | C24: 8 | D24: =INSERT!A11 -> 0 | E24: =INSERT!B11 -> 0 | F24: =INSERT!C11 -> 0 | G24: =INSERT!D11 -> 0 | H24: =INSERT!E11 -> 0 | Y24: 0 | Z24: 0 | AQ24: 0 | AR24: 0 | BI24: 0 | BJ24: 0 | CA24: 0 | CB24: 0 | CS24: 0 | CT24: 0 | CY24: 0
B25: 10 | C25: 9 | D25: =INSERT!A12 -> 0 | E25: =INSERT!B12 -> 0 | F25: =INSERT!C12 -> 0 | G25: =INSERT!D12 -> 0 | H25: =INSERT!E12 -> 0 | Y25: 0 | Z25: 0 | AQ25: 0 | AR25: 0 | BI25: 0 | BJ25: 0 | CA25: 0 | CB25: 0 | CS25: 0 | CT25: 0 | CY25: 0
B26: 11 | C26: 11 | D26: =INSERT!A13 -> 0 | E26: =INSERT!B13 -> 0 | F26: =INSERT!C13 -> 0 | G26: =INSERT!D13 -> 0 | H26: =INSERT!E13 -> 0 | Y26: 0 | Z26: 0 | AQ26: 0 | AR26: 0 | BI26: 0 | BJ26: 0 | CA26: 0 | CB26: 0 | CS26: 0 | CT26: 0 | CY26: 0
B27: 12 | C27: 12 | D27: =INSERT!A14 -> 0 | E27: =INSERT!B14 -> 0 | F27: =INSERT!C14 -> 0 | G27: =INSERT!D14 -> 0 | H27: =INSERT!E14 -> 0 | Y27: 0 | Z27: 0 | AQ27: 0 | AR27: 0 | BI27: 0 | BJ27: 0 | CA27: 0 | CB27: 0 | CS27: 0 | CT27: 0 | CY27: 0
B28: 13 | C28: 13 | D28: =INSERT!A15 -> 0 | E28: =INSERT!B15 -> 0 | F28: =INSERT!C15 -> 0 | G28: =INSERT!D15 -> 0 | H28: =INSERT!E15 -> 0 | Y28: 0 | Z28: 0 | AQ28: 0 | AR28: 0 | BI28: 0 | BJ28: 0 | CA28: 0 | CB28: 0 | CS28: 0 | CT28: 0 | CY28: 0
B29: 14 | C29: 14 | D29: =INSERT!A16 -> 0 | E29: =INSERT!B16 -> 0 | F29: =INSERT!C16 -> 0 | G29: =INSERT!D16 -> 0 | H29: =INSERT!E16 -> 0 | Y29: 0 | Z29: 0 | AQ29: 0 | AR29: 0 | BI29: 0 | BJ29: 0 | CA29: 0 | CB29: 0 | CS29: 0 | CT29: 0 | CY29: 0
B30: 15 | C30: 15 | D30: =INSERT!A17 -> 0 | E30: =INSERT!B17 -> 0 | F30: =INSERT!C17 -> 0 | G30: =INSERT!D17 -> 0 | H30: =INSERT!E17 -> 0 | Y30: 0 | Z30: 0 | AQ30: 0 | AR30: 0 | BI30: 0 | BJ30: 0 | CA30: 0 | CB30: 0 | CS30: 0 | CT30: 0 | CY30: 0
B31: 16 | C31: 16 | D31: =INSERT!A18 -> 0 | E31: =INSERT!B18 -> 0 | F31: =INSERT!C18 -> 0 | G31: =INSERT!D18 -> 0 | H31: =INSERT!E18 -> 0 | Y31: 0 | Z31: 0 | AQ31: 0 | AR31: 0 | BI31: 0 | BJ31: 0 | CA31: 0 | CB31: 0 | CS31: 0 | CT31: 0 | CY31: 0
B32: 17 | C32: 17 | D32: =INSERT!A19 -> 0 | E32: =INSERT!B19 -> 0 | F32: =INSERT!C19 -> 0 | G32: =INSERT!D19 -> 0 | H32: =INSERT!E19 -> 0 | Y32: 0 | Z32: 0 | AQ32: 0 | AR32: 0 | BI32: 0 | BJ32: 0 | CA32: 0 | CB32: 0 | CS32: 0 | CT32: 0 | CY32: 0
B33: 18 | C33: 18 | D33: =INSERT!A20 -> 0 | E33: =INSERT!B20 -> 0 | F33: =INSERT!C20 -> 0 | G33: =INSERT!D20 -> 0 | H33: =INSERT!E20 -> 0 | Y33: 0 | Z33: 0 | AQ33: 0 | AR33: 0 | BI33: 0 | BJ33: 0 | CA33: 0 | CB33: 0 | CS33: 0 | CT33: 0 | CY33: 0
B34: 19 | C34: 19 | D34: =INSERT!A21 -> 0 | E34: =INSERT!B21 -> 0 | F34: =INSERT!C21 -> 0 | G34: =INSERT!D21 -> 0 | H34: =INSERT!E21 -> 0 | Y34: 0 | Z34: 0 | AQ34: 0 | AR34: 0 | BI34: 0 | BJ34: 0 | CA34: 0 | CB34: 0 | CS34: 0 | CT34: 0 | CY34: 0
B35: 20 | C35: 20 | D35: =INSERT!A22 -> 0 | E35: =INSERT!B22 -> 0 | F35: =INSERT!C22 -> 0 | G35: =INSERT!D22 -> 0 | H35: =INSERT!E22 -> 0 | Y35: 0 | Z35: 0 | AQ35: 0 | AR35: 0 | BI35: 0 | BJ35: 0 | CA35: 0 | CB35: 0 | CS35: 0 | CT35: 0 | CY35: 0
B36: 21 | C36: 21 | D36: =INSERT!A23 -> 0 | E36: =INSERT!B23 -> 0 | F36: =INSERT!C23 -> 0 | G36: =INSERT!D23 -> 0 | H36: =INSERT!E23 -> 0 | Y36: 0 | Z36: 0 | AQ36: 0 | AR36: 0 | BI36: 0 | BJ36: 0 | CA36: 0 | CB36: 0 | CS36: 0 | CT36: 0 | CY36: 0
B37: 22 | C37: 22 | D37: =INSERT!A24 -> 0 | E37: =INSERT!B24 -> 0 | F37: =INSERT!C24 -> 0 | G37: =INSERT!D24 -> 0 | H37: =INSERT!E24 -> 0 | Y37: 0 | Z37: 0 | AQ37: 0 | AR37: 0 | BI37: 0 | BJ37: 0 | CA37: 0 | CB37: 0 | CS37: 0 | CT37: 0 | CY37: 0
B38: 23 | C38: 23 | D38: =INSERT!A25 -> 0 | E38: =INSERT!B25 -> 0 | F38: =INSERT!C25 -> 0 | G38: =INSERT!D25 -> 0 | H38: =INSERT!E25 -> 0 | Y38: 0 | Z38: 0 | AQ38: 0 | AR38: 0 | BI38: 0 | BJ38: 0 | CA38: 0 | CB38: 0 | CS38: 0 | CT38: 0 | CY38: 0
B39: 24 | C39: 24 | D39: =INSERT!A26 -> 0 | E39: =INSERT!B26 -> 0 | F39: =INSERT!C26 -> 0 | G39: =INSERT!D26 -> 0 | H39: =INSERT!E26 -> 0 | Y39: 0 | Z39: 0 | AQ39: 0 | AR39: 0 | BI39: 0 | BJ39: 0 | CA39: 0 | CB39: 0 | CS39: 0 | CT39: 0 | CY39: 0
B40: 25 | C40: 25 | D40: =INSERT!A27 -> 0 | E40: =INSERT!B27 -> 0 | F40: =INSERT!C27 -> 0 | G40: =INSERT!D27 -> 0 | H40: =INSERT!E27 -> 0 | Y40: 0 | Z40: 0 | AQ40: 0 | AR40: 0 | BI40: 0 | BJ40: 0 | CA40: 0 | CB40: 0 | CS40: 0 | CT40: 0 | CY40: 0
B41: 26 | C41: 26 | D41: =INSERT!A28 -> 0 | E41: =INSERT!B28 -> 0 | F41: =INSERT!C28 -> 0 | G41: =INSERT!D28 -> 0 | H41: =INSERT!E28 -> 0 | Y41: 0 | Z41: 0 | AQ41: 0 | AR41: 0 | BI41: 0 | BJ41: 0 | CA41: 0 | CB41: 0 | CS41: 0 | CT41: 0 | CY41: 0
B42: 27 | C42: 28 | D42: =INSERT!A29 -> 0 | E42: =INSERT!B29 -> 0 | F42: =INSERT!C29 -> 0 | G42: =INSERT!D29 -> 0 | H42: =INSERT!E29 -> 0 | Y42: 0 | Z42: 0 | AQ42: 0 | AR42: 0 | BI42: 0 | BJ42: 0 | CA42: 0 | CB42: 0 | CS42: 0 | CT42: 0 | CY42: 0
B43: 28 | C43: 29 | D43: =INSERT!A30 -> 0 | E43: =INSERT!B30 -> 0 | F43: =INSERT!C30 -> 0 | G43: =INSERT!D30 -> 0 | H43: =INSERT!E30 -> 0 | Y43: 0 | Z43: 0 | AQ43: 0 | AR43: 0 | BI43: 0 | BJ43: 0 | CA43: 0 | CB43: 0 | CS43: 0 | CT43: 0 | CY43: 0
B44: 29 | C44: 30 | D44: =INSERT!A31 -> 0 | E44: =INSERT!B31 -> 0 | F44: =INSERT!C31 -> 0 | G44: =INSERT!D31 -> 0 | H44: =INSERT!E31 -> 0 | Y44: 0 | Z44: 0 | AQ44: 0 | AR44: 0 | BI44: 0 | BJ44: 0 | CA44: 0 | CB44: 0 | CS44: 0 | CT44: 0 | CY44: 0
B45: 30 | C45: 31 | D45: =INSERT!A32 -> 0 | E45: =INSERT!B32 -> 0 | F45: =INSERT!C32 -> 0 | G45: =INSERT!D32 -> 0 | H45: =INSERT!E32 -> 0 | Y45: 0 | Z45: 0 | AQ45: 0 | AR45: 0 | BI45: 0 | BJ45: 0 | CA45: 0 | CB45: 0 | CS45: 0 | CT45: 0 | CY45: 0
B46: 31 | C46: 32 | D46: =INSERT!A33 -> 0 | E46: =INSERT!B33 -> 0 | F46: =INSERT!C33 -> 0 | G46: =INSERT!D33 -> 0 | H46: =INSERT!E33 -> 0 | Y46: 0 | Z46: 0 | AQ46: 0 | AR46: 0 | BI46: 0 | BJ46: 0 | CA46: 0 | CB46: 0 | CS46: 0 | CT46: 0 | CY46: 0
A47: =SUM(COUNTA(F47)+COUNT(B47)) -> 2 | B47: 32 | C47: 33 | D47: =INSERT!A34 -> 0 | E47: =INSERT!B34 -> 0 | F47: =INSERT!C34 -> 0 | G47: =INSERT!D34 -> 0 | H47: =INSERT!E34 -> 0 | Y47: 0 | Z47: 0 | AQ47: 0 | AR47: 0 | BI47: 0 | BJ47: 0 | CA47: 0 | CB47: 0 | CS47: 0 | CT47: 0 | CY47: 0
A48: 2 | B48: 33 | C48: 34 | D48: =INSERT!A35 -> 0 | E48: =INSERT!B35 -> 0 | F48: =INSERT!C35 -> 0 | G48: =INSERT!D35 -> 0 | H48: =INSERT!E35 -> 0 | Y48: =SUM(I48:X48) -> 0 | Z48: =ROUND((SUM(Y48*$Y$13)/10),0) -> 0 | AQ48: =SUM(AA48:AP48) -> 0 | AR48: =ROUND((SUM(AQ48*$AQ$13)/10),0) -> 0 | BI48: =SUM(AS48:BH48) -> 0 | BJ48: =ROUND((SUM(BI48*$BI$13)/10),0) -> 0 | CA48: =SUM(BK48:BZ48) -> 0 | CB48: =ROUND((SUM(CA48*$CA$13)/10),0) -> 0 | CS48: =SUM(CC48:CR48) -> 0 | CT48: =ROUND((SUM(CS48*$CS$13)/10),0) -> 0 | CW48: =SUM(CU48*$CU$13) ->  | CX48: =SUM(CV48*$CV$13) ->  | CY48: =ROUND(IF($CX$13=1,CW48,IF($CX$13=2,(CX48+CW48)/2)),0) -> 0
A49: 2 | B49: =B48+1 -> 34 | C49: 37 | D49: =INSERT!A36 -> 0 | E49: =INSERT!B36 -> 0 | F49: =INSERT!C36 -> 0 | G49: =INSERT!D36 -> 0 | H49: =INSERT!E36 -> 0 | Y49: 0 | Z49: 0 | AQ49: 0 | AR49: 0 | BI49: 0 | BJ49: 0 | CA49: 0 | CB49: 0 | CS49: 0 | CT49: 0 | CY49: 0
A50: 2 | B50: 35 | C50: 35 | D50: =INSERT!A37 -> 0 | E50: =INSERT!B37 -> 0 | F50: =INSERT!C37 -> 0 | G50: =INSERT!D37 -> 0 | H50: =INSERT!E37 -> 0 | Y50: 0 | Z50: 0 | AQ50: 0 | AR50: 0 | BI50: 0 | BJ50: 0 | CA50: 0 | CB50: 0 | CS50: 0 | CT50: 0 | CY50: 0
A51: 2 | B51: 36 | C51: 10 | D51: =INSERT!A38 -> 0 | E51: =INSERT!B38 -> 0 | F51: =INSERT!C38 -> 0 | G51: =INSERT!D38 -> 0 | H51: =INSERT!E38 -> 0 | Y51: 0 | Z51: 0 | AQ51: 0 | AR51: 0 | BI51: 0 | BJ51: 0 | CA51: 0 | CB51: 0 | CS51: 0 | CT51: 0 | CY51: 0
A52: 2 | B52: 37 | C52: 27 | D52: =INSERT!A39 -> 0 | E52: =INSERT!B39 -> 0 | F52: =INSERT!C39 -> 0 | G52: =INSERT!D39 -> 0 | H52: =INSERT!E39 -> 0 | Y52: 0 | Z52: 0 | AQ52: 0 | AR52: 0 | BI52: 0 | BJ52: 0 | CA52: 0 | CB52: 0 | CS52: 0 | CT52: 0 | CY52: 0
B53: 38 | C53: 38 | D53: =INSERT!A40 -> 0 | E53: =INSERT!B40 -> 0 | F53: =INSERT!C40 -> 0 | G53: =INSERT!D40 -> 0 | H53: =INSERT!E40 -> 0 | Y53: 0 | Z53: 0 | AQ53: 0 | AR53: 0 | BI53: 0 | BJ53: 0 | CA53: 0 | CB53: 0 | CS53: 0 | CT53: 0 | CY53: 0
B54: 39 | C54: 39 | D54: =INSERT!A41 -> 0 | E54: =INSERT!B41 -> 0 | F54: =INSERT!C41 -> 0 | G54: =INSERT!D41 -> 0 | H54: =INSERT!E41 -> 0 | Y54: 0 | Z54: 0 | AQ54: 0 | AR54: 0 | BI54: 0 | BJ54: 0 | CA54: 0 | CB54: 0 | CS54: 0 | CT54: 0 | CY54: 0
B55: 40 | C55: 40 | D55: =INSERT!A42 -> 0 | E55: =INSERT!B42 -> 0 | F55: =INSERT!C42 -> 0 | G55: =INSERT!D42 -> 0 | H55: =INSERT!E42 -> 0 | Y55: 0 | Z55: 0 | AQ55: 0 | AR55: 0 | BI55: 0 | BJ55: 0 | CA55: 0 | CB55: 0 | CS55: 0 | CT55: 0 | CY55: 0
B56: 41 | C56: 41 | D56: =INSERT!A43 -> 0 | E56: =INSERT!B43 -> 0 | F56: =INSERT!C43 -> 0 | G56: =INSERT!D43 -> 0 | H56: =INSERT!E43 -> 0 | Y56: 0 | Z56: 0 | AQ56: 0 | AR56: 0 | BI56: 0 | BJ56: 0 | CA56: 0 | CB56: 0 | CS56: 0 | CT56: 0 | CY56: 0
B57: 42 | C57: 42 | D57: =INSERT!A44 -> 0 | E57: =INSERT!B44 -> 0 | F57: =INSERT!C44 -> 0 | G57: =INSERT!D44 -> 0 | H57: =INSERT!E44 -> 0 | Y57: 0 | Z57: 0 | AQ57: 0 | AR57: 0 | BI57: 0 | BJ57: 0 | CA57: 0 | CB57: 0 | CS57: 0 | CT57: 0 | CY57: 0
B58: 43 | C58: 43 | D58: =INSERT!A45 -> 0 | E58: =INSERT!B45 -> 0 | F58: =INSERT!C45 -> 0 | G58: =INSERT!D45 -> 0 | H58: =INSERT!E45 -> 0 | Y58: 0 | Z58: 0 | AQ58: 0 | AR58: 0 | BI58: 0 | BJ58: 0 | CA58: 0 | CB58: 0 | CS58: 0 | CT58: 0 | CY58: 0
B59: 44 | C59: 44 | D59: =INSERT!A46 -> 0 | E59: =INSERT!B46 -> 0 | F59: =INSERT!C46 -> 0 | G59: =INSERT!D46 -> 0 | H59: =INSERT!E46 -> 0 | Y59: 0 | Z59: 0 | AQ59: 0 | AR59: 0 | BI59: 0 | BJ59: 0 | CA59: 0 | CB59: 0 | CS59: 0 | CT59: 0 | CY59: 0
B60: 45 | C60: 45 | D60: =INSERT!A47 -> 0 | E60: =INSERT!B47 -> 0 | F60: =INSERT!C47 -> 0 | G60: =INSERT!D47 -> 0 | H60: =INSERT!E47 -> 0 | Y60: 0 | Z60: 0 | AQ60: 0 | AR60: 0 | BI60: 0 | BJ60: 0 | CA60: 0 | CB60: 0 | CS60: 0 | CT60: 0 | CY60: 0
B61: 46 | C61: 46 | D61: =INSERT!A48 -> 0 | E61: =INSERT!B48 -> 0 | F61: =INSERT!C48 -> 0 | G61: =INSERT!D48 -> 0 | H61: =INSERT!E48 -> 0 | Y61: 0 | Z61: 0 | AQ61: 0 | AR61: 0 | BI61: 0 | BJ61: 0 | CA61: 0 | CB61: 0 | CS61: 0 | CT61: 0 | CY61: 0
B62: 47 | C62: 47 | D62: =INSERT!A49 -> 0 | E62: =INSERT!B49 -> 0 | F62: =INSERT!C49 -> 0 | G62: =INSERT!D49 -> 0 | H62: =INSERT!E49 -> 0 | Y62: 0 | Z62: 0 | AQ62: 0 | AR62: 0 | BI62: 0 | BJ62: 0 | CA62: 0 | CB62: 0 | CS62: 0 | CT62: 0 | CY62: 0
B63: 48 | C63: 48 | D63: =INSERT!A50 -> 0 | E63: =INSERT!B50 -> 0 | F63: =INSERT!C50 -> 0 | G63: =INSERT!D50 -> 0 | H63: =INSERT!E50 -> 0 | Y63: 0 | Z63: 0 | AQ63: 0 | AR63: 0 | BI63: 0 | BJ63: 0 | CA63: 0 | CB63: 0 | CS63: 0 | CT63: 0 | CY63: 0
B64: 49 | C64: 49 | D64: =INSERT!A51 -> 0 | E64: =INSERT!B51 -> 0 | F64: =INSERT!C51 -> 0 | G64: =INSERT!D51 -> 0 | H64: =INSERT!E51 -> 0 | Y64: 0 | Z64: 0 | AQ64: 0 | AR64: 0 | BI64: 0 | BJ64: 0 | CA64: 0 | CB64: 0 | CS64: 0 | CT64: 0 | CY64: 0
B65: 50 | C65: 50 | D65: =INSERT!A52 -> 0 | E65: =INSERT!B52 -> 0 | F65: =INSERT!C52 -> 0 | G65: =INSERT!D52 -> 0 | H65: =INSERT!E52 -> 0 | Y65: 0 | Z65: 0 | AQ65: 0 | AR65: 0 | BI65: 0 | BJ65: 0 | CA65: 0 | CB65: 0 | CS65: 0 | CT65: 0 | CY65: 0
B66: 51 | C66: 51 | D66: =INSERT!A53 -> 0 | E66: =INSERT!B53 -> 0 | F66: =INSERT!C53 -> 0 | G66: =INSERT!D53 -> 0 | H66: =INSERT!E53 -> 0 | Y66: 0 | Z66: 0 | AQ66: 0 | AR66: 0 | BI66: 0 | BJ66: 0 | CA66: 0 | CB66: 0 | CS66: 0 | CT66: 0 | CY66: 0
B67: 52 | C67: 52 | D67: =INSERT!A54 -> 0 | E67: =INSERT!B54 -> 0 | F67: =INSERT!C54 -> 0 | G67: =INSERT!D54 -> 0 | H67: =INSERT!E54 -> 0 | Y67: 0 | Z67: 0 | AQ67: 0 | AR67: 0 | BI67: 0 | BJ67: 0 | CA67: 0 | CB67: 0 | CS67: 0 | CT67: 0 | CY67: 0
B68: 53 | C68: 53 | D68: =INSERT!A55 -> 0 | E68: =INSERT!B55 -> 0 | F68: =INSERT!C55 -> 0 | G68: =INSERT!D55 -> 0 | H68: =INSERT!E55 -> 0 | Y68: 0 | Z68: 0 | AQ68: 0 | AR68: 0 | BI68: 0 | BJ68: 0 | CA68: 0 | CB68: 0 | CS68: 0 | CT68: 0 | CY68: 0
B69: 54 | C69: 54 | D69: =INSERT!A56 -> 0 | E69: =INSERT!B56 -> 0 | F69: =INSERT!C56 -> 0 | G69: =INSERT!D56 -> 0 | H69: =INSERT!E56 -> 0 | Y69: 0 | Z69: 0 | AQ69: 0 | AR69: 0 | BI69: 0 | BJ69: 0 | CA69: 0 | CB69: 0 | CS69: 0 | CT69: 0 | CY69: 0
B70: 55 | C70: 55 | D70: =INSERT!A57 -> 0 | E70: =INSERT!B57 -> 0 | F70: =INSERT!C57 -> 0 | G70: =INSERT!D57 -> 0 | H70: =INSERT!E57 -> 0 | Y70: 0 | Z70: 0 | AQ70: 0 | AR70: 0 | BI70: 0 | BJ70: 0 | CA70: 0 | CB70: 0 | CS70: 0 | CT70: 0 | CY70: 0
B71: 56 | C71: 56 | D71: =INSERT!A58 -> 0 | E71: =INSERT!B58 -> 0 | F71: =INSERT!C58 -> 0 | G71: =INSERT!D58 -> 0 | H71: =INSERT!E58 -> 0 | Y71: 0 | Z71: 0 | AQ71: 0 | AR71: 0 | BI71: 0 | BJ71: 0 | CA71: 0 | CB71: 0 | CS71: 0 | CT71: 0 | CY71: 0
B72: 57 | C72: 57 | D72: =INSERT!A59 -> 0 | E72: =INSERT!B59 -> 0 | F72: =INSERT!C59 -> 0 | G72: =INSERT!D59 -> 0 | H72: =INSERT!E59 -> 0 | Y72: 0 | Z72: 0 | AQ72: 0 | AR72: 0 | BI72: 0 | BJ72: 0 | CA72: 0 | CB72: 0 | CS72: 0 | CT72: 0 | CY72: 0
A73: =SUM(COUNTA(F73)+COUNT(B73)) -> 2 | B73: 58 | C73: 58 | D73: =INSERT!A60 -> 0 | E73: =INSERT!B60 -> 0 | F73: =INSERT!C60 -> 0 | G73: =INSERT!D60 -> 0 | H73: =INSERT!E60 -> 0 | Y73: 0 | Z73: 0 | AQ73: 0 | AR73: 0 | BI73: 0 | BJ73: 0 | CA73: 0 | CB73: 0 | CS73: 0 | CT73: 0 | CY73: 0
A74: 2 | B74: 59 | C74: 59 | D74: =INSERT!A61 -> 0 | E74: =INSERT!B61 -> 0 | F74: =INSERT!C61 -> 0 | G74: =INSERT!D61 -> 0 | H74: =INSERT!E61 -> 0 | Y74: 0 | Z74: 0 | AQ74: 0 | AR74: 0 | BI74: 0 | BJ74: 0 | CA74: 0 | CB74: 0 | CS74: 0 | CT74: 0 | CY74: 0
A75: 2 | B75: 60 | C75: 60 | D75: =INSERT!A62 -> 0 | E75: =INSERT!B62 -> 0 | F75: =INSERT!C62 -> 0 | G75: =INSERT!D62 -> 0 | H75: =INSERT!E62 -> 0 | Y75: 0 | Z75: 0 | AQ75: 0 | AR75: 0 | BI75: 0 | BJ75: 0 | CA75: 0 | CB75: 0 | CS75: 0 | CT75: 0 | CY75: 0
A76: 2 | B76: 61 | C76: 61 | D76: =INSERT!A63 -> 0 | E76: =INSERT!B63 -> 0 | F76: =INSERT!C63 -> 0 | G76: =INSERT!D63 -> 0 | H76: =INSERT!E63 -> 0 | Y76: 0 | Z76: 0 | AQ76: 0 | AR76: 0 | BI76: 0 | BJ76: 0 | CA76: 0 | CB76: 0 | CS76: 0 | CT76: 0 | CY76: 0
A77: 2 | B77: 62 | C77: 62 | D77: =INSERT!A64 -> 0 | E77: =INSERT!B64 -> 0 | F77: =INSERT!C64 -> 0 | G77: =INSERT!D64 -> 0 | H77: =INSERT!E64 -> 0 | Y77: 0 | Z77: 0 | AQ77: 0 | AR77: 0 | BI77: 0 | BJ77: 0 | CA77: 0 | CB77: 0 | CS77: 0 | CT77: 0 | CY77: 0
A78: 2 | B78: 63 | C78: 63 | D78: =INSERT!A65 -> 0 | E78: =INSERT!B65 -> 0 | F78: =INSERT!C65 -> 0 | G78: =INSERT!D65 -> 0 | H78: =INSERT!E65 -> 0 | Y78: 0 | Z78: 0 | AQ78: 0 | AR78: 0 | BI78: 0 | BJ78: 0 | CA78: 0 | CB78: 0 | CS78: 0 | CT78: 0 | CY78: 0
A79: 2 | B79: 64 | C79: 64 | D79: =INSERT!A66 -> 0 | E79: =INSERT!B66 -> 0 | F79: =INSERT!C66 -> 0 | G79: =INSERT!D66 -> 0 | H79: =INSERT!E66 -> 0 | Y79: 0 | Z79: 0 | AQ79: 0 | AR79: 0 | BI79: 0 | BJ79: 0 | CA79: 0 | CB79: 0 | CS79: 0 | CT79: 0 | CY79: 0
A80: 2 | B80: 65 | C80: 65 | D80: =INSERT!A67 -> 0 | E80: =INSERT!B67 -> 0 | F80: =INSERT!C67 -> 0 | G80: =INSERT!D67 -> 0 | H80: =INSERT!E67 -> 0 | Y80: =SUM(I80:X80) -> 0 | Z80: =ROUND((SUM(Y80*$Y$13)/10),0) -> 0 | AQ80: =SUM(AA80:AP80) -> 0 | AR80: =ROUND((SUM(AQ80*$AQ$13)/10),0) -> 0 | BI80: =SUM(AS80:BH80) -> 0 | BJ80: =ROUND((SUM(BI80*$BI$13)/10),0) -> 0 | CA80: =SUM(BK80:BZ80) -> 0 | CB80: =ROUND((SUM(CA80*$CA$13)/10),0) -> 0 | CS80: =SUM(CC80:CR80) -> 0 | CT80: =ROUND((SUM(CS80*$CS$13)/10),0) -> 0 | CW80: =SUM(CU80*$CU$13) ->  | CX80: =SUM(CV80*$CV$13) ->  | CY80: =ROUND(IF($CX$13=1,CW80,IF($CX$13=2,(CX80+CW80)/2)),0) -> 0
A81: 2 | B81: =B80+1 -> 66 | C81: 66 | D81: =INSERT!A68 -> 0 | E81: =INSERT!B68 -> 0 | F81: =INSERT!C68 -> 0 | G81: =INSERT!D68 -> 0 | H81: =INSERT!E68 -> 0 | Y81: 0 | Z81: 0 | AQ81: 0 | AR81: 0 | BI81: 0 | BJ81: 0 | CA81: 0 | CB81: 0 | CS81: 0 | CT81: 0 | CY81: 0
A82: 2 | B82: 67 | C82: 67 | D82: =INSERT!A69 -> 0 | E82: =INSERT!B69 -> 0 | F82: =INSERT!C69 -> 0 | G82: =INSERT!D69 -> 0 | H82: =INSERT!E69 -> 0 | Y82: 0 | Z82: 0 | AQ82: 0 | AR82: 0 | BI82: 0 | BJ82: 0 | CA82: 0 | CB82: 0 | CS82: 0 | CT82: 0 | CY82: 0
A83: 2 | B83: 68 | C83: 68 | D83: =INSERT!A70 -> 0 | E83: =INSERT!B70 -> 0 | F83: =INSERT!C70 -> 0 | G83: =INSERT!D70 -> 0 | H83: =INSERT!E70 -> 0 | Y83: 0 | Z83: 0 | AQ83: 0 | AR83: 0 | BI83: 0 | BJ83: 0 | CA83: 0 | CB83: 0 | CS83: 0 | CT83: 0 | CY83: 0
A84: 2 | B84: 69 | C84: 69 | D84: =INSERT!A71 -> 0 | E84: =INSERT!B71 -> 0 | F84: =INSERT!C71 -> 0 | G84: =INSERT!D71 -> 0 | H84: =INSERT!E71 -> 0 | Y84: 0 | Z84: 0 | AQ84: 0 | AR84: 0 | BI84: 0 | BJ84: 0 | CA84: 0 | CB84: 0 | CS84: 0 | CT84: 0 | CY84: 0
A85: 2 | B85: 70 | C85: 70 | D85: =INSERT!A72 -> 0 | E85: =INSERT!B72 -> 0 | F85: =INSERT!C72 -> 0 | G85: =INSERT!D72 -> 0 | H85: =INSERT!E72 -> 0 | Y85: 0 | Z85: 0 | AQ85: 0 | AR85: 0 | BI85: 0 | BJ85: 0 | CA85: 0 | CB85: 0 | CS85: 0 | CT85: 0 | CY85: 0
A86: 2 | B86: 71 | C86: 71 | D86: =INSERT!A73 -> 0 | E86: =INSERT!B73 -> 0 | F86: =INSERT!C73 -> 0 | G86: =INSERT!D73 -> 0 | H86: =INSERT!E73 -> 0 | Y86: 0 | Z86: 0 | AQ86: 0 | AR86: 0 | BI86: 0 | BJ86: 0 | CA86: 0 | CB86: 0 | CS86: 0 | CT86: 0 | CY86: 0
A87: 2 | B87: 72 | C87: 72 | D87: =INSERT!A74 -> 0 | E87: =INSERT!B74 -> 0 | F87: =INSERT!C74 -> 0 | G87: =INSERT!D74 -> 0 | H87: =INSERT!E74 -> 0 | Y87: 0 | Z87: 0 | AQ87: 0 | AR87: 0 | BI87: 0 | BJ87: 0 | CA87: 0 | CB87: 0 | CS87: 0 | CT87: 0 | CY87: 0
A88: 2 | B88: 73 | C88: 73 | D88: =INSERT!A75 -> 0 | E88: =INSERT!B75 -> 0 | F88: =INSERT!C75 -> 0 | G88: =INSERT!D75 -> 0 | H88: =INSERT!E75 -> 0 | Y88: 0 | Z88: 0 | AQ88: 0 | AR88: 0 | BI88: 0 | BJ88: 0 | CA88: 0 | CB88: 0 | CS88: 0 | CT88: 0 | CY88: 0
A89: 2 | B89: 74 | C89: 74 | D89: =INSERT!A76 -> 0 | E89: =INSERT!B76 -> 0 | F89: =INSERT!C76 -> 0 | G89: =INSERT!D76 -> 0 | H89: =INSERT!E76 -> 0 | Y89: 0 | Z89: 0 | AQ89: 0 | AR89: 0 | BI89: 0 | BJ89: 0 | CA89: 0 | CB89: 0 | CS89: 0 | CT89: 0 | CY89: 0
A90: 2 | B90: 75 | C90: 75 | D90: =INSERT!A77 -> 0 | E90: =INSERT!B77 -> 0 | F90: =INSERT!C77 -> 0 | G90: =INSERT!D77 -> 0 | H90: =INSERT!E77 -> 0 | Y90: 0 | Z90: 0 | AQ90: 0 | AR90: 0 | BI90: 0 | BJ90: 0 | CA90: 0 | CB90: 0 | CS90: 0 | CT90: 0 | CY90: 0
A91: 2 | B91: 76 | C91: 76 | D91: =INSERT!A78 -> 0 | E91: =INSERT!B78 -> 0 | F91: =INSERT!C78 -> 0 | G91: =INSERT!D78 -> 0 | H91: =INSERT!E78 -> 0 | Y91: 0 | Z91: 0 | AQ91: 0 | AR91: 0 | BI91: 0 | BJ91: 0 | CA91: 0 | CB91: 0 | CS91: 0 | CT91: 0 | CY91: 0
A92: 2 | B92: 77 | C92: 77 | D92: =INSERT!A79 -> 0 | E92: =INSERT!B79 -> 0 | F92: =INSERT!C79 -> 0 | G92: =INSERT!D79 -> 0 | H92: =INSERT!E79 -> 0 | Y92: 0 | Z92: 0 | AQ92: 0 | AR92: 0 | BI92: 0 | BJ92: 0 | CA92: 0 | CB92: 0 | CS92: 0 | CT92: 0 | CY92: 0
A93: 2 | B93: 78 | C93: 78 | D93: =INSERT!A80 -> 0 | E93: =INSERT!B80 -> 0 | F93: =INSERT!C80 -> 0 | G93: =INSERT!D80 -> 0 | H93: =INSERT!E80 -> 0 | Y93: 0 | Z93: 0 | AQ93: 0 | AR93: 0 | BI93: 0 | BJ93: 0 | CA93: 0 | CB93: 0 | CS93: 0 | CT93: 0 | CY93: 0
A94: 2 | B94: 79 | C94: 79 | D94: =INSERT!A81 -> 0 | E94: =INSERT!B81 -> 0 | F94: =INSERT!C81 -> 0 | G94: =INSERT!D81 -> 0 | H94: =INSERT!E81 -> 0 | Y94: 0 | Z94: 0 | AQ94: 0 | AR94: 0 | BI94: 0 | BJ94: 0 | CA94: 0 | CB94: 0 | CS94: 0 | CT94: 0 | CY94: 0
A95: 2 | B95: 80 | C95: 80 | D95: =INSERT!A82 -> 0 | E95: =INSERT!B82 -> 0 | F95: =INSERT!C82 -> 0 | G95: =INSERT!D82 -> 0 | H95: =INSERT!E82 -> 0 | Y95: 0 | Z95: 0 | AQ95: 0 | AR95: 0 | BI95: 0 | BJ95: 0 | CA95: 0 | CB95: 0 | CS95: 0 | CT95: 0 | CY95: 0
A96: 2 | B96: 81 | C96: 81 | D96: =INSERT!A83 -> 0 | E96: =INSERT!B83 -> 0 | F96: =INSERT!C83 -> 0 | G96: =INSERT!D83 -> 0 | H96: =INSERT!E83 -> 0 | Y96: 0 | Z96: 0 | AQ96: 0 | AR96: 0 | BI96: 0 | BJ96: 0 | CA96: 0 | CB96: 0 | CS96: 0 | CT96: 0 | CY96: 0
A97: 2 | B97: 82 | C97: 82 | D97: =INSERT!A84 -> 0 | E97: =INSERT!B84 -> 0 | F97: =INSERT!C84 -> 0 | G97: =INSERT!D84 -> 0 | H97: =INSERT!E84 -> 0 | Y97: 0 | Z97: 0 | AQ97: 0 | AR97: 0 | BI97: 0 | BJ97: 0 | CA97: 0 | CB97: 0 | CS97: 0 | CT97: 0 | CY97: 0
A98: 2 | B98: 83 | C98: 83 | D98: =INSERT!A85 -> 0 | E98: =INSERT!B85 -> 0 | F98: =INSERT!C85 -> 0 | G98: =INSERT!D85 -> 0 | H98: =INSERT!E85 -> 0 | Y98: 0 | Z98: 0 | AQ98: 0 | AR98: 0 | BI98: 0 | BJ98: 0 | CA98: 0 | CB98: 0 | CS98: 0 | CT98: 0 | CY98: 0
A99: 2 | B99: 84 | C99: 84 | D99: =INSERT!A86 -> 0 | E99: =INSERT!B86 -> 0 | F99: =INSERT!C86 -> 0 | G99: =INSERT!D86 -> 0 | H99: =INSERT!E86 -> 0 | Y99: 0 | Z99: 0 | AQ99: 0 | AR99: 0 | BI99: 0 | BJ99: 0 | CA99: 0 | CB99: 0 | CS99: 0 | CT99: 0 | CY99: 0
A100: 2 | B100: 85 | C100: 85 | D100: =INSERT!A87 -> 0 | E100: =INSERT!B87 -> 0 | F100: =INSERT!C87 -> 0 | G100: =INSERT!D87 -> 0 | H100: =INSERT!E87 -> 0 | Y100: 0 | Z100: 0 | AQ100: 0 | AR100: 0 | BI100: 0 | BJ100: 0 | CA100: 0 | CB100: 0 | CS100: 0 | CT100: 0 | CY100: 0
A101: 2 | B101: 86 | C101: 86 | D101: =INSERT!A88 -> 0 | E101: =INSERT!B88 -> 0 | F101: =INSERT!C88 -> 0 | G101: =INSERT!D88 -> 0 | H101: =INSERT!E88 -> 0 | Y101: 0 | Z101: 0 | AQ101: 0 | AR101: 0 | BI101: 0 | BJ101: 0 | CA101: 0 | CB101: 0 | CS101: 0 | CT101: 0 | CY101: 0
A102: 2 | B102: 87 | C102: 87 | D102: =INSERT!A89 -> 0 | E102: =INSERT!B89 -> 0 | F102: =INSERT!C89 -> 0 | G102: =INSERT!D89 -> 0 | H102: =INSERT!E89 -> 0 | Y102: 0 | Z102: 0 | AQ102: 0 | AR102: 0 | BI102: 0 | BJ102: 0 | CA102: 0 | CB102: 0 | CS102: 0 | CT102: 0 | CY102: 0
A103: 2 | B103: 88 | C103: 88 | D103: =INSERT!A90 -> 0 | E103: =INSERT!B90 -> 0 | F103: =INSERT!C90 -> 0 | G103: =INSERT!D90 -> 0 | H103: =INSERT!E90 -> 0 | Y103: 0 | Z103: 0 | AQ103: 0 | AR103: 0 | BI103: 0 | BJ103: 0 | CA103: 0 | CB103: 0 | CS103: 0 | CT103: 0 | CY103: 0
A104: 2 | B104: 89 | C104: 89 | D104: =INSERT!A91 -> 0 | E104: =INSERT!B91 -> 0 | F104: =INSERT!C91 -> 0 | G104: =INSERT!D91 -> 0 | H104: =INSERT!E91 -> 0 | Y104: 0 | Z104: 0 | AQ104: 0 | AR104: 0 | BI104: 0 | BJ104: 0 | CA104: 0 | CB104: 0 | CS104: 0 | CT104: 0 | CY104: 0
A105: 2 | B105: 90 | C105: 90 | D105: =INSERT!A92 -> 0 | E105: =INSERT!B92 -> 0 | F105: =INSERT!C92 -> 0 | G105: =INSERT!D92 -> 0 | H105: =INSERT!E92 -> 0 | Y105: 0 | Z105: 0 | AQ105: 0 | AR105: 0 | BI105: 0 | BJ105: 0 | CA105: 0 | CB105: 0 | CS105: 0 | CT105: 0 | CY105: 0
A106: 2 | B106: 91 | C106: 91 | D106: =INSERT!A93 -> 0 | E106: =INSERT!B93 -> 0 | F106: =INSERT!C93 -> 0 | G106: =INSERT!D93 -> 0 | H106: =INSERT!E93 -> 0 | Y106: 0 | Z106: 0 | AQ106: 0 | AR106: 0 | BI106: 0 | BJ106: 0 | CA106: 0 | CB106: 0 | CS106: 0 | CT106: 0 | CY106: 0
A107: 2 | B107: 92 | C107: 92 | D107: =INSERT!A94 -> 0 | E107: =INSERT!B94 -> 0 | F107: =INSERT!C94 -> 0 | G107: =INSERT!D94 -> 0 | H107: =INSERT!E94 -> 0 | Y107: 0 | Z107: 0 | AQ107: 0 | AR107: 0 | BI107: 0 | BJ107: 0 | CA107: 0 | CB107: 0 | CS107: 0 | CT107: 0 | CY107: 0
A108: 2 | B108: 93 | C108: 93 | D108: =INSERT!A95 -> 0 | E108: =INSERT!B95 -> 0 | F108: =INSERT!C95 -> 0 | G108: =INSERT!D95 -> 0 | H108: =INSERT!E95 -> 0 | Y108: 0 | Z108: 0 | AQ108: 0 | AR108: 0 | BI108: 0 | BJ108: 0 | CA108: 0 | CB108: 0 | CS108: 0 | CT108: 0 | CY108: 0
A109: 2 | B109: 94 | C109: 94 | D109: =INSERT!A96 -> 0 | E109: =INSERT!B96 -> 0 | F109: =INSERT!C96 -> 0 | G109: =INSERT!D96 -> 0 | H109: =INSERT!E96 -> 0 | Y109: 0 | Z109: 0 | AQ109: 0 | AR109: 0 | BI109: 0 | BJ109: 0 | CA109: 0 | CB109: 0 | CS109: 0 | CT109: 0 | CY109: 0
A110: 2 | B110: 95 | C110: 95 | D110: =INSERT!A97 -> 0 | E110: =INSERT!B97 -> 0 | F110: =INSERT!C97 -> 0 | G110: =INSERT!D97 -> 0 | H110: =INSERT!E97 -> 0 | Y110: 0 | Z110: 0 | AQ110: 0 | AR110: 0 | BI110: 0 | BJ110: 0 | CA110: 0 | CB110: 0 | CS110: 0 | CT110: 0 | CY110: 0
A111: 2 | B111: 96 | C111: 96 | D111: =INSERT!A98 -> 0 | E111: =INSERT!B98 -> 0 | F111: =INSERT!C98 -> 0 | G111: =INSERT!D98 -> 0 | H111: =INSERT!E98 -> 0 | Y111: 0 | Z111: 0 | AQ111: 0 | AR111: 0 | BI111: 0 | BJ111: 0 | CA111: 0 | CB111: 0 | CS111: 0 | CT111: 0 | CY111: 0
A112: 2 | B112: 97 | C112: 97 | D112: =INSERT!A99 -> 0 | E112: =INSERT!B99 -> 0 | F112: =INSERT!C99 -> 0 | G112: =INSERT!D99 -> 0 | H112: =INSERT!E99 -> 0 | Y112: =SUM(I112:X112) -> 0 | Z112: =ROUND((SUM(Y112*$Y$13)/10),0) -> 0 | AQ112: =SUM(AA112:AP112) -> 0 | AR112: =ROUND((SUM(AQ112*$AQ$13)/10),0) -> 0 | BI112: =SUM(AS112:BH112) -> 0 | BJ112: =ROUND((SUM(BI112*$BI$13)/10),0) -> 0 | CA112: =SUM(BK112:BZ112) -> 0 | CB112: =ROUND((SUM(CA112*$CA$13)/10),0) -> 0 | CS112: =SUM(CC112:CR112) -> 0 | CT112: =ROUND((SUM(CS112*$CS$13)/10),0) -> 0 | CY112: =ROUND(IF($CX$13=1,CW112,IF($CX$13=2,(CX112+CW112)/2)),0) -> 0
A113: 2 | B113: 98 | C113: 98 | D113: =INSERT!A100 -> 0 | E113: =INSERT!B100 -> 0 | F113: =INSERT!C100 -> 0 | G113: =INSERT!D100 -> 0 | H113: =INSERT!E100 -> 0 | Y113: 0 | Z113: 0 | AQ113: 0 | AR113: 0 | BI113: 0 | BJ113: 0 | CA113: 0 | CB113: 0 | CS113: 0 | CT113: 0 | CY113: 0
A114: 2 | B114: 99 | C114: 99 | D114: =INSERT!A101 -> 0 | E114: =INSERT!B101 -> 0 | F114: =INSERT!C101 -> 0 | G114: =INSERT!D101 -> 0 | H114: =INSERT!E101 -> 0 | Y114: 0 | Z114: 0 | AQ114: 0 | AR114: 0 | BI114: 0 | BJ114: 0 | CA114: 0 | CB114: 0 | CS114: 0 | CT114: 0 | CY114: 0
A115: 2 | B115: 100 | C115: 100 | D115: =INSERT!A102 -> 0 | E115: =INSERT!B102 -> 0 | F115: =INSERT!C102 -> 0 | G115: =INSERT!D102 -> 0 | H115: =INSERT!E102 -> 0 | Y115: 0 | Z115: 0 | AQ115: 0 | AR115: 0 | BI115: 0 | BJ115: 0 | CA115: 0 | CB115: 0 | CS115: 0 | CT115: 0 | CY115: 0
B116: Total amount of learners on mark sheet | F116: 0 | G116: TOTAL | I116: =SUM(I16:I115) -> 0 | J116: =SUM(J16:J115) -> 0 | K116: 0 | L116: 0 | M116: =SUM(M16:M115) -> 0 | N116: 0 | O116: 0 | P116: 0 | Q116: 0 | R116: 0 | S116: 0 | T116: 0 | U116: 0 | V116: 0 | W116: 0 | X116: 0 | Y116: 0 | Z116: 0 | AA116: 0 | AB116: 0 | AC116: =SUM(AC16:AC115) -> 0 | AD116: 0 | AE116: 0 | AF116: 0 | AG116: 0 | AH116: 0 | AI116: 0 | AJ116: 0 | AK116: 0 | AL116: 0 | AM116: 0 | AN116: 0 | AO116: 0 | AP116: 0 | AQ116: 0 | AR116: 0 | AS116: 0 | AT116: =SUM(AT16:AT115) -> 0 | AU116: 0 | AV116: 0 | AW116: 0 | AX116: 0 | AY116: 0 | AZ116: 0 | BA116: 0 | BB116: 0 | BC116: 0 | BD116: 0 | BE116: 0 | BF116: 0 | BG116: 0 | BH116: 0 | BI116: 0 | BJ116: 0 | BK116: 0 | BL116: =SUM(BL16:BL115) -> 0 | BM116: 0 | BN116: 0 | BO116: 0 | BP116: 0 | BQ116: 0 | BR116: 0 | BS116: 0 | BT116: 0 | BU116: 0 | BV116: 0 | BW116: 0 | BX116: 0 | BY116: 0 | BZ116: 0 | CA116: 0 | CB116: 0 | CC116: =SUM(CC16:CC115) -> 0 | CD116: 0 | CE116: 0 | CF116: 0 | CG116: 0 | CH116: 0 | CI116: 0 | CJ116: 0 | CK116: 0 | CL116: 0 | CM116: 0 | CN116: 0 | CO116: 0 | CP116: 0 | CQ116: 0 | CR116: 0 | CS116: 0 | CT116: 0 | CU116: 0 | CV116: =SUM(CV16:CV115) -> 0 | CW116: =SUM(CW16:CW115) ->  | CX116: =SUM(CX16:CX115) ->  | CY116: =SUM(CY16:CY115) -> 0
F117: 0 | G117: AVERAGE | I117: =IFERROR(SUM(I116/$B$120),"0") -> 0 | J117: =IFERROR(SUM(J116/$B$120),"0") -> 0 | K117: 0 | L117: 0 | M117: =IFERROR(SUM(M116/$B$120),"0") -> 0 | N117: 0 | O117: 0 | P117: 0 | Q117: 0 | R117: 0 | S117: 0 | T117: 0 | U117: 0 | V117: 0 | W117: 0 | X117: 0 | Y117: 0 | Z117: 0 | AA117: 0 | AB117: 0 | AC117: =IFERROR(SUM(AC116/$B$120),"0") -> 0 | AD117: 0 | AE117: 0 | AF117: 0 | AG117: 0 | AH117: 0 | AI117: 0 | AJ117: 0 | AK117: 0 | AL117: 0 | AM117: 0 | AN117: 0 | AO117: 0 | AP117: 0 | AQ117: 0 | AR117: 0 | AS117: 0 | AT117: =IFERROR(SUM(AT116/$B$120),"0") -> 0 | AU117: 0 | AV117: 0 | AW117: 0 | AX117: 0 | AY117: 0 | AZ117: 0 | BA117: 0 | BB117: 0 | BC117: 0 | BD117: 0 | BE117: 0 | BF117: 0 | BG117: 0 | BH117: 0 | BI117: 0 | BJ117: 0 | BK117: 0 | BL117: =IFERROR(SUM(BL116/$B$120),"0") -> 0 | BM117: 0 | BN117: 0 | BO117: 0 | BP117: 0 | BQ117: 0 | BR117: 0 | BS117: 0 | BT117: 0 | BU117: 0 | BV117: 0 | BW117: 0 | BX117: 0 | BY117: 0 | BZ117: 0 | CA117: 0 | CB117: 0 | CC117: =IFERROR(SUM(CC116/$B$120),"0") -> 0 | CD117: 0 | CE117: 0 | CF117: 0 | CG117: 0 | CH117: 0 | CI117: 0 | CJ117: 0 | CK117: 0 | CL117: 0 | CM117: 0 | CN117: 0 | CO117: 0 | CP117: 0 | CQ117: 0 | CR117: 0 | CS117: 0 | CT117: 0 | CU117: 0 | CV117: =IFERROR(SUM(CV116/$B$120),"0") -> 0 | CW117: =SUM(CW116/$B$120) ->  | CX117: =IFERROR(SUM(CX116/$B$120),"0") -> 0 | CY117: =IFERROR(SUM(CY116/$B$120),"0") -> 0
F118: 0 | G118: PERCENTAGE | I118: =IFERROR(ROUND((SUM(I117/I12)*100),0),"0") -> 0 | J118: =IFERROR(ROUND((SUM(J117/J12)*100),0),"0") -> 0 | K118: 0 | L118: 0 | M118: =IFERROR(ROUND((SUM(M117/M12)*100),0),"0") -> 0 | N118: 0 | O118: 0 | P118: 0 | Q118: 0 | R118: 0 | S118: 0 | T118: 0 | U118: 0 | V118: 0 | W118: 0 | X118: 0 | Y118: 0 | Z118: 0 | AA118: 0 | AB118: 0 | AC118: =IFERROR(ROUND((SUM(AC117/AC12)*100),0),"0") -> 0 | AD118: 0 | AE118: 0 | AF118: 0 | AG118: 0 | AH118: 0 | AI118: 0 | AJ118: 0 | AK118: 0 | AL118: 0 | AM118: 0 | AN118: 0 | AO118: 0 | AP118: 0 | AQ118: 0 | AR118: 0 | AS118: 0 | AT118: =IFERROR(ROUND((SUM(AT117/AT12)*100),0),"0") -> 0 | AU118: 0 | AV118: 0 | AW118: 0 | AX118: 0 | AY118: 0 | AZ118: 0 | BA118: 0 | BB118: 0 | BC118: 0 | BD118: 0 | BE118: 0 | BF118: 0 | BG118: 0 | BH118: 0 | BI118: 0 | BJ118: 0 | BK118: 0 | BL118: =IFERROR(ROUND((SUM(BL117/BL12)*100),0),"0") -> 0 | BM118: 0 | BN118: 0 | BO118: 0 | BP118: 0 | BQ118: 0 | BR118: 0 | BS118: 0 | BT118: 0 | BU118: 0 | BV118: 0 | BW118: 0 | BX118: 0 | BY118: 0 | BZ118: 0 | CA118: 0 | CB118: 0 | CC118: =IFERROR(ROUND((SUM(CC117/CC12)*100),0),"0") -> 0 | CD118: 0 | CE118: 0 | CF118: 0 | CG118: 0 | CH118: 0 | CI118: 0 | CJ118: 0 | CK118: 0 | CL118: 0 | CM118: 0 | CN118: 0 | CO118: 0 | CP118: 0 | CQ118: 0 | CR118: 0 | CS118: 0 | CT118: 0 | CU118: 0 | CV118: 0 | CW118: =IFERROR(ROUND((SUM(CW117/CW12)*100),0),"0") -> 0 | CX118: =IFERROR(ROUND((SUM(CX117/CX12)*100),0),"0") -> 0 | CY118: 0
F119: 0 | G119: 0
B120: =INSERT!$E$103 -> 0 | F120: 0 | G120: TOTAL HANDED IN | I120: =COUNT(I16:I115) -> 0 | J120: =COUNT(J16:J115) -> 0 | K120: 0 | L120: 0 | M120: =COUNT(M16:M115) -> 0 | N120: 0 | O120: 0 | P120: 0 | Q120: 0 | R120: 0 | S120: 0 | T120: 0 | U120: 0 | V120: 0 | W120: =COUNT(W16:W115) -> 0 | X120: =COUNT(X16:X115) -> 0 | AA120: =COUNT(AA16:AA115) -> 0 | AB120: =COUNT(AB16:AB115) -> 0 | AC120: =COUNT(AC16:AC115) -> 0 | AD120: 0 | AE120: 0 | AF120: 0 | AG120: 0 | AH120: 0 | AI120: 0 | AJ120: 0 | AK120: 0 | AL120: 0 | AM120: 0 | AN120: 0 | AO120: 0 | AP120: =COUNT(AP16:AP115) -> 0 | AS120: =COUNT(AS16:AS115) -> 0 | AT120: =COUNT(AT16:AT115) -> 0 | AU120: 0 | AV120: 0 | AW120: 0 | AX120: 0 | AY120: 0 | AZ120: 0 | BA120: 0 | BB120: 0 | BC120: 0 | BD120: 0 | BE120: 0 | BF120: 0 | BG120: 0 | BH120: =COUNT(BH16:BH115) -> 0 | BK120: =COUNT(BK16:BK115) -> 0 | BL120: =COUNT(BL16:BL115) -> 0 | BM120: 0 | BN120: 0 | BO120: 0 | BP120: 0 | BQ120: 0 | BR120: 0 | BS120: 0 | BT120: 0 | BU120: 0 | BV120: 0 | BW120: 0 | BX120: 0 | BY120: =COUNT(BY16:BY115) -> 0 | BZ120: =COUNT(BZ16:BZ115) -> 0 | CC120: =COUNT(CC16:CC115) -> 0 | CD120: =COUNT(CD16:CD115) -> 0 | CE120: 0 | CF120: 0 | CG120: 0 | CH120: 0 | CI120: 0 | CJ120: 0 | CK120: 0 | CL120: 0 | CM120: 0 | CN120: 0 | CO120: 0 | CP120: 0 | CQ120: 0 | CR120: 0 | CU120: 0 | CV120: 0 | CW120: =COUNT(CW16:CW115) -> 0 | CX120: 0

Sheet TERM4
B2: ENGINEERING GRAPHICS AND DESIGN
I3: PROGRAM OF ASSESSMENT : TERM 4 | AG3: NOV EXAM | AM3: NOV EXAM
I4: CD13 Loci: Cam | AA4: NOV EXAM | AG4: PAPER 1 | AM4: PAPER 2
A5: 17 | E5: School: | F5: =INSERT!J3 -> 0 | I5: CD 13.1 | J5: CD 13.2 | K5: CD 13.3 | Y5: TOTAL CD13 | Z5: TOTAL | AA5: PAPER 1 | AC5: PAPER 2 | AE5: EXAM TOTAL | AF5: LEVELS | AG5: Question 1 | AH5: Question 2 | AI5: Question 3 | AJ5: Question 4 | AL5: TOTAL | AM5: Question 1 | AN5: Question 2 | AO5: Question 3 | AP5: Question 4 | AR5: TOTAL
E6: Grade: | F6: =INSERT!J4 -> 0
E7: Teacher: | F7: =INSERT!J5 -> 0
E8: HOD: | F8: =INSERT!J6 -> 0
E9: EGD SES: | F9: =INSERT!J7 -> 0 | G9: =INSERT!K7 -> 0 | H9: =INSERT!L7 -> 0
I11: 13.1 | J11: 13.2 | K11: 13.3 | L11: 13.4 | M11: 13.5 | N11: 13.6 | O11: 13.7 | P11: 13.8 | Q11: 13.9 | R11: 13.1 | S11: 13.11 | T11: 13.12 | U11: 13.13 | V11: 13.14 | W11: 13.15 | X11: 13.16
B12: Nr. | D12: Class | E12: Admission | F12: SURNAME | G12: NAME | H12: GENDER | Y12: =SUM(I12:X12) -> 0 | Z12: 10 | AA12: =$AL$12/2 -> 100 | AC12: =$AR$12/2 -> 100 | AE12: 100 | AG12: 30 | AH12: 40 | AI12: 50 | AJ12: 80 | AK12: =SUBTOTAL(9,AG12:AJ12) -> 200 | AL12: =SUM(AK13*AK12)*2 -> 200 | AM12: 30 | AN12: 40 | AO12: 45 | AP12: 80 | AQ12: =SUBTOTAL(9,AM12:AP12) -> 195 | AR12: =IFERROR((SUM(AQ13*AQ12)*2),"0") -> 200
I13: =IF(I12>0,"","X") -> X | J13: X | K13: X | L13: X | M13: X | N13: X | O13: X | P13: X | Q13: X | R13: X | S13: X | T13: X | U13: X | V13: X | W13: X | X13: X | Y13: =IFERROR(SUM(100/Y12),"0") -> 0 | AA13: =IFERROR((SUM(100/AA12)*0.5),"0") -> 0.5 | AC13: =IFERROR((SUM(100/AC12)*0.5),"0") -> 0.5 | AD13: =COUNT(AG12)+COUNT(AM12) -> 2 | AK13: =IFERROR(SUM(100/AK12),"0") -> 0.5 | AL13: =SUM(AG13:AJ13) -> 0 | AQ13: =IFERROR(SUM(100/AQ12),"0") -> 0.5128205128 | AR13: =SUM(AM13:AP13) -> 0
H14: DATE:
A16: =SUM(COUNTA(F16)+COUNT(B16)) -> 2 | B16: 1 | C16: 3 | D16: =INSERT!A3 -> 0 | E16: =INSERT!B3 -> 0 | F16: =INSERT!C3 -> 0 | G16: =INSERT!D3 -> 0 | H16: =INSERT!E3 -> 0 | Y16: =SUM(I16:X16) -> 0 | Z16: =ROUND((SUM(Y16*$Y$13)/10),0) -> 0 | AA16: =ROUND((AL16/2),0) -> 0 | AB16: =SUM(AA16*$AA$13) -> 0 | AC16: =ROUND((AR16/2),0) -> 0 | AD16: =SUM(AC16*$AC$13) -> 0 | AE16: =ROUND(IF($AD$13=1,AA16,IF($AD$13=2,SUM(AA16+AC16)/2)),0) -> 0 | AF16: =IF(AE16>79.4,"7",IF(AE16>69.4,"6",IF(AE16>59.4,"5",IF(AE16>49.4,"4",IF(AE16>39.4,"3",IF(AE16>29.4,"2",IF(AE16>0,"1",IF(AE16=0,"")))))))) ->  | AK16: =SUM(AG16:AJ16) -> 0 | AL16: =ROUND((SUM(AK16*$AK$13)*2),0) -> 0 | AQ16: =SUM(AM16:AP16) -> 0 | AR16: =ROUND((SUM(AQ16*$AQ$13)*2),0) -> 0
B17: =B16+1 -> 2 | C17: 36 | D17: =INSERT!A4 -> 0 | E17: =INSERT!B4 -> 0 | F17: =INSERT!C4 -> 0 | G17: =INSERT!D4 -> 0 | H17: =INSERT!E4 -> 0 | Y17: =SUM(I17:X17) -> 0 | Z17: =ROUND((SUM(Y17*$Y$13)/10),0) -> 0 | AA17: 0 | AB17: 0 | AC17: 0 | AD17: 0 | AE17: 0 | AK17: 0 | AL17: 0 | AQ17: 0 | AR17: 0
B18: 3 | C18: 2 | D18: =INSERT!A5 -> 0 | E18: =INSERT!B5 -> 0 | F18: =INSERT!C5 -> 0 | G18: =INSERT!D5 -> 0 | H18: =INSERT!E5 -> 0 | Y18: 0 | Z18: 0 | AA18: 0 | AB18: 0 | AC18: 0 | AD18: 0 | AE18: 0 | AK18: 0 | AL18: 0 | AQ18: 0 | AR18: 0
B19: 4 | C19: 1 | D19: =INSERT!A6 -> 0 | E19: =INSERT!B6 -> 0 | F19: =INSERT!C6 -> 0 | G19: =INSERT!D6 -> 0 | H19: =INSERT!E6 -> 0 | Y19: 0 | Z19: 0 | AA19: 0 | AB19: 0 | AC19: 0 | AD19: 0 | AE19: 0 | AK19: 0 | AL19: 0 | AQ19: 0 | AR19: 0
B20: 5 | C20: 4 | D20: =INSERT!A7 -> 0 | E20: =INSERT!B7 -> 0 | F20: =INSERT!C7 -> 0 | G20: =INSERT!D7 -> 0 | H20: =INSERT!E7 -> 0 | Y20: 0 | Z20: 0 | AA20: 0 | AB20: 0 | AC20: 0 | AD20: 0 | AE20: 0 | AK20: 0 | AL20: 0 | AQ20: 0 | AR20: 0
B21: 6 | C21: 5 | D21: =INSERT!A8 -> 0 | E21: =INSERT!B8 -> 0 | F21: =INSERT!C8 -> 0 | G21: =INSERT!D8 -> 0 | H21: =INSERT!E8 -> 0 | Y21: 0 | Z21: 0 | AA21: 0 | AB21: 0 | AC21: 0 | AD21: 0 | AE21: 0 | AK21: 0 | AL21: 0 | AQ21: 0 | AR21: 0
B22: 7 | C22: 6 | D22: =INSERT!A9 -> 0 | E22: =INSERT!B9 -> 0 | F22: =INSERT!C9 -> 0 | G22: =INSERT!D9 -> 0 | H22: =INSERT!E9 -> 0 | Y22: 0 | Z22: 0 | AA22: 0 | AB22: 0 | AC22: 0 | AD22: 0 | AE22: 0 | AK22: 0 | AL22: 0 | AQ22: 0 | AR22: 0
B23: 8 | C23: 7 | D23: =INSERT!A10 -> 0 | E23: =INSERT!B10 -> 0 | F23: =INSERT!C10 -> 0 | G23: =INSERT!D10 -> 0 | H23: =INSERT!E10 -> 0 | Y23: 0 | Z23: 0 | AA23: 0 | AB23: 0 | AC23: 0 | AD23: 0 | AE23: 0 | AK23: 0 | AL23: 0 | AQ23: 0 | AR23: 0
B24: 9 | C24: 8 | D24: =INSERT!A11 -> 0 | E24: =INSERT!B11 -> 0 | F24: =INSERT!C11 -> 0 | G24: =INSERT!D11 -> 0 | H24: =INSERT!E11 -> 0 | Y24: 0 | Z24: 0 | AA24: 0 | AB24: 0 | AC24: 0 | AD24: 0 | AE24: 0 | AK24: 0 | AL24: 0 | AQ24: 0 | AR24: 0
B25: 10 | C25: 9 | D25: =INSERT!A12 -> 0 | E25: =INSERT!B12 -> 0 | F25: =INSERT!C12 -> 0 | G25: =INSERT!D12 -> 0 | H25: =INSERT!E12 -> 0 | Y25: 0 | Z25: 0 | AA25: 0 | AB25: 0 | AC25: 0 | AD25: 0 | AE25: 0 | AK25: 0 | AL25: 0 | AQ25: 0 | AR25: 0
B26: 11 | C26: 11 | D26: =INSERT!A13 -> 0 | E26: =INSERT!B13 -> 0 | F26: =INSERT!C13 -> 0 | G26: =INSERT!D13 -> 0 | H26: =INSERT!E13 -> 0 | Y26: 0 | Z26: 0 | AA26: 0 | AB26: 0 | AC26: 0 | AD26: 0 | AE26: 0 | AK26: 0 | AL26: 0 | AQ26: 0 | AR26: 0
B27: 12 | C27: 12 | D27: =INSERT!A14 -> 0 | E27: =INSERT!B14 -> 0 | F27: =INSERT!C14 -> 0 | G27: =INSERT!D14 -> 0 | H27: =INSERT!E14 -> 0 | Y27: 0 | Z27: 0 | AA27: 0 | AB27: 0 | AC27: 0 | AD27: 0 | AE27: 0 | AK27: 0 | AL27: 0 | AQ27: 0 | AR27: 0
B28: 13 | C28: 13 | D28: =INSERT!A15 -> 0 | E28: =INSERT!B15 -> 0 | F28: =INSERT!C15 -> 0 | G28: =INSERT!D15 -> 0 | H28: =INSERT!E15 -> 0 | Y28: 0 | Z28: 0 | AA28: 0 | AB28: 0 | AC28: 0 | AD28: 0 | AE28: 0 | AK28: 0 | AL28: 0 | AQ28: 0 | AR28: 0
B29: 14 | C29: 14 | D29: =INSERT!A16 -> 0 | E29: =INSERT!B16 -> 0 | F29: =INSERT!C16 -> 0 | G29: =INSERT!D16 -> 0 | H29: =INSERT!E16 -> 0 | Y29: 0 | Z29: 0 | AA29: 0 | AB29: 0 | AC29: 0 | AD29: 0 | AE29: 0 | AK29: 0 | AL29: 0 | AQ29: 0 | AR29: 0
B30: 15 | C30: 15 | D30: =INSERT!A17 -> 0 | E30: =INSERT!B17 -> 0 | F30: =INSERT!C17 -> 0 | G30: =INSERT!D17 -> 0 | H30: =INSERT!E17 -> 0 | Y30: 0 | Z30: 0 | AA30: 0 | AB30: 0 | AC30: 0 | AD30: 0 | AE30: 0 | AK30: 0 | AL30: 0 | AQ30: 0 | AR30: 0
B31: 16 | C31: 16 | D31: =INSERT!A18 -> 0 | E31: =INSERT!B18 -> 0 | F31: =INSERT!C18 -> 0 | G31: =INSERT!D18 -> 0 | H31: =INSERT!E18 -> 0 | Y31: 0 | Z31: 0 | AA31: 0 | AB31: 0 | AC31: 0 | AD31: 0 | AE31: 0 | AK31: 0 | AL31: 0 | AQ31: 0 | AR31: 0
B32: 17 | C32: 17 | D32: =INSERT!A19 -> 0 | E32: =INSERT!B19 -> 0 | F32: =INSERT!C19 -> 0 | G32: =INSERT!D19 -> 0 | H32: =INSERT!E19 -> 0 | Y32: 0 | Z32: 0 | AA32: 0 | AB32: 0 | AC32: 0 | AD32: 0 | AE32: 0 | AK32: 0 | AL32: 0 | AQ32: 0 | AR32: 0
B33: 18 | C33: 18 | D33: =INSERT!A20 -> 0 | E33: =INSERT!B20 -> 0 | F33: =INSERT!C20 -> 0 | G33: =INSERT!D20 -> 0 | H33: =INSERT!E20 -> 0 | Y33: 0 | Z33: 0 | AA33: 0 | AB33: 0 | AC33: 0 | AD33: 0 | AE33: 0 | AK33: 0 | AL33: 0 | AQ33: 0 | AR33: 0
B34: 19 | C34: 19 | D34: =INSERT!A21 -> 0 | E34: =INSERT!B21 -> 0 | F34: =INSERT!C21 -> 0 | G34: =INSERT!D21 -> 0 | H34: =INSERT!E21 -> 0 | Y34: 0 | Z34: 0 | AA34: 0 | AB34: 0 | AC34: 0 | AD34: 0 | AE34: 0 | AK34: 0 | AL34: 0 | AQ34: 0 | AR34: 0
B35: 20 | C35: 20 | D35: =INSERT!A22 -> 0 | E35: =INSERT!B22 -> 0 | F35: =INSERT!C22 -> 0 | G35: =INSERT!D22 -> 0 | H35: =INSERT!E22 -> 0 | Y35: 0 | Z35: 0 | AA35: 0 | AB35: 0 | AC35: 0 | AD35: 0 | AE35: 0 | AK35: 0 | AL35: 0 | AQ35: 0 | AR35: 0
B36: 21 | C36: 21 | D36: =INSERT!A23 -> 0 | E36: =INSERT!B23 -> 0 | F36: =INSERT!C23 -> 0 | G36: =INSERT!D23 -> 0 | H36: =INSERT!E23 -> 0 | Y36: 0 | Z36: 0 | AA36: 0 | AB36: 0 | AC36: 0 | AD36: 0 | AE36: 0 | AK36: 0 | AL36: 0 | AQ36: 0 | AR36: 0
B37: 22 | C37: 22 | D37: =INSERT!A24 -> 0 | E37: =INSERT!B24 -> 0 | F37: =INSERT!C24 -> 0 | G37: =INSERT!D24 -> 0 | H37: =INSERT!E24 -> 0 | Y37: 0 | Z37: 0 | AA37: 0 | AB37: 0 | AC37: 0 | AD37: 0 | AE37: 0 | AK37: 0 | AL37: 0 | AQ37: 0 | AR37: 0
B38: 23 | C38: 23 | D38: =INSERT!A25 -> 0 | E38: =INSERT!B25 -> 0 | F38: =INSERT!C25 -> 0 | G38: =INSERT!D25 -> 0 | H38: =INSERT!E25 -> 0 | Y38: 0 | Z38: 0 | AA38: 0 | AB38: 0 | AC38: 0 | AD38: 0 | AE38: 0 | AK38: 0 | AL38: 0 | AQ38: 0 | AR38: 0
B39: 24 | C39: 24 | D39: =INSERT!A26 -> 0 | E39: =INSERT!B26 -> 0 | F39: =INSERT!C26 -> 0 | G39: =INSERT!D26 -> 0 | H39: =INSERT!E26 -> 0 | Y39: 0 | Z39: 0 | AA39: 0 | AB39: 0 | AC39: 0 | AD39: 0 | AE39: 0 | AK39: 0 | AL39: 0 | AQ39: 0 | AR39: 0
B40: 25 | C40: 25 | D40: =INSERT!A27 -> 0 | E40: =INSERT!B27 -> 0 | F40: =INSERT!C27 -> 0 | G40: =INSERT!D27 -> 0 | H40: =INSERT!E27 -> 0 | Y40: 0 | Z40: 0 | AA40: 0 | AB40: 0 | AC40: 0 | AD40: 0 | AE40: 0 | AK40: 0 | AL40: 0 | AQ40: 0 | AR40: 0
B41: 26 | C41: 26 | D41: =INSERT!A28 -> 0 | E41: =INSERT!B28 -> 0 | F41: =INSERT!C28 -> 0 | G41: =INSERT!D28 -> 0 | H41: =INSERT!E28 -> 0 | Y41: 0 | Z41: 0 | AA41: 0 | AB41: 0 | AC41: 0 | AD41: 0 | AE41: 0 | AK41: 0 | AL41: 0 | AQ41: 0 | AR41: 0
B42: 27 | C42: 28 | D42: =INSERT!A29 -> 0 | E42: =INSERT!B29 -> 0 | F42: =INSERT!C29 -> 0 | G42: =INSERT!D29 -> 0 | H42: =INSERT!E29 -> 0 | Y42: 0 | Z42: 0 | AA42: 0 | AB42: 0 | AC42: 0 | AD42: 0 | AE42: 0 | AK42: 0 | AL42: 0 | AQ42: 0 | AR42: 0
B43: 28 | C43: 29 | D43: =INSERT!A30 -> 0 | E43: =INSERT!B30 -> 0 | F43: =INSERT!C30 -> 0 | G43: =INSERT!D30 -> 0 | H43: =INSERT!E30 -> 0 | Y43: 0 | Z43: 0 | AA43: 0 | AB43: 0 | AC43: 0 | AD43: 0 | AE43: 0 | AK43: 0 | AL43: 0 | AQ43: 0 | AR43: 0
B44: 29 | C44: 30 | D44: =INSERT!A31 -> 0 | E44: =INSERT!B31 -> 0 | F44: =INSERT!C31 -> 0 | G44: =INSERT!D31 -> 0 | H44: =INSERT!E31 -> 0 | Y44: 0 | Z44: 0 | AA44: 0 | AB44: 0 | AC44: 0 | AD44: 0 | AE44: 0 | AK44: 0 | AL44: 0 | AQ44: 0 | AR44: 0
B45: 30 | C45: 31 | D45: =INSERT!A32 -> 0 | E45: =INSERT!B32 -> 0 | F45: =INSERT!C32 -> 0 | G45: =INSERT!D32 -> 0 | H45: =INSERT!E32 -> 0 | Y45: 0 | Z45: 0 | AA45: 0 | AB45: 0 | AC45: 0 | AD45: 0 | AE45: 0 | AK45: 0 | AL45: 0 | AQ45: 0 | AR45: 0
B46: 31 | C46: 32 | D46: =INSERT!A33 -> 0 | E46: =INSERT!B33 -> 0 | F46: =INSERT!C33 -> 0 | G46: =INSERT!D33 -> 0 | H46: =INSERT!E33 -> 0 | Y46: 0 | Z46: 0 | AA46: 0 | AB46: 0 | AC46: 0 | AD46: 0 | AE46: 0 | AK46: 0 | AL46: 0 | AQ46: 0 | AR46: 0
A47: =SUM(COUNTA(F47)+COUNT(B47)) -> 2 | B47: 32 | C47: 33 | D47: =INSERT!A34 -> 0 | E47: =INSERT!B34 -> 0 | F47: =INSERT!C34 -> 0 | G47: =INSERT!D34 -> 0 | H47: =INSERT!E34 -> 0 | Y47: 0 | Z47: 0 | AA47: 0 | AB47: 0 | AC47: 0 | AD47: 0 | AE47: 0 | AK47: 0 | AL47: 0 | AQ47: 0 | AR47: 0
A48: 2 | B48: 33 | C48: 34 | D48: =INSERT!A35 -> 0 | E48: =INSERT!B35 -> 0 | F48: =INSERT!C35 -> 0 | G48: =INSERT!D35 -> 0 | H48: =INSERT!E35 -> 0 | Y48: 0 | Z48: =ROUND((SUM(Y48*$Y$13)/10),0) -> 0 | AA48: =ROUND((AL48/2),0) -> 0 | AB48: =SUM(AA48*$AA$13) -> 0 | AC48: =ROUND((AR48/2),0) -> 0 | AD48: =SUM(AC48*$AC$13) -> 0 | AE48: =ROUND(IF($AD$13=1,AA48,IF($AD$13=2,SUM(AA48+AC48)/2)),0) -> 0 | AF48: =IF(AE48>79.4,"7",IF(AE48>69.4,"6",IF(AE48>59.4,"5",IF(AE48>49.4,"4",IF(AE48>39.4,"3",IF(AE48>29.4,"2",IF(AE48>0,"1",IF(AE48=0,"")))))))) ->  | AK48: =SUM(AG48:AJ48) -> 0 | AL48: =ROUND((SUM(AK48*$AK$13)*2),0) -> 0 | AQ48: =SUM(AM48:AP48) -> 0 | AR48: =ROUND((SUM(AQ48*$AQ$13)*2),0) -> 0
A49: 2 | B49: =B48+1 -> 34 | C49: 37 | D49: =INSERT!A36 -> 0 | E49: =INSERT!B36 -> 0 | F49: =INSERT!C36 -> 0 | G49: =INSERT!D36 -> 0 | H49: =INSERT!E36 -> 0 | Y49: 0 | Z49: 0 | AA49: 0 | AB49: 0 | AC49: 0 | AD49: 0 | AE49: 0 | AK49: 0 | AL49: 0 | AQ49: 0 | AR49: 0
A50: 2 | B50: 35 | C50: 35 | D50: =INSERT!A37 -> 0 | E50: =INSERT!B37 -> 0 | F50: =INSERT!C37 -> 0 | G50: =INSERT!D37 -> 0 | H50: =INSERT!E37 -> 0 | Y50: 0 | Z50: 0 | AA50: 0 | AB50: 0 | AC50: 0 | AD50: 0 | AE50: 0 | AK50: 0 | AL50: 0 | AQ50: 0 | AR50: 0
A51: 2 | B51: 36 | C51: 10 | D51: =INSERT!A38 -> 0 | E51: =INSERT!B38 -> 0 | F51: =INSERT!C38 -> 0 | G51: =INSERT!D38 -> 0 | H51: =INSERT!E38 -> 0 | Y51: =SUM(I51:X51) -> 0 | Z51: 0 | AA51: 0 | AB51: 0 | AC51: 0 | AD51: 0 | AE51: 0 | AK51: 0 | AL51: 0 | AQ51: 0 | AR51: 0
A52: 2 | B52: 37 | C52: 27 | D52: =INSERT!A39 -> 0 | E52: =INSERT!B39 -> 0 | F52: =INSERT!C39 -> 0 | G52: =INSERT!D39 -> 0 | H52: =INSERT!E39 -> 0 | Y52: 0 | Z52: 0 | AA52: 0 | AB52: 0 | AC52: 0 | AD52: 0 | AE52: 0 | AK52: 0 | AL52: 0 | AQ52: 0 | AR52: 0
B53: 38 | C53: 38 | D53: =INSERT!A40 -> 0 | E53: =INSERT!B40 -> 0 | F53: =INSERT!C40 -> 0 | G53: =INSERT!D40 -> 0 | H53: =INSERT!E40 -> 0 | Y53: 0 | Z53: 0 | AA53: 0 | AB53: 0 | AC53: 0 | AD53: 0 | AE53: 0 | AK53: 0 | AL53: 0 | AQ53: 0 | AR53: 0
B54: 39 | C54: 39 | D54: =INSERT!A41 -> 0 | E54: =INSERT!B41 -> 0 | F54: =INSERT!C41 -> 0 | G54: =INSERT!D41 -> 0 | H54: =INSERT!E41 -> 0 | Y54: 0 | Z54: 0 | AA54: 0 | AB54: 0 | AC54: 0 | AD54: 0 | AE54: 0 | AK54: 0 | AL54: 0 | AQ54: 0 | AR54: 0
B55: 40 | C55: 40 | D55: =INSERT!A42 -> 0 | E55: =INSERT!B42 -> 0 | F55: =INSERT!C42 -> 0 | G55: =INSERT!D42 -> 0 | H55: =INSERT!E42 -> 0 | Y55: 0 | Z55: 0 | AA55: 0 | AB55: 0 | AC55: 0 | AD55: 0 | AE55: 0 | AK55: 0 | AL55: 0 | AQ55: 0 | AR55: 0
B56: 41 | C56: 41 | D56: =INSERT!A43 -> 0 | E56: =INSERT!B43 -> 0 | F56: =INSERT!C43 -> 0 | G56: =INSERT!D43 -> 0 | H56: =INSERT!E43 -> 0 | Y56: 0 | Z56: 0 | AA56: 0 | AB56: 0 | AC56: 0 | AD56: 0 | AE56: 0 | AK56: 0 | AL56: 0 | AQ56: 0 | AR56: 0
B57: 42 | C57: 42 | D57: =INSERT!A44 -> 0 | E57: =INSERT!B44 -> 0 | F57: =INSERT!C44 -> 0 | G57: =INSERT!D44 -> 0 | H57: =INSERT!E44 -> 0 | Y57: 0 | Z57: 0 | AA57: 0 | AB57: 0 | AC57: 0 | AD57: 0 | AE57: 0 | AK57: 0 | AL57: 0 | AQ57: 0 | AR57: 0
B58: 43 | C58: 43 | D58: =INSERT!A45 -> 0 | E58: =INSERT!B45 -> 0 | F58: =INSERT!C45 -> 0 | G58: =INSERT!D45 -> 0 | H58: =INSERT!E45 -> 0 | Y58: 0 | Z58: 0 | AA58: 0 | AB58: 0 | AC58: 0 | AD58: 0 | AE58: 0 | AK58: 0 | AL58: 0 | AQ58: 0 | AR58: 0
B59: 44 | C59: 44 | D59: =INSERT!A46 -> 0 | E59: =INSERT!B46 -> 0 | F59: =INSERT!C46 -> 0 | G59: =INSERT!D46 -> 0 | H59: =INSERT!E46 -> 0 | Y59: 0 | Z59: 0 | AA59: 0 | AB59: 0 | AC59: 0 | AD59: 0 | AE59: 0 | AK59: 0 | AL59: 0 | AQ59: 0 | AR59: 0
B60: 45 | C60: 45 | D60: =INSERT!A47 -> 0 | E60: =INSERT!B47 -> 0 | F60: =INSERT!C47 -> 0 | G60: =INSERT!D47 -> 0 | H60: =INSERT!E47 -> 0 | Y60: 0 | Z60: 0 | AA60: 0 | AB60: 0 | AC60: 0 | AD60: 0 | AE60: 0 | AK60: 0 | AL60: 0 | AQ60: 0 | AR60: 0
B61: 46 | C61: 46 | D61: =INSERT!A48 -> 0 | E61: =INSERT!B48 -> 0 | F61: =INSERT!C48 -> 0 | G61: =INSERT!D48 -> 0 | H61: =INSERT!E48 -> 0 | Y61: 0 | Z61: 0 | AA61: 0 | AB61: 0 | AC61: 0 | AD61: 0 | AE61: 0 | AK61: 0 | AL61: 0 | AQ61: 0 | AR61: 0
B62: 47 | C62: 47 | D62: =INSERT!A49 -> 0 | E62: =INSERT!B49 -> 0 | F62: =INSERT!C49 -> 0 | G62: =INSERT!D49 -> 0 | H62: =INSERT!E49 -> 0 | Y62: 0 | Z62: 0 | AA62: 0 | AB62: 0 | AC62: 0 | AD62: 0 | AE62: 0 | AK62: 0 | AL62: 0 | AQ62: 0 | AR62: 0
B63: 48 | C63: 48 | D63: =INSERT!A50 -> 0 | E63: =INSERT!B50 -> 0 | F63: =INSERT!C50 -> 0 | G63: =INSERT!D50 -> 0 | H63: =INSERT!E50 -> 0 | Y63: 0 | Z63: 0 | AA63: 0 | AB63: 0 | AC63: 0 | AD63: 0 | AE63: 0 | AK63: 0 | AL63: 0 | AQ63: 0 | AR63: 0
B64: 49 | C64: 49 | D64: =INSERT!A51 -> 0 | E64: =INSERT!B51 -> 0 | F64: =INSERT!C51 -> 0 | G64: =INSERT!D51 -> 0 | H64: =INSERT!E51 -> 0 | Y64: 0 | Z64: 0 | AA64: 0 | AB64: 0 | AC64: 0 | AD64: 0 | AE64: 0 | AK64: 0 | AL64: 0 | AQ64: 0 | AR64: 0
B65: 50 | C65: 50 | D65: =INSERT!A52 -> 0 | E65: =INSERT!B52 -> 0 | F65: =INSERT!C52 -> 0 | G65: =INSERT!D52 -> 0 | H65: =INSERT!E52 -> 0 | Y65: 0 | Z65: 0 | AA65: 0 | AB65: 0 | AC65: 0 | AD65: 0 | AE65: 0 | AK65: 0 | AL65: 0 | AQ65: 0 | AR65: 0
B66: 51 | C66: 51 | D66: =INSERT!A53 -> 0 | E66: =INSERT!B53 -> 0 | F66: =INSERT!C53 -> 0 | G66: =INSERT!D53 -> 0 | H66: =INSERT!E53 -> 0 | Y66: 0 | Z66: 0 | AA66: 0 | AB66: 0 | AC66: 0 | AD66: 0 | AE66: 0 | AK66: 0 | AL66: 0 | AQ66: 0 | AR66: 0
B67: 52 | C67: 52 | D67: =INSERT!A54 -> 0 | E67: =INSERT!B54 -> 0 | F67: =INSERT!C54 -> 0 | G67: =INSERT!D54 -> 0 | H67: =INSERT!E54 -> 0 | Y67: 0 | Z67: 0 | AA67: 0 | AB67: 0 | AC67: 0 | AD67: 0 | AE67: 0 | AK67: 0 | AL67: 0 | AQ67: 0 | AR67: 0
B68: 53 | C68: 53 | D68: =INSERT!A55 -> 0 | E68: =INSERT!B55 -> 0 | F68: =INSERT!C55 -> 0 | G68: =INSERT!D55 -> 0 | H68: =INSERT!E55 -> 0 | Y68: 0 | Z68: 0 | AA68: 0 | AB68: 0 | AC68: 0 | AD68: 0 | AE68: 0 | AK68: 0 | AL68: 0 | AQ68: 0 | AR68: 0
B69: 54 | C69: 54 | D69: =INSERT!A56 -> 0 | E69: =INSERT!B56 -> 0 | F69: =INSERT!C56 -> 0 | G69: =INSERT!D56 -> 0 | H69: =INSERT!E56 -> 0 | Y69: 0 | Z69: 0 | AA69: 0 | AB69: 0 | AC69: 0 | AD69: 0 | AE69: 0 | AK69: 0 | AL69: 0 | AQ69: 0 | AR69: 0
B70: 55 | C70: 55 | D70: =INSERT!A57 -> 0 | E70: =INSERT!B57 -> 0 | F70: =INSERT!C57 -> 0 | G70: =INSERT!D57 -> 0 | H70: =INSERT!E57 -> 0 | Y70: 0 | Z70: 0 | AA70: 0 | AB70: 0 | AC70: 0 | AD70: 0 | AE70: 0 | AK70: 0 | AL70: 0 | AQ70: 0 | AR70: 0
B71: 56 | C71: 56 | D71: =INSERT!A58 -> 0 | E71: =INSERT!B58 -> 0 | F71: =INSERT!C58 -> 0 | G71: =INSERT!D58 -> 0 | H71: =INSERT!E58 -> 0 | Y71: 0 | Z71: 0 | AA71: 0 | AB71: 0 | AC71: 0 | AD71: 0 | AE71: 0 | AK71: 0 | AL71: 0 | AQ71: 0 | AR71: 0
B72: 57 | C72: 57 | D72: =INSERT!A59 -> 0 | E72: =INSERT!B59 -> 0 | F72: =INSERT!C59 -> 0 | G72: =INSERT!D59 -> 0 | H72: =INSERT!E59 -> 0 | Y72: 0 | Z72: 0 | AA72: 0 | AB72: 0 | AC72: 0 | AD72: 0 | AE72: 0 | AK72: 0 | AL72: 0 | AQ72: 0 | AR72: 0
A73: =SUM(COUNTA(F73)+COUNT(B73)) -> 2 | B73: 58 | C73: 58 | D73: =INSERT!A60 -> 0 | E73: =INSERT!B60 -> 0 | F73: =INSERT!C60 -> 0 | G73: =INSERT!D60 -> 0 | H73: =INSERT!E60 -> 0 | Y73: 0 | Z73: 0 | AA73: 0 | AB73: 0 | AC73: 0 | AD73: 0 | AE73: 0 | AK73: 0 | AL73: 0 | AQ73: 0 | AR73: 0
A74: 2 | B74: 59 | C74: 59 | D74: =INSERT!A61 -> 0 | E74: =INSERT!B61 -> 0 | F74: =INSERT!C61 -> 0 | G74: =INSERT!D61 -> 0 | H74: =INSERT!E61 -> 0 | Y74: 0 | Z74: 0 | AA74: 0 | AB74: 0 | AC74: 0 | AD74: 0 | AE74: 0 | AK74: 0 | AL74: 0 | AQ74: 0 | AR74: 0
A75: 2 | B75: 60 | C75: 60 | D75: =INSERT!A62 -> 0 | E75: =INSERT!B62 -> 0 | F75: =INSERT!C62 -> 0 | G75: =INSERT!D62 -> 0 | H75: =INSERT!E62 -> 0 | Y75: 0 | Z75: 0 | AA75: 0 | AB75: 0 | AC75: 0 | AD75: 0 | AE75: 0 | AK75: 0 | AL75: 0 | AQ75: 0 | AR75: 0
A76: 2 | B76: 61 | C76: 61 | D76: =INSERT!A63 -> 0 | E76: =INSERT!B63 -> 0 | F76: =INSERT!C63 -> 0 | G76: =INSERT!D63 -> 0 | H76: =INSERT!E63 -> 0 | Y76: 0 | Z76: 0 | AA76: 0 | AB76: 0 | AC76: 0 | AD76: 0 | AE76: 0 | AK76: 0 | AL76: 0 | AQ76: 0 | AR76: 0
A77: 2 | B77: 62 | C77: 62 | D77: =INSERT!A64 -> 0 | E77: =INSERT!B64 -> 0 | F77: =INSERT!C64 -> 0 | G77: =INSERT!D64 -> 0 | H77: =INSERT!E64 -> 0 | Y77: 0 | Z77: 0 | AA77: 0 | AB77: 0 | AC77: 0 | AD77: 0 | AE77: 0 | AK77: 0 | AL77: 0 | AQ77: 0 | AR77: 0
A78: 2 | B78: 63 | C78: 63 | D78: =INSERT!A65 -> 0 | E78: =INSERT!B65 -> 0 | F78: =INSERT!C65 -> 0 | G78: =INSERT!D65 -> 0 | H78: =INSERT!E65 -> 0 | Y78: 0 | Z78: 0 | AA78: 0 | AB78: 0 | AC78: 0 | AD78: 0 | AE78: 0 | AK78: 0 | AL78: 0 | AQ78: 0 | AR78: 0
A79: 2 | B79: 64 | C79: 64 | D79: =INSERT!A66 -> 0 | E79: =INSERT!B66 -> 0 | F79: =INSERT!C66 -> 0 | G79: =INSERT!D66 -> 0 | H79: =INSERT!E66 -> 0 | Y79: 0 | Z79: 0 | AA79: 0 | AB79: 0 | AC79: 0 | AD79: 0 | AE79: 0 | AK79: 0 | AL79: 0 | AQ79: 0 | AR79: 0
A80: 2 | B80: 65 | C80: 65 | D80: =INSERT!A67 -> 0 | E80: =INSERT!B67 -> 0 | F80: =INSERT!C67 -> 0 | G80: =INSERT!D67 -> 0 | H80: =INSERT!E67 -> 0 | Y80: =SUM(I80:X80) -> 0 | Z80: =ROUND((SUM(Y80*$Y$13)/10),0) -> 0 | AA80: =ROUND((AL80/2),0) -> 0 | AB80: =SUM(AA80*$AA$13) -> 0 | AC80: =ROUND((AR80/2),0) -> 0 | AD80: =SUM(AC80*$AC$13) -> 0 | AE80: =ROUND(IF($AD$13=1,AA80,IF($AD$13=2,SUM(AA80+AC80)/2)),0) -> 0 | AF80: =IF(AE80>79.4,"7",IF(AE80>69.4,"6",IF(AE80>59.4,"5",IF(AE80>49.4,"4",IF(AE80>39.4,"3",IF(AE80>29.4,"2",IF(AE80>0,"1",IF(AE80=0,"")))))))) ->  | AK80: =SUM(AG80:AJ80) -> 0 | AL80: =ROUND((SUM(AK80*$AK$13)*2),0) -> 0 | AQ80: =SUM(AM80:AP80) -> 0 | AR80: =ROUND((SUM(AQ80*$AQ$13)*2),0) -> 0
A81: 2 | B81: =B80+1 -> 66 | C81: 66 | D81: =INSERT!A68 -> 0 | E81: =INSERT!B68 -> 0 | F81: =INSERT!C68 -> 0 | G81: =INSERT!D68 -> 0 | H81: =INSERT!E68 -> 0 | Y81: 0 | Z81: 0 | AA81: 0 | AB81: 0 | AC81: 0 | AD81: 0 | AE81: 0 | AK81: 0 | AL81: 0 | AQ81: 0 | AR81: 0
A82: 2 | B82: 67 | C82: 67 | D82: =INSERT!A69 -> 0 | E82: =INSERT!B69 -> 0 | F82: =INSERT!C69 -> 0 | G82: =INSERT!D69 -> 0 | H82: =INSERT!E69 -> 0 | Y82: 0 | Z82: 0 | AA82: 0 | AB82: 0 | AC82: 0 | AD82: 0 | AE82: 0 | AK82: 0 | AL82: 0 | AQ82: 0 | AR82: 0
A83: 2 | B83: 68 | C83: 68 | D83: =INSERT!A70 -> 0 | E83: =INSERT!B70 -> 0 | F83: =INSERT!C70 -> 0 | G83: =INSERT!D70 -> 0 | H83: =INSERT!E70 -> 0 | Y83: 0 | Z83: 0 | AA83: 0 | AB83: 0 | AC83: 0 | AD83: 0 | AE83: 0 | AK83: 0 | AL83: 0 | AQ83: 0 | AR83: 0
A84: 2 | B84: 69 | C84: 69 | D84: =INSERT!A71 -> 0 | E84: =INSERT!B71 -> 0 | F84: =INSERT!C71 -> 0 | G84: =INSERT!D71 -> 0 | H84: =INSERT!E71 -> 0 | Y84: 0 | Z84: 0 | AA84: 0 | AB84: 0 | AC84: 0 | AD84: 0 | AE84: 0 | AK84: 0 | AL84: 0 | AQ84: 0 | AR84: 0
A85: 2 | B85: 70 | C85: 70 | D85: =INSERT!A72 -> 0 | E85: =INSERT!B72 -> 0 | F85: =INSERT!C72 -> 0 | G85: =INSERT!D72 -> 0 | H85: =INSERT!E72 -> 0 | Y85: 0 | Z85: 0 | AA85: 0 | AB85: 0 | AC85: 0 | AD85: 0 | AE85: 0 | AK85: 0 | AL85: 0 | AQ85: 0 | AR85: 0
A86: 2 | B86: 71 | C86: 71 | D86: =INSERT!A73 -> 0 | E86: =INSERT!B73 -> 0 | F86: =INSERT!C73 -> 0 | G86: =INSERT!D73 -> 0 | H86: =INSERT!E73 -> 0 | Y86: 0 | Z86: 0 | AA86: 0 | AB86: 0 | AC86: 0 | AD86: 0 | AE86: 0 | AK86: 0 | AL86: 0 | AQ86: 0 | AR86: 0
A87: 2 | B87: 72 | C87: 72 | D87: =INSERT!A74 -> 0 | E87: =INSERT!B74 -> 0 | F87: =INSERT!C74 -> 0 | G87: =INSERT!D74 -> 0 | H87: =INSERT!E74 -> 0 | Y87: 0 | Z87: 0 | AA87: 0 | AB87: 0 | AC87: 0 | AD87: 0 | AE87: 0 | AK87: 0 | AL87: 0 | AQ87: 0 | AR87: 0
A88: 2 | B88: 73 | C88: 73 | D88: =INSERT!A75 -> 0 | E88: =INSERT!B75 -> 0 | F88: =INSERT!C75 -> 0 | G88: =INSERT!D75 -> 0 | H88: =INSERT!E75 -> 0 | Y88: 0 | Z88: 0 | AA88: 0 | AB88: 0 | AC88: 0 | AD88: 0 | AE88: 0 | AK88: 0 | AL88: 0 | AQ88: 0 | AR88: 0
A89: 2 | B89: 74 | C89: 74 | D89: =INSERT!A76 -> 0 | E89: =INSERT!B76 -> 0 | F89: =INSERT!C76 -> 0 | G89: =INSERT!D76 -> 0 | H89: =INSERT!E76 -> 0 | Y89: 0 | Z89: 0 | AA89: 0 | AB89: 0 | AC89: 0 | AD89: 0 | AE89: 0 | AK89: 0 | AL89: 0 | AQ89: 0 | AR89: 0
A90: 2 | B90: 75 | C90: 75 | D90: =INSERT!A77 -> 0 | E90: =INSERT!B77 -> 0 | F90: =INSERT!C77 -> 0 | G90: =INSERT!D77 -> 0 | H90: =INSERT!E77 -> 0 | Y90: 0 | Z90: 0 | AA90: 0 | AB90: 0 | AC90: 0 | AD90: 0 | AE90: 0 | AK90: 0 | AL90: 0 | AQ90: 0 | AR90: 0
A91: 2 | B91: 76 | C91: 76 | D91: =INSERT!A78 -> 0 | E91: =INSERT!B78 -> 0 | F91: =INSERT!C78 -> 0 | G91: =INSERT!D78 -> 0 | H91: =INSERT!E78 -> 0 | Y91: 0 | Z91: 0 | AA91: 0 | AB91: 0 | AC91: 0 | AD91: 0 | AE91: 0 | AK91: 0 | AL91: 0 | AQ91: 0 | AR91: 0
A92: 2 | B92: 77 | C92: 77 | D92: =INSERT!A79 -> 0 | E92: =INSERT!B79 -> 0 | F92: =INSERT!C79 -> 0 | G92: =INSERT!D79 -> 0 | H92: =INSERT!E79 -> 0 | Y92: 0 | Z92: 0 | AA92: 0 | AB92: 0 | AC92: 0 | AD92: 0 | AE92: 0 | AK92: 0 | AL92: 0 | AQ92: 0 | AR92: 0
A93: 2 | B93: 78 | C93: 78 | D93: =INSERT!A80 -> 0 | E93: =INSERT!B80 -> 0 | F93: =INSERT!C80 -> 0 | G93: =INSERT!D80 -> 0 | H93: =INSERT!E80 -> 0 | Y93: 0 | Z93: 0 | AA93: 0 | AB93: 0 | AC93: 0 | AD93: 0 | AE93: 0 | AK93: 0 | AL93: 0 | AQ93: 0 | AR93: 0
A94: 2 | B94: 79 | C94: 79 | D94: =INSERT!A81 -> 0 | E94: =INSERT!B81 -> 0 | F94: =INSERT!C81 -> 0 | G94: =INSERT!D81 -> 0 | H94: =INSERT!E81 -> 0 | Y94: 0 | Z94: 0 | AA94: 0 | AB94: 0 | AC94: 0 | AD94: 0 | AE94: 0 | AK94: 0 | AL94: 0 | AQ94: 0 | AR94: 0
A95: 2 | B95: 80 | C95: 80 | D95: =INSERT!A82 -> 0 | E95: =INSERT!B82 -> 0 | F95: =INSERT!C82 -> 0 | G95: =INSERT!D82 -> 0 | H95: =INSERT!E82 -> 0 | Y95: 0 | Z95: 0 | AA95: 0 | AB95: 0 | AC95: 0 | AD95: 0 | AE95: 0 | AK95: 0 | AL95: 0 | AQ95: 0 | AR95: 0
A96: 2 | B96: 81 | C96: 81 | D96: =INSERT!A83 -> 0 | E96: =INSERT!B83 -> 0 | F96: =INSERT!C83 -> 0 | G96: =INSERT!D83 -> 0 | H96: =INSERT!E83 -> 0 | Y96: 0 | Z96: 0 | AA96: 0 | AB96: 0 | AC96: 0 | AD96: 0 | AE96: 0 | AK96: 0 | AL96: 0 | AQ96: 0 | AR96: 0
A97: 2 | B97: 82 | C97: 82 | D97: =INSERT!A84 -> 0 | E97: =INSERT!B84 -> 0 | F97: =INSERT!C84 -> 0 | G97: =INSERT!D84 -> 0 | H97: =INSERT!E84 -> 0 | Y97: 0 | Z97: 0 | AA97: 0 | AB97: 0 | AC97: 0 | AD97: 0 | AE97: 0 | AK97: 0 | AL97: 0 | AQ97: 0 | AR97: 0
A98: 2 | B98: 83 | C98: 83 | D98: =INSERT!A85 -> 0 | E98: =INSERT!B85 -> 0 | F98: =INSERT!C85 -> 0 | G98: =INSERT!D85 -> 0 | H98: =INSERT!E85 -> 0 | Y98: 0 | Z98: 0 | AA98: 0 | AB98: 0 | AC98: 0 | AD98: 0 | AE98: 0 | AK98: 0 | AL98: 0 | AQ98: 0 | AR98: 0
A99: 2 | B99: 84 | C99: 84 | D99: =INSERT!A86 -> 0 | E99: =INSERT!B86 -> 0 | F99: =INSERT!C86 -> 0 | G99: =INSERT!D86 -> 0 | H99: =INSERT!E86 -> 0 | Y99: 0 | Z99: 0 | AA99: 0 | AB99: 0 | AC99: 0 | AD99: 0 | AE99: 0 | AK99: 0 | AL99: 0 | AQ99: 0 | AR99: 0
A100: 2 | B100: 85 | C100: 85 | D100: =INSERT!A87 -> 0 | E100: =INSERT!B87 -> 0 | F100: =INSERT!C87 -> 0 | G100: =INSERT!D87 -> 0 | H100: =INSERT!E87 -> 0 | Y100: 0 | Z100: 0 | AA100: 0 | AB100: 0 | AC100: 0 | AD100: 0 | AE100: 0 | AK100: 0 | AL100: 0 | AQ100: 0 | AR100: 0
A101: 2 | B101: 86 | C101: 86 | D101: =INSERT!A88 -> 0 | E101: =INSERT!B88 -> 0 | F101: =INSERT!C88 -> 0 | G101: =INSERT!D88 -> 0 | H101: =INSERT!E88 -> 0 | Y101: 0 | Z101: 0 | AA101: 0 | AB101: 0 | AC101: 0 | AD101: 0 | AE101: 0 | AK101: 0 | AL101: 0 | AQ101: 0 | AR101: 0
A102: 2 | B102: 87 | C102: 87 | D102: =INSERT!A89 -> 0 | E102: =INSERT!B89 -> 0 | F102: =INSERT!C89 -> 0 | G102: =INSERT!D89 -> 0 | H102: =INSERT!E89 -> 0 | Y102: 0 | Z102: 0 | AA102: 0 | AB102: 0 | AC102: 0 | AD102: 0 | AE102: 0 | AK102: 0 | AL102: 0 | AQ102: 0 | AR102: 0
A103: 2 | B103: 88 | C103: 88 | D103: =INSERT!A90 -> 0 | E103: =INSERT!B90 -> 0 | F103: =INSERT!C90 -> 0 | G103: =INSERT!D90 -> 0 | H103: =INSERT!E90 -> 0 | Y103: 0 | Z103: 0 | AA103: 0 | AB103: 0 | AC103: 0 | AD103: 0 | AE103: 0 | AK103: 0 | AL103: 0 | AQ103: 0 | AR103: 0
A104: 2 | B104: 89 | C104: 89 | D104: =INSERT!A91 -> 0 | E104: =INSERT!B91 -> 0 | F104: =INSERT!C91 -> 0 | G104: =INSERT!D91 -> 0 | H104: =INSERT!E91 -> 0 | Y104: 0 | Z104: 0 | AA104: 0 | AB104: 0 | AC104: 0 | AD104: 0 | AE104: 0 | AK104: 0 | AL104: 0 | AQ104: 0 | AR104: 0
A105: 2 | B105: 90 | C105: 90 | D105: =INSERT!A92 -> 0 | E105: =INSERT!B92 -> 0 | F105: =INSERT!C92 -> 0 | G105: =INSERT!D92 -> 0 | H105: =INSERT!E92 -> 0 | Y105: 0 | Z105: 0 | AA105: 0 | AB105: 0 | AC105: 0 | AD105: 0 | AE105: 0 | AK105: 0 | AL105: 0 | AQ105: 0 | AR105: 0
A106: 2 | B106: 91 | C106: 91 | D106: =INSERT!A93 -> 0 | E106: =INSERT!B93 -> 0 | F106: =INSERT!C93 -> 0 | G106: =INSERT!D93 -> 0 | H106: =INSERT!E93 -> 0 | Y106: 0 | Z106: 0 | AA106: 0 | AB106: 0 | AC106: 0 | AD106: 0 | AE106: 0 | AK106: 0 | AL106: 0 | AQ106: 0 | AR106: 0
A107: 2 | B107: 92 | C107: 92 | D107: =INSERT!A94 -> 0 | E107: =INSERT!B94 -> 0 | F107: =INSERT!C94 -> 0 | G107: =INSERT!D94 -> 0 | H107: =INSERT!E94 -> 0 | Y107: 0 | Z107: 0 | AA107: 0 | AB107: 0 | AC107: 0 | AD107: 0 | AE107: 0 | AK107: 0 | AL107: 0 | AQ107: 0 | AR107: 0
A108: 2 | B108: 93 | C108: 93 | D108: =INSERT!A95 -> 0 | E108: =INSERT!B95 -> 0 | F108: =INSERT!C95 -> 0 | G108: =INSERT!D95 -> 0 | H108: =INSERT!E95 -> 0 | Y108: 0 | Z108: 0 | AA108: 0 | AB108: 0 | AC108: 0 | AD108: 0 | AE108: 0 | AK108: 0 | AL108: 0 | AQ108: 0 | AR108: 0
A109: 2 | B109: 94 | C109: 94 | D109: =INSERT!A96 -> 0 | E109: =INSERT!B96 -> 0 | F109: =INSERT!C96 -> 0 | G109: =INSERT!D96 -> 0 | H109: =INSERT!E96 -> 0 | Y109: 0 | Z109: 0 | AA109: 0 | AB109: 0 | AC109: 0 | AD109: 0 | AE109: 0 | AK109: 0 | AL109: 0 | AQ109: 0 | AR109: 0
A110: 2 | B110: 95 | C110: 95 | D110: =INSERT!A97 -> 0 | E110: =INSERT!B97 -> 0 | F110: =INSERT!C97 -> 0 | G110: =INSERT!D97 -> 0 | H110: =INSERT!E97 -> 0 | Y110: 0 | Z110: 0 | AA110: 0 | AB110: 0 | AC110: 0 | AD110: 0 | AE110: 0 | AK110: 0 | AL110: 0 | AQ110: 0 | AR110: 0
A111: 2 | B111: 96 | C111: 96 | D111: =INSERT!A98 -> 0 | E111: =INSERT!B98 -> 0 | F111: =INSERT!C98 -> 0 | G111: =INSERT!D98 -> 0 | H111: =INSERT!E98 -> 0 | Y111: 0 | Z111: 0 | AA111: 0 | AB111: 0 | AC111: 0 | AD111: 0 | AE111: 0 | AK111: 0 | AL111: 0 | AQ111: 0 | AR111: 0
A112: 2 | B112: 97 | C112: 97 | D112: =INSERT!A99 -> 0 | E112: =INSERT!B99 -> 0 | F112: =INSERT!C99 -> 0 | G112: =INSERT!D99 -> 0 | H112: =INSERT!E99 -> 0 | Y112: =SUM(I112:X112) -> 0 | Z112: =ROUND((SUM(Y112*$Y$13)/10),0) -> 0 | AA112: 0 | AB112: =SUM(AA112*$AA$13) -> 0 | AC112: 0 | AD112: =SUM(AC112*$AC$13) -> 0 | AE112: 0 | AF112: =IF(AE112>79.4,"7",IF(AE112>69.4,"6",IF(AE112>59.4,"5",IF(AE112>49.4,"4",IF(AE112>39.4,"3",IF(AE112>29.4,"2",IF(AE112>0,"1",IF(AE112=0,"")))))))) ->  | AK112: =SUM(AG112:AJ112) -> 0 | AL112: =ROUND((SUM(AK112*$AK$13)*2),0) -> 0 | AQ112: =SUM(AM112:AP112) -> 0 | AR112: =ROUND((SUM(AQ112*$AQ$13)*2),0) -> 0
A113: 2 | B113: 98 | C113: 98 | D113: =INSERT!A100 -> 0 | E113: =INSERT!B100 -> 0 | F113: =INSERT!C100 -> 0 | G113: =INSERT!D100 -> 0 | H113: =INSERT!E100 -> 0 | Y113: 0 | Z113: 0 | AA113: 0 | AB113: 0 | AC113: 0 | AD113: 0 | AE113: 0 | AK113: 0 | AL113: 0 | AQ113: 0 | AR113: 0
A114: 2 | B114: 99 | C114: 99 | D114: =INSERT!A101 -> 0 | E114: =INSERT!B101 -> 0 | F114: =INSERT!C101 -> 0 | G114: =INSERT!D101 -> 0 | H114: =INSERT!E101 -> 0 | Y114: 0 | Z114: 0 | AA114: 0 | AB114: 0 | AC114: 0 | AD114: 0 | AE114: 0 | AK114: 0 | AL114: 0 | AQ114: 0 | AR114: 0
A115: 2 | B115: 100 | C115: 100 | D115: =INSERT!A102 -> 0 | E115: =INSERT!B102 -> 0 | F115: =INSERT!C102 -> 0 | G115: =INSERT!D102 -> 0 | H115: =INSERT!E102 -> 0 | Y115: 0 | Z115: 0 | AA115: 0 | AB115: 0 | AC115: 0 | AD115: 0 | AE115: 0 | AK115: 0 | AL115: 0 | AQ115: 0 | AR115: 0
B116: Total amount of learners on mark sheet | F116: x | G116: TOTAL | I116: =SUM(I16:I115) -> 0 | J116: =SUM(J16:J115) -> 0 | K116: =SUM(K16:K115) -> 0 | L116: 0 | M116: 0 | N116: 0 | O116: 0 | P116: 0 | Q116: 0 | R116: 0 | S116: 0 | T116: 0 | U116: 0 | V116: 0 | W116: 0 | X116: 0 | Y116: 0 | Z116: 0 | AA116: 0 | AB116: 0 | AC116: 0 | AD116: 0 | AE116: 0 | AG116: =SUM(AG16:AG115) -> 0 | AH116: 0 | AI116: 0 | AJ116: 0 | AK116: =SUM(AK16:AK115) -> 0 | AL116: 0 | AM116: 0 | AN116: 0 | AO116: 0 | AP116: 0 | AQ116: =SUM(AQ16:AQ115) -> 0 | AR116: 0
F117: x | G117: AVERAGE | I117: =IFERROR(SUM(I116/$B$120),"0") -> 0 | J117: =IFERROR(SUM(J116/$B$120),"0") -> 0 | K117: =IFERROR(SUM(K116/$B$120),"0") -> 0 | L117: 0 | M117: 0 | N117: 0 | O117: 0 | P117: 0 | Q117: 0 | R117: 0 | S117: 0 | T117: 0 | U117: 0 | V117: 0 | W117: 0 | X117: 0 | Y117: 0 | Z117: 0 | AA117: 0 | AB117: 0 | AC117: 0 | AD117: 0 | AE117: 0 | AG117: =IFERROR(SUM(AG116/$B$120),"0") -> 0 | AH117: 0 | AI117: 0 | AJ117: 0 | AK117: =IFERROR(SUM(AK116/$B$120),"0") -> 0 | AL117: 0 | AM117: 0 | AN117: 0 | AO117: 0 | AP117: 0 | AQ117: =IFERROR(SUM(AQ116/$B$120),"0") -> 0 | AR117: 0
F118: x | G118: PERCENTAGE | I118: =IFERROR(ROUND((SUM(I117/I12)*100),0),"0") -> 0 | J118: =IFERROR(ROUND((SUM(J117/J12)*100),0),"0") -> 0 | K118: =IFERROR(ROUND((SUM(K117/K12)*100),0),"0") -> 0 | L118: 0 | M118: 0 | N118: 0 | O118: 0 | P118: 0 | Q118: 0 | R118: 0 | S118: 0 | T118: 0 | U118: 0 | V118: 0 | W118: 0 | X118: 0 | Y118: 0 | Z118: 0 | AA118: 0 | AB118: 0 | AC118: 0 | AD118: 0 | AE118: 0 | AG118: =IFERROR(ROUND((SUM(AG117/AG12)*100),0),"0") -> 0 | AH118: 0 | AI118: 0 | AJ118: 0 | AK118: =IFERROR(ROUND((SUM(AK117/AK12)*100),0),"0") -> 0 | AL118: 0 | AM118: 0 | AN118: 0 | AO118: 0 | AP118: 0 | AQ118: =IFERROR(ROUND((SUM(AQ117/AQ12)*100),0),"0") -> 0 | AR118: 0
F119: x | G119: 0
B120: =INSERT!$E$103 -> 0 | F120: x | G120: TOTAL HANDED IN | I120: =COUNT(I16:I115) -> 0 | J120: =COUNT(J16:J115) -> 0 | K120: =COUNT(K16:K115) -> 0 | L120: 0 | M120: 0 | N120: 0 | O120: 0 | P120: 0 | Q120: 0 | R120: 0 | S120: 0 | T120: 0 | U120: 0 | V120: 0 | W120: 0 | X120: =COUNT(X16:X115) -> 0 | Y120: =COUNT(Y16:Y115) -> 100 | AA120: EXAM LEVELS
F121: x | AA121: LEVEL 1 | AE121: LEVEL 2 | AG121: LEVEL 3 | AI121: LEVEL 4 | AK121: LEVEL 5 | AM121: LEVEL 6 | AO121: LEVEL 7 | AQ121: TOTAL
F122: x | AA122: 0 - 29 | AE122: 30 - 39 | AG122: 40 - 49 | AI122: 50 - 59 | AK122: 60 - 69 | AM122: 70 - 79 | AO122: 80 - 100 | AQ122: LEARNERS
F123: x | AA123: =COUNTIF($AF$16:$AF$115,1) -> 0 | AE123: =COUNTIF($AF$16:$AF$115,2) -> 0 | AG123: =COUNTIF($AF$16:$AF$115,3) -> 0 | AI123: =COUNTIF($AF$16:$AF$115,4) -> 0 | AK123: =COUNTIF($AF$16:$AF$115,5) -> 0 | AM123: =COUNTIF($AF$16:$AF$115,6) -> 0 | AO123: =COUNTIF($AF$16:$AF$115,7) -> 0 | AQ123: =SUM(AA123:AP123) -> 0

Sheet SASAMS TERM1
A1: Engineering Graphics and Design (Gr 11) Term 1: | G1: TASKS | L1: TASK 1 | M1: TASK 2
A2: Grade: | D2: =TERM1!$F$6 -> 0 | G2: Activities | H2: =TERM1!$I$4 -> CD1 Mechanical analytical | I2: =TERM1!$AA$4 -> CD2 1st Mechanical assembly | J2: =TERM1!$AS$4 -> CD3 2nd Mechanical Assembly | K2: =TERM1!$BK$4 -> CD4 Isometric drawing | N2: 100
A3: Weighting | H3: 25 | I3: 25 | J3: 25 | K3: 25 | L3: 100 | M3: 0
A4: Marks: -1 = Absent, -2 = Not Captured | G4: Total Mark | H4: 10 | I4: 10 | J4: 10 | K4: 10 | L4: 40 | M4: 60 | N4: TOTAL Weighted Mark | O4: Term % | P4: Level
A5: SBA Year Mark Weight | L5: 9.24 | M5: 15
G6: Term /Date | L6: Term1 | M6: Term1
A7: No | C7: Class | D7: Acc No | E7: Learner | G7: Gender | H7: T1:A1 | I7: T1:A2 | J7: T1:A3 | K7: T1:A4 | L7: T1 | M7: T2 | N7: 100 | O7: 100
A9: 1 | B9: 1 | C9: =INSERT!A3 -> 0 | D9: =INSERT!B3 -> 0 | E9: =INSERT!C3 -> 0 | F9: =INSERT!D3 -> 0 | G9: =INSERT!E3 -> 0 | H9: =TERM1!Z16 -> 0 | I9: =TERM1!AR16 -> 0 | J9: =TERM1!BJ16 -> 0 | K9: =TERM1!CB16 -> 0 | L9: =SUMIF(H9:K9,">0") -> 0 | M9: =TERM1!CG16 -> 0 | N9: =IF(L9="<0","",SUM(L9/0.4)) -> 0 | O9: =ROUND((N9),0) -> 0 | P9: =IF(O9>79,"7",IF(O9>69,"6",IF(O9>59,"5",IF(O9>49,"4",IF(O9>39,"3",IF(O9>29,"2",IF(O9>0,"1",IF(O9=0,"")))))))) -> 
A10: 2 | B10: 2 | C10: =INSERT!A4 -> 0 | D10: =INSERT!B4 -> 0 | E10: =INSERT!C4 -> 0 | F10: =INSERT!D4 -> 0 | G10: =INSERT!E4 -> 0 | H10: =TERM1!Z17 -> 0 | I10: =TERM1!AR17 -> 0 | J10: =TERM1!BJ17 -> 0 | K10: =TERM1!CB17 -> 0 | L10: =SUMIF(H10:K10,">0") -> 0 | M10: =TERM1!CG17 -> 0 | N10: =IF(L10="<0","",SUM(L10/0.4)) -> 0 | O10: =ROUND((N10),0) -> 0
A11: 3 | B11: 3 | C11: =INSERT!A5 -> 0 | D11: =INSERT!B5 -> 0 | E11: =INSERT!C5 -> 0 | F11: =INSERT!D5 -> 0 | G11: =INSERT!E5 -> 0 | H11: =TERM1!Z18 -> 0 | I11: =TERM1!AR18 -> 0 | J11: =TERM1!BJ18 -> 0 | K11: =TERM1!CB18 -> 0 | L11: 0 | M11: =TERM1!CG18 -> 0 | N11: 0 | O11: 0
A12: 4 | B12: 4 | C12: =INSERT!A6 -> 0 | D12: =INSERT!B6 -> 0 | E12: =INSERT!C6 -> 0 | F12: =INSERT!D6 -> 0 | G12: =INSERT!E6 -> 0 | H12: =TERM1!Z19 -> 0 | I12: =TERM1!AR19 -> 0 | J12: =TERM1!BJ19 -> 0 | K12: =TERM1!CB19 -> 0 | L12: 0 | M12: =TERM1!CG19 -> 0 | N12: 0 | O12: 0
A13: 5 | B13: 5 | C13: =INSERT!A7 -> 0 | D13: =INSERT!B7 -> 0 | E13: =INSERT!C7 -> 0 | F13: =INSERT!D7 -> 0 | G13: =INSERT!E7 -> 0 | H13: =TERM1!Z20 -> 0 | I13: =TERM1!AR20 -> 0 | J13: =TERM1!BJ20 -> 0 | K13: =TERM1!CB20 -> 0 | L13: 0 | M13: =TERM1!CG20 -> 0 | N13: 0 | O13: 0
A14: 6 | B14: 6 | C14: =INSERT!A8 -> 0 | D14: =INSERT!B8 -> 0 | E14: =INSERT!C8 -> 0 | F14: =INSERT!D8 -> 0 | G14: =INSERT!E8 -> 0 | H14: =TERM1!Z21 -> 0 | I14: =TERM1!AR21 -> 0 | J14: =TERM1!BJ21 -> 0 | K14: =TERM1!CB21 -> 0 | L14: 0 | M14: =TERM1!CG21 -> 0 | N14: 0 | O14: 0
A15: 7 | B15: 7 | C15: =INSERT!A9 -> 0 | D15: =INSERT!B9 -> 0 | E15: =INSERT!C9 -> 0 | F15: =INSERT!D9 -> 0 | G15: =INSERT!E9 -> 0 | H15: =TERM1!Z22 -> 0 | I15: =TERM1!AR22 -> 0 | J15: =TERM1!BJ22 -> 0 | K15: =TERM1!CB22 -> 0 | L15: 0 | M15: =TERM1!CG22 -> 0 | N15: 0 | O15: 0
A16: 8 | B16: 8 | C16: =INSERT!A10 -> 0 | D16: =INSERT!B10 -> 0 | E16: =INSERT!C10 -> 0 | F16: =INSERT!D10 -> 0 | G16: =INSERT!E10 -> 0 | H16: =TERM1!Z23 -> 0 | I16: =TERM1!AR23 -> 0 | J16: =TERM1!BJ23 -> 0 | K16: =TERM1!CB23 -> 0 | L16: 0 | M16: =TERM1!CG23 -> 0 | N16: 0 | O16: 0
A17: 9 | B17: 9 | C17: =INSERT!A11 -> 0 | D17: =INSERT!B11 -> 0 | E17: =INSERT!C11 -> 0 | F17: =INSERT!D11 -> 0 | G17: =INSERT!E11 -> 0 | H17: =TERM1!Z24 -> 0 | I17: =TERM1!AR24 -> 0 | J17: =TERM1!BJ24 -> 0 | K17: =TERM1!CB24 -> 0 | L17: 0 | M17: =TERM1!CG24 -> 0 | N17: 0 | O17: 0
A18: 10 | B18: 10 | C18: =INSERT!A12 -> 0 | D18: =INSERT!B12 -> 0 | E18: =INSERT!C12 -> 0 | F18: =INSERT!D12 -> 0 | G18: =INSERT!E12 -> 0 | H18: =TERM1!Z25 -> 0 | I18: =TERM1!AR25 -> 0 | J18: =TERM1!BJ25 -> 0 | K18: =TERM1!CB25 -> 0 | L18: 0 | M18: =TERM1!CG25 -> 0 | N18: 0 | O18: 0
A19: 11 | B19: 11 | C19: =INSERT!A13 -> 0 | D19: =INSERT!B13 -> 0 | E19: =INSERT!C13 -> 0 | F19: =INSERT!D13 -> 0 | G19: =INSERT!E13 -> 0 | H19: =TERM1!Z26 -> 0 | I19: =TERM1!AR26 -> 0 | J19: =TERM1!BJ26 -> 0 | K19: =TERM1!CB26 -> 0 | L19: 0 | M19: =TERM1!CG26 -> 0 | N19: 0 | O19: 0
A20: 12 | B20: 12 | C20: =INSERT!A14 -> 0 | D20: =INSERT!B14 -> 0 | E20: =INSERT!C14 -> 0 | F20: =INSERT!D14 -> 0 | G20: =INSERT!E14 -> 0 | H20: =TERM1!Z27 -> 0 | I20: =TERM1!AR27 -> 0 | J20: =TERM1!BJ27 -> 0 | K20: =TERM1!CB27 -> 0 | L20: 0 | M20: =TERM1!CG27 -> 0 | N20: 0 | O20: 0
A21: 13 | B21: 13 | C21: =INSERT!A15 -> 0 | D21: =INSERT!B15 -> 0 | E21: =INSERT!C15 -> 0 | F21: =INSERT!D15 -> 0 | G21: =INSERT!E15 -> 0 | H21: =TERM1!Z28 -> 0 | I21: =TERM1!AR28 -> 0 | J21: =TERM1!BJ28 -> 0 | K21: =TERM1!CB28 -> 0 | L21: 0 | M21: =TERM1!CG28 -> 0 | N21: 0 | O21: 0
A22: 14 | B22: 14 | C22: =INSERT!A16 -> 0 | D22: =INSERT!B16 -> 0 | E22: =INSERT!C16 -> 0 | F22: =INSERT!D16 -> 0 | G22: =INSERT!E16 -> 0 | H22: =TERM1!Z29 -> 0 | I22: =TERM1!AR29 -> 0 | J22: =TERM1!BJ29 -> 0 | K22: =TERM1!CB29 -> 0 | L22: 0 | M22: =TERM1!CG29 -> 0 | N22: 0 | O22: 0
A23: 15 | B23: 15 | C23: =INSERT!A17 -> 0 | D23: =INSERT!B17 -> 0 | E23: =INSERT!C17 -> 0 | F23: =INSERT!D17 -> 0 | G23: =INSERT!E17 -> 0 | H23: =TERM1!Z30 -> 0 | I23: =TERM1!AR30 -> 0 | J23: =TERM1!BJ30 -> 0 | K23: =TERM1!CB30 -> 0 | L23: 0 | M23: =TERM1!CG30 -> 0 | N23: 0 | O23: 0
A24: 16 | B24: 16 | C24: =INSERT!A18 -> 0 | D24: =INSERT!B18 -> 0 | E24: =INSERT!C18 -> 0 | F24: =INSERT!D18 -> 0 | G24: =INSERT!E18 -> 0 | H24: =TERM1!Z31 -> 0 | I24: =TERM1!AR31 -> 0 | J24: =TERM1!BJ31 -> 0 | K24: =TERM1!CB31 -> 0 | L24: 0 | M24: =TERM1!CG31 -> 0 | N24: 0 | O24: 0
A25: 17 | B25: 17 | C25: =INSERT!A19 -> 0 | D25: =INSERT!B19 -> 0 | E25: =INSERT!C19 -> 0 | F25: =INSERT!D19 -> 0 | G25: =INSERT!E19 -> 0 | H25: =TERM1!Z32 -> 0 | I25: =TERM1!AR32 -> 0 | J25: =TERM1!BJ32 -> 0 | K25: =TERM1!CB32 -> 0 | L25: 0 | M25: =TERM1!CG32 -> 0 | N25: 0 | O25: 0
A26: 18 | B26: 18 | C26: =INSERT!A20 -> 0 | D26: =INSERT!B20 -> 0 | E26: =INSERT!C20 -> 0 | F26: =INSERT!D20 -> 0 | G26: =INSERT!E20 -> 0 | H26: =TERM1!Z33 -> 0 | I26: =TERM1!AR33 -> 0 | J26: =TERM1!BJ33 -> 0 | K26: =TERM1!CB33 -> 0 | L26: 0 | M26: =TERM1!CG33 -> 0 | N26: 0 | O26: 0
A27: 19 | B27: 19 | C27: =INSERT!A21 -> 0 | D27: =INSERT!B21 -> 0 | E27: =INSERT!C21 -> 0 | F27: =INSERT!D21 -> 0 | G27: =INSERT!E21 -> 0 | H27: =TERM1!Z34 -> 0 | I27: =TERM1!AR34 -> 0 | J27: =TERM1!BJ34 -> 0 | K27: =TERM1!CB34 -> 0 | L27: 0 | M27: =TERM1!CG34 -> 0 | N27: 0 | O27: 0
A28: 20 | B28: 20 | C28: =INSERT!A22 -> 0 | D28: =INSERT!B22 -> 0 | E28: =INSERT!C22 -> 0 | F28: =INSERT!D22 -> 0 | G28: =INSERT!E22 -> 0 | H28: =TERM1!Z35 -> 0 | I28: =TERM1!AR35 -> 0 | J28: =TERM1!BJ35 -> 0 | K28: =TERM1!CB35 -> 0 | L28: 0 | M28: =TERM1!CG35 -> 0 | N28: 0 | O28: 0
A29: 21 | B29: 21 | C29: =INSERT!A23 -> 0 | D29: =INSERT!B23 -> 0 | E29: =INSERT!C23 -> 0 | F29: =INSERT!D23 -> 0 | G29: =INSERT!E23 -> 0 | H29: =TERM1!Z36 -> 0 | I29: =TERM1!AR36 -> 0 | J29: =TERM1!BJ36 -> 0 | K29: =TERM1!CB36 -> 0 | L29: 0 | M29: =TERM1!CG36 -> 0 | N29: 0 | O29: 0
A30: 22 | B30: 22 | C30: =INSERT!A24 -> 0 | D30: =INSERT!B24 -> 0 | E30: =INSERT!C24 -> 0 | F30: =INSERT!D24 -> 0 | G30: =INSERT!E24 -> 0 | H30: =TERM1!Z37 -> 0 | I30: =TERM1!AR37 -> 0 | J30: =TERM1!BJ37 -> 0 | K30: =TERM1!CB37 -> 0 | L30: 0 | M30: =TERM1!CG37 -> 0 | N30: 0 | O30: 0
A31: 23 | B31: 23 | C31: =INSERT!A25 -> 0 | D31: =INSERT!B25 -> 0 | E31: =INSERT!C25 -> 0 | F31: =INSERT!D25 -> 0 | G31: =INSERT!E25 -> 0 | H31: =TERM1!Z38 -> 0 | I31: =TERM1!AR38 -> 0 | J31: =TERM1!BJ38 -> 0 | K31: =TERM1!CB38 -> 0 | L31: 0 | M31: =TERM1!CG38 -> 0 | N31: 0 | O31: 0
A32: 24 | B32: 24 | C32: =INSERT!A26 -> 0 | D32: =INSERT!B26 -> 0 | E32: =INSERT!C26 -> 0 | F32: =INSERT!D26 -> 0 | G32: =INSERT!E26 -> 0 | H32: =TERM1!Z39 -> 0 | I32: =TERM1!AR39 -> 0 | J32: =TERM1!BJ39 -> 0 | K32: =TERM1!CB39 -> 0 | L32: 0 | M32: =TERM1!CG39 -> 0 | N32: 0 | O32: 0
A33: 25 | B33: 25 | C33: =INSERT!A27 -> 0 | D33: =INSERT!B27 -> 0 | E33: =INSERT!C27 -> 0 | F33: =INSERT!D27 -> 0 | G33: =INSERT!E27 -> 0 | H33: =TERM1!Z40 -> 0 | I33: =TERM1!AR40 -> 0 | J33: =TERM1!BJ40 -> 0 | K33: =TERM1!CB40 -> 0 | L33: 0 | M33: =TERM1!CG40 -> 0 | N33: 0 | O33: 0
A34: 26 | B34: 26 | C34: =INSERT!A28 -> 0 | D34: =INSERT!B28 -> 0 | E34: =INSERT!C28 -> 0 | F34: =INSERT!D28 -> 0 | G34: =INSERT!E28 -> 0 | H34: =TERM1!Z41 -> 0 | I34: =TERM1!AR41 -> 0 | J34: =TERM1!BJ41 -> 0 | K34: =TERM1!CB41 -> 0 | L34: 0 | M34: =TERM1!CG41 -> 0 | N34: 0 | O34: 0
A35: 27 | B35: 27 | C35: =INSERT!A29 -> 0 | D35: =INSERT!B29 -> 0 | E35: =INSERT!C29 -> 0 | F35: =INSERT!D29 -> 0 | G35: =INSERT!E29 -> 0 | H35: =TERM1!Z42 -> 0 | I35: =TERM1!AR42 -> 0 | J35: =TERM1!BJ42 -> 0 | K35: =TERM1!CB42 -> 0 | L35: 0 | M35: =TERM1!CG42 -> 0 | N35: 0 | O35: 0
A36: 28 | B36: 28 | C36: =INSERT!A30 -> 0 | D36: =INSERT!B30 -> 0 | E36: =INSERT!C30 -> 0 | F36: =INSERT!D30 -> 0 | G36: =INSERT!E30 -> 0 | H36: =TERM1!Z43 -> 0 | I36: =TERM1!AR43 -> 0 | J36: =TERM1!BJ43 -> 0 | K36: =TERM1!CB43 -> 0 | L36: 0 | M36: =TERM1!CG43 -> 0 | N36: 0 | O36: 0
A37: 29 | B37: 29 | C37: =INSERT!A31 -> 0 | D37: =INSERT!B31 -> 0 | E37: =INSERT!C31 -> 0 | F37: =INSERT!D31 -> 0 | G37: =INSERT!E31 -> 0 | H37: =TERM1!Z44 -> 0 | I37: =TERM1!AR44 -> 0 | J37: =TERM1!BJ44 -> 0 | K37: =TERM1!CB44 -> 0 | L37: 0 | M37: =TERM1!CG44 -> 0 | N37: 0 | O37: 0
A38: 30 | B38: 30 | C38: =INSERT!A32 -> 0 | D38: =INSERT!B32 -> 0 | E38: =INSERT!C32 -> 0 | F38: =INSERT!D32 -> 0 | G38: =INSERT!E32 -> 0 | H38: =TERM1!Z45 -> 0 | I38: =TERM1!AR45 -> 0 | J38: =TERM1!BJ45 -> 0 | K38: =TERM1!CB45 -> 0 | L38: 0 | M38: =TERM1!CG45 -> 0 | N38: 0 | O38: 0
A39: 31 | B39: 31 | C39: =INSERT!A33 -> 0 | D39: =INSERT!B33 -> 0 | E39: =INSERT!C33 -> 0 | F39: =INSERT!D33 -> 0 | G39: =INSERT!E33 -> 0 | H39: =TERM1!Z46 -> 0 | I39: =TERM1!AR46 -> 0 | J39: =TERM1!BJ46 -> 0 | K39: =TERM1!CB46 -> 0 | L39: 0 | M39: =TERM1!CG46 -> 0 | N39: 0 | O39: 0
A40: 32 | B40: 32 | C40: =INSERT!A34 -> 0 | D40: =INSERT!B34 -> 0 | E40: =INSERT!C34 -> 0 | F40: =INSERT!D34 -> 0 | G40: =INSERT!E34 -> 0 | H40: =TERM1!Z47 -> 0 | I40: =TERM1!AR47 -> 0 | J40: =TERM1!BJ47 -> 0 | K40: =TERM1!CB47 -> 0 | L40: 0 | M40: =TERM1!CG47 -> 0 | N40: 0 | O40: 0
A41: 33 | B41: 33 | C41: =INSERT!A35 -> 0 | D41: =INSERT!B35 -> 0 | E41: =INSERT!C35 -> 0 | F41: =INSERT!D35 -> 0 | G41: =INSERT!E35 -> 0 | H41: =TERM1!Z48 -> 0 | I41: =TERM1!AR48 -> 0 | J41: =TERM1!BJ48 -> 0 | K41: =TERM1!CB48 -> 0 | L41: 0 | M41: =TERM1!CG48 -> 0 | N41: 0 | O41: 0 | P41: =IF(O41>79,"7",IF(O41>69,"6",IF(O41>59,"5",IF(O41>49,"4",IF(O41>39,"3",IF(O41>29,"2",IF(O41>0,"1",IF(O41=0,"")))))))) -> 
A42: 34 | B42: 34 | C42: =INSERT!A36 -> 0 | D42: =INSERT!B36 -> 0 | E42: =INSERT!C36 -> 0 | F42: =INSERT!D36 -> 0 | G42: =INSERT!E36 -> 0 | H42: =TERM1!Z49 -> 0 | I42: =TERM1!AR49 -> 0 | J42: =TERM1!BJ49 -> 0 | K42: =TERM1!CB49 -> 0 | L42: 0 | M42: =TERM1!CG49 -> 0 | N42: 0 | O42: 0
A43: 35 | B43: 35 | C43: =INSERT!A37 -> 0 | D43: =INSERT!B37 -> 0 | E43: =INSERT!C37 -> 0 | F43: =INSERT!D37 -> 0 | G43: =INSERT!E37 -> 0 | H43: =TERM1!Z50 -> 0 | I43: =TERM1!AR50 -> 0 | J43: =TERM1!BJ50 -> 0 | K43: =TERM1!CB50 -> 0 | L43: 0 | M43: =TERM1!CG50 -> 0 | N43: 0 | O43: 0
A44: 36 | B44: 36 | C44: =INSERT!A38 -> 0 | D44: =INSERT!B38 -> 0 | E44: =INSERT!C38 -> 0 | F44: =INSERT!D38 -> 0 | G44: =INSERT!E38 -> 0 | H44: =TERM1!Z51 -> 0 | I44: =TERM1!AR51 -> 0 | J44: =TERM1!BJ51 -> 0 | K44: =TERM1!CB51 -> 0 | L44: 0 | M44: =TERM1!CG51 -> 0 | N44: 0 | O44: 0
A45: 37 | B45: 37 | C45: =INSERT!A39 -> 0 | D45: =INSERT!B39 -> 0 | E45: =INSERT!C39 -> 0 | F45: =INSERT!D39 -> 0 | G45: =INSERT!E39 -> 0 | H45: =TERM1!Z52 -> 0 | I45: =TERM1!AR52 -> 0 | J45: =TERM1!BJ52 -> 0 | K45: =TERM1!CB52 -> 0 | L45: 0 | M45: =TERM1!CG52 -> 0 | N45: 0 | O45: 0
A46: 38 | B46: 38 | C46: =INSERT!A40 -> 0 | D46: =INSERT!B40 -> 0 | E46: =INSERT!C40 -> 0 | F46: =INSERT!D40 -> 0 | G46: =INSERT!E40 -> 0 | H46: =TERM1!Z53 -> 0 | I46: =TERM1!AR53 -> 0 | J46: =TERM1!BJ53 -> 0 | K46: =TERM1!CB53 -> 0 | L46: 0 | M46: =TERM1!CG53 -> 0 | N46: 0 | O46: 0
A47: 39 | B47: 39 | C47: =INSERT!A41 -> 0 | D47: =INSERT!B41 -> 0 | E47: =INSERT!C41 -> 0 | F47: =INSERT!D41 -> 0 | G47: =INSERT!E41 -> 0 | H47: =TERM1!Z54 -> 0 | I47: =TERM1!AR54 -> 0 | J47: =TERM1!BJ54 -> 0 | K47: =TERM1!CB54 -> 0 | L47: 0 | M47: =TERM1!CG54 -> 0 | N47: 0 | O47: 0
A48: 40 | B48: 40 | C48: =INSERT!A42 -> 0 | D48: =INSERT!B42 -> 0 | E48: =INSERT!C42 -> 0 | F48: =INSERT!D42 -> 0 | G48: =INSERT!E42 -> 0 | H48: =TERM1!Z55 -> 0 | I48: =TERM1!AR55 -> 0 | J48: =TERM1!BJ55 -> 0 | K48: =TERM1!CB55 -> 0 | L48: 0 | M48: =TERM1!CG55 -> 0 | N48: 0 | O48: 0
A49: 41 | B49: 41 | C49: =INSERT!A43 -> 0 | D49: =INSERT!B43 -> 0 | E49: =INSERT!C43 -> 0 | F49: =INSERT!D43 -> 0 | G49: =INSERT!E43 -> 0 | H49: =TERM1!Z56 -> 0 | I49: =TERM1!AR56 -> 0 | J49: =TERM1!BJ56 -> 0 | K49: =TERM1!CB56 -> 0 | L49: 0 | M49: =TERM1!CG56 -> 0 | N49: 0 | O49: 0
A50: 42 | B50: 42 | C50: =INSERT!A44 -> 0 | D50: =INSERT!B44 -> 0 | E50: =INSERT!C44 -> 0 | F50: =INSERT!D44 -> 0 | G50: =INSERT!E44 -> 0 | H50: =TERM1!Z57 -> 0 | I50: =TERM1!AR57 -> 0 | J50: =TERM1!BJ57 -> 0 | K50: =TERM1!CB57 -> 0 | L50: 0 | M50: =TERM1!CG57 -> 0 | N50: 0 | O50: 0
A51: 43 | B51: 43 | C51: =INSERT!A45 -> 0 | D51: =INSERT!B45 -> 0 | E51: =INSERT!C45 -> 0 | F51: =INSERT!D45 -> 0 | G51: =INSERT!E45 -> 0 | H51: =TERM1!Z58 -> 0 | I51: =TERM1!AR58 -> 0 | J51: =TERM1!BJ58 -> 0 | K51: =TERM1!CB58 -> 0 | L51: 0 | M51: =TERM1!CG58 -> 0 | N51: 0 | O51: 0
A52: 44 | B52: 44 | C52: =INSERT!A46 -> 0 | D52: =INSERT!B46 -> 0 | E52: =INSERT!C46 -> 0 | F52: =INSERT!D46 -> 0 | G52: =INSERT!E46 -> 0 | H52: =TERM1!Z59 -> 0 | I52: =TERM1!AR59 -> 0 | J52: =TERM1!BJ59 -> 0 | K52: =TERM1!CB59 -> 0 | L52: 0 | M52: =TERM1!CG59 -> 0 | N52: 0 | O52: 0
A53: 45 | B53: 45 | C53: =INSERT!A47 -> 0 | D53: =INSERT!B47 -> 0 | E53: =INSERT!C47 -> 0 | F53: =INSERT!D47 -> 0 | G53: =INSERT!E47 -> 0 | H53: =TERM1!Z60 -> 0 | I53: =TERM1!AR60 -> 0 | J53: =TERM1!BJ60 -> 0 | K53: =TERM1!CB60 -> 0 | L53: 0 | M53: =TERM1!CG60 -> 0 | N53: 0 | O53: 0
A54: 46 | B54: 46 | C54: =INSERT!A48 -> 0 | D54: =INSERT!B48 -> 0 | E54: =INSERT!C48 -> 0 | F54: =INSERT!D48 -> 0 | G54: =INSERT!E48 -> 0 | H54: =TERM1!Z61 -> 0 | I54: =TERM1!AR61 -> 0 | J54: =TERM1!BJ61 -> 0 | K54: =TERM1!CB61 -> 0 | L54: 0 | M54: =TERM1!CG61 -> 0 | N54: 0 | O54: 0
A55: 47 | B55: 47 | C55: =INSERT!A49 -> 0 | D55: =INSERT!B49 -> 0 | E55: =INSERT!C49 -> 0 | F55: =INSERT!D49 -> 0 | G55: =INSERT!E49 -> 0 | H55: =TERM1!Z62 -> 0 | I55: =TERM1!AR62 -> 0 | J55: =TERM1!BJ62 -> 0 | K55: =TERM1!CB62 -> 0 | L55: 0 | M55: =TERM1!CG62 -> 0 | N55: 0 | O55: 0
A56: 48 | B56: 48 | C56: =INSERT!A50 -> 0 | D56: =INSERT!B50 -> 0 | E56: =INSERT!C50 -> 0 | F56: =INSERT!D50 -> 0 | G56: =INSERT!E50 -> 0 | H56: =TERM1!Z63 -> 0 | I56: =TERM1!AR63 -> 0 | J56: =TERM1!BJ63 -> 0 | K56: =TERM1!CB63 -> 0 | L56: 0 | M56: =TERM1!CG63 -> 0 | N56: 0 | O56: 0
A57: 49 | B57: 49 | C57: =INSERT!A51 -> 0 | D57: =INSERT!B51 -> 0 | E57: =INSERT!C51 -> 0 | F57: =INSERT!D51 -> 0 | G57: =INSERT!E51 -> 0 | H57: =TERM1!Z64 -> 0 | I57: =TERM1!AR64 -> 0 | J57: =TERM1!BJ64 -> 0 | K57: =TERM1!CB64 -> 0 | L57: 0 | M57: =TERM1!CG64 -> 0 | N57: 0 | O57: 0
A58: 50 | B58: 50 | C58: =INSERT!A52 -> 0 | D58: =INSERT!B52 -> 0 | E58: =INSERT!C52 -> 0 | F58: =INSERT!D52 -> 0 | G58: =INSERT!E52 -> 0 | H58: =TERM1!Z65 -> 0 | I58: =TERM1!AR65 -> 0 | J58: =TERM1!BJ65 -> 0 | K58: =TERM1!CB65 -> 0 | L58: 0 | M58: =TERM1!CG65 -> 0 | N58: 0 | O58: 0
A59: 51 | B59: 51 | C59: =INSERT!A53 -> 0 | D59: =INSERT!B53 -> 0 | E59: =INSERT!C53 -> 0 | F59: =INSERT!D53 -> 0 | G59: =INSERT!E53 -> 0 | H59: =TERM1!Z66 -> 0 | I59: =TERM1!AR66 -> 0 | J59: =TERM1!BJ66 -> 0 | K59: =TERM1!CB66 -> 0 | L59: 0 | M59: =TERM1!CG66 -> 0 | N59: 0 | O59: 0
A60: 52 | B60: 52 | C60: =INSERT!A54 -> 0 | D60: =INSERT!B54 -> 0 | E60: =INSERT!C54 -> 0 | F60: =INSERT!D54 -> 0 | G60: =INSERT!E54 -> 0 | H60: =TERM1!Z67 -> 0 | I60: =TERM1!AR67 -> 0 | J60: =TERM1!BJ67 -> 0 | K60: =TERM1!CB67 -> 0 | L60: 0 | M60: =TERM1!CG67 -> 0 | N60: 0 | O60: 0
A61: 53 | B61: 53 | C61: =INSERT!A55 -> 0 | D61: =INSERT!B55 -> 0 | E61: =INSERT!C55 -> 0 | F61: =INSERT!D55 -> 0 | G61: =INSERT!E55 -> 0 | H61: =TERM1!Z68 -> 0 | I61: =TERM1!AR68 -> 0 | J61: =TERM1!BJ68 -> 0 | K61: =TERM1!CB68 -> 0 | L61: 0 | M61: =TERM1!CG68 -> 0 | N61: 0 | O61: 0
A62: 54 | B62: 54 | C62: =INSERT!A56 -> 0 | D62: =INSERT!B56 -> 0 | E62: =INSERT!C56 -> 0 | F62: =INSERT!D56 -> 0 | G62: =INSERT!E56 -> 0 | H62: =TERM1!Z69 -> 0 | I62: =TERM1!AR69 -> 0 | J62: =TERM1!BJ69 -> 0 | K62: =TERM1!CB69 -> 0 | L62: 0 | M62: =TERM1!CG69 -> 0 | N62: 0 | O62: 0
A63: 55 | B63: 55 | C63: =INSERT!A57 -> 0 | D63: =INSERT!B57 -> 0 | E63: =INSERT!C57 -> 0 | F63: =INSERT!D57 -> 0 | G63: =INSERT!E57 -> 0 | H63: =TERM1!Z70 -> 0 | I63: =TERM1!AR70 -> 0 | J63: =TERM1!BJ70 -> 0 | K63: =TERM1!CB70 -> 0 | L63: 0 | M63: =TERM1!CG70 -> 0 | N63: 0 | O63: 0
A64: 56 | B64: 56 | C64: =INSERT!A58 -> 0 | D64: =INSERT!B58 -> 0 | E64: =INSERT!C58 -> 0 | F64: =INSERT!D58 -> 0 | G64: =INSERT!E58 -> 0 | H64: =TERM1!Z71 -> 0 | I64: =TERM1!AR71 -> 0 | J64: =TERM1!BJ71 -> 0 | K64: =TERM1!CB71 -> 0 | L64: 0 | M64: =TERM1!CG71 -> 0 | N64: 0 | O64: 0
A65: 57 | B65: 57 | C65: =INSERT!A59 -> 0 | D65: =INSERT!B59 -> 0 | E65: =INSERT!C59 -> 0 | F65: =INSERT!D59 -> 0 | G65: =INSERT!E59 -> 0 | H65: =TERM1!Z72 -> 0 | I65: =TERM1!AR72 -> 0 | J65: =TERM1!BJ72 -> 0 | K65: =TERM1!CB72 -> 0 | L65: 0 | M65: =TERM1!CG72 -> 0 | N65: 0 | O65: 0
A66: 58 | B66: 58 | C66: =INSERT!A60 -> 0 | D66: =INSERT!B60 -> 0 | E66: =INSERT!C60 -> 0 | F66: =INSERT!D60 -> 0 | G66: =INSERT!E60 -> 0 | H66: =TERM1!Z73 -> 0 | I66: =TERM1!AR73 -> 0 | J66: =TERM1!BJ73 -> 0 | K66: =TERM1!CB73 -> 0 | L66: 0 | M66: =TERM1!CG73 -> 0 | N66: 0 | O66: 0
A67: 59 | B67: 59 | C67: =INSERT!A61 -> 0 | D67: =INSERT!B61 -> 0 | E67: =INSERT!C61 -> 0 | F67: =INSERT!D61 -> 0 | G67: =INSERT!E61 -> 0 | H67: =TERM1!Z74 -> 0 | I67: =TERM1!AR74 -> 0 | J67: =TERM1!BJ74 -> 0 | K67: =TERM1!CB74 -> 0 | L67: 0 | M67: =TERM1!CG74 -> 0 | N67: 0 | O67: 0
A68: 60 | B68: 60 | C68: =INSERT!A62 -> 0 | D68: =INSERT!B62 -> 0 | E68: =INSERT!C62 -> 0 | F68: =INSERT!D62 -> 0 | G68: =INSERT!E62 -> 0 | H68: =TERM1!Z75 -> 0 | I68: =TERM1!AR75 -> 0 | J68: =TERM1!BJ75 -> 0 | K68: =TERM1!CB75 -> 0 | L68: 0 | M68: =TERM1!CG75 -> 0 | N68: 0 | O68: 0
A69: 61 | B69: 61 | C69: =INSERT!A63 -> 0 | D69: =INSERT!B63 -> 0 | E69: =INSERT!C63 -> 0 | F69: =INSERT!D63 -> 0 | G69: =INSERT!E63 -> 0 | H69: =TERM1!Z76 -> 0 | I69: =TERM1!AR76 -> 0 | J69: =TERM1!BJ76 -> 0 | K69: =TERM1!CB76 -> 0 | L69: 0 | M69: =TERM1!CG76 -> 0 | N69: 0 | O69: 0
A70: 62 | B70: 62 | C70: =INSERT!A64 -> 0 | D70: =INSERT!B64 -> 0 | E70: =INSERT!C64 -> 0 | F70: =INSERT!D64 -> 0 | G70: =INSERT!E64 -> 0 | H70: =TERM1!Z77 -> 0 | I70: =TERM1!AR77 -> 0 | J70: =TERM1!BJ77 -> 0 | K70: =TERM1!CB77 -> 0 | L70: 0 | M70: =TERM1!CG77 -> 0 | N70: 0 | O70: 0
A71: 63 | B71: 63 | C71: =INSERT!A65 -> 0 | D71: =INSERT!B65 -> 0 | E71: =INSERT!C65 -> 0 | F71: =INSERT!D65 -> 0 | G71: =INSERT!E65 -> 0 | H71: =TERM1!Z78 -> 0 | I71: =TERM1!AR78 -> 0 | J71: =TERM1!BJ78 -> 0 | K71: =TERM1!CB78 -> 0 | L71: 0 | M71: =TERM1!CG78 -> 0 | N71: 0 | O71: 0
A72: 64 | B72: 64 | C72: =INSERT!A66 -> 0 | D72: =INSERT!B66 -> 0 | E72: =INSERT!C66 -> 0 | F72: =INSERT!D66 -> 0 | G72: =INSERT!E66 -> 0 | H72: =TERM1!Z79 -> 0 | I72: =TERM1!AR79 -> 0 | J72: =TERM1!BJ79 -> 0 | K72: =TERM1!CB79 -> 0 | L72: 0 | M72: =TERM1!CG79 -> 0 | N72: 0 | O72: 0
A73: 65 | B73: 65 | C73: =INSERT!A67 -> 0 | D73: =INSERT!B67 -> 0 | E73: =INSERT!C67 -> 0 | F73: =INSERT!D67 -> 0 | G73: =INSERT!E67 -> 0 | H73: =TERM1!Z80 -> 0 | I73: =TERM1!AR80 -> 0 | J73: =TERM1!BJ80 -> 0 | K73: =TERM1!CB80 -> 0 | L73: 0 | M73: =TERM1!CG80 -> 0 | N73: 0 | O73: 0 | P73: =IF(O73>79,"7",IF(O73>69,"6",IF(O73>59,"5",IF(O73>49,"4",IF(O73>39,"3",IF(O73>29,"2",IF(O73>0,"1",IF(O73=0,"")))))))) -> 
A74: 66 | B74: 66 | C74: =INSERT!A68 -> 0 | D74: =INSERT!B68 -> 0 | E74: =INSERT!C68 -> 0 | F74: =INSERT!D68 -> 0 | G74: =INSERT!E68 -> 0 | H74: =TERM1!Z81 -> 0 | I74: =TERM1!AR81 -> 0 | J74: =TERM1!BJ81 -> 0 | K74: =TERM1!CB81 -> 0 | L74: =SUMIF(H74:K74,">0") -> 0 | M74: =TERM1!CG81 -> 0 | N74: =IF(L74="<0","",SUM(L74/0.4)) -> 0 | O74: =ROUND((N74),0) -> 0
A75: 67 | B75: 67 | C75: =INSERT!A69 -> 0 | D75: =INSERT!B69 -> 0 | E75: =INSERT!C69 -> 0 | F75: =INSERT!D69 -> 0 | G75: =INSERT!E69 -> 0 | H75: =TERM1!Z82 -> 0 | I75: =TERM1!AR82 -> 0 | J75: =TERM1!BJ82 -> 0 | K75: =TERM1!CB82 -> 0 | L75: 0 | M75: =TERM1!CG82 -> 0 | N75: 0 | O75: 0
A76: 68 | B76: 68 | C76: =INSERT!A70 -> 0 | D76: =INSERT!B70 -> 0 | E76: =INSERT!C70 -> 0 | F76: =INSERT!D70 -> 0 | G76: =INSERT!E70 -> 0 | H76: =TERM1!Z83 -> 0 | I76: =TERM1!AR83 -> 0 | J76: =TERM1!BJ83 -> 0 | K76: =TERM1!CB83 -> 0 | L76: 0 | M76: =TERM1!CG83 -> 0 | N76: 0 | O76: 0
A77: 69 | B77: 69 | C77: =INSERT!A71 -> 0 | D77: =INSERT!B71 -> 0 | E77: =INSERT!C71 -> 0 | F77: =INSERT!D71 -> 0 | G77: =INSERT!E71 -> 0 | H77: =TERM1!Z84 -> 0 | I77: =TERM1!AR84 -> 0 | J77: =TERM1!BJ84 -> 0 | K77: =TERM1!CB84 -> 0 | L77: 0 | M77: =TERM1!CG84 -> 0 | N77: 0 | O77: 0
A78: 70 | B78: 70 | C78: =INSERT!A72 -> 0 | D78: =INSERT!B72 -> 0 | E78: =INSERT!C72 -> 0 | F78: =INSERT!D72 -> 0 | G78: =INSERT!E72 -> 0 | H78: =TERM1!Z85 -> 0 | I78: =TERM1!AR85 -> 0 | J78: =TERM1!BJ85 -> 0 | K78: =TERM1!CB85 -> 0 | L78: 0 | M78: =TERM1!CG85 -> 0 | N78: 0 | O78: 0
A79: 71 | B79: 71 | C79: =INSERT!A73 -> 0 | D79: =INSERT!B73 -> 0 | E79: =INSERT!C73 -> 0 | F79: =INSERT!D73 -> 0 | G79: =INSERT!E73 -> 0 | H79: =TERM1!Z86 -> 0 | I79: =TERM1!AR86 -> 0 | J79: =TERM1!BJ86 -> 0 | K79: =TERM1!CB86 -> 0 | L79: 0 | M79: =TERM1!CG86 -> 0 | N79: 0 | O79: 0
A80: 72 | B80: 72 | C80: =INSERT!A74 -> 0 | D80: =INSERT!B74 -> 0 | E80: =INSERT!C74 -> 0 | F80: =INSERT!D74 -> 0 | G80: =INSERT!E74 -> 0 | H80: =TERM1!Z87 -> 0 | I80: =TERM1!AR87 -> 0 | J80: =TERM1!BJ87 -> 0 | K80: =TERM1!CB87 -> 0 | L80: 0 | M80: =TERM1!CG87 -> 0 | N80: 0 | O80: 0
A81: 73 | B81: 73 | C81: =INSERT!A75 -> 0 | D81: =INSERT!B75 -> 0 | E81: =INSERT!C75 -> 0 | F81: =INSERT!D75 -> 0 | G81: =INSERT!E75 -> 0 | H81: =TERM1!Z88 -> 0 | I81: =TERM1!AR88 -> 0 | J81: =TERM1!BJ88 -> 0 | K81: =TERM1!CB88 -> 0 | L81: 0 | M81: =TERM1!CG88 -> 0 | N81: 0 | O81: 0
A82: 74 | B82: 74 | C82: =INSERT!A76 -> 0 | D82: =INSERT!B76 -> 0 | E82: =INSERT!C76 -> 0 | F82: =INSERT!D76 -> 0 | G82: =INSERT!E76 -> 0 | H82: =TERM1!Z89 -> 0 | I82: =TERM1!AR89 -> 0 | J82: =TERM1!BJ89 -> 0 | K82: =TERM1!CB89 -> 0 | L82: 0 | M82: =TERM1!CG89 -> 0 | N82: 0 | O82: 0
A83: 75 | B83: 75 | C83: =INSERT!A77 -> 0 | D83: =INSERT!B77 -> 0 | E83: =INSERT!C77 -> 0 | F83: =INSERT!D77 -> 0 | G83: =INSERT!E77 -> 0 | H83: =TERM1!Z90 -> 0 | I83: =TERM1!AR90 -> 0 | J83: =TERM1!BJ90 -> 0 | K83: =TERM1!CB90 -> 0 | L83: 0 | M83: =TERM1!CG90 -> 0 | N83: 0 | O83: 0
A84: 76 | B84: 76 | C84: =INSERT!A78 -> 0 | D84: =INSERT!B78 -> 0 | E84: =INSERT!C78 -> 0 | F84: =INSERT!D78 -> 0 | G84: =INSERT!E78 -> 0 | H84: =TERM1!Z91 -> 0 | I84: =TERM1!AR91 -> 0 | J84: =TERM1!BJ91 -> 0 | K84: =TERM1!CB91 -> 0 | L84: 0 | M84: =TERM1!CG91 -> 0 | N84: 0 | O84: 0
A85: 77 | B85: 77 | C85: =INSERT!A79 -> 0 | D85: =INSERT!B79 -> 0 | E85: =INSERT!C79 -> 0 | F85: =INSERT!D79 -> 0 | G85: =INSERT!E79 -> 0 | H85: =TERM1!Z92 -> 0 | I85: =TERM1!AR92 -> 0 | J85: =TERM1!BJ92 -> 0 | K85: =TERM1!CB92 -> 0 | L85: 0 | M85: =TERM1!CG92 -> 0 | N85: 0 | O85: 0
A86: 78 | B86: 78 | C86: =INSERT!A80 -> 0 | D86: =INSERT!B80 -> 0 | E86: =INSERT!C80 -> 0 | F86: =INSERT!D80 -> 0 | G86: =INSERT!E80 -> 0 | H86: =TERM1!Z93 -> 0 | I86: =TERM1!AR93 -> 0 | J86: =TERM1!BJ93 -> 0 | K86: =TERM1!CB93 -> 0 | L86: 0 | M86: =TERM1!CG93 -> 0 | N86: 0 | O86: 0
A87: 79 | B87: 79 | C87: =INSERT!A81 -> 0 | D87: =INSERT!B81 -> 0 | E87: =INSERT!C81 -> 0 | F87: =INSERT!D81 -> 0 | G87: =INSERT!E81 -> 0 | H87: =TERM1!Z94 -> 0 | I87: =TERM1!AR94 -> 0 | J87: =TERM1!BJ94 -> 0 | K87: =TERM1!CB94 -> 0 | L87: 0 | M87: =TERM1!CG94 -> 0 | N87: 0 | O87: 0
A88: 80 | B88: 80 | C88: =INSERT!A82 -> 0 | D88: =INSERT!B82 -> 0 | E88: =INSERT!C82 -> 0 | F88: =INSERT!D82 -> 0 | G88: =INSERT!E82 -> 0 | H88: =TERM1!Z95 -> 0 | I88: =TERM1!AR95 -> 0 | J88: =TERM1!BJ95 -> 0 | K88: =TERM1!CB95 -> 0 | L88: 0 | M88: =TERM1!CG95 -> 0 | N88: 0 | O88: 0
A89: 81 | B89: 81 | C89: =INSERT!A83 -> 0 | D89: =INSERT!B83 -> 0 | E89: =INSERT!C83 -> 0 | F89: =INSERT!D83 -> 0 | G89: =INSERT!E83 -> 0 | H89: =TERM1!Z96 -> 0 | I89: =TERM1!AR96 -> 0 | J89: =TERM1!BJ96 -> 0 | K89: =TERM1!CB96 -> 0 | L89: 0 | M89: =TERM1!CG96 -> 0 | N89: 0 | O89: 0
A90: 82 | B90: 82 | C90: =INSERT!A84 -> 0 | D90: =INSERT!B84 -> 0 | E90: =INSERT!C84 -> 0 | F90: =INSERT!D84 -> 0 | G90: =INSERT!E84 -> 0 | H90: =TERM1!Z97 -> 0 | I90: =TERM1!AR97 -> 0 | J90: =TERM1!BJ97 -> 0 | K90: =TERM1!CB97 -> 0 | L90: 0 | M90: =TERM1!CG97 -> 0 | N90: 0 | O90: 0
A91: 83 | B91: 83 | C91: =INSERT!A85 -> 0 | D91: =INSERT!B85 -> 0 | E91: =INSERT!C85 -> 0 | F91: =INSERT!D85 -> 0 | G91: =INSERT!E85 -> 0 | H91: =TERM1!Z98 -> 0 | I91: =TERM1!AR98 -> 0 | J91: =TERM1!BJ98 -> 0 | K91: =TERM1!CB98 -> 0 | L91: 0 | M91: =TERM1!CG98 -> 0 | N91: 0 | O91: 0
A92: 84 | B92: 84 | C92: =INSERT!A86 -> 0 | D92: =INSERT!B86 -> 0 | E92: =INSERT!C86 -> 0 | F92: =INSERT!D86 -> 0 | G92: =INSERT!E86 -> 0 | H92: =TERM1!Z99 -> 0 | I92: =TERM1!AR99 -> 0 | J92: =TERM1!BJ99 -> 0 | K92: =TERM1!CB99 -> 0 | L92: 0 | M92: =TERM1!CG99 -> 0 | N92: 0 | O92: 0
A93: 85 | B93: 85 | C93: =INSERT!A87 -> 0 | D93: =INSERT!B87 -> 0 | E93: =INSERT!C87 -> 0 | F93: =INSERT!D87 -> 0 | G93: =INSERT!E87 -> 0 | H93: =TERM1!Z100 -> 0 | I93: =TERM1!AR100 -> 0 | J93: =TERM1!BJ100 -> 0 | K93: =TERM1!CB100 -> 0 | L93: 0 | M93: =TERM1!CG100 -> 0 | N93: 0 | O93: 0
A94: 86 | B94: 86 | C94: =INSERT!A88 -> 0 | D94: =INSERT!B88 -> 0 | E94: =INSERT!C88 -> 0 | F94: =INSERT!D88 -> 0 | G94: =INSERT!E88 -> 0 | H94: =TERM1!Z101 -> 0 | I94: =TERM1!AR101 -> 0 | J94: =TERM1!BJ101 -> 0 | K94: =TERM1!CB101 -> 0 | L94: 0 | M94: =TERM1!CG101 -> 0 | N94: 0 | O94: 0
A95: 87 | B95: 87 | C95: =INSERT!A89 -> 0 | D95: =INSERT!B89 -> 0 | E95: =INSERT!C89 -> 0 | F95: =INSERT!D89 -> 0 | G95: =INSERT!E89 -> 0 | H95: =TERM1!Z102 -> 0 | I95: =TERM1!AR102 -> 0 | J95: =TERM1!BJ102 -> 0 | K95: =TERM1!CB102 -> 0 | L95: 0 | M95: =TERM1!CG102 -> 0 | N95: 0 | O95: 0
A96: 88 | B96: 88 | C96: =INSERT!A90 -> 0 | D96: =INSERT!B90 -> 0 | E96: =INSERT!C90 -> 0 | F96: =INSERT!D90 -> 0 | G96: =INSERT!E90 -> 0 | H96: =TERM1!Z103 -> 0 | I96: =TERM1!AR103 -> 0 | J96: =TERM1!BJ103 -> 0 | K96: =TERM1!CB103 -> 0 | L96: 0 | M96: =TERM1!CG103 -> 0 | N96: 0 | O96: 0
A97: 89 | B97: 89 | C97: =INSERT!A91 -> 0 | D97: =INSERT!B91 -> 0 | E97: =INSERT!C91 -> 0 | F97: =INSERT!D91 -> 0 | G97: =INSERT!E91 -> 0 | H97: =TERM1!Z104 -> 0 | I97: =TERM1!AR104 -> 0 | J97: =TERM1!BJ104 -> 0 | K97: =TERM1!CB104 -> 0 | L97: 0 | M97: =TERM1!CG104 -> 0 | N97: 0 | O97: 0
A98: 90 | B98: 90 | C98: =INSERT!A92 -> 0 | D98: =INSERT!B92 -> 0 | E98: =INSERT!C92 -> 0 | F98: =INSERT!D92 -> 0 | G98: =INSERT!E92 -> 0 | H98: =TERM1!Z105 -> 0 | I98: =TERM1!AR105 -> 0 | J98: =TERM1!BJ105 -> 0 | K98: =TERM1!CB105 -> 0 | L98: 0 | M98: =TERM1!CG105 -> 0 | N98: 0 | O98: 0
A99: 91 | B99: 91 | C99: =INSERT!A93 -> 0 | D99: =INSERT!B93 -> 0 | E99: =INSERT!C93 -> 0 | F99: =INSERT!D93 -> 0 | G99: =INSERT!E93 -> 0 | H99: =TERM1!Z106 -> 0 | I99: =TERM1!AR106 -> 0 | J99: =TERM1!BJ106 -> 0 | K99: =TERM1!CB106 -> 0 | L99: 0 | M99: =TERM1!CG106 -> 0 | N99: 0 | O99: 0
A100: 92 | B100: 92 | C100: =INSERT!A94 -> 0 | D100: =INSERT!B94 -> 0 | E100: =INSERT!C94 -> 0 | F100: =INSERT!D94 -> 0 | G100: =INSERT!E94 -> 0 | H100: =TERM1!Z107 -> 0 | I100: =TERM1!AR107 -> 0 | J100: =TERM1!BJ107 -> 0 | K100: =TERM1!CB107 -> 0 | L100: 0 | M100: =TERM1!CG107 -> 0 | N100: 0 | O100: 0
A101: 93 | B101: 93 | C101: =INSERT!A95 -> 0 | D101: =INSERT!B95 -> 0 | E101: =INSERT!C95 -> 0 | F101: =INSERT!D95 -> 0 | G101: =INSERT!E95 -> 0 | H101: =TERM1!Z108 -> 0 | I101: =TERM1!AR108 -> 0 | J101: =TERM1!BJ108 -> 0 | K101: =TERM1!CB108 -> 0 | L101: 0 | M101: =TERM1!CG108 -> 0 | N101: 0 | O101: 0
A102: 94 | B102: 94 | C102: =INSERT!A96 -> 0 | D102: =INSERT!B96 -> 0 | E102: =INSERT!C96 -> 0 | F102: =INSERT!D96 -> 0 | G102: =INSERT!E96 -> 0 | H102: =TERM1!Z109 -> 0 | I102: =TERM1!AR109 -> 0 | J102: =TERM1!BJ109 -> 0 | K102: =TERM1!CB109 -> 0 | L102: 0 | M102: =TERM1!CG109 -> 0 | N102: 0 | O102: 0
A103: 95 | B103: 95 | C103: =INSERT!A97 -> 0 | D103: =INSERT!B97 -> 0 | E103: =INSERT!C97 -> 0 | F103: =INSERT!D97 -> 0 | G103: =INSERT!E97 -> 0 | H103: =TERM1!Z110 -> 0 | I103: =TERM1!AR110 -> 0 | J103: =TERM1!BJ110 -> 0 | K103: =TERM1!CB110 -> 0 | L103: 0 | M103: =TERM1!CG110 -> 0 | N103: 0 | O103: 0
A104: 96 | B104: 96 | C104: =INSERT!A98 -> 0 | D104: =INSERT!B98 -> 0 | E104: =INSERT!C98 -> 0 | F104: =INSERT!D98 -> 0 | G104: =INSERT!E98 -> 0 | H104: =TERM1!Z111 -> 0 | I104: =TERM1!AR111 -> 0 | J104: =TERM1!BJ111 -> 0 | K104: =TERM1!CB111 -> 0 | L104: 0 | M104: =TERM1!CG111 -> 0 | N104: 0 | O104: 0
A105: 97 | B105: 97 | C105: =INSERT!A99 -> 0 | D105: =INSERT!B99 -> 0 | E105: =INSERT!C99 -> 0 | F105: =INSERT!D99 -> 0 | G105: =INSERT!E99 -> 0 | H105: =TERM1!Z112 -> 0 | I105: =TERM1!AR112 -> 0 | J105: =TERM1!BJ112 -> 0 | K105: =TERM1!CB112 -> 0 | L105: 0 | M105: =TERM1!CG112 -> 0 | N105: 0 | O105: 0 | P105: =IF(O105>79,"7",IF(O105>69,"6",IF(O105>59,"5",IF(O105>49,"4",IF(O105>39,"3",IF(O105>29,"2",IF(O105>0,"1",IF(O105=0,"")))))))) -> 
A106: 98 | B106: 98 | C106: =INSERT!A100 -> 0 | D106: =INSERT!B100 -> 0 | E106: =INSERT!C100 -> 0 | F106: =INSERT!D100 -> 0 | G106: =INSERT!E100 -> 0 | H106: =TERM1!Z113 -> 0 | I106: =TERM1!AR113 -> 0 | J106: =TERM1!BJ113 -> 0 | K106: =TERM1!CB113 -> 0 | L106: 0 | M106: =TERM1!CG113 -> 0 | N106: 0 | O106: 0
A107: 99 | B107: 99 | C107: =INSERT!A101 -> 0 | D107: =INSERT!B101 -> 0 | E107: =INSERT!C101 -> 0 | F107: =INSERT!D101 -> 0 | G107: =INSERT!E101 -> 0 | H107: =TERM1!Z114 -> 0 | I107: =TERM1!AR114 -> 0 | J107: =TERM1!BJ114 -> 0 | K107: =TERM1!CB114 -> 0 | L107: 0 | M107: =TERM1!CG114 -> 0 | N107: 0 | O107: 0
A108: 100 | B108: 100 | C108: =INSERT!A102 -> 0 | D108: =INSERT!B102 -> 0 | E108: =INSERT!C102 -> 0 | F108: =INSERT!D102 -> 0 | G108: =INSERT!E102 -> 0 | H108: =TERM1!Z115 -> 0 | I108: =TERM1!AR115 -> 0 | J108: =TERM1!BJ115 -> 0 | K108: =TERM1!CB115 -> 0 | L108: 0 | M108: =TERM1!CG115 -> 0 | N108: 0 | O108: 0
A109: 0 | C109: 0 | D109: 0 | E109: 0 | F109: 0 | G109: Total | H109: =SUM(H9:H108) -> 0 | I109: 0 | J109: 0 | K109: 0 | L109: 0 | M109: 0 | N109: 0 | O109: =SUM(O9:O108) -> 0
A110: 0 | C110: 0 | D110: 0 | E110: 0 | F110: 0 | G110: Average% | H110: =IFERROR(ROUND((AVERAGEIF(H9:H108,">0")/H4*100),1),"0") -> 0 | I110: 0 | J110: 0 | K110: 0 | L110: 0 | M110: 0 | N110: 0 | O110: =IFERROR(ROUND((AVERAGEIF(O9:O108,">0")/O7*100),1),"0") -> 0
A111: Total amount of learners on mark sheet | E111: X | F111: Term results analysis | H111: LEVEL 1 | I111: LEVEL 2 | J111: LEVEL 3 | K111: LEVEL 4 | L111: LEVEL 5 | N111: LEVEL 6 | O111: LEVEL 7 | P111: TOTAL
E112: =INSERT!$E$103 -> 0 | H112: 0 - 29 | I112: 30 - 39 | J112: 40 - 49 | K112: 50 - 59 | L112: 60 - 69 | N112: 70 - 79 | O112: 80 - 100
E113: X | H113: =COUNTIF(P9:P108,1) -> 0 | I113: =COUNTIF($P$9:$P$108,2) -> 0 | J113: =COUNTIF($P$9:$P$108,3) -> 0 | K113: =COUNTIF($P$9:$P$108,4) -> 0 | L113: =COUNTIF($P$9:$P$108,5) -> 0 | N113: =COUNTIF($P$9:$P$108,6) -> 0 | O113: =COUNTIF($P$9:$P$108,7) -> 0 | P113: =SUM(H113:O113) -> 0

Sheet SASAMS TERM2
G1: TASKS | K1: TASK 3 | N1: TASK 4 | T1: TASK PAT (Phase 1)
A2: Grade: | D2: =TERM1!$F$6 -> 0 | G2: Activities | H2: =TERM2!$I$4 -> CD5 2-point perspective | I2: =TERM2!$AA$4 -> CD6 Floor Plan & Elevations | J2: =TERM2!$AS$4 -> CD7 Sectional Elevation | L2: Paper 1 | M2: Paper 2 | O2: 1. Design brief | P2: 2. Research | Q2: 3.1 Possible solutions | R2: 3.2 Possible solutions | S2: 4. Selection of final solution | U2: 100
A3: Weighting | H3: 33 | I3: 33 | J3: 34 | K3: 40 | L3: 50 | M3: 50 | N3: 60 | O3: 20 | P3: 20 | Q3: 20 | R3: 20 | S3: 20 | T3: 0
A4: Marks: -1 = Absent, -2 = Not Captured | G4: Total Mark | H4: 10 | I4: 10 | J4: 10 | K4: 30 | L4: 75 | M4: 75 | N4: =SUM(L4:M4) -> 150 | O4: 10 | P4: 10 | Q4: 10 | R4: 10 | S4: 10 | T4: 29 | U4: TOTAL Weighted Mark | V4: Term % | W4: Level
A5: SBA Year Mark Weight | K5: 9 | N5: 60
G6: Term /Date | K6: Term2 | N6: Term2 | T6: Term2
A7: No | C7: Class | D7: Acc No | E7: Learner | G7: Gender | H7: T2:A1 | I7: T2:A2 | J7: T2:A3 | K7: T2 | L7: T3:A1 | M7: T3:A2 | N7: T3 | O7: T1:A1 | P7: T1:A2 | Q7: T1:A3 | R7: T1:A4 | S7: T1:A5 | T7: T1 | U7: 100 | V7: 100
A9: 1 | B9: 1 | C9: =INSERT!A3 -> 0 | D9: =INSERT!B3 -> 0 | E9: =INSERT!C3 -> 0 | F9: =INSERT!D3 -> 0 | G9: =INSERT!E3 -> 0 | H9: =TERM2!Z16 -> 0 | I9: =TERM2!AR16 -> 0 | J9: =TERM2!BJ16 -> 0 | K9: =ROUND((SUMIF(H9:J9,">0")),0) -> 0 | L9: =TERM2!BK16 -> 0 | M9: =TERM2!BM16 -> 0 | N9: =SUMIF(L9:M9,">0") -> 0 | O9: ='FIN PAT MARK SHEET'!J18 -> 0 | P9: ='FIN PAT MARK SHEET'!K18 -> 0 | Q9: ='FIN PAT MARK SHEET'!L18 -> 0 | R9: ='FIN PAT MARK SHEET'!M18 -> 0 | S9: ='FIN PAT MARK SHEET'!N18 -> 0 | T9: =ROUND((SUMIF(O9:S9,">0")/1.724137931),0) -> 0 | U9: =SUM(K9/0.75)+SUM(N9/2.5) -> 0 | V9: =ROUND(U9,0) -> 0 | W9: =IF(V9>79,"7",IF(V9>69,"6",IF(V9>59,"5",IF(V9>49,"4",IF(V9>39,"3",IF(V9>29,"2",IF(V9>0,"1",IF(V9=0,"")))))))) -> 
A10: 2 | B10: 36 | C10: =INSERT!A4 -> 0 | D10: =INSERT!B4 -> 0 | E10: =INSERT!C4 -> 0 | F10: =INSERT!D4 -> 0 | G10: =INSERT!E4 -> 0 | H10: =TERM2!Z17 -> 0 | I10: =TERM2!AR17 -> 0 | J10: =TERM2!BJ17 -> 0 | K10: 0 | L10: =TERM2!BK17 -> 0 | M10: =TERM2!BM17 -> 0 | N10: =SUMIF(L10:M10,">0") -> 0 | O10: ='FIN PAT MARK SHEET'!J19 -> 0 | P10: ='FIN PAT MARK SHEET'!K19 -> 0 | Q10: ='FIN PAT MARK SHEET'!L19 -> 0 | R10: ='FIN PAT MARK SHEET'!M19 -> 0 | S10: ='FIN PAT MARK SHEET'!N19 -> 0 | T10: 0 | U10: =SUM(K10/0.75)+SUM(N10/2.5) -> 0 | V10: 0
A11: 3 | B11: 2 | C11: =INSERT!A5 -> 0 | D11: =INSERT!B5 -> 0 | E11: =INSERT!C5 -> 0 | F11: =INSERT!D5 -> 0 | G11: =INSERT!E5 -> 0 | H11: =TERM2!Z18 -> 0 | I11: =TERM2!AR18 -> 0 | J11: =TERM2!BJ18 -> 0 | K11: 0 | L11: =TERM2!BK18 -> 0 | M11: =TERM2!BM18 -> 0 | N11: 0 | O11: ='FIN PAT MARK SHEET'!J20 -> 0 | P11: ='FIN PAT MARK SHEET'!K20 -> 0 | Q11: ='FIN PAT MARK SHEET'!L20 -> 0 | R11: ='FIN PAT MARK SHEET'!M20 -> 0 | S11: ='FIN PAT MARK SHEET'!N20 -> 0 | T11: 0 | U11: 0 | V11: 0
A12: 4 | B12: 3 | C12: =INSERT!A6 -> 0 | D12: =INSERT!B6 -> 0 | E12: =INSERT!C6 -> 0 | F12: =INSERT!D6 -> 0 | G12: =INSERT!E6 -> 0 | H12: =TERM2!Z19 -> 0 | I12: =TERM2!AR19 -> 0 | J12: =TERM2!BJ19 -> 0 | K12: 0 | L12: =TERM2!BK19 -> 0 | M12: =TERM2!BM19 -> 0 | N12: 0 | O12: ='FIN PAT MARK SHEET'!J21 -> 0 | P12: ='FIN PAT MARK SHEET'!K21 -> 0 | Q12: ='FIN PAT MARK SHEET'!L21 -> 0 | R12: ='FIN PAT MARK SHEET'!M21 -> 0 | S12: ='FIN PAT MARK SHEET'!N21 -> 0 | T12: 0 | U12: 0 | V12: 0
A13: 5 | B13: 4 | C13: =INSERT!A7 -> 0 | D13: =INSERT!B7 -> 0 | E13: =INSERT!C7 -> 0 | F13: =INSERT!D7 -> 0 | G13: =INSERT!E7 -> 0 | H13: =TERM2!Z20 -> 0 | I13: =TERM2!AR20 -> 0 | J13: =TERM2!BJ20 -> 0 | K13: 0 | L13: =TERM2!BK20 -> 0 | M13: =TERM2!BM20 -> 0 | N13: 0 | O13: ='FIN PAT MARK SHEET'!J22 -> 0 | P13: ='FIN PAT MARK SHEET'!K22 -> 0 | Q13: ='FIN PAT MARK SHEET'!L22 -> 0 | R13: ='FIN PAT MARK SHEET'!M22 -> 0 | S13: ='FIN PAT MARK SHEET'!N22 -> 0 | T13: 0 | U13: 0 | V13: 0
A14: 6 | B14: 5 | C14: =INSERT!A8 -> 0 | D14: =INSERT!B8 -> 0 | E14: =INSERT!C8 -> 0 | F14: =INSERT!D8 -> 0 | G14: =INSERT!E8 -> 0 | H14: =TERM2!Z21 -> 0 | I14: =TERM2!AR21 -> 0 | J14: =TERM2!BJ21 -> 0 | K14: 0 | L14: =TERM2!BK21 -> 0 | M14: =TERM2!BM21 -> 0 | N14: 0 | O14: ='FIN PAT MARK SHEET'!J23 -> 0 | P14: ='FIN PAT MARK SHEET'!K23 -> 0 | Q14: ='FIN PAT MARK SHEET'!L23 -> 0 | R14: ='FIN PAT MARK SHEET'!M23 -> 0 | S14: ='FIN PAT MARK SHEET'!N23 -> 0 | T14: 0 | U14: 0 | V14: 0
A15: 7 | B15: 6 | C15: =INSERT!A9 -> 0 | D15: =INSERT!B9 -> 0 | E15: =INSERT!C9 -> 0 | F15: =INSERT!D9 -> 0 | G15: =INSERT!E9 -> 0 | H15: =TERM2!Z22 -> 0 | I15: =TERM2!AR22 -> 0 | J15: =TERM2!BJ22 -> 0 | K15: 0 | L15: =TERM2!BK22 -> 0 | M15: =TERM2!BM22 -> 0 | N15: 0 | O15: ='FIN PAT MARK SHEET'!J24 -> 0 | P15: ='FIN PAT MARK SHEET'!K24 -> 0 | Q15: ='FIN PAT MARK SHEET'!L24 -> 0 | R15: ='FIN PAT MARK SHEET'!M24 -> 0 | S15: ='FIN PAT MARK SHEET'!N24 -> 0 | T15: 0 | U15: 0 | V15: 0
A16: 8 | B16: 7 | C16: =INSERT!A10 -> 0 | D16: =INSERT!B10 -> 0 | E16: =INSERT!C10 -> 0 | F16: =INSERT!D10 -> 0 | G16: =INSERT!E10 -> 0 | H16: =TERM2!Z23 -> 0 | I16: =TERM2!AR23 -> 0 | J16: =TERM2!BJ23 -> 0 | K16: 0 | L16: =TERM2!BK23 -> 0 | M16: =TERM2!BM23 -> 0 | N16: 0 | O16: ='FIN PAT MARK SHEET'!J25 -> 0 | P16: ='FIN PAT MARK SHEET'!K25 -> 0 | Q16: ='FIN PAT MARK SHEET'!L25 -> 0 | R16: ='FIN PAT MARK SHEET'!M25 -> 0 | S16: ='FIN PAT MARK SHEET'!N25 -> 0 | T16: 0 | U16: 0 | V16: 0
A17: 9 | B17: 8 | C17: =INSERT!A11 -> 0 | D17: =INSERT!B11 -> 0 | E17: =INSERT!C11 -> 0 | F17: =INSERT!D11 -> 0 | G17: =INSERT!E11 -> 0 | H17: =TERM2!Z24 -> 0 | I17: =TERM2!AR24 -> 0 | J17: =TERM2!BJ24 -> 0 | K17: 0 | L17: =TERM2!BK24 -> 0 | M17: =TERM2!BM24 -> 0 | N17: 0 | O17: ='FIN PAT MARK SHEET'!J26 -> 0 | P17: ='FIN PAT MARK SHEET'!K26 -> 0 | Q17: ='FIN PAT MARK SHEET'!L26 -> 0 | R17: ='FIN PAT MARK SHEET'!M26 -> 0 | S17: ='FIN PAT MARK SHEET'!N26 -> 0 | T17: 0 | U17: 0 | V17: 0
A18: 10 | B18: 9 | C18: =INSERT!A12 -> 0 | D18: =INSERT!B12 -> 0 | E18: =INSERT!C12 -> 0 | F18: =INSERT!D12 -> 0 | G18: =INSERT!E12 -> 0 | H18: =TERM2!Z25 -> 0 | I18: =TERM2!AR25 -> 0 | J18: =TERM2!BJ25 -> 0 | K18: 0 | L18: =TERM2!BK25 -> 0 | M18: =TERM2!BM25 -> 0 | N18: 0 | O18: ='FIN PAT MARK SHEET'!J27 -> 0 | P18: ='FIN PAT MARK SHEET'!K27 -> 0 | Q18: ='FIN PAT MARK SHEET'!L27 -> 0 | R18: ='FIN PAT MARK SHEET'!M27 -> 0 | S18: ='FIN PAT MARK SHEET'!N27 -> 0 | T18: 0 | U18: 0 | V18: 0
A19: 11 | B19: 11 | C19: =INSERT!A13 -> 0 | D19: =INSERT!B13 -> 0 | E19: =INSERT!C13 -> 0 | F19: =INSERT!D13 -> 0 | G19: =INSERT!E13 -> 0 | H19: =TERM2!Z26 -> 0 | I19: =TERM2!AR26 -> 0 | J19: =TERM2!BJ26 -> 0 | K19: 0 | L19: =TERM2!BK26 -> 0 | M19: =TERM2!BM26 -> 0 | N19: 0 | O19: ='FIN PAT MARK SHEET'!J28 -> 0 | P19: ='FIN PAT MARK SHEET'!K28 -> 0 | Q19: ='FIN PAT MARK SHEET'!L28 -> 0 | R19: ='FIN PAT MARK SHEET'!M28 -> 0 | S19: ='FIN PAT MARK SHEET'!N28 -> 0 | T19: 0 | U19: 0 | V19: 0
A20: 12 | B20: 12 | C20: =INSERT!A14 -> 0 | D20: =INSERT!B14 -> 0 | E20: =INSERT!C14 -> 0 | F20: =INSERT!D14 -> 0 | G20: =INSERT!E14 -> 0 | H20: =TERM2!Z27 -> 0 | I20: =TERM2!AR27 -> 0 | J20: =TERM2!BJ27 -> 0 | K20: 0 | L20: =TERM2!BK27 -> 0 | M20: =TERM2!BM27 -> 0 | N20: 0 | O20: ='FIN PAT MARK SHEET'!J29 -> 0 | P20: ='FIN PAT MARK SHEET'!K29 -> 0 | Q20: ='FIN PAT MARK SHEET'!L29 -> 0 | R20: ='FIN PAT MARK SHEET'!M29 -> 0 | S20: ='FIN PAT MARK SHEET'!N29 -> 0 | T20: 0 | U20: 0 | V20: 0
A21: 13 | B21: 13 | C21: =INSERT!A15 -> 0 | D21: =INSERT!B15 -> 0 | E21: =INSERT!C15 -> 0 | F21: =INSERT!D15 -> 0 | G21: =INSERT!E15 -> 0 | H21: =TERM2!Z28 -> 0 | I21: =TERM2!AR28 -> 0 | J21: =TERM2!BJ28 -> 0 | K21: 0 | L21: =TERM2!BK28 -> 0 | M21: =TERM2!BM28 -> 0 | N21: 0 | O21: ='FIN PAT MARK SHEET'!J30 -> 0 | P21: ='FIN PAT MARK SHEET'!K30 -> 0 | Q21: ='FIN PAT MARK SHEET'!L30 -> 0 | R21: ='FIN PAT MARK SHEET'!M30 -> 0 | S21: ='FIN PAT MARK SHEET'!N30 -> 0 | T21: 0 | U21: 0 | V21: 0
A22: 14 | B22: 14 | C22: =INSERT!A16 -> 0 | D22: =INSERT!B16 -> 0 | E22: =INSERT!C16 -> 0 | F22: =INSERT!D16 -> 0 | G22: =INSERT!E16 -> 0 | H22: =TERM2!Z29 -> 0 | I22: =TERM2!AR29 -> 0 | J22: =TERM2!BJ29 -> 0 | K22: 0 | L22: =TERM2!BK29 -> 0 | M22: =TERM2!BM29 -> 0 | N22: 0 | O22: ='FIN PAT MARK SHEET'!J31 -> 0 | P22: ='FIN PAT MARK SHEET'!K31 -> 0 | Q22: ='FIN PAT MARK SHEET'!L31 -> 0 | R22: ='FIN PAT MARK SHEET'!M31 -> 0 | S22: ='FIN PAT MARK SHEET'!N31 -> 0 | T22: 0 | U22: 0 | V22: 0
A23: 15 | B23: 15 | C23: =INSERT!A17 -> 0 | D23: =INSERT!B17 -> 0 | E23: =INSERT!C17 -> 0 | F23: =INSERT!D17 -> 0 | G23: =INSERT!E17 -> 0 | H23: =TERM2!Z30 -> 0 | I23: =TERM2!AR30 -> 0 | J23: =TERM2!BJ30 -> 0 | K23: 0 | L23: =TERM2!BK30 -> 0 | M23: =TERM2!BM30 -> 0 | N23: 0 | O23: ='FIN PAT MARK SHEET'!J32 -> 0 | P23: ='FIN PAT MARK SHEET'!K32 -> 0 | Q23: ='FIN PAT MARK SHEET'!L32 -> 0 | R23: ='FIN PAT MARK SHEET'!M32 -> 0 | S23: ='FIN PAT MARK SHEET'!N32 -> 0 | T23: 0 | U23: 0 | V23: 0
A24: 16 | B24: 16 | C24: =INSERT!A18 -> 0 | D24: =INSERT!B18 -> 0 | E24: =INSERT!C18 -> 0 | F24: =INSERT!D18 -> 0 | G24: =INSERT!E18 -> 0 | H24: =TERM2!Z31 -> 0 | I24: =TERM2!AR31 -> 0 | J24: =TERM2!BJ31 -> 0 | K24: 0 | L24: =TERM2!BK31 -> 0 | M24: =TERM2!BM31 -> 0 | N24: 0 | O24: ='FIN PAT MARK SHEET'!J33 -> 0 | P24: ='FIN PAT MARK SHEET'!K33 -> 0 | Q24: ='FIN PAT MARK SHEET'!L33 -> 0 | R24: ='FIN PAT MARK SHEET'!M33 -> 0 | S24: ='FIN PAT MARK SHEET'!N33 -> 0 | T24: 0 | U24: 0 | V24: 0
A25: 17 | B25: 17 | C25: =INSERT!A19 -> 0 | D25: =INSERT!B19 -> 0 | E25: =INSERT!C19 -> 0 | F25: =INSERT!D19 -> 0 | G25: =INSERT!E19 -> 0 | H25: =TERM2!Z32 -> 0 | I25: =TERM2!AR32 -> 0 | J25: =TERM2!BJ32 -> 0 | K25: 0 | L25: =TERM2!BK32 -> 0 | M25: =TERM2!BM32 -> 0 | N25: 0 | O25: ='FIN PAT MARK SHEET'!J34 -> 0 | P25: ='FIN PAT MARK SHEET'!K34 -> 0 | Q25: ='FIN PAT MARK SHEET'!L34 -> 0 | R25: ='FIN PAT MARK SHEET'!M34 -> 0 | S25: ='FIN PAT MARK SHEET'!N34 -> 0 | T25: 0 | U25: 0 | V25: 0
A26: 18 | B26: 18 | C26: =INSERT!A20 -> 0 | D26: =INSERT!B20 -> 0 | E26: =INSERT!C20 -> 0 | F26: =INSERT!D20 -> 0 | G26: =INSERT!E20 -> 0 | H26: =TERM2!Z33 -> 0 | I26: =TERM2!AR33 -> 0 | J26: =TERM2!BJ33 -> 0 | K26: 0 | L26: =TERM2!BK33 -> 0 | M26: =TERM2!BM33 -> 0 | N26: 0 | O26: ='FIN PAT MARK SHEET'!J35 -> 0 | P26: ='FIN PAT MARK SHEET'!K35 -> 0 | Q26: ='FIN PAT MARK SHEET'!L35 -> 0 | R26: ='FIN PAT MARK SHEET'!M35 -> 0 | S26: ='FIN PAT MARK SHEET'!N35 -> 0 | T26: 0 | U26: 0 | V26: 0
A27: 19 | B27: 19 | C27: =INSERT!A21 -> 0 | D27: =INSERT!B21 -> 0 | E27: =INSERT!C21 -> 0 | F27: =INSERT!D21 -> 0 | G27: =INSERT!E21 -> 0 | H27: =TERM2!Z34 -> 0 | I27: =TERM2!AR34 -> 0 | J27: =TERM2!BJ34 -> 0 | K27: 0 | L27: =TERM2!BK34 -> 0 | M27: =TERM2!BM34 -> 0 | N27: 0 | O27: ='FIN PAT MARK SHEET'!J36 -> 0 | P27: ='FIN PAT MARK SHEET'!K36 -> 0 | Q27: ='FIN PAT MARK SHEET'!L36 -> 0 | R27: ='FIN PAT MARK SHEET'!M36 -> 0 | S27: ='FIN PAT MARK SHEET'!N36 -> 0 | T27: 0 | U27: 0 | V27: 0
A28: 20 | B28: 20 | C28: =INSERT!A22 -> 0 | D28: =INSERT!B22 -> 0 | E28: =INSERT!C22 -> 0 | F28: =INSERT!D22 -> 0 | G28: =INSERT!E22 -> 0 | H28: =TERM2!Z35 -> 0 | I28: =TERM2!AR35 -> 0 | J28: =TERM2!BJ35 -> 0 | K28: 0 | L28: =TERM2!BK35 -> 0 | M28: =TERM2!BM35 -> 0 | N28: 0 | O28: ='FIN PAT MARK SHEET'!J37 -> 0 | P28: ='FIN PAT MARK SHEET'!K37 -> 0 | Q28: ='FIN PAT MARK SHEET'!L37 -> 0 | R28: ='FIN PAT MARK SHEET'!M37 -> 0 | S28: ='FIN PAT MARK SHEET'!N37 -> 0 | T28: 0 | U28: 0 | V28: 0
A29: 21 | B29: 21 | C29: =INSERT!A23 -> 0 | D29: =INSERT!B23 -> 0 | E29: =INSERT!C23 -> 0 | F29: =INSERT!D23 -> 0 | G29: =INSERT!E23 -> 0 | H29: =TERM2!Z36 -> 0 | I29: =TERM2!AR36 -> 0 | J29: =TERM2!BJ36 -> 0 | K29: 0 | L29: =TERM2!BK36 -> 0 | M29: =TERM2!BM36 -> 0 | N29: 0 | O29: ='FIN PAT MARK SHEET'!J38 -> 0 | P29: ='FIN PAT MARK SHEET'!K38 -> 0 | Q29: ='FIN PAT MARK SHEET'!L38 -> 0 | R29: ='FIN PAT MARK SHEET'!M38 -> 0 | S29: ='FIN PAT MARK SHEET'!N38 -> 0 | T29: 0 | U29: 0 | V29: 0
A30: 22 | B30: 22 | C30: =INSERT!A24 -> 0 | D30: =INSERT!B24 -> 0 | E30: =INSERT!C24 -> 0 | F30: =INSERT!D24 -> 0 | G30: =INSERT!E24 -> 0 | H30: =TERM2!Z37 -> 0 | I30: =TERM2!AR37 -> 0 | J30: =TERM2!BJ37 -> 0 | K30: 0 | L30: =TERM2!BK37 -> 0 | M30: =TERM2!BM37 -> 0 | N30: 0 | O30: ='FIN PAT MARK SHEET'!J39 -> 0 | P30: ='FIN PAT MARK SHEET'!K39 -> 0 | Q30: ='FIN PAT MARK SHEET'!L39 -> 0 | R30: ='FIN PAT MARK SHEET'!M39 -> 0 | S30: ='FIN PAT MARK SHEET'!N39 -> 0 | T30: 0 | U30: 0 | V30: 0
A31: 23 | B31: 23 | C31: =INSERT!A25 -> 0 | D31: =INSERT!B25 -> 0 | E31: =INSERT!C25 -> 0 | F31: =INSERT!D25 -> 0 | G31: =INSERT!E25 -> 0 | H31: =TERM2!Z38 -> 0 | I31: =TERM2!AR38 -> 0 | J31: =TERM2!BJ38 -> 0 | K31: 0 | L31: =TERM2!BK38 -> 0 | M31: =TERM2!BM38 -> 0 | N31: 0 | O31: ='FIN PAT MARK SHEET'!J40 -> 0 | P31: ='FIN PAT MARK SHEET'!K40 -> 0 | Q31: ='FIN PAT MARK SHEET'!L40 -> 0 | R31: ='FIN PAT MARK SHEET'!M40 -> 0 | S31: ='FIN PAT MARK SHEET'!N40 -> 0 | T31: 0 | U31: 0 | V31: 0
A32: 24 | B32: 24 | C32: =INSERT!A26 -> 0 | D32: =INSERT!B26 -> 0 | E32: =INSERT!C26 -> 0 | F32: =INSERT!D26 -> 0 | G32: =INSERT!E26 -> 0 | H32: =TERM2!Z39 -> 0 | I32: =TERM2!AR39 -> 0 | J32: =TERM2!BJ39 -> 0 | K32: 0 | L32: =TERM2!BK39 -> 0 | M32: =TERM2!BM39 -> 0 | N32: 0 | O32: ='FIN PAT MARK SHEET'!J41 -> 0 | P32: ='FIN PAT MARK SHEET'!K41 -> 0 | Q32: ='FIN PAT MARK SHEET'!L41 -> 0 | R32: ='FIN PAT MARK SHEET'!M41 -> 0 | S32: ='FIN PAT MARK SHEET'!N41 -> 0 | T32: 0 | U32: 0 | V32: 0
A33: 25 | B33: 25 | C33: =INSERT!A27 -> 0 | D33: =INSERT!B27 -> 0 | E33: =INSERT!C27 -> 0 | F33: =INSERT!D27 -> 0 | G33: =INSERT!E27 -> 0 | H33: =TERM2!Z40 -> 0 | I33: =TERM2!AR40 -> 0 | J33: =TERM2!BJ40 -> 0 | K33: 0 | L33: =TERM2!BK40 -> 0 | M33: =TERM2!BM40 -> 0 | N33: 0 | O33: ='FIN PAT MARK SHEET'!J42 -> 0 | P33: ='FIN PAT MARK SHEET'!K42 -> 0 | Q33: ='FIN PAT MARK SHEET'!L42 -> 0 | R33: ='FIN PAT MARK SHEET'!M42 -> 0 | S33: ='FIN PAT MARK SHEET'!N42 -> 0 | T33: 0 | U33: 0 | V33: 0
A34: 26 | B34: 26 | C34: =INSERT!A28 -> 0 | D34: =INSERT!B28 -> 0 | E34: =INSERT!C28 -> 0 | F34: =INSERT!D28 -> 0 | G34: =INSERT!E28 -> 0 | H34: =TERM2!Z41 -> 0 | I34: =TERM2!AR41 -> 0 | J34: =TERM2!BJ41 -> 0 | K34: 0 | L34: =TERM2!BK41 -> 0 | M34: =TERM2!BM41 -> 0 | N34: 0 | O34: ='FIN PAT MARK SHEET'!J43 -> 0 | P34: ='FIN PAT MARK SHEET'!K43 -> 0 | Q34: ='FIN PAT MARK SHEET'!L43 -> 0 | R34: ='FIN PAT MARK SHEET'!M43 -> 0 | S34: ='FIN PAT MARK SHEET'!N43 -> 0 | T34: 0 | U34: 0 | V34: 0
A35: 27 | B35: 28 | C35: =INSERT!A29 -> 0 | D35: =INSERT!B29 -> 0 | E35: =INSERT!C29 -> 0 | F35: =INSERT!D29 -> 0 | G35: =INSERT!E29 -> 0 | H35: =TERM2!Z42 -> 0 | I35: =TERM2!AR42 -> 0 | J35: =TERM2!BJ42 -> 0 | K35: 0 | L35: =TERM2!BK42 -> 0 | M35: =TERM2!BM42 -> 0 | N35: 0 | O35: ='FIN PAT MARK SHEET'!J44 -> 0 | P35: ='FIN PAT MARK SHEET'!K44 -> 0 | Q35: ='FIN PAT MARK SHEET'!L44 -> 0 | R35: ='FIN PAT MARK SHEET'!M44 -> 0 | S35: ='FIN PAT MARK SHEET'!N44 -> 0 | T35: 0 | U35: 0 | V35: 0
A36: 28 | B36: 29 | C36: =INSERT!A30 -> 0 | D36: =INSERT!B30 -> 0 | E36: =INSERT!C30 -> 0 | F36: =INSERT!D30 -> 0 | G36: =INSERT!E30 -> 0 | H36: =TERM2!Z43 -> 0 | I36: =TERM2!AR43 -> 0 | J36: =TERM2!BJ43 -> 0 | K36: 0 | L36: =TERM2!BK43 -> 0 | M36: =TERM2!BM43 -> 0 | N36: 0 | O36: ='FIN PAT MARK SHEET'!J45 -> 0 | P36: ='FIN PAT MARK SHEET'!K45 -> 0 | Q36: ='FIN PAT MARK SHEET'!L45 -> 0 | R36: ='FIN PAT MARK SHEET'!M45 -> 0 | S36: ='FIN PAT MARK SHEET'!N45 -> 0 | T36: 0 | U36: 0 | V36: 0
A37: 29 | B37: 30 | C37: =INSERT!A31 -> 0 | D37: =INSERT!B31 -> 0 | E37: =INSERT!C31 -> 0 | F37: =INSERT!D31 -> 0 | G37: =INSERT!E31 -> 0 | H37: =TERM2!Z44 -> 0 | I37: =TERM2!AR44 -> 0 | J37: =TERM2!BJ44 -> 0 | K37: 0 | L37: =TERM2!BK44 -> 0 | M37: =TERM2!BM44 -> 0 | N37: 0 | O37: ='FIN PAT MARK SHEET'!J46 -> 0 | P37: ='FIN PAT MARK SHEET'!K46 -> 0 | Q37: ='FIN PAT MARK SHEET'!L46 -> 0 | R37: ='FIN PAT MARK SHEET'!M46 -> 0 | S37: ='FIN PAT MARK SHEET'!N46 -> 0 | T37: 0 | U37: 0 | V37: 0
A38: 30 | B38: 31 | C38: =INSERT!A32 -> 0 | D38: =INSERT!B32 -> 0 | E38: =INSERT!C32 -> 0 | F38: =INSERT!D32 -> 0 | G38: =INSERT!E32 -> 0 | H38: =TERM2!Z45 -> 0 | I38: =TERM2!AR45 -> 0 | J38: =TERM2!BJ45 -> 0 | K38: 0 | L38: =TERM2!BK45 -> 0 | M38: =TERM2!BM45 -> 0 | N38: 0 | O38: ='FIN PAT MARK SHEET'!J47 -> 0 | P38: ='FIN PAT MARK SHEET'!K47 -> 0 | Q38: ='FIN PAT MARK SHEET'!L47 -> 0 | R38: ='FIN PAT MARK SHEET'!M47 -> 0 | S38: ='FIN PAT MARK SHEET'!N47 -> 0 | T38: 0 | U38: 0 | V38: 0
A39: 31 | B39: 32 | C39: =INSERT!A33 -> 0 | D39: =INSERT!B33 -> 0 | E39: =INSERT!C33 -> 0 | F39: =INSERT!D33 -> 0 | G39: =INSERT!E33 -> 0 | H39: =TERM2!Z46 -> 0 | I39: =TERM2!AR46 -> 0 | J39: =TERM2!BJ46 -> 0 | K39: 0 | L39: =TERM2!BK46 -> 0 | M39: =TERM2!BM46 -> 0 | N39: 0 | O39: ='FIN PAT MARK SHEET'!J48 -> 0 | P39: ='FIN PAT MARK SHEET'!K48 -> 0 | Q39: ='FIN PAT MARK SHEET'!L48 -> 0 | R39: ='FIN PAT MARK SHEET'!M48 -> 0 | S39: ='FIN PAT MARK SHEET'!N48 -> 0 | T39: 0 | U39: 0 | V39: 0
A40: 32 | B40: 33 | C40: =INSERT!A34 -> 0 | D40: =INSERT!B34 -> 0 | E40: =INSERT!C34 -> 0 | F40: =INSERT!D34 -> 0 | G40: =INSERT!E34 -> 0 | H40: =TERM2!Z47 -> 0 | I40: =TERM2!AR47 -> 0 | J40: =TERM2!BJ47 -> 0 | K40: 0 | L40: =TERM2!BK47 -> 0 | M40: =TERM2!BM47 -> 0 | N40: 0 | O40: ='FIN PAT MARK SHEET'!J49 -> 0 | P40: ='FIN PAT MARK SHEET'!K49 -> 0 | Q40: ='FIN PAT MARK SHEET'!L49 -> 0 | R40: ='FIN PAT MARK SHEET'!M49 -> 0 | S40: ='FIN PAT MARK SHEET'!N49 -> 0 | T40: 0 | U40: 0 | V40: 0
A41: 33 | B41: 34 | C41: =INSERT!A35 -> 0 | D41: =INSERT!B35 -> 0 | E41: =INSERT!C35 -> 0 | F41: =INSERT!D35 -> 0 | G41: =INSERT!E35 -> 0 | H41: =TERM2!Z48 -> 0 | I41: =TERM2!AR48 -> 0 | J41: =TERM2!BJ48 -> 0 | K41: =ROUND((SUMIF(H41:J41,">0")),0) -> 0 | L41: =TERM2!BK48 -> 0 | M41: =TERM2!BM48 -> 0 | N41: 0 | O41: ='FIN PAT MARK SHEET'!J50 -> 0 | P41: ='FIN PAT MARK SHEET'!K50 -> 0 | Q41: ='FIN PAT MARK SHEET'!L50 -> 0 | R41: ='FIN PAT MARK SHEET'!M50 -> 0 | S41: ='FIN PAT MARK SHEET'!N50 -> 0 | T41: =ROUND((SUMIF(O41:S41,">0")/1.724137931),0) -> 0 | U41: 0 | V41: =ROUND(U41,0) -> 0 | W41: =IF(V41>79,"7",IF(V41>69,"6",IF(V41>59,"5",IF(V41>49,"4",IF(V41>39,"3",IF(V41>29,"2",IF(V41>0,"1",IF(V41=0,"")))))))) -> 
A42: 34 | B42: 37 | C42: =INSERT!A36 -> 0 | D42: =INSERT!B36 -> 0 | E42: =INSERT!C36 -> 0 | F42: =INSERT!D36 -> 0 | G42: =INSERT!E36 -> 0 | H42: =TERM2!Z49 -> 0 | I42: =TERM2!AR49 -> 0 | J42: =TERM2!BJ49 -> 0 | K42: 0 | L42: =TERM2!BK49 -> 0 | M42: =TERM2!BM49 -> 0 | N42: 0 | O42: ='FIN PAT MARK SHEET'!J51 -> 0 | P42: ='FIN PAT MARK SHEET'!K51 -> 0 | Q42: ='FIN PAT MARK SHEET'!L51 -> 0 | R42: ='FIN PAT MARK SHEET'!M51 -> 0 | S42: ='FIN PAT MARK SHEET'!N51 -> 0 | T42: 0 | U42: 0 | V42: 0
A43: 35 | B43: 35 | C43: =INSERT!A37 -> 0 | D43: =INSERT!B37 -> 0 | E43: =INSERT!C37 -> 0 | F43: =INSERT!D37 -> 0 | G43: =INSERT!E37 -> 0 | H43: =TERM2!Z50 -> 0 | I43: =TERM2!AR50 -> 0 | J43: =TERM2!BJ50 -> 0 | K43: 0 | L43: =TERM2!BK50 -> 0 | M43: =TERM2!BM50 -> 0 | N43: 0 | O43: ='FIN PAT MARK SHEET'!J52 -> 0 | P43: ='FIN PAT MARK SHEET'!K52 -> 0 | Q43: ='FIN PAT MARK SHEET'!L52 -> 0 | R43: ='FIN PAT MARK SHEET'!M52 -> 0 | S43: ='FIN PAT MARK SHEET'!N52 -> 0 | T43: 0 | U43: 0 | V43: 0
A44: 36 | B44: 10 | C44: =INSERT!A38 -> 0 | D44: =INSERT!B38 -> 0 | E44: =INSERT!C38 -> 0 | F44: =INSERT!D38 -> 0 | G44: =INSERT!E38 -> 0 | H44: =TERM2!Z51 -> 0 | I44: =TERM2!AR51 -> 0 | J44: =TERM2!BJ51 -> 0 | K44: 0 | L44: =TERM2!BK51 -> 0 | M44: =TERM2!BM51 -> 0 | N44: 0 | O44: ='FIN PAT MARK SHEET'!J53 -> 0 | P44: ='FIN PAT MARK SHEET'!K53 -> 0 | Q44: ='FIN PAT MARK SHEET'!L53 -> 0 | R44: ='FIN PAT MARK SHEET'!M53 -> 0 | S44: ='FIN PAT MARK SHEET'!N53 -> 0 | T44: 0 | U44: 0 | V44: 0
A45: 37 | B45: 27 | C45: =INSERT!A39 -> 0 | D45: =INSERT!B39 -> 0 | E45: =INSERT!C39 -> 0 | F45: =INSERT!D39 -> 0 | G45: =INSERT!E39 -> 0 | H45: =TERM2!Z52 -> 0 | I45: =TERM2!AR52 -> 0 | J45: =TERM2!BJ52 -> 0 | K45: 0 | L45: =TERM2!BK52 -> 0 | M45: =TERM2!BM52 -> 0 | N45: 0 | O45: ='FIN PAT MARK SHEET'!J54 -> 0 | P45: ='FIN PAT MARK SHEET'!K54 -> 0 | Q45: ='FIN PAT MARK SHEET'!L54 -> 0 | R45: ='FIN PAT MARK SHEET'!M54 -> 0 | S45: ='FIN PAT MARK SHEET'!N54 -> 0 | T45: 0 | U45: 0 | V45: 0
A46: 38 | B46: 38 | C46: =INSERT!A40 -> 0 | D46: =INSERT!B40 -> 0 | E46: =INSERT!C40 -> 0 | F46: =INSERT!D40 -> 0 | G46: =INSERT!E40 -> 0 | H46: =TERM2!Z53 -> 0 | I46: =TERM2!AR53 -> 0 | J46: =TERM2!BJ53 -> 0 | K46: 0 | L46: =TERM2!BK53 -> 0 | M46: =TERM2!BM53 -> 0 | N46: 0 | O46: ='FIN PAT MARK SHEET'!J55 -> 0 | P46: ='FIN PAT MARK SHEET'!K55 -> 0 | Q46: ='FIN PAT MARK SHEET'!L55 -> 0 | R46: ='FIN PAT MARK SHEET'!M55 -> 0 | S46: ='FIN PAT MARK SHEET'!N55 -> 0 | T46: 0 | U46: 0 | V46: 0
A47: 39 | B47: 39 | C47: =INSERT!A41 -> 0 | D47: =INSERT!B41 -> 0 | E47: =INSERT!C41 -> 0 | F47: =INSERT!D41 -> 0 | G47: =INSERT!E41 -> 0 | H47: =TERM2!Z54 -> 0 | I47: =TERM2!AR54 -> 0 | J47: =TERM2!BJ54 -> 0 | K47: 0 | L47: =TERM2!BK54 -> 0 | M47: =TERM2!BM54 -> 0 | N47: 0 | O47: ='FIN PAT MARK SHEET'!J56 -> 0 | P47: ='FIN PAT MARK SHEET'!K56 -> 0 | Q47: ='FIN PAT MARK SHEET'!L56 -> 0 | R47: ='FIN PAT MARK SHEET'!M56 -> 0 | S47: ='FIN PAT MARK SHEET'!N56 -> 0 | T47: 0 | U47: 0 | V47: 0
A48: 40 | B48: 40 | C48: =INSERT!A42 -> 0 | D48: =INSERT!B42 -> 0 | E48: =INSERT!C42 -> 0 | F48: =INSERT!D42 -> 0 | G48: =INSERT!E42 -> 0 | H48: =TERM2!Z55 -> 0 | I48: =TERM2!AR55 -> 0 | J48: =TERM2!BJ55 -> 0 | K48: 0 | L48: =TERM2!BK55 -> 0 | M48: =TERM2!BM55 -> 0 | N48: 0 | O48: ='FIN PAT MARK SHEET'!J57 -> 0 | P48: ='FIN PAT MARK SHEET'!K57 -> 0 | Q48: ='FIN PAT MARK SHEET'!L57 -> 0 | R48: ='FIN PAT MARK SHEET'!M57 -> 0 | S48: ='FIN PAT MARK SHEET'!N57 -> 0 | T48: 0 | U48: 0 | V48: 0
A49: 41 | B49: 41 | C49: =INSERT!A43 -> 0 | D49: =INSERT!B43 -> 0 | E49: =INSERT!C43 -> 0 | F49: =INSERT!D43 -> 0 | G49: =INSERT!E43 -> 0 | H49: =TERM2!Z56 -> 0 | I49: =TERM2!AR56 -> 0 | J49: =TERM2!BJ56 -> 0 | K49: 0 | L49: =TERM2!BK56 -> 0 | M49: =TERM2!BM56 -> 0 | N49: 0 | O49: ='FIN PAT MARK SHEET'!J58 -> 0 | P49: ='FIN PAT MARK SHEET'!K58 -> 0 | Q49: ='FIN PAT MARK SHEET'!L58 -> 0 | R49: ='FIN PAT MARK SHEET'!M58 -> 0 | S49: ='FIN PAT MARK SHEET'!N58 -> 0 | T49: 0 | U49: 0 | V49: 0
A50: 42 | B50: 42 | C50: =INSERT!A44 -> 0 | D50: =INSERT!B44 -> 0 | E50: =INSERT!C44 -> 0 | F50: =INSERT!D44 -> 0 | G50: =INSERT!E44 -> 0 | H50: =TERM2!Z57 -> 0 | I50: =TERM2!AR57 -> 0 | J50: =TERM2!BJ57 -> 0 | K50: 0 | L50: =TERM2!BK57 -> 0 | M50: =TERM2!BM57 -> 0 | N50: 0 | O50: ='FIN PAT MARK SHEET'!J59 -> 0 | P50: ='FIN PAT MARK SHEET'!K59 -> 0 | Q50: ='FIN PAT MARK SHEET'!L59 -> 0 | R50: ='FIN PAT MARK SHEET'!M59 -> 0 | S50: ='FIN PAT MARK SHEET'!N59 -> 0 | T50: 0 | U50: 0 | V50: 0
A51: 43 | B51: 43 | C51: =INSERT!A45 -> 0 | D51: =INSERT!B45 -> 0 | E51: =INSERT!C45 -> 0 | F51: =INSERT!D45 -> 0 | G51: =INSERT!E45 -> 0 | H51: =TERM2!Z58 -> 0 | I51: =TERM2!AR58 -> 0 | J51: =TERM2!BJ58 -> 0 | K51: 0 | L51: =TERM2!BK58 -> 0 | M51: =TERM2!BM58 -> 0 | N51: 0 | O51: ='FIN PAT MARK SHEET'!J60 -> 0 | P51: ='FIN PAT MARK SHEET'!K60 -> 0 | Q51: ='FIN PAT MARK SHEET'!L60 -> 0 | R51: ='FIN PAT MARK SHEET'!M60 -> 0 | S51: ='FIN PAT MARK SHEET'!N60 -> 0 | T51: 0 | U51: 0 | V51: 0
A52: 44 | B52: 44 | C52: =INSERT!A46 -> 0 | D52: =INSERT!B46 -> 0 | E52: =INSERT!C46 -> 0 | F52: =INSERT!D46 -> 0 | G52: =INSERT!E46 -> 0 | H52: =TERM2!Z59 -> 0 | I52: =TERM2!AR59 -> 0 | J52: =TERM2!BJ59 -> 0 | K52: 0 | L52: =TERM2!BK59 -> 0 | M52: =TERM2!BM59 -> 0 | N52: 0 | O52: ='FIN PAT MARK SHEET'!J61 -> 0 | P52: ='FIN PAT MARK SHEET'!K61 -> 0 | Q52: ='FIN PAT MARK SHEET'!L61 -> 0 | R52: ='FIN PAT MARK SHEET'!M61 -> 0 | S52: ='FIN PAT MARK SHEET'!N61 -> 0 | T52: 0 | U52: 0 | V52: 0
A53: 45 | B53: 45 | C53: =INSERT!A47 -> 0 | D53: =INSERT!B47 -> 0 | E53: =INSERT!C47 -> 0 | F53: =INSERT!D47 -> 0 | G53: =INSERT!E47 -> 0 | H53: =TERM2!Z60 -> 0 | I53: =TERM2!AR60 -> 0 | J53: =TERM2!BJ60 -> 0 | K53: 0 | L53: =TERM2!BK60 -> 0 | M53: =TERM2!BM60 -> 0 | N53: 0 | O53: ='FIN PAT MARK SHEET'!J62 -> 0 | P53: ='FIN PAT MARK SHEET'!K62 -> 0 | Q53: ='FIN PAT MARK SHEET'!L62 -> 0 | R53: ='FIN PAT MARK SHEET'!M62 -> 0 | S53: ='FIN PAT MARK SHEET'!N62 -> 0 | T53: 0 | U53: 0 | V53: 0
A54: 46 | B54: 46 | C54: =INSERT!A48 -> 0 | D54: =INSERT!B48 -> 0 | E54: =INSERT!C48 -> 0 | F54: =INSERT!D48 -> 0 | G54: =INSERT!E48 -> 0 | H54: =TERM2!Z61 -> 0 | I54: =TERM2!AR61 -> 0 | J54: =TERM2!BJ61 -> 0 | K54: 0 | L54: =TERM2!BK61 -> 0 | M54: =TERM2!BM61 -> 0 | N54: 0 | O54: ='FIN PAT MARK SHEET'!J63 -> 0 | P54: ='FIN PAT MARK SHEET'!K63 -> 0 | Q54: ='FIN PAT MARK SHEET'!L63 -> 0 | R54: ='FIN PAT MARK SHEET'!M63 -> 0 | S54: ='FIN PAT MARK SHEET'!N63 -> 0 | T54: 0 | U54: 0 | V54: 0
A55: 47 | B55: 47 | C55: =INSERT!A49 -> 0 | D55: =INSERT!B49 -> 0 | E55: =INSERT!C49 -> 0 | F55: =INSERT!D49 -> 0 | G55: =INSERT!E49 -> 0 | H55: =TERM2!Z62 -> 0 | I55: =TERM2!AR62 -> 0 | J55: =TERM2!BJ62 -> 0 | K55: 0 | L55: =TERM2!BK62 -> 0 | M55: =TERM2!BM62 -> 0 | N55: 0 | O55: ='FIN PAT MARK SHEET'!J64 -> 0 | P55: ='FIN PAT MARK SHEET'!K64 -> 0 | Q55: ='FIN PAT MARK SHEET'!L64 -> 0 | R55: ='FIN PAT MARK SHEET'!M64 -> 0 | S55: ='FIN PAT MARK SHEET'!N64 -> 0 | T55: 0 | U55: 0 | V55: 0
A56: 48 | B56: 48 | C56: =INSERT!A50 -> 0 | D56: =INSERT!B50 -> 0 | E56: =INSERT!C50 -> 0 | F56: =INSERT!D50 -> 0 | G56: =INSERT!E50 -> 0 | H56: =TERM2!Z63 -> 0 | I56: =TERM2!AR63 -> 0 | J56: =TERM2!BJ63 -> 0 | K56: 0 | L56: =TERM2!BK63 -> 0 | M56: =TERM2!BM63 -> 0 | N56: 0 | O56: ='FIN PAT MARK SHEET'!J65 -> 0 | P56: ='FIN PAT MARK SHEET'!K65 -> 0 | Q56: ='FIN PAT MARK SHEET'!L65 -> 0 | R56: ='FIN PAT MARK SHEET'!M65 -> 0 | S56: ='FIN PAT MARK SHEET'!N65 -> 0 | T56: 0 | U56: 0 | V56: 0
A57: 49 | B57: 49 | C57: =INSERT!A51 -> 0 | D57: =INSERT!B51 -> 0 | E57: =INSERT!C51 -> 0 | F57: =INSERT!D51 -> 0 | G57: =INSERT!E51 -> 0 | H57: =TERM2!Z64 -> 0 | I57: =TERM2!AR64 -> 0 | J57: =TERM2!BJ64 -> 0 | K57: 0 | L57: =TERM2!BK64 -> 0 | M57: =TERM2!BM64 -> 0 | N57: 0 | O57: ='FIN PAT MARK SHEET'!J66 -> 0 | P57: ='FIN PAT MARK SHEET'!K66 -> 0 | Q57: ='FIN PAT MARK SHEET'!L66 -> 0 | R57: ='FIN PAT MARK SHEET'!M66 -> 0 | S57: ='FIN PAT MARK SHEET'!N66 -> 0 | T57: 0 | U57: 0 | V57: 0
A58: 50 | B58: 50 | C58: =INSERT!A52 -> 0 | D58: =INSERT!B52 -> 0 | E58: =INSERT!C52 -> 0 | F58: =INSERT!D52 -> 0 | G58: =INSERT!E52 -> 0 | H58: =TERM2!Z65 -> 0 | I58: =TERM2!AR65 -> 0 | J58: =TERM2!BJ65 -> 0 | K58: 0 | L58: =TERM2!BK65 -> 0 | M58: =TERM2!BM65 -> 0 | N58: 0 | O58: ='FIN PAT MARK SHEET'!J67 -> 0 | P58: ='FIN PAT MARK SHEET'!K67 -> 0 | Q58: ='FIN PAT MARK SHEET'!L67 -> 0 | R58: ='FIN PAT MARK SHEET'!M67 -> 0 | S58: ='FIN PAT MARK SHEET'!N67 -> 0 | T58: 0 | U58: 0 | V58: 0
A59: 51 | B59: 51 | C59: =INSERT!A53 -> 0 | D59: =INSERT!B53 -> 0 | E59: =INSERT!C53 -> 0 | F59: =INSERT!D53 -> 0 | G59: =INSERT!E53 -> 0 | H59: =TERM2!Z66 -> 0 | I59: =TERM2!AR66 -> 0 | J59: =TERM2!BJ66 -> 0 | K59: 0 | L59: =TERM2!BK66 -> 0 | M59: =TERM2!BM66 -> 0 | N59: 0 | O59: ='FIN PAT MARK SHEET'!J68 -> 0 | P59: ='FIN PAT MARK SHEET'!K68 -> 0 | Q59: ='FIN PAT MARK SHEET'!L68 -> 0 | R59: ='FIN PAT MARK SHEET'!M68 -> 0 | S59: ='FIN PAT MARK SHEET'!N68 -> 0 | T59: 0 | U59: 0 | V59: 0
A60: 52 | B60: 52 | C60: =INSERT!A54 -> 0 | D60: =INSERT!B54 -> 0 | E60: =INSERT!C54 -> 0 | F60: =INSERT!D54 -> 0 | G60: =INSERT!E54 -> 0 | H60: =TERM2!Z67 -> 0 | I60: =TERM2!AR67 -> 0 | J60: =TERM2!BJ67 -> 0 | K60: 0 | L60: =TERM2!BK67 -> 0 | M60: =TERM2!BM67 -> 0 | N60: 0 | O60: ='FIN PAT MARK SHEET'!J69 -> 0 | P60: ='FIN PAT MARK SHEET'!K69 -> 0 | Q60: ='FIN PAT MARK SHEET'!L69 -> 0 | R60: ='FIN PAT MARK SHEET'!M69 -> 0 | S60: ='FIN PAT MARK SHEET'!N69 -> 0 | T60: 0 | U60: 0 | V60: 0
A61: 53 | B61: 53 | C61: =INSERT!A55 -> 0 | D61: =INSERT!B55 -> 0 | E61: =INSERT!C55 -> 0 | F61: =INSERT!D55 -> 0 | G61: =INSERT!E55 -> 0 | H61: =TERM2!Z68 -> 0 | I61: =TERM2!AR68 -> 0 | J61: =TERM2!BJ68 -> 0 | K61: 0 | L61: =TERM2!BK68 -> 0 | M61: =TERM2!BM68 -> 0 | N61: 0 | O61: ='FIN PAT MARK SHEET'!J70 -> 0 | P61: ='FIN PAT MARK SHEET'!K70 -> 0 | Q61: ='FIN PAT MARK SHEET'!L70 -> 0 | R61: ='FIN PAT MARK SHEET'!M70 -> 0 | S61: ='FIN PAT MARK SHEET'!N70 -> 0 | T61: 0 | U61: 0 | V61: 0
A62: 54 | B62: 54 | C62: =INSERT!A56 -> 0 | D62: =INSERT!B56 -> 0 | E62: =INSERT!C56 -> 0 | F62: =INSERT!D56 -> 0 | G62: =INSERT!E56 -> 0 | H62: =TERM2!Z69 -> 0 | I62: =TERM2!AR69 -> 0 | J62: =TERM2!BJ69 -> 0 | K62: 0 | L62: =TERM2!BK69 -> 0 | M62: =TERM2!BM69 -> 0 | N62: 0 | O62: ='FIN PAT MARK SHEET'!J71 -> 0 | P62: ='FIN PAT MARK SHEET'!K71 -> 0 | Q62: ='FIN PAT MARK SHEET'!L71 -> 0 | R62: ='FIN PAT MARK SHEET'!M71 -> 0 | S62: ='FIN PAT MARK SHEET'!N71 -> 0 | T62: 0 | U62: 0 | V62: 0
A63: 55 | B63: 55 | C63: =INSERT!A57 -> 0 | D63: =INSERT!B57 -> 0 | E63: =INSERT!C57 -> 0 | F63: =INSERT!D57 -> 0 | G63: =INSERT!E57 -> 0 | H63: =TERM2!Z70 -> 0 | I63: =TERM2!AR70 -> 0 | J63: =TERM2!BJ70 -> 0 | K63: 0 | L63: =TERM2!BK70 -> 0 | M63: =TERM2!BM70 -> 0 | N63: 0 | O63: ='FIN PAT MARK SHEET'!J72 -> 0 | P63: ='FIN PAT MARK SHEET'!K72 -> 0 | Q63: ='FIN PAT MARK SHEET'!L72 -> 0 | R63: ='FIN PAT MARK SHEET'!M72 -> 0 | S63: ='FIN PAT MARK SHEET'!N72 -> 0 | T63: 0 | U63: 0 | V63: 0
A64: 56 | B64: 56 | C64: =INSERT!A58 -> 0 | D64: =INSERT!B58 -> 0 | E64: =INSERT!C58 -> 0 | F64: =INSERT!D58 -> 0 | G64: =INSERT!E58 -> 0 | H64: =TERM2!Z71 -> 0 | I64: =TERM2!AR71 -> 0 | J64: =TERM2!BJ71 -> 0 | K64: 0 | L64: =TERM2!BK71 -> 0 | M64: =TERM2!BM71 -> 0 | N64: 0 | O64: ='FIN PAT MARK SHEET'!J73 -> 0 | P64: ='FIN PAT MARK SHEET'!K73 -> 0 | Q64: ='FIN PAT MARK SHEET'!L73 -> 0 | R64: ='FIN PAT MARK SHEET'!M73 -> 0 | S64: ='FIN PAT MARK SHEET'!N73 -> 0 | T64: 0 | U64: 0 | V64: 0
A65: 57 | B65: 57 | C65: =INSERT!A59 -> 0 | D65: =INSERT!B59 -> 0 | E65: =INSERT!C59 -> 0 | F65: =INSERT!D59 -> 0 | G65: =INSERT!E59 -> 0 | H65: =TERM2!Z72 -> 0 | I65: =TERM2!AR72 -> 0 | J65: =TERM2!BJ72 -> 0 | K65: 0 | L65: =TERM2!BK72 -> 0 | M65: =TERM2!BM72 -> 0 | N65: 0 | O65: ='FIN PAT MARK SHEET'!J74 -> 0 | P65: ='FIN PAT MARK SHEET'!K74 -> 0 | Q65: ='FIN PAT MARK SHEET'!L74 -> 0 | R65: ='FIN PAT MARK SHEET'!M74 -> 0 | S65: ='FIN PAT MARK SHEET'!N74 -> 0 | T65: 0 | U65: 0 | V65: 0
A66: 58 | B66: 58 | C66: =INSERT!A60 -> 0 | D66: =INSERT!B60 -> 0 | E66: =INSERT!C60 -> 0 | F66: =INSERT!D60 -> 0 | G66: =INSERT!E60 -> 0 | H66: =TERM2!Z73 -> 0 | I66: =TERM2!AR73 -> 0 | J66: =TERM2!BJ73 -> 0 | K66: 0 | L66: =TERM2!BK73 -> 0 | M66: =TERM2!BM73 -> 0 | N66: 0 | O66: ='FIN PAT MARK SHEET'!J75 -> 0 | P66: ='FIN PAT MARK SHEET'!K75 -> 0 | Q66: ='FIN PAT MARK SHEET'!L75 -> 0 | R66: ='FIN PAT MARK SHEET'!M75 -> 0 | S66: ='FIN PAT MARK SHEET'!N75 -> 0 | T66: 0 | U66: 0 | V66: 0
A67: 59 | B67: 59 | C67: =INSERT!A61 -> 0 | D67: =INSERT!B61 -> 0 | E67: =INSERT!C61 -> 0 | F67: =INSERT!D61 -> 0 | G67: =INSERT!E61 -> 0 | H67: =TERM2!Z74 -> 0 | I67: =TERM2!AR74 -> 0 | J67: =TERM2!BJ74 -> 0 | K67: 0 | L67: =TERM2!BK74 -> 0 | M67: =TERM2!BM74 -> 0 | N67: 0 | O67: ='FIN PAT MARK SHEET'!J76 -> 0 | P67: ='FIN PAT MARK SHEET'!K76 -> 0 | Q67: ='FIN PAT MARK SHEET'!L76 -> 0 | R67: ='FIN PAT MARK SHEET'!M76 -> 0 | S67: ='FIN PAT MARK SHEET'!N76 -> 0 | T67: 0 | U67: 0 | V67: 0
A68: 60 | B68: 60 | C68: =INSERT!A62 -> 0 | D68: =INSERT!B62 -> 0 | E68: =INSERT!C62 -> 0 | F68: =INSERT!D62 -> 0 | G68: =INSERT!E62 -> 0 | H68: =TERM2!Z75 -> 0 | I68: =TERM2!AR75 -> 0 | J68: =TERM2!BJ75 -> 0 | K68: 0 | L68: =TERM2!BK75 -> 0 | M68: =TERM2!BM75 -> 0 | N68: 0 | O68: ='FIN PAT MARK SHEET'!J77 -> 0 | P68: ='FIN PAT MARK SHEET'!K77 -> 0 | Q68: ='FIN PAT MARK SHEET'!L77 -> 0 | R68: ='FIN PAT MARK SHEET'!M77 -> 0 | S68: ='FIN PAT MARK SHEET'!N77 -> 0 | T68: 0 | U68: 0 | V68: 0
A69: 61 | B69: 61 | C69: =INSERT!A63 -> 0 | D69: =INSERT!B63 -> 0 | E69: =INSERT!C63 -> 0 | F69: =INSERT!D63 -> 0 | G69: =INSERT!E63 -> 0 | H69: =TERM2!Z76 -> 0 | I69: =TERM2!AR76 -> 0 | J69: =TERM2!BJ76 -> 0 | K69: 0 | L69: =TERM2!BK76 -> 0 | M69: =TERM2!BM76 -> 0 | N69: 0 | O69: ='FIN PAT MARK SHEET'!J78 -> 0 | P69: ='FIN PAT MARK SHEET'!K78 -> 0 | Q69: ='FIN PAT MARK SHEET'!L78 -> 0 | R69: ='FIN PAT MARK SHEET'!M78 -> 0 | S69: ='FIN PAT MARK SHEET'!N78 -> 0 | T69: 0 | U69: 0 | V69: 0
A70: 62 | B70: 62 | C70: =INSERT!A64 -> 0 | D70: =INSERT!B64 -> 0 | E70: =INSERT!C64 -> 0 | F70: =INSERT!D64 -> 0 | G70: =INSERT!E64 -> 0 | H70: =TERM2!Z77 -> 0 | I70: =TERM2!AR77 -> 0 | J70: =TERM2!BJ77 -> 0 | K70: 0 | L70: =TERM2!BK77 -> 0 | M70: =TERM2!BM77 -> 0 | N70: 0 | O70: ='FIN PAT MARK SHEET'!J79 -> 0 | P70: ='FIN PAT MARK SHEET'!K79 -> 0 | Q70: ='FIN PAT MARK SHEET'!L79 -> 0 | R70: ='FIN PAT MARK SHEET'!M79 -> 0 | S70: ='FIN PAT MARK SHEET'!N79 -> 0 | T70: 0 | U70: 0 | V70: 0
A71: 63 | B71: 63 | C71: =INSERT!A65 -> 0 | D71: =INSERT!B65 -> 0 | E71: =INSERT!C65 -> 0 | F71: =INSERT!D65 -> 0 | G71: =INSERT!E65 -> 0 | H71: =TERM2!Z78 -> 0 | I71: =TERM2!AR78 -> 0 | J71: =TERM2!BJ78 -> 0 | K71: 0 | L71: =TERM2!BK78 -> 0 | M71: =TERM2!BM78 -> 0 | N71: 0 | O71: ='FIN PAT MARK SHEET'!J80 -> 0 | P71: ='FIN PAT MARK SHEET'!K80 -> 0 | Q71: ='FIN PAT MARK SHEET'!L80 -> 0 | R71: ='FIN PAT MARK SHEET'!M80 -> 0 | S71: ='FIN PAT MARK SHEET'!N80 -> 0 | T71: 0 | U71: 0 | V71: 0
A72: 64 | B72: 64 | C72: =INSERT!A66 -> 0 | D72: =INSERT!B66 -> 0 | E72: =INSERT!C66 -> 0 | F72: =INSERT!D66 -> 0 | G72: =INSERT!E66 -> 0 | H72: =TERM2!Z79 -> 0 | I72: =TERM2!AR79 -> 0 | J72: =TERM2!BJ79 -> 0 | K72: 0 | L72: =TERM2!BK79 -> 0 | M72: =TERM2!BM79 -> 0 | N72: 0 | O72: ='FIN PAT MARK SHEET'!J81 -> 0 | P72: ='FIN PAT MARK SHEET'!K81 -> 0 | Q72: ='FIN PAT MARK SHEET'!L81 -> 0 | R72: ='FIN PAT MARK SHEET'!M81 -> 0 | S72: ='FIN PAT MARK SHEET'!N81 -> 0 | T72: 0 | U72: 0 | V72: 0
A73: 65 | B73: 65 | C73: =INSERT!A67 -> 0 | D73: =INSERT!B67 -> 0 | E73: =INSERT!C67 -> 0 | F73: =INSERT!D67 -> 0 | G73: =INSERT!E67 -> 0 | H73: =TERM2!Z80 -> 0 | I73: =TERM2!AR80 -> 0 | J73: =TERM2!BJ80 -> 0 | K73: =ROUND((SUMIF(H73:J73,">0")),0) -> 0 | L73: =TERM2!BK80 -> 0 | M73: =TERM2!BM80 -> 0 | N73: 0 | O73: ='FIN PAT MARK SHEET'!J82 -> 0 | P73: ='FIN PAT MARK SHEET'!K82 -> 0 | Q73: ='FIN PAT MARK SHEET'!L82 -> 0 | R73: ='FIN PAT MARK SHEET'!M82 -> 0 | S73: ='FIN PAT MARK SHEET'!N82 -> 0 | T73: =ROUND((SUMIF(O73:S73,">0")/1.724137931),0) -> 0 | U73: 0 | V73: =ROUND(U73,0) -> 0 | W73: =IF(V73>79,"7",IF(V73>69,"6",IF(V73>59,"5",IF(V73>49,"4",IF(V73>39,"3",IF(V73>29,"2",IF(V73>0,"1",IF(V73=0,"")))))))) -> 
A74: 66 | B74: 66 | C74: =INSERT!A68 -> 0 | D74: =INSERT!B68 -> 0 | E74: =INSERT!C68 -> 0 | F74: =INSERT!D68 -> 0 | G74: =INSERT!E68 -> 0 | H74: =TERM2!Z81 -> 0 | I74: =TERM2!AR81 -> 0 | J74: =TERM2!BJ81 -> 0 | K74: 0 | L74: =TERM2!BK81 -> 0 | M74: =TERM2!BM81 -> 0 | N74: =SUMIF(L74:M74,">0") -> 0 | O74: ='FIN PAT MARK SHEET'!J83 -> 0 | P74: ='FIN PAT MARK SHEET'!K83 -> 0 | Q74: ='FIN PAT MARK SHEET'!L83 -> 0 | R74: ='FIN PAT MARK SHEET'!M83 -> 0 | S74: ='FIN PAT MARK SHEET'!N83 -> 0 | T74: 0 | U74: =SUM(K74/0.75)+SUM(N74/2.5) -> 0 | V74: 0
A75: 67 | B75: 67 | C75: =INSERT!A69 -> 0 | D75: =INSERT!B69 -> 0 | E75: =INSERT!C69 -> 0 | F75: =INSERT!D69 -> 0 | G75: =INSERT!E69 -> 0 | H75: =TERM2!Z82 -> 0 | I75: =TERM2!AR82 -> 0 | J75: =TERM2!BJ82 -> 0 | K75: 0 | L75: =TERM2!BK82 -> 0 | M75: =TERM2!BM82 -> 0 | N75: 0 | O75: ='FIN PAT MARK SHEET'!J84 -> 0 | P75: ='FIN PAT MARK SHEET'!K84 -> 0 | Q75: ='FIN PAT MARK SHEET'!L84 -> 0 | R75: ='FIN PAT MARK SHEET'!M84 -> 0 | S75: ='FIN PAT MARK SHEET'!N84 -> 0 | T75: 0 | U75: 0 | V75: 0
A76: 68 | B76: 68 | C76: =INSERT!A70 -> 0 | D76: =INSERT!B70 -> 0 | E76: =INSERT!C70 -> 0 | F76: =INSERT!D70 -> 0 | G76: =INSERT!E70 -> 0 | H76: =TERM2!Z83 -> 0 | I76: =TERM2!AR83 -> 0 | J76: =TERM2!BJ83 -> 0 | K76: 0 | L76: =TERM2!BK83 -> 0 | M76: =TERM2!BM83 -> 0 | N76: 0 | O76: ='FIN PAT MARK SHEET'!J85 -> 0 | P76: ='FIN PAT MARK SHEET'!K85 -> 0 | Q76: ='FIN PAT MARK SHEET'!L85 -> 0 | R76: ='FIN PAT MARK SHEET'!M85 -> 0 | S76: ='FIN PAT MARK SHEET'!N85 -> 0 | T76: 0 | U76: 0 | V76: 0
A77: 69 | B77: 69 | C77: =INSERT!A71 -> 0 | D77: =INSERT!B71 -> 0 | E77: =INSERT!C71 -> 0 | F77: =INSERT!D71 -> 0 | G77: =INSERT!E71 -> 0 | H77: =TERM2!Z84 -> 0 | I77: =TERM2!AR84 -> 0 | J77: =TERM2!BJ84 -> 0 | K77: 0 | L77: =TERM2!BK84 -> 0 | M77: =TERM2!BM84 -> 0 | N77: 0 | O77: ='FIN PAT MARK SHEET'!J86 -> 0 | P77: ='FIN PAT MARK SHEET'!K86 -> 0 | Q77: ='FIN PAT MARK SHEET'!L86 -> 0 | R77: ='FIN PAT MARK SHEET'!M86 -> 0 | S77: ='FIN PAT MARK SHEET'!N86 -> 0 | T77: 0 | U77: 0 | V77: 0
A78: 70 | B78: 70 | C78: =INSERT!A72 -> 0 | D78: =INSERT!B72 -> 0 | E78: =INSERT!C72 -> 0 | F78: =INSERT!D72 -> 0 | G78: =INSERT!E72 -> 0 | H78: =TERM2!Z85 -> 0 | I78: =TERM2!AR85 -> 0 | J78: =TERM2!BJ85 -> 0 | K78: 0 | L78: =TERM2!BK85 -> 0 | M78: =TERM2!BM85 -> 0 | N78: 0 | O78: ='FIN PAT MARK SHEET'!J87 -> 0 | P78: ='FIN PAT MARK SHEET'!K87 -> 0 | Q78: ='FIN PAT MARK SHEET'!L87 -> 0 | R78: ='FIN PAT MARK SHEET'!M87 -> 0 | S78: ='FIN PAT MARK SHEET'!N87 -> 0 | T78: 0 | U78: 0 | V78: 0
A79: 71 | B79: 71 | C79: =INSERT!A73 -> 0 | D79: =INSERT!B73 -> 0 | E79: =INSERT!C73 -> 0 | F79: =INSERT!D73 -> 0 | G79: =INSERT!E73 -> 0 | H79: =TERM2!Z86 -> 0 | I79: =TERM2!AR86 -> 0 | J79: =TERM2!BJ86 -> 0 | K79: 0 | L79: =TERM2!BK86 -> 0 | M79: =TERM2!BM86 -> 0 | N79: 0 | O79: ='FIN PAT MARK SHEET'!J88 -> 0 | P79: ='FIN PAT MARK SHEET'!K88 -> 0 | Q79: ='FIN PAT MARK SHEET'!L88 -> 0 | R79: ='FIN PAT MARK SHEET'!M88 -> 0 | S79: ='FIN PAT MARK SHEET'!N88 -> 0 | T79: 0 | U79: 0 | V79: 0
A80: 72 | B80: 72 | C80: =INSERT!A74 -> 0 | D80: =INSERT!B74 -> 0 | E80: =INSERT!C74 -> 0 | F80: =INSERT!D74 -> 0 | G80: =INSERT!E74 -> 0 | H80: =TERM2!Z87 -> 0 | I80: =TERM2!AR87 -> 0 | J80: =TERM2!BJ87 -> 0 | K80: 0 | L80: =TERM2!BK87 -> 0 | M80: =TERM2!BM87 -> 0 | N80: 0 | O80: ='FIN PAT MARK SHEET'!J89 -> 0 | P80: ='FIN PAT MARK SHEET'!K89 -> 0 | Q80: ='FIN PAT MARK SHEET'!L89 -> 0 | R80: ='FIN PAT MARK SHEET'!M89 -> 0 | S80: ='FIN PAT MARK SHEET'!N89 -> 0 | T80: 0 | U80: 0 | V80: 0
A81: 73 | B81: 73 | C81: =INSERT!A75 -> 0 | D81: =INSERT!B75 -> 0 | E81: =INSERT!C75 -> 0 | F81: =INSERT!D75 -> 0 | G81: =INSERT!E75 -> 0 | H81: =TERM2!Z88 -> 0 | I81: =TERM2!AR88 -> 0 | J81: =TERM2!BJ88 -> 0 | K81: 0 | L81: =TERM2!BK88 -> 0 | M81: =TERM2!BM88 -> 0 | N81: 0 | O81: ='FIN PAT MARK SHEET'!J90 -> 0 | P81: ='FIN PAT MARK SHEET'!K90 -> 0 | Q81: ='FIN PAT MARK SHEET'!L90 -> 0 | R81: ='FIN PAT MARK SHEET'!M90 -> 0 | S81: ='FIN PAT MARK SHEET'!N90 -> 0 | T81: 0 | U81: 0 | V81: 0
A82: 74 | B82: 74 | C82: =INSERT!A76 -> 0 | D82: =INSERT!B76 -> 0 | E82: =INSERT!C76 -> 0 | F82: =INSERT!D76 -> 0 | G82: =INSERT!E76 -> 0 | H82: =TERM2!Z89 -> 0 | I82: =TERM2!AR89 -> 0 | J82: =TERM2!BJ89 -> 0 | K82: 0 | L82: =TERM2!BK89 -> 0 | M82: =TERM2!BM89 -> 0 | N82: 0 | O82: ='FIN PAT MARK SHEET'!J91 -> 0 | P82: ='FIN PAT MARK SHEET'!K91 -> 0 | Q82: ='FIN PAT MARK SHEET'!L91 -> 0 | R82: ='FIN PAT MARK SHEET'!M91 -> 0 | S82: ='FIN PAT MARK SHEET'!N91 -> 0 | T82: 0 | U82: 0 | V82: 0
A83: 75 | B83: 75 | C83: =INSERT!A77 -> 0 | D83: =INSERT!B77 -> 0 | E83: =INSERT!C77 -> 0 | F83: =INSERT!D77 -> 0 | G83: =INSERT!E77 -> 0 | H83: =TERM2!Z90 -> 0 | I83: =TERM2!AR90 -> 0 | J83: =TERM2!BJ90 -> 0 | K83: 0 | L83: =TERM2!BK90 -> 0 | M83: =TERM2!BM90 -> 0 | N83: 0 | O83: ='FIN PAT MARK SHEET'!J92 -> 0 | P83: ='FIN PAT MARK SHEET'!K92 -> 0 | Q83: ='FIN PAT MARK SHEET'!L92 -> 0 | R83: ='FIN PAT MARK SHEET'!M92 -> 0 | S83: ='FIN PAT MARK SHEET'!N92 -> 0 | T83: 0 | U83: 0 | V83: 0
A84: 76 | B84: 76 | C84: =INSERT!A78 -> 0 | D84: =INSERT!B78 -> 0 | E84: =INSERT!C78 -> 0 | F84: =INSERT!D78 -> 0 | G84: =INSERT!E78 -> 0 | H84: =TERM2!Z91 -> 0 | I84: =TERM2!AR91 -> 0 | J84: =TERM2!BJ91 -> 0 | K84: 0 | L84: =TERM2!BK91 -> 0 | M84: =TERM2!BM91 -> 0 | N84: 0 | O84: ='FIN PAT MARK SHEET'!J93 -> 0 | P84: ='FIN PAT MARK SHEET'!K93 -> 0 | Q84: ='FIN PAT MARK SHEET'!L93 -> 0 | R84: ='FIN PAT MARK SHEET'!M93 -> 0 | S84: ='FIN PAT MARK SHEET'!N93 -> 0 | T84: 0 | U84: 0 | V84: 0
A85: 77 | B85: 77 | C85: =INSERT!A79 -> 0 | D85: =INSERT!B79 -> 0 | E85: =INSERT!C79 -> 0 | F85: =INSERT!D79 -> 0 | G85: =INSERT!E79 -> 0 | H85: =TERM2!Z92 -> 0 | I85: =TERM2!AR92 -> 0 | J85: =TERM2!BJ92 -> 0 | K85: 0 | L85: =TERM2!BK92 -> 0 | M85: =TERM2!BM92 -> 0 | N85: 0 | O85: ='FIN PAT MARK SHEET'!J94 -> 0 | P85: ='FIN PAT MARK SHEET'!K94 -> 0 | Q85: ='FIN PAT MARK SHEET'!L94 -> 0 | R85: ='FIN PAT MARK SHEET'!M94 -> 0 | S85: ='FIN PAT MARK SHEET'!N94 -> 0 | T85: 0 | U85: 0 | V85: 0
A86: 78 | B86: 78 | C86: =INSERT!A80 -> 0 | D86: =INSERT!B80 -> 0 | E86: =INSERT!C80 -> 0 | F86: =INSERT!D80 -> 0 | G86: =INSERT!E80 -> 0 | H86: =TERM2!Z93 -> 0 | I86: =TERM2!AR93 -> 0 | J86: =TERM2!BJ93 -> 0 | K86: 0 | L86: =TERM2!BK93 -> 0 | M86: =TERM2!BM93 -> 0 | N86: 0 | O86: ='FIN PAT MARK SHEET'!J95 -> 0 | P86: ='FIN PAT MARK SHEET'!K95 -> 0 | Q86: ='FIN PAT MARK SHEET'!L95 -> 0 | R86: ='FIN PAT MARK SHEET'!M95 -> 0 | S86: ='FIN PAT MARK SHEET'!N95 -> 0 | T86: 0 | U86: 0 | V86: 0
A87: 79 | B87: 79 | C87: =INSERT!A81 -> 0 | D87: =INSERT!B81 -> 0 | E87: =INSERT!C81 -> 0 | F87: =INSERT!D81 -> 0 | G87: =INSERT!E81 -> 0 | H87: =TERM2!Z94 -> 0 | I87: =TERM2!AR94 -> 0 | J87: =TERM2!BJ94 -> 0 | K87: 0 | L87: =TERM2!BK94 -> 0 | M87: =TERM2!BM94 -> 0 | N87: 0 | O87: ='FIN PAT MARK SHEET'!J96 -> 0 | P87: ='FIN PAT MARK SHEET'!K96 -> 0 | Q87: ='FIN PAT MARK SHEET'!L96 -> 0 | R87: ='FIN PAT MARK SHEET'!M96 -> 0 | S87: ='FIN PAT MARK SHEET'!N96 -> 0 | T87: 0 | U87: 0 | V87: 0
A88: 80 | B88: 80 | C88: =INSERT!A82 -> 0 | D88: =INSERT!B82 -> 0 | E88: =INSERT!C82 -> 0 | F88: =INSERT!D82 -> 0 | G88: =INSERT!E82 -> 0 | H88: =TERM2!Z95 -> 0 | I88: =TERM2!AR95 -> 0 | J88: =TERM2!BJ95 -> 0 | K88: 0 | L88: =TERM2!BK95 -> 0 | M88: =TERM2!BM95 -> 0 | N88: 0 | O88: ='FIN PAT MARK SHEET'!J97 -> 0 | P88: ='FIN PAT MARK SHEET'!K97 -> 0 | Q88: ='FIN PAT MARK SHEET'!L97 -> 0 | R88: ='FIN PAT MARK SHEET'!M97 -> 0 | S88: ='FIN PAT MARK SHEET'!N97 -> 0 | T88: 0 | U88: 0 | V88: 0
A89: 81 | B89: 81 | C89: =INSERT!A83 -> 0 | D89: =INSERT!B83 -> 0 | E89: =INSERT!C83 -> 0 | F89: =INSERT!D83 -> 0 | G89: =INSERT!E83 -> 0 | H89: =TERM2!Z96 -> 0 | I89: =TERM2!AR96 -> 0 | J89: =TERM2!BJ96 -> 0 | K89: 0 | L89: =TERM2!BK96 -> 0 | M89: =TERM2!BM96 -> 0 | N89: 0 | O89: ='FIN PAT MARK SHEET'!J98 -> 0 | P89: ='FIN PAT MARK SHEET'!K98 -> 0 | Q89: ='FIN PAT MARK SHEET'!L98 -> 0 | R89: ='FIN PAT MARK SHEET'!M98 -> 0 | S89: ='FIN PAT MARK SHEET'!N98 -> 0 | T89: 0 | U89: 0 | V89: 0
A90: 82 | B90: 82 | C90: =INSERT!A84 -> 0 | D90: =INSERT!B84 -> 0 | E90: =INSERT!C84 -> 0 | F90: =INSERT!D84 -> 0 | G90: =INSERT!E84 -> 0 | H90: =TERM2!Z97 -> 0 | I90: =TERM2!AR97 -> 0 | J90: =TERM2!BJ97 -> 0 | K90: 0 | L90: =TERM2!BK97 -> 0 | M90: =TERM2!BM97 -> 0 | N90: 0 | O90: ='FIN PAT MARK SHEET'!J99 -> 0 | P90: ='FIN PAT MARK SHEET'!K99 -> 0 | Q90: ='FIN PAT MARK SHEET'!L99 -> 0 | R90: ='FIN PAT MARK SHEET'!M99 -> 0 | S90: ='FIN PAT MARK SHEET'!N99 -> 0 | T90: 0 | U90: 0 | V90: 0
A91: 83 | B91: 83 | C91: =INSERT!A85 -> 0 | D91: =INSERT!B85 -> 0 | E91: =INSERT!C85 -> 0 | F91: =INSERT!D85 -> 0 | G91: =INSERT!E85 -> 0 | H91: =TERM2!Z98 -> 0 | I91: =TERM2!AR98 -> 0 | J91: =TERM2!BJ98 -> 0 | K91: 0 | L91: =TERM2!BK98 -> 0 | M91: =TERM2!BM98 -> 0 | N91: 0 | O91: ='FIN PAT MARK SHEET'!J100 -> 0 | P91: ='FIN PAT MARK SHEET'!K100 -> 0 | Q91: ='FIN PAT MARK SHEET'!L100 -> 0 | R91: ='FIN PAT MARK SHEET'!M100 -> 0 | S91: ='FIN PAT MARK SHEET'!N100 -> 0 | T91: 0 | U91: 0 | V91: 0
A92: 84 | B92: 84 | C92: =INSERT!A86 -> 0 | D92: =INSERT!B86 -> 0 | E92: =INSERT!C86 -> 0 | F92: =INSERT!D86 -> 0 | G92: =INSERT!E86 -> 0 | H92: =TERM2!Z99 -> 0 | I92: =TERM2!AR99 -> 0 | J92: =TERM2!BJ99 -> 0 | K92: 0 | L92: =TERM2!BK99 -> 0 | M92: =TERM2!BM99 -> 0 | N92: 0 | O92: ='FIN PAT MARK SHEET'!J101 -> 0 | P92: ='FIN PAT MARK SHEET'!K101 -> 0 | Q92: ='FIN PAT MARK SHEET'!L101 -> 0 | R92: ='FIN PAT MARK SHEET'!M101 -> 0 | S92: ='FIN PAT MARK SHEET'!N101 -> 0 | T92: 0 | U92: 0 | V92: 0
A93: 85 | B93: 85 | C93: =INSERT!A87 -> 0 | D93: =INSERT!B87 -> 0 | E93: =INSERT!C87 -> 0 | F93: =INSERT!D87 -> 0 | G93: =INSERT!E87 -> 0 | H93: =TERM2!Z100 -> 0 | I93: =TERM2!AR100 -> 0 | J93: =TERM2!BJ100 -> 0 | K93: 0 | L93: =TERM2!BK100 -> 0 | M93: =TERM2!BM100 -> 0 | N93: 0 | O93: ='FIN PAT MARK SHEET'!J102 -> 0 | P93: ='FIN PAT MARK SHEET'!K102 -> 0 | Q93: ='FIN PAT MARK SHEET'!L102 -> 0 | R93: ='FIN PAT MARK SHEET'!M102 -> 0 | S93: ='FIN PAT MARK SHEET'!N102 -> 0 | T93: 0 | U93: 0 | V93: 0
A94: 86 | B94: 86 | C94: =INSERT!A88 -> 0 | D94: =INSERT!B88 -> 0 | E94: =INSERT!C88 -> 0 | F94: =INSERT!D88 -> 0 | G94: =INSERT!E88 -> 0 | H94: =TERM2!Z101 -> 0 | I94: =TERM2!AR101 -> 0 | J94: =TERM2!BJ101 -> 0 | K94: 0 | L94: =TERM2!BK101 -> 0 | M94: =TERM2!BM101 -> 0 | N94: 0 | O94: ='FIN PAT MARK SHEET'!J103 -> 0 | P94: ='FIN PAT MARK SHEET'!K103 -> 0 | Q94: ='FIN PAT MARK SHEET'!L103 -> 0 | R94: ='FIN PAT MARK SHEET'!M103 -> 0 | S94: ='FIN PAT MARK SHEET'!N103 -> 0 | T94: 0 | U94: 0 | V94: 0
A95: 87 | B95: 87 | C95: =INSERT!A89 -> 0 | D95: =INSERT!B89 -> 0 | E95: =INSERT!C89 -> 0 | F95: =INSERT!D89 -> 0 | G95: =INSERT!E89 -> 0 | H95: =TERM2!Z102 -> 0 | I95: =TERM2!AR102 -> 0 | J95: =TERM2!BJ102 -> 0 | K95: 0 | L95: =TERM2!BK102 -> 0 | M95: =TERM2!BM102 -> 0 | N95: 0 | O95: ='FIN PAT MARK SHEET'!J104 -> 0 | P95: ='FIN PAT MARK SHEET'!K104 -> 0 | Q95: ='FIN PAT MARK SHEET'!L104 -> 0 | R95: ='FIN PAT MARK SHEET'!M104 -> 0 | S95: ='FIN PAT MARK SHEET'!N104 -> 0 | T95: 0 | U95: 0 | V95: 0
A96: 88 | B96: 88 | C96: =INSERT!A90 -> 0 | D96: =INSERT!B90 -> 0 | E96: =INSERT!C90 -> 0 | F96: =INSERT!D90 -> 0 | G96: =INSERT!E90 -> 0 | H96: =TERM2!Z103 -> 0 | I96: =TERM2!AR103 -> 0 | J96: =TERM2!BJ103 -> 0 | K96: 0 | L96: =TERM2!BK103 -> 0 | M96: =TERM2!BM103 -> 0 | N96: 0 | O96: ='FIN PAT MARK SHEET'!J105 -> 0 | P96: ='FIN PAT MARK SHEET'!K105 -> 0 | Q96: ='FIN PAT MARK SHEET'!L105 -> 0 | R96: ='FIN PAT MARK SHEET'!M105 -> 0 | S96: ='FIN PAT MARK SHEET'!N105 -> 0 | T96: 0 | U96: 0 | V96: 0
A97: 89 | B97: 89 | C97: =INSERT!A91 -> 0 | D97: =INSERT!B91 -> 0 | E97: =INSERT!C91 -> 0 | F97: =INSERT!D91 -> 0 | G97: =INSERT!E91 -> 0 | H97: =TERM2!Z104 -> 0 | I97: =TERM2!AR104 -> 0 | J97: =TERM2!BJ104 -> 0 | K97: 0 | L97: =TERM2!BK104 -> 0 | M97: =TERM2!BM104 -> 0 | N97: 0 | O97: ='FIN PAT MARK SHEET'!J106 -> 0 | P97: ='FIN PAT MARK SHEET'!K106 -> 0 | Q97: ='FIN PAT MARK SHEET'!L106 -> 0 | R97: ='FIN PAT MARK SHEET'!M106 -> 0 | S97: ='FIN PAT MARK SHEET'!N106 -> 0 | T97: 0 | U97: 0 | V97: 0
A98: 90 | B98: 90 | C98: =INSERT!A92 -> 0 | D98: =INSERT!B92 -> 0 | E98: =INSERT!C92 -> 0 | F98: =INSERT!D92 -> 0 | G98: =INSERT!E92 -> 0 | H98: =TERM2!Z105 -> 0 | I98: =TERM2!AR105 -> 0 | J98: =TERM2!BJ105 -> 0 | K98: 0 | L98: =TERM2!BK105 -> 0 | M98: =TERM2!BM105 -> 0 | N98: 0 | O98: ='FIN PAT MARK SHEET'!J107 -> 0 | P98: ='FIN PAT MARK SHEET'!K107 -> 0 | Q98: ='FIN PAT MARK SHEET'!L107 -> 0 | R98: ='FIN PAT MARK SHEET'!M107 -> 0 | S98: ='FIN PAT MARK SHEET'!N107 -> 0 | T98: 0 | U98: 0 | V98: 0
A99: 91 | B99: 91 | C99: =INSERT!A93 -> 0 | D99: =INSERT!B93 -> 0 | E99: =INSERT!C93 -> 0 | F99: =INSERT!D93 -> 0 | G99: =INSERT!E93 -> 0 | H99: =TERM2!Z106 -> 0 | I99: =TERM2!AR106 -> 0 | J99: =TERM2!BJ106 -> 0 | K99: 0 | L99: =TERM2!BK106 -> 0 | M99: =TERM2!BM106 -> 0 | N99: 0 | O99: ='FIN PAT MARK SHEET'!J108 -> 0 | P99: ='FIN PAT MARK SHEET'!K108 -> 0 | Q99: ='FIN PAT MARK SHEET'!L108 -> 0 | R99: ='FIN PAT MARK SHEET'!M108 -> 0 | S99: ='FIN PAT MARK SHEET'!N108 -> 0 | T99: 0 | U99: 0 | V99: 0
A100: 92 | B100: 92 | C100: =INSERT!A94 -> 0 | D100: =INSERT!B94 -> 0 | E100: =INSERT!C94 -> 0 | F100: =INSERT!D94 -> 0 | G100: =INSERT!E94 -> 0 | H100: =TERM2!Z107 -> 0 | I100: =TERM2!AR107 -> 0 | J100: =TERM2!BJ107 -> 0 | K100: 0 | L100: =TERM2!BK107 -> 0 | M100: =TERM2!BM107 -> 0 | N100: 0 | O100: ='FIN PAT MARK SHEET'!J109 -> 0 | P100: ='FIN PAT MARK SHEET'!K109 -> 0 | Q100: ='FIN PAT MARK SHEET'!L109 -> 0 | R100: ='FIN PAT MARK SHEET'!M109 -> 0 | S100: ='FIN PAT MARK SHEET'!N109 -> 0 | T100: 0 | U100: 0 | V100: 0
A101: 93 | B101: 93 | C101: =INSERT!A95 -> 0 | D101: =INSERT!B95 -> 0 | E101: =INSERT!C95 -> 0 | F101: =INSERT!D95 -> 0 | G101: =INSERT!E95 -> 0 | H101: =TERM2!Z108 -> 0 | I101: =TERM2!AR108 -> 0 | J101: =TERM2!BJ108 -> 0 | K101: 0 | L101: =TERM2!BK108 -> 0 | M101: =TERM2!BM108 -> 0 | N101: 0 | O101: ='FIN PAT MARK SHEET'!J110 -> 0 | P101: ='FIN PAT MARK SHEET'!K110 -> 0 | Q101: ='FIN PAT MARK SHEET'!L110 -> 0 | R101: ='FIN PAT MARK SHEET'!M110 -> 0 | S101: ='FIN PAT MARK SHEET'!N110 -> 0 | T101: 0 | U101: 0 | V101: 0
A102: 94 | B102: 94 | C102: =INSERT!A96 -> 0 | D102: =INSERT!B96 -> 0 | E102: =INSERT!C96 -> 0 | F102: =INSERT!D96 -> 0 | G102: =INSERT!E96 -> 0 | H102: =TERM2!Z109 -> 0 | I102: =TERM2!AR109 -> 0 | J102: =TERM2!BJ109 -> 0 | K102: 0 | L102: =TERM2!BK109 -> 0 | M102: =TERM2!BM109 -> 0 | N102: 0 | O102: ='FIN PAT MARK SHEET'!J111 -> 0 | P102: ='FIN PAT MARK SHEET'!K111 -> 0 | Q102: ='FIN PAT MARK SHEET'!L111 -> 0 | R102: ='FIN PAT MARK SHEET'!M111 -> 0 | S102: ='FIN PAT MARK SHEET'!N111 -> 0 | T102: 0 | U102: 0 | V102: 0
A103: 95 | B103: 95 | C103: =INSERT!A97 -> 0 | D103: =INSERT!B97 -> 0 | E103: =INSERT!C97 -> 0 | F103: =INSERT!D97 -> 0 | G103: =INSERT!E97 -> 0 | H103: =TERM2!Z110 -> 0 | I103: =TERM2!AR110 -> 0 | J103: =TERM2!BJ110 -> 0 | K103: 0 | L103: =TERM2!BK110 -> 0 | M103: =TERM2!BM110 -> 0 | N103: 0 | O103: ='FIN PAT MARK SHEET'!J112 -> 0 | P103: ='FIN PAT MARK SHEET'!K112 -> 0 | Q103: ='FIN PAT MARK SHEET'!L112 -> 0 | R103: ='FIN PAT MARK SHEET'!M112 -> 0 | S103: ='FIN PAT MARK SHEET'!N112 -> 0 | T103: 0 | U103: 0 | V103: 0
A104: 96 | B104: 96 | C104: =INSERT!A98 -> 0 | D104: =INSERT!B98 -> 0 | E104: =INSERT!C98 -> 0 | F104: =INSERT!D98 -> 0 | G104: =INSERT!E98 -> 0 | H104: =TERM2!Z111 -> 0 | I104: =TERM2!AR111 -> 0 | J104: =TERM2!BJ111 -> 0 | K104: 0 | L104: =TERM2!BK111 -> 0 | M104: =TERM2!BM111 -> 0 | N104: 0 | O104: ='FIN PAT MARK SHEET'!J113 -> 0 | P104: ='FIN PAT MARK SHEET'!K113 -> 0 | Q104: ='FIN PAT MARK SHEET'!L113 -> 0 | R104: ='FIN PAT MARK SHEET'!M113 -> 0 | S104: ='FIN PAT MARK SHEET'!N113 -> 0 | T104: 0 | U104: 0 | V104: 0
A105: 97 | B105: 97 | C105: =INSERT!A99 -> 0 | D105: =INSERT!B99 -> 0 | E105: =INSERT!C99 -> 0 | F105: =INSERT!D99 -> 0 | G105: =INSERT!E99 -> 0 | H105: =TERM2!Z112 -> 0 | I105: =TERM2!AR112 -> 0 | J105: =TERM2!BJ112 -> 0 | K105: =ROUND((SUMIF(H105:J105,">0")),0) -> 0 | L105: =TERM2!BK112 -> 0 | M105: =TERM2!BM112 -> 0 | N105: 0 | O105: ='FIN PAT MARK SHEET'!J114 -> 0 | P105: ='FIN PAT MARK SHEET'!K114 -> 0 | Q105: ='FIN PAT MARK SHEET'!L114 -> 0 | R105: ='FIN PAT MARK SHEET'!M114 -> 0 | S105: ='FIN PAT MARK SHEET'!N114 -> 0 | T105: =ROUND((SUMIF(O105:S105,">0")/1.724137931),0) -> 0 | U105: 0 | V105: =ROUND(U105,0) -> 0 | W105: =IF(V105>79,"7",IF(V105>69,"6",IF(V105>59,"5",IF(V105>49,"4",IF(V105>39,"3",IF(V105>29,"2",IF(V105>0,"1",IF(V105=0,"")))))))) -> 
A106: 98 | B106: 98 | C106: =INSERT!A100 -> 0 | D106: =INSERT!B100 -> 0 | E106: =INSERT!C100 -> 0 | F106: =INSERT!D100 -> 0 | G106: =INSERT!E100 -> 0 | H106: =TERM2!Z113 -> 0 | I106: =TERM2!AR113 -> 0 | J106: =TERM2!BJ113 -> 0 | K106: 0 | L106: =TERM2!BK113 -> 0 | M106: =TERM2!BM113 -> 0 | N106: 0 | O106: ='FIN PAT MARK SHEET'!J115 -> 0 | P106: ='FIN PAT MARK SHEET'!K115 -> 0 | Q106: ='FIN PAT MARK SHEET'!L115 -> 0 | R106: ='FIN PAT MARK SHEET'!M115 -> 0 | S106: ='FIN PAT MARK SHEET'!N115 -> 0 | T106: 0 | U106: 0 | V106: 0
A107: 99 | B107: 99 | C107: =INSERT!A101 -> 0 | D107: =INSERT!B101 -> 0 | E107: =INSERT!C101 -> 0 | F107: =INSERT!D101 -> 0 | G107: =INSERT!E101 -> 0 | H107: =TERM2!Z114 -> 0 | I107: =TERM2!AR114 -> 0 | J107: =TERM2!BJ114 -> 0 | K107: 0 | L107: =TERM2!BK114 -> 0 | M107: =TERM2!BM114 -> 0 | N107: 0 | O107: ='FIN PAT MARK SHEET'!J116 -> 0 | P107: ='FIN PAT MARK SHEET'!K116 -> 0 | Q107: ='FIN PAT MARK SHEET'!L116 -> 0 | R107: ='FIN PAT MARK SHEET'!M116 -> 0 | S107: ='FIN PAT MARK SHEET'!N116 -> 0 | T107: 0 | U107: 0 | V107: 0
A108: 100 | B108: 100 | C108: =INSERT!A102 -> 0 | D108: =INSERT!B102 -> 0 | E108: =INSERT!C102 -> 0 | F108: =INSERT!D102 -> 0 | G108: =INSERT!E102 -> 0 | H108: =TERM2!Z115 -> 0 | I108: =TERM2!AR115 -> 0 | J108: =TERM2!BJ115 -> 0 | K108: 0 | L108: =TERM2!BK115 -> 0 | M108: =TERM2!BM115 -> 0 | N108: 0 | O108: ='FIN PAT MARK SHEET'!J117 -> 0 | P108: ='FIN PAT MARK SHEET'!K117 -> 0 | Q108: ='FIN PAT MARK SHEET'!L117 -> 0 | R108: ='FIN PAT MARK SHEET'!M117 -> 0 | S108: ='FIN PAT MARK SHEET'!N117 -> 0 | T108: 0 | U108: 0 | V108: 0
C109: X | D109: X | E109: X | F109: X | G109: Total | H109: =SUM(H9:H108) -> 0 | I109: =SUM(I9:I108) -> 0 | J109: 0 | K109: 0 | L109: 0 | M109: 0 | N109: 0 | O109: 0 | P109: 0 | Q109: 0 | R109: 0 | S109: 0 | T109: 0 | U109: 0 | V109: 0
C110: X | D110: X | E110: X | F110: X | G110: Average% | H110: =IFERROR(ROUND((AVERAGEIF(H9:H108,">0")/H4*100),1),"0") -> 0 | I110: =IFERROR(ROUND((AVERAGEIF(I9:I108,">0")/I4*100),1),"0") -> 0 | J110: 0 | K110: 0 | L110: 0 | M110: 0 | N110: 0 | O110: 0 | P110: 0 | Q110: 0 | R110: 0 | S110: 0 | T110: 0 | U110: =IFERROR(ROUND((AVERAGEIF(U9:U108,">0")/U7*100),1),"0") -> 0 | V110: =IFERROR(ROUND((AVERAGEIF(V9:V108,">0")/V7*100),1),"0") -> 0
A111: Total amount of learners on mark sheet | E111: X | F111: Term results analysis | N111: LEVEL 1 | O111: LEVEL 2 | P111: LEVEL 3 | Q111: LEVEL 4 | R111: LEVEL 5 | S111: LEVEL 6 | T111: LEVEL 7
E112: =INSERT!$E$103 -> 0 | N112: 0 - 29 | O112: 30 - 39 | P112: 40 - 49 | Q112: 50 - 59 | R112: 60 - 69 | S112: 70 - 79 | T112: 80 - 100
E113: X | N113: =COUNTIF(W9:W108,1) -> 0 | O113: =COUNTIF($W$9:$W$108,2) -> 0 | P113: =COUNTIF($W$9:$W$108,3) -> 0 | Q113: =COUNTIF($W$9:$W$108,4) -> 0 | R113: =COUNTIF($W$9:$W$108,5) -> 0 | S113: =COUNTIF($W$9:$W$108,6) -> 0 | T113: =COUNTIF($W$9:$W$108,7) -> 0 | U113: =SUM(N113:T113) -> 0

Sheet SASAMS TERM3
A1: Engineering Graphics and Design (Gr 11) Term 3: | G1: TASKS | M1: TASK 5 | N1: TASK 6 | T1: TASK PAT (Phase 2)
A2: Grade: | D2: =TERM1!$F$6 -> 0 | G2: Activities | H2: =TERM3!$I$4 -> CD8 1st Solid Geometry two adjacent Solids sectioned | I2: =TERM3!$AA$4 -> CD9 2nd Solid Geometry Sectioned Solid with a hole | J2: =TERM3!$AS$4 -> CD10 1st Interpenetration & Development (Two prisms) | K2: =TERM3!$BK$4 -> CD11 2nd Interpenetration & Development (Including a cylinder(s)) | L2: =TERM3!$CC$4 -> CD12 3rd Mechanical Assembly | O2: Drawing paper layout | P2: Presentation Drawing | Q2: Presentation drawing 1 | R2: Presentation drawing 2 | S2: Presentation Drawing 3D | U2: 100
A3: Weighting | H3: 20 | I3: 20 | J3: 20 | K3: 20 | L3: 20 | M3: 100 | N3: 0 | O3: 20 | P3: 20 | Q3: 20 | R3: 20 | S3: 20 | T3: 0
A4: Marks: -1 = Absent, -2 = Not Captured | G4: Total Mark | H4: 10 | I4: 10 | J4: 10 | K4: 10 | L4: 10 | M4: 50 | N4: 0 | O4: 10 | P4: 10 | Q4: 10 | R4: 10 | S4: 10 | T4: 35 | U4: TOTAL Weighted Mark | V4: Term % | W4: Level
A5: SBA Year Mark Weight | M5: 15 | N5: 15
G6: Term /Date | M6: Term3 | N6: Term3 | T6: Term3
A7: No | C7: Class | D7: Acc No | E7: Learner | G7: Gender | H7: T2:A1 | I7: T2:A2 | J7: T2:A3 | K7: T2:A4 | L7: T2:A5 | M7: T2 | N7: T3 | O7: T1:A1 | P7: T1:A2 | Q7: T1:A3 | R7: T1:A4 | S7: T1:A5 | T7: T1 | U7: 100 | V7: 100
A9: 1 | B9: 1 | C9: =INSERT!A3 -> 0 | D9: =INSERT!B3 -> 0 | E9: =INSERT!C3 -> 0 | F9: =INSERT!D3 -> 0 | G9: =INSERT!E3 -> 0 | H9: =TERM3!Z16 -> 0 | I9: =TERM3!AR16 -> 0 | J9: =TERM3!BJ16 -> 0 | K9: =TERM3!CB16 -> 0 | L9: =TERM3!CT16 -> 0 | M9: =SUM(H9:L9) -> 0 | N9: =TERM3!CY16 -> 0 | O9: ='FIN PAT MARK SHEET'!P18 -> 0 | P9: ='FIN PAT MARK SHEET'!Q18 -> 0 | Q9: ='FIN PAT MARK SHEET'!R18 -> 0 | R9: ='FIN PAT MARK SHEET'!S18 -> 0 | S9: ='FIN PAT MARK SHEET'!T18 -> 0 | T9: =SUMIF(O9:S9,">0")/1.428571428 -> 0 | U9: =SUM(M9*2) -> 0 | V9: =SUM(U9,0) -> 0 | W9: =IF(V9>79,"7",IF(V9>69,"6",IF(V9>59,"5",IF(V9>49,"4",IF(V9>39,"3",IF(V9>29,"2",IF(V9>0,"1",IF(V9=0,"")))))))) -> 
A10: 2 | B10: 36 | C10: =INSERT!A4 -> 0 | D10: =INSERT!B4 -> 0 | E10: =INSERT!C4 -> 0 | F10: =INSERT!D4 -> 0 | G10: =INSERT!E4 -> 0 | H10: =TERM3!Z17 -> 0 | I10: =TERM3!AR17 -> 0 | J10: =TERM3!BJ17 -> 0 | K10: =TERM3!CB17 -> 0 | L10: =TERM3!CT17 -> 0 | M10: =SUM(H10:L10) -> 0 | N10: =TERM3!CY17 -> 0 | O10: ='FIN PAT MARK SHEET'!P19 -> 0 | P10: ='FIN PAT MARK SHEET'!Q19 -> 0 | Q10: ='FIN PAT MARK SHEET'!R19 -> 0 | R10: ='FIN PAT MARK SHEET'!S19 -> 0 | S10: ='FIN PAT MARK SHEET'!T19 -> 0 | T10: =SUMIF(O10:S10,">0")/1.428571428 -> 0 | U10: =SUM(M10*2) -> 0 | V10: =SUM(U10,0) -> 0
A11: 3 | B11: 2 | C11: =INSERT!A5 -> 0 | D11: =INSERT!B5 -> 0 | E11: =INSERT!C5 -> 0 | F11: =INSERT!D5 -> 0 | G11: =INSERT!E5 -> 0 | H11: =TERM3!Z18 -> 0 | I11: =TERM3!AR18 -> 0 | J11: =TERM3!BJ18 -> 0 | K11: =TERM3!CB18 -> 0 | L11: =TERM3!CT18 -> 0 | M11: 0 | N11: =TERM3!CY18 -> 0 | O11: ='FIN PAT MARK SHEET'!P20 -> 0 | P11: ='FIN PAT MARK SHEET'!Q20 -> 0 | Q11: ='FIN PAT MARK SHEET'!R20 -> 0 | R11: ='FIN PAT MARK SHEET'!S20 -> 0 | S11: ='FIN PAT MARK SHEET'!T20 -> 0 | T11: 0 | U11: 0 | V11: 0
A12: 4 | B12: 3 | C12: =INSERT!A6 -> 0 | D12: =INSERT!B6 -> 0 | E12: =INSERT!C6 -> 0 | F12: =INSERT!D6 -> 0 | G12: =INSERT!E6 -> 0 | H12: =TERM3!Z19 -> 0 | I12: =TERM3!AR19 -> 0 | J12: =TERM3!BJ19 -> 0 | K12: =TERM3!CB19 -> 0 | L12: =TERM3!CT19 -> 0 | M12: 0 | N12: =TERM3!CY19 -> 0 | O12: ='FIN PAT MARK SHEET'!P21 -> 0 | P12: ='FIN PAT MARK SHEET'!Q21 -> 0 | Q12: ='FIN PAT MARK SHEET'!R21 -> 0 | R12: ='FIN PAT MARK SHEET'!S21 -> 0 | S12: ='FIN PAT MARK SHEET'!T21 -> 0 | T12: 0 | U12: 0 | V12: 0
A13: 5 | B13: 4 | C13: =INSERT!A7 -> 0 | D13: =INSERT!B7 -> 0 | E13: =INSERT!C7 -> 0 | F13: =INSERT!D7 -> 0 | G13: =INSERT!E7 -> 0 | H13: =TERM3!Z20 -> 0 | I13: =TERM3!AR20 -> 0 | J13: =TERM3!BJ20 -> 0 | K13: =TERM3!CB20 -> 0 | L13: =TERM3!CT20 -> 0 | M13: 0 | N13: =TERM3!CY20 -> 0 | O13: ='FIN PAT MARK SHEET'!P22 -> 0 | P13: ='FIN PAT MARK SHEET'!Q22 -> 0 | Q13: ='FIN PAT MARK SHEET'!R22 -> 0 | R13: ='FIN PAT MARK SHEET'!S22 -> 0 | S13: ='FIN PAT MARK SHEET'!T22 -> 0 | T13: 0 | U13: 0 | V13: 0
A14: 6 | B14: 5 | C14: =INSERT!A8 -> 0 | D14: =INSERT!B8 -> 0 | E14: =INSERT!C8 -> 0 | F14: =INSERT!D8 -> 0 | G14: =INSERT!E8 -> 0 | H14: =TERM3!Z21 -> 0 | I14: =TERM3!AR21 -> 0 | J14: =TERM3!BJ21 -> 0 | K14: =TERM3!CB21 -> 0 | L14: =TERM3!CT21 -> 0 | M14: 0 | N14: =TERM3!CY21 -> 0 | O14: ='FIN PAT MARK SHEET'!P23 -> 0 | P14: ='FIN PAT MARK SHEET'!Q23 -> 0 | Q14: ='FIN PAT MARK SHEET'!R23 -> 0 | R14: ='FIN PAT MARK SHEET'!S23 -> 0 | S14: ='FIN PAT MARK SHEET'!T23 -> 0 | T14: 0 | U14: 0 | V14: 0
A15: 7 | B15: 6 | C15: =INSERT!A9 -> 0 | D15: =INSERT!B9 -> 0 | E15: =INSERT!C9 -> 0 | F15: =INSERT!D9 -> 0 | G15: =INSERT!E9 -> 0 | H15: =TERM3!Z22 -> 0 | I15: =TERM3!AR22 -> 0 | J15: =TERM3!BJ22 -> 0 | K15: =TERM3!CB22 -> 0 | L15: =TERM3!CT22 -> 0 | M15: 0 | N15: =TERM3!CY22 -> 0 | O15: ='FIN PAT MARK SHEET'!P24 -> 0 | P15: ='FIN PAT MARK SHEET'!Q24 -> 0 | Q15: ='FIN PAT MARK SHEET'!R24 -> 0 | R15: ='FIN PAT MARK SHEET'!S24 -> 0 | S15: ='FIN PAT MARK SHEET'!T24 -> 0 | T15: 0 | U15: 0 | V15: 0
A16: 8 | B16: 7 | C16: =INSERT!A10 -> 0 | D16: =INSERT!B10 -> 0 | E16: =INSERT!C10 -> 0 | F16: =INSERT!D10 -> 0 | G16: =INSERT!E10 -> 0 | H16: =TERM3!Z23 -> 0 | I16: =TERM3!AR23 -> 0 | J16: =TERM3!BJ23 -> 0 | K16: =TERM3!CB23 -> 0 | L16: =TERM3!CT23 -> 0 | M16: 0 | N16: =TERM3!CY23 -> 0 | O16: ='FIN PAT MARK SHEET'!P25 -> 0 | P16: ='FIN PAT MARK SHEET'!Q25 -> 0 | Q16: ='FIN PAT MARK SHEET'!R25 -> 0 | R16: ='FIN PAT MARK SHEET'!S25 -> 0 | S16: ='FIN PAT MARK SHEET'!T25 -> 0 | T16: 0 | U16: 0 | V16: 0
A17: 9 | B17: 8 | C17: =INSERT!A11 -> 0 | D17: =INSERT!B11 -> 0 | E17: =INSERT!C11 -> 0 | F17: =INSERT!D11 -> 0 | G17: =INSERT!E11 -> 0 | H17: =TERM3!Z24 -> 0 | I17: =TERM3!AR24 -> 0 | J17: =TERM3!BJ24 -> 0 | K17: =TERM3!CB24 -> 0 | L17: =TERM3!CT24 -> 0 | M17: 0 | N17: =TERM3!CY24 -> 0 | O17: ='FIN PAT MARK SHEET'!P26 -> 0 | P17: ='FIN PAT MARK SHEET'!Q26 -> 0 | Q17: ='FIN PAT MARK SHEET'!R26 -> 0 | R17: ='FIN PAT MARK SHEET'!S26 -> 0 | S17: ='FIN PAT MARK SHEET'!T26 -> 0 | T17: 0 | U17: 0 | V17: 0
A18: 10 | B18: 9 | C18: =INSERT!A12 -> 0 | D18: =INSERT!B12 -> 0 | E18: =INSERT!C12 -> 0 | F18: =INSERT!D12 -> 0 | G18: =INSERT!E12 -> 0 | H18: =TERM3!Z25 -> 0 | I18: =TERM3!AR25 -> 0 | J18: =TERM3!BJ25 -> 0 | K18: =TERM3!CB25 -> 0 | L18: =TERM3!CT25 -> 0 | M18: 0 | N18: =TERM3!CY25 -> 0 | O18: ='FIN PAT MARK SHEET'!P27 -> 0 | P18: ='FIN PAT MARK SHEET'!Q27 -> 0 | Q18: ='FIN PAT MARK SHEET'!R27 -> 0 | R18: ='FIN PAT MARK SHEET'!S27 -> 0 | S18: ='FIN PAT MARK SHEET'!T27 -> 0 | T18: 0 | U18: 0 | V18: 0
A19: 11 | B19: 11 | C19: =INSERT!A13 -> 0 | D19: =INSERT!B13 -> 0 | E19: =INSERT!C13 -> 0 | F19: =INSERT!D13 -> 0 | G19: =INSERT!E13 -> 0 | H19: =TERM3!Z26 -> 0 | I19: =TERM3!AR26 -> 0 | J19: =TERM3!BJ26 -> 0 | K19: =TERM3!CB26 -> 0 | L19: =TERM3!CT26 -> 0 | M19: 0 | N19: =TERM3!CY26 -> 0 | O19: ='FIN PAT MARK SHEET'!P28 -> 0 | P19: ='FIN PAT MARK SHEET'!Q28 -> 0 | Q19: ='FIN PAT MARK SHEET'!R28 -> 0 | R19: ='FIN PAT MARK SHEET'!S28 -> 0 | S19: ='FIN PAT MARK SHEET'!T28 -> 0 | T19: 0 | U19: 0 | V19: 0
A20: 12 | B20: 12 | C20: =INSERT!A14 -> 0 | D20: =INSERT!B14 -> 0 | E20: =INSERT!C14 -> 0 | F20: =INSERT!D14 -> 0 | G20: =INSERT!E14 -> 0 | H20: =TERM3!Z27 -> 0 | I20: =TERM3!AR27 -> 0 | J20: =TERM3!BJ27 -> 0 | K20: =TERM3!CB27 -> 0 | L20: =TERM3!CT27 -> 0 | M20: 0 | N20: =TERM3!CY27 -> 0 | O20: ='FIN PAT MARK SHEET'!P29 -> 0 | P20: ='FIN PAT MARK SHEET'!Q29 -> 0 | Q20: ='FIN PAT MARK SHEET'!R29 -> 0 | R20: ='FIN PAT MARK SHEET'!S29 -> 0 | S20: ='FIN PAT MARK SHEET'!T29 -> 0 | T20: 0 | U20: 0 | V20: 0
A21: 13 | B21: 13 | C21: =INSERT!A15 -> 0 | D21: =INSERT!B15 -> 0 | E21: =INSERT!C15 -> 0 | F21: =INSERT!D15 -> 0 | G21: =INSERT!E15 -> 0 | H21: =TERM3!Z28 -> 0 | I21: =TERM3!AR28 -> 0 | J21: =TERM3!BJ28 -> 0 | K21: =TERM3!CB28 -> 0 | L21: =TERM3!CT28 -> 0 | M21: 0 | N21: =TERM3!CY28 -> 0 | O21: ='FIN PAT MARK SHEET'!P30 -> 0 | P21: ='FIN PAT MARK SHEET'!Q30 -> 0 | Q21: ='FIN PAT MARK SHEET'!R30 -> 0 | R21: ='FIN PAT MARK SHEET'!S30 -> 0 | S21: ='FIN PAT MARK SHEET'!T30 -> 0 | T21: 0 | U21: 0 | V21: 0
A22: 14 | B22: 14 | C22: =INSERT!A16 -> 0 | D22: =INSERT!B16 -> 0 | E22: =INSERT!C16 -> 0 | F22: =INSERT!D16 -> 0 | G22: =INSERT!E16 -> 0 | H22: =TERM3!Z29 -> 0 | I22: =TERM3!AR29 -> 0 | J22: =TERM3!BJ29 -> 0 | K22: =TERM3!CB29 -> 0 | L22: =TERM3!CT29 -> 0 | M22: 0 | N22: =TERM3!CY29 -> 0 | O22: ='FIN PAT MARK SHEET'!P31 -> 0 | P22: ='FIN PAT MARK SHEET'!Q31 -> 0 | Q22: ='FIN PAT MARK SHEET'!R31 -> 0 | R22: ='FIN PAT MARK SHEET'!S31 -> 0 | S22: ='FIN PAT MARK SHEET'!T31 -> 0 | T22: 0 | U22: 0 | V22: =SUM(U22,0) -> 0 | W22: =IF(V22>79,"7",IF(V22>69,"6",IF(V22>59,"5",IF(V22>49,"4",IF(V22>39,"3",IF(V22>29,"2",IF(V22>0,"1",IF(V22=0,"")))))))) -> 
A23: 15 | B23: 15 | C23: =INSERT!A17 -> 0 | D23: =INSERT!B17 -> 0 | E23: =INSERT!C17 -> 0 | F23: =INSERT!D17 -> 0 | G23: =INSERT!E17 -> 0 | H23: =TERM3!Z30 -> 0 | I23: =TERM3!AR30 -> 0 | J23: =TERM3!BJ30 -> 0 | K23: =TERM3!CB30 -> 0 | L23: =TERM3!CT30 -> 0 | M23: 0 | N23: =TERM3!CY30 -> 0 | O23: ='FIN PAT MARK SHEET'!P32 -> 0 | P23: ='FIN PAT MARK SHEET'!Q32 -> 0 | Q23: ='FIN PAT MARK SHEET'!R32 -> 0 | R23: ='FIN PAT MARK SHEET'!S32 -> 0 | S23: ='FIN PAT MARK SHEET'!T32 -> 0 | T23: 0 | U23: 0 | V23: 0
A24: 16 | B24: 16 | C24: =INSERT!A18 -> 0 | D24: =INSERT!B18 -> 0 | E24: =INSERT!C18 -> 0 | F24: =INSERT!D18 -> 0 | G24: =INSERT!E18 -> 0 | H24: =TERM3!Z31 -> 0 | I24: =TERM3!AR31 -> 0 | J24: =TERM3!BJ31 -> 0 | K24: =TERM3!CB31 -> 0 | L24: =TERM3!CT31 -> 0 | M24: 0 | N24: =TERM3!CY31 -> 0 | O24: ='FIN PAT MARK SHEET'!P33 -> 0 | P24: ='FIN PAT MARK SHEET'!Q33 -> 0 | Q24: ='FIN PAT MARK SHEET'!R33 -> 0 | R24: ='FIN PAT MARK SHEET'!S33 -> 0 | S24: ='FIN PAT MARK SHEET'!T33 -> 0 | T24: 0 | U24: 0 | V24: 0
A25: 17 | B25: 17 | C25: =INSERT!A19 -> 0 | D25: =INSERT!B19 -> 0 | E25: =INSERT!C19 -> 0 | F25: =INSERT!D19 -> 0 | G25: =INSERT!E19 -> 0 | H25: =TERM3!Z32 -> 0 | I25: =TERM3!AR32 -> 0 | J25: =TERM3!BJ32 -> 0 | K25: =TERM3!CB32 -> 0 | L25: =TERM3!CT32 -> 0 | M25: 0 | N25: =TERM3!CY32 -> 0 | O25: ='FIN PAT MARK SHEET'!P34 -> 0 | P25: ='FIN PAT MARK SHEET'!Q34 -> 0 | Q25: ='FIN PAT MARK SHEET'!R34 -> 0 | R25: ='FIN PAT MARK SHEET'!S34 -> 0 | S25: ='FIN PAT MARK SHEET'!T34 -> 0 | T25: 0 | U25: 0 | V25: 0
A26: 18 | B26: 18 | C26: =INSERT!A20 -> 0 | D26: =INSERT!B20 -> 0 | E26: =INSERT!C20 -> 0 | F26: =INSERT!D20 -> 0 | G26: =INSERT!E20 -> 0 | H26: =TERM3!Z33 -> 0 | I26: =TERM3!AR33 -> 0 | J26: =TERM3!BJ33 -> 0 | K26: =TERM3!CB33 -> 0 | L26: =TERM3!CT33 -> 0 | M26: 0 | N26: =TERM3!CY33 -> 0 | O26: ='FIN PAT MARK SHEET'!P35 -> 0 | P26: ='FIN PAT MARK SHEET'!Q35 -> 0 | Q26: ='FIN PAT MARK SHEET'!R35 -> 0 | R26: ='FIN PAT MARK SHEET'!S35 -> 0 | S26: ='FIN PAT MARK SHEET'!T35 -> 0 | T26: 0 | U26: 0 | V26: 0
A27: 19 | B27: 19 | C27: =INSERT!A21 -> 0 | D27: =INSERT!B21 -> 0 | E27: =INSERT!C21 -> 0 | F27: =INSERT!D21 -> 0 | G27: =INSERT!E21 -> 0 | H27: =TERM3!Z34 -> 0 | I27: =TERM3!AR34 -> 0 | J27: =TERM3!BJ34 -> 0 | K27: =TERM3!CB34 -> 0 | L27: =TERM3!CT34 -> 0 | M27: 0 | N27: =TERM3!CY34 -> 0 | O27: ='FIN PAT MARK SHEET'!P36 -> 0 | P27: ='FIN PAT MARK SHEET'!Q36 -> 0 | Q27: ='FIN PAT MARK SHEET'!R36 -> 0 | R27: ='FIN PAT MARK SHEET'!S36 -> 0 | S27: ='FIN PAT MARK SHEET'!T36 -> 0 | T27: 0 | U27: 0 | V27: 0
A28: 20 | B28: 20 | C28: =INSERT!A22 -> 0 | D28: =INSERT!B22 -> 0 | E28: =INSERT!C22 -> 0 | F28: =INSERT!D22 -> 0 | G28: =INSERT!E22 -> 0 | H28: =TERM3!Z35 -> 0 | I28: =TERM3!AR35 -> 0 | J28: =TERM3!BJ35 -> 0 | K28: =TERM3!CB35 -> 0 | L28: =TERM3!CT35 -> 0 | M28: 0 | N28: =TERM3!CY35 -> 0 | O28: ='FIN PAT MARK SHEET'!P37 -> 0 | P28: ='FIN PAT MARK SHEET'!Q37 -> 0 | Q28: ='FIN PAT MARK SHEET'!R37 -> 0 | R28: ='FIN PAT MARK SHEET'!S37 -> 0 | S28: ='FIN PAT MARK SHEET'!T37 -> 0 | T28: 0 | U28: 0 | V28: 0
A29: 21 | B29: 21 | C29: =INSERT!A23 -> 0 | D29: =INSERT!B23 -> 0 | E29: =INSERT!C23 -> 0 | F29: =INSERT!D23 -> 0 | G29: =INSERT!E23 -> 0 | H29: =TERM3!Z36 -> 0 | I29: =TERM3!AR36 -> 0 | J29: =TERM3!BJ36 -> 0 | K29: =TERM3!CB36 -> 0 | L29: =TERM3!CT36 -> 0 | M29: 0 | N29: =TERM3!CY36 -> 0 | O29: ='FIN PAT MARK SHEET'!P38 -> 0 | P29: ='FIN PAT MARK SHEET'!Q38 -> 0 | Q29: ='FIN PAT MARK SHEET'!R38 -> 0 | R29: ='FIN PAT MARK SHEET'!S38 -> 0 | S29: ='FIN PAT MARK SHEET'!T38 -> 0 | T29: 0 | U29: 0 | V29: 0
A30: 22 | B30: 22 | C30: =INSERT!A24 -> 0 | D30: =INSERT!B24 -> 0 | E30: =INSERT!C24 -> 0 | F30: =INSERT!D24 -> 0 | G30: =INSERT!E24 -> 0 | H30: =TERM3!Z37 -> 0 | I30: =TERM3!AR37 -> 0 | J30: =TERM3!BJ37 -> 0 | K30: =TERM3!CB37 -> 0 | L30: =TERM3!CT37 -> 0 | M30: 0 | N30: =TERM3!CY37 -> 0 | O30: ='FIN PAT MARK SHEET'!P39 -> 0 | P30: ='FIN PAT MARK SHEET'!Q39 -> 0 | Q30: ='FIN PAT MARK SHEET'!R39 -> 0 | R30: ='FIN PAT MARK SHEET'!S39 -> 0 | S30: ='FIN PAT MARK SHEET'!T39 -> 0 | T30: 0 | U30: 0 | V30: 0
A31: 23 | B31: 23 | C31: =INSERT!A25 -> 0 | D31: =INSERT!B25 -> 0 | E31: =INSERT!C25 -> 0 | F31: =INSERT!D25 -> 0 | G31: =INSERT!E25 -> 0 | H31: =TERM3!Z38 -> 0 | I31: =TERM3!AR38 -> 0 | J31: =TERM3!BJ38 -> 0 | K31: =TERM3!CB38 -> 0 | L31: =TERM3!CT38 -> 0 | M31: 0 | N31: =TERM3!CY38 -> 0 | O31: ='FIN PAT MARK SHEET'!P40 -> 0 | P31: ='FIN PAT MARK SHEET'!Q40 -> 0 | Q31: ='FIN PAT MARK SHEET'!R40 -> 0 | R31: ='FIN PAT MARK SHEET'!S40 -> 0 | S31: ='FIN PAT MARK SHEET'!T40 -> 0 | T31: 0 | U31: 0 | V31: 0
A32: 24 | B32: 24 | C32: =INSERT!A26 -> 0 | D32: =INSERT!B26 -> 0 | E32: =INSERT!C26 -> 0 | F32: =INSERT!D26 -> 0 | G32: =INSERT!E26 -> 0 | H32: =TERM3!Z39 -> 0 | I32: =TERM3!AR39 -> 0 | J32: =TERM3!BJ39 -> 0 | K32: =TERM3!CB39 -> 0 | L32: =TERM3!CT39 -> 0 | M32: 0 | N32: =TERM3!CY39 -> 0 | O32: ='FIN PAT MARK SHEET'!P41 -> 0 | P32: ='FIN PAT MARK SHEET'!Q41 -> 0 | Q32: ='FIN PAT MARK SHEET'!R41 -> 0 | R32: ='FIN PAT MARK SHEET'!S41 -> 0 | S32: ='FIN PAT MARK SHEET'!T41 -> 0 | T32: 0 | U32: 0 | V32: 0
A33: 25 | B33: 25 | C33: =INSERT!A27 -> 0 | D33: =INSERT!B27 -> 0 | E33: =INSERT!C27 -> 0 | F33: =INSERT!D27 -> 0 | G33: =INSERT!E27 -> 0 | H33: =TERM3!Z40 -> 0 | I33: =TERM3!AR40 -> 0 | J33: =TERM3!BJ40 -> 0 | K33: =TERM3!CB40 -> 0 | L33: =TERM3!CT40 -> 0 | M33: 0 | N33: =TERM3!CY40 -> 0 | O33: ='FIN PAT MARK SHEET'!P42 -> 0 | P33: ='FIN PAT MARK SHEET'!Q42 -> 0 | Q33: ='FIN PAT MARK SHEET'!R42 -> 0 | R33: ='FIN PAT MARK SHEET'!S42 -> 0 | S33: ='FIN PAT MARK SHEET'!T42 -> 0 | T33: 0 | U33: 0 | V33: 0
A34: 26 | B34: 26 | C34: =INSERT!A28 -> 0 | D34: =INSERT!B28 -> 0 | E34: =INSERT!C28 -> 0 | F34: =INSERT!D28 -> 0 | G34: =INSERT!E28 -> 0 | H34: =TERM3!Z41 -> 0 | I34: =TERM3!AR41 -> 0 | J34: =TERM3!BJ41 -> 0 | K34: =TERM3!CB41 -> 0 | L34: =TERM3!CT41 -> 0 | M34: 0 | N34: =TERM3!CY41 -> 0 | O34: ='FIN PAT MARK SHEET'!P43 -> 0 | P34: ='FIN PAT MARK SHEET'!Q43 -> 0 | Q34: ='FIN PAT MARK SHEET'!R43 -> 0 | R34: ='FIN PAT MARK SHEET'!S43 -> 0 | S34: ='FIN PAT MARK SHEET'!T43 -> 0 | T34: 0 | U34: 0 | V34: 0
A35: 27 | B35: 28 | C35: =INSERT!A29 -> 0 | D35: =INSERT!B29 -> 0 | E35: =INSERT!C29 -> 0 | F35: =INSERT!D29 -> 0 | G35: =INSERT!E29 -> 0 | H35: =TERM3!Z42 -> 0 | I35: =TERM3!AR42 -> 0 | J35: =TERM3!BJ42 -> 0 | K35: =TERM3!CB42 -> 0 | L35: =TERM3!CT42 -> 0 | M35: 0 | N35: =TERM3!CY42 -> 0 | O35: ='FIN PAT MARK SHEET'!P44 -> 0 | P35: ='FIN PAT MARK SHEET'!Q44 -> 0 | Q35: ='FIN PAT MARK SHEET'!R44 -> 0 | R35: ='FIN PAT MARK SHEET'!S44 -> 0 | S35: ='FIN PAT MARK SHEET'!T44 -> 0 | T35: 0 | U35: 0 | V35: 0
A36: 28 | B36: 29 | C36: =INSERT!A30 -> 0 | D36: =INSERT!B30 -> 0 | E36: =INSERT!C30 -> 0 | F36: =INSERT!D30 -> 0 | G36: =INSERT!E30 -> 0 | H36: =TERM3!Z43 -> 0 | I36: =TERM3!AR43 -> 0 | J36: =TERM3!BJ43 -> 0 | K36: =TERM3!CB43 -> 0 | L36: =TERM3!CT43 -> 0 | M36: 0 | N36: =TERM3!CY43 -> 0 | O36: ='FIN PAT MARK SHEET'!P45 -> 0 | P36: ='FIN PAT MARK SHEET'!Q45 -> 0 | Q36: ='FIN PAT MARK SHEET'!R45 -> 0 | R36: ='FIN PAT MARK SHEET'!S45 -> 0 | S36: ='FIN PAT MARK SHEET'!T45 -> 0 | T36: 0 | U36: 0 | V36: 0
A37: 29 | B37: 30 | C37: =INSERT!A31 -> 0 | D37: =INSERT!B31 -> 0 | E37: =INSERT!C31 -> 0 | F37: =INSERT!D31 -> 0 | G37: =INSERT!E31 -> 0 | H37: =TERM3!Z44 -> 0 | I37: =TERM3!AR44 -> 0 | J37: =TERM3!BJ44 -> 0 | K37: =TERM3!CB44 -> 0 | L37: =TERM3!CT44 -> 0 | M37: 0 | N37: =TERM3!CY44 -> 0 | O37: ='FIN PAT MARK SHEET'!P46 -> 0 | P37: ='FIN PAT MARK SHEET'!Q46 -> 0 | Q37: ='FIN PAT MARK SHEET'!R46 -> 0 | R37: ='FIN PAT MARK SHEET'!S46 -> 0 | S37: ='FIN PAT MARK SHEET'!T46 -> 0 | T37: 0 | U37: 0 | V37: 0
A38: 30 | B38: 31 | C38: =INSERT!A32 -> 0 | D38: =INSERT!B32 -> 0 | E38: =INSERT!C32 -> 0 | F38: =INSERT!D32 -> 0 | G38: =INSERT!E32 -> 0 | H38: =TERM3!Z45 -> 0 | I38: =TERM3!AR45 -> 0 | J38: =TERM3!BJ45 -> 0 | K38: =TERM3!CB45 -> 0 | L38: =TERM3!CT45 -> 0 | M38: 0 | N38: =TERM3!CY45 -> 0 | O38: ='FIN PAT MARK SHEET'!P47 -> 0 | P38: ='FIN PAT MARK SHEET'!Q47 -> 0 | Q38: ='FIN PAT MARK SHEET'!R47 -> 0 | R38: ='FIN PAT MARK SHEET'!S47 -> 0 | S38: ='FIN PAT MARK SHEET'!T47 -> 0 | T38: 0 | U38: 0 | V38: 0
A39: 31 | B39: 32 | C39: =INSERT!A33 -> 0 | D39: =INSERT!B33 -> 0 | E39: =INSERT!C33 -> 0 | F39: =INSERT!D33 -> 0 | G39: =INSERT!E33 -> 0 | H39: =TERM3!Z46 -> 0 | I39: =TERM3!AR46 -> 0 | J39: =TERM3!BJ46 -> 0 | K39: =TERM3!CB46 -> 0 | L39: =TERM3!CT46 -> 0 | M39: 0 | N39: =TERM3!CY46 -> 0 | O39: ='FIN PAT MARK SHEET'!P48 -> 0 | P39: ='FIN PAT MARK SHEET'!Q48 -> 0 | Q39: ='FIN PAT MARK SHEET'!R48 -> 0 | R39: ='FIN PAT MARK SHEET'!S48 -> 0 | S39: ='FIN PAT MARK SHEET'!T48 -> 0 | T39: 0 | U39: 0 | V39: 0
A40: 32 | B40: 33 | C40: =INSERT!A34 -> 0 | D40: =INSERT!B34 -> 0 | E40: =INSERT!C34 -> 0 | F40: =INSERT!D34 -> 0 | G40: =INSERT!E34 -> 0 | H40: =TERM3!Z47 -> 0 | I40: =TERM3!AR47 -> 0 | J40: =TERM3!BJ47 -> 0 | K40: =TERM3!CB47 -> 0 | L40: =TERM3!CT47 -> 0 | M40: 0 | N40: =TERM3!CY47 -> 0 | O40: ='FIN PAT MARK SHEET'!P49 -> 0 | P40: ='FIN PAT MARK SHEET'!Q49 -> 0 | Q40: ='FIN PAT MARK SHEET'!R49 -> 0 | R40: ='FIN PAT MARK SHEET'!S49 -> 0 | S40: ='FIN PAT MARK SHEET'!T49 -> 0 | T40: 0 | U40: 0 | V40: 0
A41: 33 | B41: 34 | C41: =INSERT!A35 -> 0 | D41: =INSERT!B35 -> 0 | E41: =INSERT!C35 -> 0 | F41: =INSERT!D35 -> 0 | G41: =INSERT!E35 -> 0 | H41: =TERM3!Z48 -> 0 | I41: =TERM3!AR48 -> 0 | J41: =TERM3!BJ48 -> 0 | K41: =TERM3!CB48 -> 0 | L41: =TERM3!CT48 -> 0 | M41: 0 | N41: =TERM3!CY48 -> 0 | O41: ='FIN PAT MARK SHEET'!P50 -> 0 | P41: ='FIN PAT MARK SHEET'!Q50 -> 0 | Q41: ='FIN PAT MARK SHEET'!R50 -> 0 | R41: ='FIN PAT MARK SHEET'!S50 -> 0 | S41: ='FIN PAT MARK SHEET'!T50 -> 0 | T41: 0 | U41: 0 | V41: 0 | W41: =IF(V41>79,"7",IF(V41>69,"6",IF(V41>59,"5",IF(V41>49,"4",IF(V41>39,"3",IF(V41>29,"2",IF(V41>0,"1",IF(V41=0,"")))))))) -> 
A42: 34 | B42: 37 | C42: =INSERT!A36 -> 0 | D42: =INSERT!B36 -> 0 | E42: =INSERT!C36 -> 0 | F42: =INSERT!D36 -> 0 | G42: =INSERT!E36 -> 0 | H42: =TERM3!Z49 -> 0 | I42: =TERM3!AR49 -> 0 | J42: =TERM3!BJ49 -> 0 | K42: =TERM3!CB49 -> 0 | L42: =TERM3!CT49 -> 0 | M42: 0 | N42: =TERM3!CY49 -> 0 | O42: ='FIN PAT MARK SHEET'!P51 -> 0 | P42: ='FIN PAT MARK SHEET'!Q51 -> 0 | Q42: ='FIN PAT MARK SHEET'!R51 -> 0 | R42: ='FIN PAT MARK SHEET'!S51 -> 0 | S42: ='FIN PAT MARK SHEET'!T51 -> 0 | T42: 0 | U42: 0 | V42: 0
A43: 35 | B43: 35 | C43: =INSERT!A37 -> 0 | D43: =INSERT!B37 -> 0 | E43: =INSERT!C37 -> 0 | F43: =INSERT!D37 -> 0 | G43: =INSERT!E37 -> 0 | H43: =TERM3!Z50 -> 0 | I43: =TERM3!AR50 -> 0 | J43: =TERM3!BJ50 -> 0 | K43: =TERM3!CB50 -> 0 | L43: =TERM3!CT50 -> 0 | M43: 0 | N43: =TERM3!CY50 -> 0 | O43: ='FIN PAT MARK SHEET'!P52 -> 0 | P43: ='FIN PAT MARK SHEET'!Q52 -> 0 | Q43: ='FIN PAT MARK SHEET'!R52 -> 0 | R43: ='FIN PAT MARK SHEET'!S52 -> 0 | S43: ='FIN PAT MARK SHEET'!T52 -> 0 | T43: 0 | U43: 0 | V43: 0
A44: 36 | B44: 10 | C44: =INSERT!A38 -> 0 | D44: =INSERT!B38 -> 0 | E44: =INSERT!C38 -> 0 | F44: =INSERT!D38 -> 0 | G44: =INSERT!E38 -> 0 | H44: =TERM3!Z51 -> 0 | I44: =TERM3!AR51 -> 0 | J44: =TERM3!BJ51 -> 0 | K44: =TERM3!CB51 -> 0 | L44: =TERM3!CT51 -> 0 | M44: 0 | N44: =TERM3!CY51 -> 0 | O44: ='FIN PAT MARK SHEET'!P53 -> 0 | P44: ='FIN PAT MARK SHEET'!Q53 -> 0 | Q44: ='FIN PAT MARK SHEET'!R53 -> 0 | R44: ='FIN PAT MARK SHEET'!S53 -> 0 | S44: ='FIN PAT MARK SHEET'!T53 -> 0 | T44: 0 | U44: 0 | V44: 0
A45: 37 | B45: 27 | C45: =INSERT!A39 -> 0 | D45: =INSERT!B39 -> 0 | E45: =INSERT!C39 -> 0 | F45: =INSERT!D39 -> 0 | G45: =INSERT!E39 -> 0 | H45: =TERM3!Z52 -> 0 | I45: =TERM3!AR52 -> 0 | J45: =TERM3!BJ52 -> 0 | K45: =TERM3!CB52 -> 0 | L45: =TERM3!CT52 -> 0 | M45: 0 | N45: =TERM3!CY52 -> 0 | O45: ='FIN PAT MARK SHEET'!P54 -> 0 | P45: ='FIN PAT MARK SHEET'!Q54 -> 0 | Q45: ='FIN PAT MARK SHEET'!R54 -> 0 | R45: ='FIN PAT MARK SHEET'!S54 -> 0 | S45: ='FIN PAT MARK SHEET'!T54 -> 0 | T45: 0 | U45: 0 | V45: 0
A46: 38 | B46: 38 | C46: =INSERT!A40 -> 0 | D46: =INSERT!B40 -> 0 | E46: =INSERT!C40 -> 0 | F46: =INSERT!D40 -> 0 | G46: =INSERT!E40 -> 0 | H46: =TERM3!Z53 -> 0 | I46: =TERM3!AR53 -> 0 | J46: =TERM3!BJ53 -> 0 | K46: =TERM3!CB53 -> 0 | L46: =TERM3!CT53 -> 0 | M46: 0 | N46: =TERM3!CY53 -> 0 | O46: ='FIN PAT MARK SHEET'!P55 -> 0 | P46: ='FIN PAT MARK SHEET'!Q55 -> 0 | Q46: ='FIN PAT MARK SHEET'!R55 -> 0 | R46: ='FIN PAT MARK SHEET'!S55 -> 0 | S46: ='FIN PAT MARK SHEET'!T55 -> 0 | T46: 0 | U46: 0 | V46: 0
A47: 39 | B47: 39 | C47: =INSERT!A41 -> 0 | D47: =INSERT!B41 -> 0 | E47: =INSERT!C41 -> 0 | F47: =INSERT!D41 -> 0 | G47: =INSERT!E41 -> 0 | H47: =TERM3!Z54 -> 0 | I47: =TERM3!AR54 -> 0 | J47: =TERM3!BJ54 -> 0 | K47: =TERM3!CB54 -> 0 | L47: =TERM3!CT54 -> 0 | M47: 0 | N47: =TERM3!CY54 -> 0 | O47: ='FIN PAT MARK SHEET'!P56 -> 0 | P47: ='FIN PAT MARK SHEET'!Q56 -> 0 | Q47: ='FIN PAT MARK SHEET'!R56 -> 0 | R47: ='FIN PAT MARK SHEET'!S56 -> 0 | S47: ='FIN PAT MARK SHEET'!T56 -> 0 | T47: 0 | U47: 0 | V47: 0
A48: 40 | B48: 40 | C48: =INSERT!A42 -> 0 | D48: =INSERT!B42 -> 0 | E48: =INSERT!C42 -> 0 | F48: =INSERT!D42 -> 0 | G48: =INSERT!E42 -> 0 | H48: =TERM3!Z55 -> 0 | I48: =TERM3!AR55 -> 0 | J48: =TERM3!BJ55 -> 0 | K48: =TERM3!CB55 -> 0 | L48: =TERM3!CT55 -> 0 | M48: 0 | N48: =TERM3!CY55 -> 0 | O48: ='FIN PAT MARK SHEET'!P57 -> 0 | P48: ='FIN PAT MARK SHEET'!Q57 -> 0 | Q48: ='FIN PAT MARK SHEET'!R57 -> 0 | R48: ='FIN PAT MARK SHEET'!S57 -> 0 | S48: ='FIN PAT MARK SHEET'!T57 -> 0 | T48: 0 | U48: 0 | V48: 0
A49: 41 | B49: 41 | C49: =INSERT!A43 -> 0 | D49: =INSERT!B43 -> 0 | E49: =INSERT!C43 -> 0 | F49: =INSERT!D43 -> 0 | G49: =INSERT!E43 -> 0 | H49: =TERM3!Z56 -> 0 | I49: =TERM3!AR56 -> 0 | J49: =TERM3!BJ56 -> 0 | K49: =TERM3!CB56 -> 0 | L49: =TERM3!CT56 -> 0 | M49: 0 | N49: =TERM3!CY56 -> 0 | O49: ='FIN PAT MARK SHEET'!P58 -> 0 | P49: ='FIN PAT MARK SHEET'!Q58 -> 0 | Q49: ='FIN PAT MARK SHEET'!R58 -> 0 | R49: ='FIN PAT MARK SHEET'!S58 -> 0 | S49: ='FIN PAT MARK SHEET'!T58 -> 0 | T49: 0 | U49: 0 | V49: 0
A50: 42 | B50: 42 | C50: =INSERT!A44 -> 0 | D50: =INSERT!B44 -> 0 | E50: =INSERT!C44 -> 0 | F50: =INSERT!D44 -> 0 | G50: =INSERT!E44 -> 0 | H50: =TERM3!Z57 -> 0 | I50: =TERM3!AR57 -> 0 | J50: =TERM3!BJ57 -> 0 | K50: =TERM3!CB57 -> 0 | L50: =TERM3!CT57 -> 0 | M50: 0 | N50: =TERM3!CY57 -> 0 | O50: ='FIN PAT MARK SHEET'!P59 -> 0 | P50: ='FIN PAT MARK SHEET'!Q59 -> 0 | Q50: ='FIN PAT MARK SHEET'!R59 -> 0 | R50: ='FIN PAT MARK SHEET'!S59 -> 0 | S50: ='FIN PAT MARK SHEET'!T59 -> 0 | T50: 0 | U50: 0 | V50: 0
A51: 43 | B51: 43 | C51: =INSERT!A45 -> 0 | D51: =INSERT!B45 -> 0 | E51: =INSERT!C45 -> 0 | F51: =INSERT!D45 -> 0 | G51: =INSERT!E45 -> 0 | H51: =TERM3!Z58 -> 0 | I51: =TERM3!AR58 -> 0 | J51: =TERM3!BJ58 -> 0 | K51: =TERM3!CB58 -> 0 | L51: =TERM3!CT58 -> 0 | M51: 0 | N51: =TERM3!CY58 -> 0 | O51: ='FIN PAT MARK SHEET'!P60 -> 0 | P51: ='FIN PAT MARK SHEET'!Q60 -> 0 | Q51: ='FIN PAT MARK SHEET'!R60 -> 0 | R51: ='FIN PAT MARK SHEET'!S60 -> 0 | S51: ='FIN PAT MARK SHEET'!T60 -> 0 | T51: 0 | U51: 0 | V51: 0
A52: 44 | B52: 44 | C52: =INSERT!A46 -> 0 | D52: =INSERT!B46 -> 0 | E52: =INSERT!C46 -> 0 | F52: =INSERT!D46 -> 0 | G52: =INSERT!E46 -> 0 | H52: =TERM3!Z59 -> 0 | I52: =TERM3!AR59 -> 0 | J52: =TERM3!BJ59 -> 0 | K52: =TERM3!CB59 -> 0 | L52: =TERM3!CT59 -> 0 | M52: 0 | N52: =TERM3!CY59 -> 0 | O52: ='FIN PAT MARK SHEET'!P61 -> 0 | P52: ='FIN PAT MARK SHEET'!Q61 -> 0 | Q52: ='FIN PAT MARK SHEET'!R61 -> 0 | R52: ='FIN PAT MARK SHEET'!S61 -> 0 | S52: ='FIN PAT MARK SHEET'!T61 -> 0 | T52: 0 | U52: 0 | V52: 0
A53: 45 | B53: 45 | C53: =INSERT!A47 -> 0 | D53: =INSERT!B47 -> 0 | E53: =INSERT!C47 -> 0 | F53: =INSERT!D47 -> 0 | G53: =INSERT!E47 -> 0 | H53: =TERM3!Z60 -> 0 | I53: =TERM3!AR60 -> 0 | J53: =TERM3!BJ60 -> 0 | K53: =TERM3!CB60 -> 0 | L53: =TERM3!CT60 -> 0 | M53: 0 | N53: =TERM3!CY60 -> 0 | O53: ='FIN PAT MARK SHEET'!P62 -> 0 | P53: ='FIN PAT MARK SHEET'!Q62 -> 0 | Q53: ='FIN PAT MARK SHEET'!R62 -> 0 | R53: ='FIN PAT MARK SHEET'!S62 -> 0 | S53: ='FIN PAT MARK SHEET'!T62 -> 0 | T53: 0 | U53: 0 | V53: 0
A54: 46 | B54: 46 | C54: =INSERT!A48 -> 0 | D54: =INSERT!B48 -> 0 | E54: =INSERT!C48 -> 0 | F54: =INSERT!D48 -> 0 | G54: =INSERT!E48 -> 0 | H54: =TERM3!Z61 -> 0 | I54: =TERM3!AR61 -> 0 | J54: =TERM3!BJ61 -> 0 | K54: =TERM3!CB61 -> 0 | L54: =TERM3!CT61 -> 0 | M54: 0 | N54: =TERM3!CY61 -> 0 | O54: ='FIN PAT MARK SHEET'!P63 -> 0 | P54: ='FIN PAT MARK SHEET'!Q63 -> 0 | Q54: ='FIN PAT MARK SHEET'!R63 -> 0 | R54: ='FIN PAT MARK SHEET'!S63 -> 0 | S54: ='FIN PAT MARK SHEET'!T63 -> 0 | T54: 0 | U54: 0 | V54: 0
A55: 47 | B55: 47 | C55: =INSERT!A49 -> 0 | D55: =INSERT!B49 -> 0 | E55: =INSERT!C49 -> 0 | F55: =INSERT!D49 -> 0 | G55: =INSERT!E49 -> 0 | H55: =TERM3!Z62 -> 0 | I55: =TERM3!AR62 -> 0 | J55: =TERM3!BJ62 -> 0 | K55: =TERM3!CB62 -> 0 | L55: =TERM3!CT62 -> 0 | M55: 0 | N55: =TERM3!CY62 -> 0 | O55: ='FIN PAT MARK SHEET'!P64 -> 0 | P55: ='FIN PAT MARK SHEET'!Q64 -> 0 | Q55: ='FIN PAT MARK SHEET'!R64 -> 0 | R55: ='FIN PAT MARK SHEET'!S64 -> 0 | S55: ='FIN PAT MARK SHEET'!T64 -> 0 | T55: 0 | U55: 0 | V55: 0
A56: 48 | B56: 48 | C56: =INSERT!A50 -> 0 | D56: =INSERT!B50 -> 0 | E56: =INSERT!C50 -> 0 | F56: =INSERT!D50 -> 0 | G56: =INSERT!E50 -> 0 | H56: =TERM3!Z63 -> 0 | I56: =TERM3!AR63 -> 0 | J56: =TERM3!BJ63 -> 0 | K56: =TERM3!CB63 -> 0 | L56: =TERM3!CT63 -> 0 | M56: 0 | N56: =TERM3!CY63 -> 0 | O56: ='FIN PAT MARK SHEET'!P65 -> 0 | P56: ='FIN PAT MARK SHEET'!Q65 -> 0 | Q56: ='FIN PAT MARK SHEET'!R65 -> 0 | R56: ='FIN PAT MARK SHEET'!S65 -> 0 | S56: ='FIN PAT MARK SHEET'!T65 -> 0 | T56: 0 | U56: 0 | V56: 0
A57: 49 | B57: 49 | C57: =INSERT!A51 -> 0 | D57: =INSERT!B51 -> 0 | E57: =INSERT!C51 -> 0 | F57: =INSERT!D51 -> 0 | G57: =INSERT!E51 -> 0 | H57: =TERM3!Z64 -> 0 | I57: =TERM3!AR64 -> 0 | J57: =TERM3!BJ64 -> 0 | K57: =TERM3!CB64 -> 0 | L57: =TERM3!CT64 -> 0 | M57: 0 | N57: =TERM3!CY64 -> 0 | O57: ='FIN PAT MARK SHEET'!P66 -> 0 | P57: ='FIN PAT MARK SHEET'!Q66 -> 0 | Q57: ='FIN PAT MARK SHEET'!R66 -> 0 | R57: ='FIN PAT MARK SHEET'!S66 -> 0 | S57: ='FIN PAT MARK SHEET'!T66 -> 0 | T57: 0 | U57: 0 | V57: 0
A58: 50 | B58: 50 | C58: =INSERT!A52 -> 0 | D58: =INSERT!B52 -> 0 | E58: =INSERT!C52 -> 0 | F58: =INSERT!D52 -> 0 | G58: =INSERT!E52 -> 0 | H58: =TERM3!Z65 -> 0 | I58: =TERM3!AR65 -> 0 | J58: =TERM3!BJ65 -> 0 | K58: =TERM3!CB65 -> 0 | L58: =TERM3!CT65 -> 0 | M58: 0 | N58: =TERM3!CY65 -> 0 | O58: ='FIN PAT MARK SHEET'!P67 -> 0 | P58: ='FIN PAT MARK SHEET'!Q67 -> 0 | Q58: ='FIN PAT MARK SHEET'!R67 -> 0 | R58: ='FIN PAT MARK SHEET'!S67 -> 0 | S58: ='FIN PAT MARK SHEET'!T67 -> 0 | T58: 0 | U58: 0 | V58: 0
A59: 51 | B59: 51 | C59: =INSERT!A53 -> 0 | D59: =INSERT!B53 -> 0 | E59: =INSERT!C53 -> 0 | F59: =INSERT!D53 -> 0 | G59: =INSERT!E53 -> 0 | H59: =TERM3!Z66 -> 0 | I59: =TERM3!AR66 -> 0 | J59: =TERM3!BJ66 -> 0 | K59: =TERM3!CB66 -> 0 | L59: =TERM3!CT66 -> 0 | M59: 0 | N59: =TERM3!CY66 -> 0 | O59: ='FIN PAT MARK SHEET'!P68 -> 0 | P59: ='FIN PAT MARK SHEET'!Q68 -> 0 | Q59: ='FIN PAT MARK SHEET'!R68 -> 0 | R59: ='FIN PAT MARK SHEET'!S68 -> 0 | S59: ='FIN PAT MARK SHEET'!T68 -> 0 | T59: 0 | U59: 0 | V59: 0
A60: 52 | B60: 52 | C60: =INSERT!A54 -> 0 | D60: =INSERT!B54 -> 0 | E60: =INSERT!C54 -> 0 | F60: =INSERT!D54 -> 0 | G60: =INSERT!E54 -> 0 | H60: =TERM3!Z67 -> 0 | I60: =TERM3!AR67 -> 0 | J60: =TERM3!BJ67 -> 0 | K60: =TERM3!CB67 -> 0 | L60: =TERM3!CT67 -> 0 | M60: 0 | N60: =TERM3!CY67 -> 0 | O60: ='FIN PAT MARK SHEET'!P69 -> 0 | P60: ='FIN PAT MARK SHEET'!Q69 -> 0 | Q60: ='FIN PAT MARK SHEET'!R69 -> 0 | R60: ='FIN PAT MARK SHEET'!S69 -> 0 | S60: ='FIN PAT MARK SHEET'!T69 -> 0 | T60: 0 | U60: 0 | V60: 0
A61: 53 | B61: 53 | C61: =INSERT!A55 -> 0 | D61: =INSERT!B55 -> 0 | E61: =INSERT!C55 -> 0 | F61: =INSERT!D55 -> 0 | G61: =INSERT!E55 -> 0 | H61: =TERM3!Z68 -> 0 | I61: =TERM3!AR68 -> 0 | J61: =TERM3!BJ68 -> 0 | K61: =TERM3!CB68 -> 0 | L61: =TERM3!CT68 -> 0 | M61: 0 | N61: =TERM3!CY68 -> 0 | O61: ='FIN PAT MARK SHEET'!P70 -> 0 | P61: ='FIN PAT MARK SHEET'!Q70 -> 0 | Q61: ='FIN PAT MARK SHEET'!R70 -> 0 | R61: ='FIN PAT MARK SHEET'!S70 -> 0 | S61: ='FIN PAT MARK SHEET'!T70 -> 0 | T61: 0 | U61: 0 | V61: 0
A62: 54 | B62: 54 | C62: =INSERT!A56 -> 0 | D62: =INSERT!B56 -> 0 | E62: =INSERT!C56 -> 0 | F62: =INSERT!D56 -> 0 | G62: =INSERT!E56 -> 0 | H62: =TERM3!Z69 -> 0 | I62: =TERM3!AR69 -> 0 | J62: =TERM3!BJ69 -> 0 | K62: =TERM3!CB69 -> 0 | L62: =TERM3!CT69 -> 0 | M62: 0 | N62: =TERM3!CY69 -> 0 | O62: ='FIN PAT MARK SHEET'!P71 -> 0 | P62: ='FIN PAT MARK SHEET'!Q71 -> 0 | Q62: ='FIN PAT MARK SHEET'!R71 -> 0 | R62: ='FIN PAT MARK SHEET'!S71 -> 0 | S62: ='FIN PAT MARK SHEET'!T71 -> 0 | T62: 0 | U62: 0 | V62: 0
A63: 55 | B63: 55 | C63: =INSERT!A57 -> 0 | D63: =INSERT!B57 -> 0 | E63: =INSERT!C57 -> 0 | F63: =INSERT!D57 -> 0 | G63: =INSERT!E57 -> 0 | H63: =TERM3!Z70 -> 0 | I63: =TERM3!AR70 -> 0 | J63: =TERM3!BJ70 -> 0 | K63: =TERM3!CB70 -> 0 | L63: =TERM3!CT70 -> 0 | M63: 0 | N63: =TERM3!CY70 -> 0 | O63: ='FIN PAT MARK SHEET'!P72 -> 0 | P63: ='FIN PAT MARK SHEET'!Q72 -> 0 | Q63: ='FIN PAT MARK SHEET'!R72 -> 0 | R63: ='FIN PAT MARK SHEET'!S72 -> 0 | S63: ='FIN PAT MARK SHEET'!T72 -> 0 | T63: 0 | U63: 0 | V63: 0
A64: 56 | B64: 56 | C64: =INSERT!A58 -> 0 | D64: =INSERT!B58 -> 0 | E64: =INSERT!C58 -> 0 | F64: =INSERT!D58 -> 0 | G64: =INSERT!E58 -> 0 | H64: =TERM3!Z71 -> 0 | I64: =TERM3!AR71 -> 0 | J64: =TERM3!BJ71 -> 0 | K64: =TERM3!CB71 -> 0 | L64: =TERM3!CT71 -> 0 | M64: 0 | N64: =TERM3!CY71 -> 0 | O64: ='FIN PAT MARK SHEET'!P73 -> 0 | P64: ='FIN PAT MARK SHEET'!Q73 -> 0 | Q64: ='FIN PAT MARK SHEET'!R73 -> 0 | R64: ='FIN PAT MARK SHEET'!S73 -> 0 | S64: ='FIN PAT MARK SHEET'!T73 -> 0 | T64: 0 | U64: 0 | V64: 0
A65: 57 | B65: 57 | C65: =INSERT!A59 -> 0 | D65: =INSERT!B59 -> 0 | E65: =INSERT!C59 -> 0 | F65: =INSERT!D59 -> 0 | G65: =INSERT!E59 -> 0 | H65: =TERM3!Z72 -> 0 | I65: =TERM3!AR72 -> 0 | J65: =TERM3!BJ72 -> 0 | K65: =TERM3!CB72 -> 0 | L65: =TERM3!CT72 -> 0 | M65: 0 | N65: =TERM3!CY72 -> 0 | O65: ='FIN PAT MARK SHEET'!P74 -> 0 | P65: ='FIN PAT MARK SHEET'!Q74 -> 0 | Q65: ='FIN PAT MARK SHEET'!R74 -> 0 | R65: ='FIN PAT MARK SHEET'!S74 -> 0 | S65: ='FIN PAT MARK SHEET'!T74 -> 0 | T65: 0 | U65: 0 | V65: 0
A66: 58 | B66: 58 | C66: =INSERT!A60 -> 0 | D66: =INSERT!B60 -> 0 | E66: =INSERT!C60 -> 0 | F66: =INSERT!D60 -> 0 | G66: =INSERT!E60 -> 0 | H66: =TERM3!Z73 -> 0 | I66: =TERM3!AR73 -> 0 | J66: =TERM3!BJ73 -> 0 | K66: =TERM3!CB73 -> 0 | L66: =TERM3!CT73 -> 0 | M66: 0 | N66: =TERM3!CY73 -> 0 | O66: ='FIN PAT MARK SHEET'!P75 -> 0 | P66: ='FIN PAT MARK SHEET'!Q75 -> 0 | Q66: ='FIN PAT MARK SHEET'!R75 -> 0 | R66: ='FIN PAT MARK SHEET'!S75 -> 0 | S66: ='FIN PAT MARK SHEET'!T75 -> 0 | T66: 0 | U66: 0 | V66: 0
A67: 59 | B67: 59 | C67: =INSERT!A61 -> 0 | D67: =INSERT!B61 -> 0 | E67: =INSERT!C61 -> 0 | F67: =INSERT!D61 -> 0 | G67: =INSERT!E61 -> 0 | H67: =TERM3!Z74 -> 0 | I67: =TERM3!AR74 -> 0 | J67: =TERM3!BJ74 -> 0 | K67: =TERM3!CB74 -> 0 | L67: =TERM3!CT74 -> 0 | M67: 0 | N67: =TERM3!CY74 -> 0 | O67: ='FIN PAT MARK SHEET'!P76 -> 0 | P67: ='FIN PAT MARK SHEET'!Q76 -> 0 | Q67: ='FIN PAT MARK SHEET'!R76 -> 0 | R67: ='FIN PAT MARK SHEET'!S76 -> 0 | S67: ='FIN PAT MARK SHEET'!T76 -> 0 | T67: 0 | U67: 0 | V67: 0
A68: 60 | B68: 60 | C68: =INSERT!A62 -> 0 | D68: =INSERT!B62 -> 0 | E68: =INSERT!C62 -> 0 | F68: =INSERT!D62 -> 0 | G68: =INSERT!E62 -> 0 | H68: =TERM3!Z75 -> 0 | I68: =TERM3!AR75 -> 0 | J68: =TERM3!BJ75 -> 0 | K68: =TERM3!CB75 -> 0 | L68: =TERM3!CT75 -> 0 | M68: 0 | N68: =TERM3!CY75 -> 0 | O68: ='FIN PAT MARK SHEET'!P77 -> 0 | P68: ='FIN PAT MARK SHEET'!Q77 -> 0 | Q68: ='FIN PAT MARK SHEET'!R77 -> 0 | R68: ='FIN PAT MARK SHEET'!S77 -> 0 | S68: ='FIN PAT MARK SHEET'!T77 -> 0 | T68: 0 | U68: 0 | V68: 0
A69: 61 | B69: 61 | C69: =INSERT!A63 -> 0 | D69: =INSERT!B63 -> 0 | E69: =INSERT!C63 -> 0 | F69: =INSERT!D63 -> 0 | G69: =INSERT!E63 -> 0 | H69: =TERM3!Z76 -> 0 | I69: =TERM3!AR76 -> 0 | J69: =TERM3!BJ76 -> 0 | K69: =TERM3!CB76 -> 0 | L69: =TERM3!CT76 -> 0 | M69: 0 | N69: =TERM3!CY76 -> 0 | O69: ='FIN PAT MARK SHEET'!P78 -> 0 | P69: ='FIN PAT MARK SHEET'!Q78 -> 0 | Q69: ='FIN PAT MARK SHEET'!R78 -> 0 | R69: ='FIN PAT MARK SHEET'!S78 -> 0 | S69: ='FIN PAT MARK SHEET'!T78 -> 0 | T69: 0 | U69: 0 | V69: 0
A70: 62 | B70: 62 | C70: =INSERT!A64 -> 0 | D70: =INSERT!B64 -> 0 | E70: =INSERT!C64 -> 0 | F70: =INSERT!D64 -> 0 | G70: =INSERT!E64 -> 0 | H70: =TERM3!Z77 -> 0 | I70: =TERM3!AR77 -> 0 | J70: =TERM3!BJ77 -> 0 | K70: =TERM3!CB77 -> 0 | L70: =TERM3!CT77 -> 0 | M70: 0 | N70: =TERM3!CY77 -> 0 | O70: ='FIN PAT MARK SHEET'!P79 -> 0 | P70: ='FIN PAT MARK SHEET'!Q79 -> 0 | Q70: ='FIN PAT MARK SHEET'!R79 -> 0 | R70: ='FIN PAT MARK SHEET'!S79 -> 0 | S70: ='FIN PAT MARK SHEET'!T79 -> 0 | T70: 0 | U70: 0 | V70: 0
A71: 63 | B71: 63 | C71: =INSERT!A65 -> 0 | D71: =INSERT!B65 -> 0 | E71: =INSERT!C65 -> 0 | F71: =INSERT!D65 -> 0 | G71: =INSERT!E65 -> 0 | H71: =TERM3!Z78 -> 0 | I71: =TERM3!AR78 -> 0 | J71: =TERM3!BJ78 -> 0 | K71: =TERM3!CB78 -> 0 | L71: =TERM3!CT78 -> 0 | M71: 0 | N71: =TERM3!CY78 -> 0 | O71: ='FIN PAT MARK SHEET'!P80 -> 0 | P71: ='FIN PAT MARK SHEET'!Q80 -> 0 | Q71: ='FIN PAT MARK SHEET'!R80 -> 0 | R71: ='FIN PAT MARK SHEET'!S80 -> 0 | S71: ='FIN PAT MARK SHEET'!T80 -> 0 | T71: 0 | U71: 0 | V71: 0
A72: 64 | B72: 64 | C72: =INSERT!A66 -> 0 | D72: =INSERT!B66 -> 0 | E72: =INSERT!C66 -> 0 | F72: =INSERT!D66 -> 0 | G72: =INSERT!E66 -> 0 | H72: =TERM3!Z79 -> 0 | I72: =TERM3!AR79 -> 0 | J72: =TERM3!BJ79 -> 0 | K72: =TERM3!CB79 -> 0 | L72: =TERM3!CT79 -> 0 | M72: 0 | N72: =TERM3!CY79 -> 0 | O72: ='FIN PAT MARK SHEET'!P81 -> 0 | P72: ='FIN PAT MARK SHEET'!Q81 -> 0 | Q72: ='FIN PAT MARK SHEET'!R81 -> 0 | R72: ='FIN PAT MARK SHEET'!S81 -> 0 | S72: ='FIN PAT MARK SHEET'!T81 -> 0 | T72: 0 | U72: 0 | V72: 0
A73: 65 | B73: 65 | C73: =INSERT!A67 -> 0 | D73: =INSERT!B67 -> 0 | E73: =INSERT!C67 -> 0 | F73: =INSERT!D67 -> 0 | G73: =INSERT!E67 -> 0 | H73: =TERM3!Z80 -> 0 | I73: =TERM3!AR80 -> 0 | J73: =TERM3!BJ80 -> 0 | K73: =TERM3!CB80 -> 0 | L73: =TERM3!CT80 -> 0 | M73: 0 | N73: =TERM3!CY80 -> 0 | O73: ='FIN PAT MARK SHEET'!P82 -> 0 | P73: ='FIN PAT MARK SHEET'!Q82 -> 0 | Q73: ='FIN PAT MARK SHEET'!R82 -> 0 | R73: ='FIN PAT MARK SHEET'!S82 -> 0 | S73: ='FIN PAT MARK SHEET'!T82 -> 0 | T73: 0 | U73: 0 | V73: 0 | W73: =IF(V73>79,"7",IF(V73>69,"6",IF(V73>59,"5",IF(V73>49,"4",IF(V73>39,"3",IF(V73>29,"2",IF(V73>0,"1",IF(V73=0,"")))))))) -> 
A74: 66 | B74: 66 | C74: =INSERT!A68 -> 0 | D74: =INSERT!B68 -> 0 | E74: =INSERT!C68 -> 0 | F74: =INSERT!D68 -> 0 | G74: =INSERT!E68 -> 0 | H74: =TERM3!Z81 -> 0 | I74: =TERM3!AR81 -> 0 | J74: =TERM3!BJ81 -> 0 | K74: =TERM3!CB81 -> 0 | L74: =TERM3!CT81 -> 0 | M74: =SUM(H74:L74) -> 0 | N74: =TERM3!CY81 -> 0 | O74: ='FIN PAT MARK SHEET'!P83 -> 0 | P74: ='FIN PAT MARK SHEET'!Q83 -> 0 | Q74: ='FIN PAT MARK SHEET'!R83 -> 0 | R74: ='FIN PAT MARK SHEET'!S83 -> 0 | S74: ='FIN PAT MARK SHEET'!T83 -> 0 | T74: =SUMIF(O74:S74,">0")/1.428571428 -> 0 | U74: =SUM(M74*2) -> 0 | V74: =SUM(U74,0) -> 0
A75: 67 | B75: 67 | C75: =INSERT!A69 -> 0 | D75: =INSERT!B69 -> 0 | E75: =INSERT!C69 -> 0 | F75: =INSERT!D69 -> 0 | G75: =INSERT!E69 -> 0 | H75: =TERM3!Z82 -> 0 | I75: =TERM3!AR82 -> 0 | J75: =TERM3!BJ82 -> 0 | K75: =TERM3!CB82 -> 0 | L75: =TERM3!CT82 -> 0 | M75: 0 | N75: =TERM3!CY82 -> 0 | O75: ='FIN PAT MARK SHEET'!P84 -> 0 | P75: ='FIN PAT MARK SHEET'!Q84 -> 0 | Q75: ='FIN PAT MARK SHEET'!R84 -> 0 | R75: ='FIN PAT MARK SHEET'!S84 -> 0 | S75: ='FIN PAT MARK SHEET'!T84 -> 0 | T75: 0 | U75: 0 | V75: 0
A76: 68 | B76: 68 | C76: =INSERT!A70 -> 0 | D76: =INSERT!B70 -> 0 | E76: =INSERT!C70 -> 0 | F76: =INSERT!D70 -> 0 | G76: =INSERT!E70 -> 0 | H76: =TERM3!Z83 -> 0 | I76: =TERM3!AR83 -> 0 | J76: =TERM3!BJ83 -> 0 | K76: =TERM3!CB83 -> 0 | L76: =TERM3!CT83 -> 0 | M76: 0 | N76: =TERM3!CY83 -> 0 | O76: ='FIN PAT MARK SHEET'!P85 -> 0 | P76: ='FIN PAT MARK SHEET'!Q85 -> 0 | Q76: ='FIN PAT MARK SHEET'!R85 -> 0 | R76: ='FIN PAT MARK SHEET'!S85 -> 0 | S76: ='FIN PAT MARK SHEET'!T85 -> 0 | T76: 0 | U76: 0 | V76: 0
A77: 69 | B77: 69 | C77: =INSERT!A71 -> 0 | D77: =INSERT!B71 -> 0 | E77: =INSERT!C71 -> 0 | F77: =INSERT!D71 -> 0 | G77: =INSERT!E71 -> 0 | H77: =TERM3!Z84 -> 0 | I77: =TERM3!AR84 -> 0 | J77: =TERM3!BJ84 -> 0 | K77: =TERM3!CB84 -> 0 | L77: =TERM3!CT84 -> 0 | M77: 0 | N77: =TERM3!CY84 -> 0 | O77: ='FIN PAT MARK SHEET'!P86 -> 0 | P77: ='FIN PAT MARK SHEET'!Q86 -> 0 | Q77: ='FIN PAT MARK SHEET'!R86 -> 0 | R77: ='FIN PAT MARK SHEET'!S86 -> 0 | S77: ='FIN PAT MARK SHEET'!T86 -> 0 | T77: 0 | U77: 0 | V77: 0
A78: 70 | B78: 70 | C78: =INSERT!A72 -> 0 | D78: =INSERT!B72 -> 0 | E78: =INSERT!C72 -> 0 | F78: =INSERT!D72 -> 0 | G78: =INSERT!E72 -> 0 | H78: =TERM3!Z85 -> 0 | I78: =TERM3!AR85 -> 0 | J78: =TERM3!BJ85 -> 0 | K78: =TERM3!CB85 -> 0 | L78: =TERM3!CT85 -> 0 | M78: 0 | N78: =TERM3!CY85 -> 0 | O78: ='FIN PAT MARK SHEET'!P87 -> 0 | P78: ='FIN PAT MARK SHEET'!Q87 -> 0 | Q78: ='FIN PAT MARK SHEET'!R87 -> 0 | R78: ='FIN PAT MARK SHEET'!S87 -> 0 | S78: ='FIN PAT MARK SHEET'!T87 -> 0 | T78: 0 | U78: 0 | V78: 0
A79: 71 | B79: 71 | C79: =INSERT!A73 -> 0 | D79: =INSERT!B73 -> 0 | E79: =INSERT!C73 -> 0 | F79: =INSERT!D73 -> 0 | G79: =INSERT!E73 -> 0 | H79: =TERM3!Z86 -> 0 | I79: =TERM3!AR86 -> 0 | J79: =TERM3!BJ86 -> 0 | K79: =TERM3!CB86 -> 0 | L79: =TERM3!CT86 -> 0 | M79: 0 | N79: =TERM3!CY86 -> 0 | O79: ='FIN PAT MARK SHEET'!P88 -> 0 | P79: ='FIN PAT MARK SHEET'!Q88 -> 0 | Q79: ='FIN PAT MARK SHEET'!R88 -> 0 | R79: ='FIN PAT MARK SHEET'!S88 -> 0 | S79: ='FIN PAT MARK SHEET'!T88 -> 0 | T79: 0 | U79: 0 | V79: 0
A80: 72 | B80: 72 | C80: =INSERT!A74 -> 0 | D80: =INSERT!B74 -> 0 | E80: =INSERT!C74 -> 0 | F80: =INSERT!D74 -> 0 | G80: =INSERT!E74 -> 0 | H80: =TERM3!Z87 -> 0 | I80: =TERM3!AR87 -> 0 | J80: =TERM3!BJ87 -> 0 | K80: =TERM3!CB87 -> 0 | L80: =TERM3!CT87 -> 0 | M80: 0 | N80: =TERM3!CY87 -> 0 | O80: ='FIN PAT MARK SHEET'!P89 -> 0 | P80: ='FIN PAT MARK SHEET'!Q89 -> 0 | Q80: ='FIN PAT MARK SHEET'!R89 -> 0 | R80: ='FIN PAT MARK SHEET'!S89 -> 0 | S80: ='FIN PAT MARK SHEET'!T89 -> 0 | T80: 0 | U80: 0 | V80: 0
A81: 73 | B81: 73 | C81: =INSERT!A75 -> 0 | D81: =INSERT!B75 -> 0 | E81: =INSERT!C75 -> 0 | F81: =INSERT!D75 -> 0 | G81: =INSERT!E75 -> 0 | H81: =TERM3!Z88 -> 0 | I81: =TERM3!AR88 -> 0 | J81: =TERM3!BJ88 -> 0 | K81: =TERM3!CB88 -> 0 | L81: =TERM3!CT88 -> 0 | M81: 0 | N81: =TERM3!CY88 -> 0 | O81: ='FIN PAT MARK SHEET'!P90 -> 0 | P81: ='FIN PAT MARK SHEET'!Q90 -> 0 | Q81: ='FIN PAT MARK SHEET'!R90 -> 0 | R81: ='FIN PAT MARK SHEET'!S90 -> 0 | S81: ='FIN PAT MARK SHEET'!T90 -> 0 | T81: 0 | U81: 0 | V81: 0
A82: 74 | B82: 74 | C82: =INSERT!A76 -> 0 | D82: =INSERT!B76 -> 0 | E82: =INSERT!C76 -> 0 | F82: =INSERT!D76 -> 0 | G82: =INSERT!E76 -> 0 | H82: =TERM3!Z89 -> 0 | I82: =TERM3!AR89 -> 0 | J82: =TERM3!BJ89 -> 0 | K82: =TERM3!CB89 -> 0 | L82: =TERM3!CT89 -> 0 | M82: 0 | N82: =TERM3!CY89 -> 0 | O82: ='FIN PAT MARK SHEET'!P91 -> 0 | P82: ='FIN PAT MARK SHEET'!Q91 -> 0 | Q82: ='FIN PAT MARK SHEET'!R91 -> 0 | R82: ='FIN PAT MARK SHEET'!S91 -> 0 | S82: ='FIN PAT MARK SHEET'!T91 -> 0 | T82: 0 | U82: 0 | V82: 0
A83: 75 | B83: 75 | C83: =INSERT!A77 -> 0 | D83: =INSERT!B77 -> 0 | E83: =INSERT!C77 -> 0 | F83: =INSERT!D77 -> 0 | G83: =INSERT!E77 -> 0 | H83: =TERM3!Z90 -> 0 | I83: =TERM3!AR90 -> 0 | J83: =TERM3!BJ90 -> 0 | K83: =TERM3!CB90 -> 0 | L83: =TERM3!CT90 -> 0 | M83: 0 | N83: =TERM3!CY90 -> 0 | O83: ='FIN PAT MARK SHEET'!P92 -> 0 | P83: ='FIN PAT MARK SHEET'!Q92 -> 0 | Q83: ='FIN PAT MARK SHEET'!R92 -> 0 | R83: ='FIN PAT MARK SHEET'!S92 -> 0 | S83: ='FIN PAT MARK SHEET'!T92 -> 0 | T83: 0 | U83: 0 | V83: 0
A84: 76 | B84: 76 | C84: =INSERT!A78 -> 0 | D84: =INSERT!B78 -> 0 | E84: =INSERT!C78 -> 0 | F84: =INSERT!D78 -> 0 | G84: =INSERT!E78 -> 0 | H84: =TERM3!Z91 -> 0 | I84: =TERM3!AR91 -> 0 | J84: =TERM3!BJ91 -> 0 | K84: =TERM3!CB91 -> 0 | L84: =TERM3!CT91 -> 0 | M84: 0 | N84: =TERM3!CY91 -> 0 | O84: ='FIN PAT MARK SHEET'!P93 -> 0 | P84: ='FIN PAT MARK SHEET'!Q93 -> 0 | Q84: ='FIN PAT MARK SHEET'!R93 -> 0 | R84: ='FIN PAT MARK SHEET'!S93 -> 0 | S84: ='FIN PAT MARK SHEET'!T93 -> 0 | T84: 0 | U84: 0 | V84: 0
A85: 77 | B85: 77 | C85: =INSERT!A79 -> 0 | D85: =INSERT!B79 -> 0 | E85: =INSERT!C79 -> 0 | F85: =INSERT!D79 -> 0 | G85: =INSERT!E79 -> 0 | H85: =TERM3!Z92 -> 0 | I85: =TERM3!AR92 -> 0 | J85: =TERM3!BJ92 -> 0 | K85: =TERM3!CB92 -> 0 | L85: =TERM3!CT92 -> 0 | M85: 0 | N85: =TERM3!CY92 -> 0 | O85: ='FIN PAT MARK SHEET'!P94 -> 0 | P85: ='FIN PAT MARK SHEET'!Q94 -> 0 | Q85: ='FIN PAT MARK SHEET'!R94 -> 0 | R85: ='FIN PAT MARK SHEET'!S94 -> 0 | S85: ='FIN PAT MARK SHEET'!T94 -> 0 | T85: 0 | U85: 0 | V85: 0
A86: 78 | B86: 78 | C86: =INSERT!A80 -> 0 | D86: =INSERT!B80 -> 0 | E86: =INSERT!C80 -> 0 | F86: =INSERT!D80 -> 0 | G86: =INSERT!E80 -> 0 | H86: =TERM3!Z93 -> 0 | I86: =TERM3!AR93 -> 0 | J86: =TERM3!BJ93 -> 0 | K86: =TERM3!CB93 -> 0 | L86: =TERM3!CT93 -> 0 | M86: 0 | N86: =TERM3!CY93 -> 0 | O86: ='FIN PAT MARK SHEET'!P95 -> 0 | P86: ='FIN PAT MARK SHEET'!Q95 -> 0 | Q86: ='FIN PAT MARK SHEET'!R95 -> 0 | R86: ='FIN PAT MARK SHEET'!S95 -> 0 | S86: ='FIN PAT MARK SHEET'!T95 -> 0 | T86: 0 | U86: 0 | V86: 0
A87: 79 | B87: 79 | C87: =INSERT!A81 -> 0 | D87: =INSERT!B81 -> 0 | E87: =INSERT!C81 -> 0 | F87: =INSERT!D81 -> 0 | G87: =INSERT!E81 -> 0 | H87: =TERM3!Z94 -> 0 | I87: =TERM3!AR94 -> 0 | J87: =TERM3!BJ94 -> 0 | K87: =TERM3!CB94 -> 0 | L87: =TERM3!CT94 -> 0 | M87: 0 | N87: =TERM3!CY94 -> 0 | O87: ='FIN PAT MARK SHEET'!P96 -> 0 | P87: ='FIN PAT MARK SHEET'!Q96 -> 0 | Q87: ='FIN PAT MARK SHEET'!R96 -> 0 | R87: ='FIN PAT MARK SHEET'!S96 -> 0 | S87: ='FIN PAT MARK SHEET'!T96 -> 0 | T87: 0 | U87: 0 | V87: 0
A88: 80 | B88: 80 | C88: =INSERT!A82 -> 0 | D88: =INSERT!B82 -> 0 | E88: =INSERT!C82 -> 0 | F88: =INSERT!D82 -> 0 | G88: =INSERT!E82 -> 0 | H88: =TERM3!Z95 -> 0 | I88: =TERM3!AR95 -> 0 | J88: =TERM3!BJ95 -> 0 | K88: =TERM3!CB95 -> 0 | L88: =TERM3!CT95 -> 0 | M88: 0 | N88: =TERM3!CY95 -> 0 | O88: ='FIN PAT MARK SHEET'!P97 -> 0 | P88: ='FIN PAT MARK SHEET'!Q97 -> 0 | Q88: ='FIN PAT MARK SHEET'!R97 -> 0 | R88: ='FIN PAT MARK SHEET'!S97 -> 0 | S88: ='FIN PAT MARK SHEET'!T97 -> 0 | T88: 0 | U88: 0 | V88: 0
A89: 81 | B89: 81 | C89: =INSERT!A83 -> 0 | D89: =INSERT!B83 -> 0 | E89: =INSERT!C83 -> 0 | F89: =INSERT!D83 -> 0 | G89: =INSERT!E83 -> 0 | H89: =TERM3!Z96 -> 0 | I89: =TERM3!AR96 -> 0 | J89: =TERM3!BJ96 -> 0 | K89: =TERM3!CB96 -> 0 | L89: =TERM3!CT96 -> 0 | M89: 0 | N89: =TERM3!CY96 -> 0 | O89: ='FIN PAT MARK SHEET'!P98 -> 0 | P89: ='FIN PAT MARK SHEET'!Q98 -> 0 | Q89: ='FIN PAT MARK SHEET'!R98 -> 0 | R89: ='FIN PAT MARK SHEET'!S98 -> 0 | S89: ='FIN PAT MARK SHEET'!T98 -> 0 | T89: 0 | U89: 0 | V89: 0
A90: 82 | B90: 82 | C90: =INSERT!A84 -> 0 | D90: =INSERT!B84 -> 0 | E90: =INSERT!C84 -> 0 | F90: =INSERT!D84 -> 0 | G90: =INSERT!E84 -> 0 | H90: =TERM3!Z97 -> 0 | I90: =TERM3!AR97 -> 0 | J90: =TERM3!BJ97 -> 0 | K90: =TERM3!CB97 -> 0 | L90: =TERM3!CT97 -> 0 | M90: 0 | N90: =TERM3!CY97 -> 0 | O90: ='FIN PAT MARK SHEET'!P99 -> 0 | P90: ='FIN PAT MARK SHEET'!Q99 -> 0 | Q90: ='FIN PAT MARK SHEET'!R99 -> 0 | R90: ='FIN PAT MARK SHEET'!S99 -> 0 | S90: ='FIN PAT MARK SHEET'!T99 -> 0 | T90: 0 | U90: 0 | V90: 0
A91: 83 | B91: 83 | C91: =INSERT!A85 -> 0 | D91: =INSERT!B85 -> 0 | E91: =INSERT!C85 -> 0 | F91: =INSERT!D85 -> 0 | G91: =INSERT!E85 -> 0 | H91: =TERM3!Z98 -> 0 | I91: =TERM3!AR98 -> 0 | J91: =TERM3!BJ98 -> 0 | K91: =TERM3!CB98 -> 0 | L91: =TERM3!CT98 -> 0 | M91: 0 | N91: =TERM3!CY98 -> 0 | O91: ='FIN PAT MARK SHEET'!P100 -> 0 | P91: ='FIN PAT MARK SHEET'!Q100 -> 0 | Q91: ='FIN PAT MARK SHEET'!R100 -> 0 | R91: ='FIN PAT MARK SHEET'!S100 -> 0 | S91: ='FIN PAT MARK SHEET'!T100 -> 0 | T91: 0 | U91: 0 | V91: 0
A92: 84 | B92: 84 | C92: =INSERT!A86 -> 0 | D92: =INSERT!B86 -> 0 | E92: =INSERT!C86 -> 0 | F92: =INSERT!D86 -> 0 | G92: =INSERT!E86 -> 0 | H92: =TERM3!Z99 -> 0 | I92: =TERM3!AR99 -> 0 | J92: =TERM3!BJ99 -> 0 | K92: =TERM3!CB99 -> 0 | L92: =TERM3!CT99 -> 0 | M92: 0 | N92: =TERM3!CY99 -> 0 | O92: ='FIN PAT MARK SHEET'!P101 -> 0 | P92: ='FIN PAT MARK SHEET'!Q101 -> 0 | Q92: ='FIN PAT MARK SHEET'!R101 -> 0 | R92: ='FIN PAT MARK SHEET'!S101 -> 0 | S92: ='FIN PAT MARK SHEET'!T101 -> 0 | T92: 0 | U92: 0 | V92: 0
A93: 85 | B93: 85 | C93: =INSERT!A87 -> 0 | D93: =INSERT!B87 -> 0 | E93: =INSERT!C87 -> 0 | F93: =INSERT!D87 -> 0 | G93: =INSERT!E87 -> 0 | H93: =TERM3!Z100 -> 0 | I93: =TERM3!AR100 -> 0 | J93: =TERM3!BJ100 -> 0 | K93: =TERM3!CB100 -> 0 | L93: =TERM3!CT100 -> 0 | M93: 0 | N93: =TERM3!CY100 -> 0 | O93: ='FIN PAT MARK SHEET'!P102 -> 0 | P93: ='FIN PAT MARK SHEET'!Q102 -> 0 | Q93: ='FIN PAT MARK SHEET'!R102 -> 0 | R93: ='FIN PAT MARK SHEET'!S102 -> 0 | S93: ='FIN PAT MARK SHEET'!T102 -> 0 | T93: 0 | U93: 0 | V93: 0
A94: 86 | B94: 86 | C94: =INSERT!A88 -> 0 | D94: =INSERT!B88 -> 0 | E94: =INSERT!C88 -> 0 | F94: =INSERT!D88 -> 0 | G94: =INSERT!E88 -> 0 | H94: =TERM3!Z101 -> 0 | I94: =TERM3!AR101 -> 0 | J94: =TERM3!BJ101 -> 0 | K94: =TERM3!CB101 -> 0 | L94: =TERM3!CT101 -> 0 | M94: 0 | N94: =TERM3!CY101 -> 0 | O94: ='FIN PAT MARK SHEET'!P103 -> 0 | P94: ='FIN PAT MARK SHEET'!Q103 -> 0 | Q94: ='FIN PAT MARK SHEET'!R103 -> 0 | R94: ='FIN PAT MARK SHEET'!S103 -> 0 | S94: ='FIN PAT MARK SHEET'!T103 -> 0 | T94: 0 | U94: 0 | V94: 0
A95: 87 | B95: 87 | C95: =INSERT!A89 -> 0 | D95: =INSERT!B89 -> 0 | E95: =INSERT!C89 -> 0 | F95: =INSERT!D89 -> 0 | G95: =INSERT!E89 -> 0 | H95: =TERM3!Z102 -> 0 | I95: =TERM3!AR102 -> 0 | J95: =TERM3!BJ102 -> 0 | K95: =TERM3!CB102 -> 0 | L95: =TERM3!CT102 -> 0 | M95: 0 | N95: =TERM3!CY102 -> 0 | O95: ='FIN PAT MARK SHEET'!P104 -> 0 | P95: ='FIN PAT MARK SHEET'!Q104 -> 0 | Q95: ='FIN PAT MARK SHEET'!R104 -> 0 | R95: ='FIN PAT MARK SHEET'!S104 -> 0 | S95: ='FIN PAT MARK SHEET'!T104 -> 0 | T95: 0 | U95: 0 | V95: 0
A96: 88 | B96: 88 | C96: =INSERT!A90 -> 0 | D96: =INSERT!B90 -> 0 | E96: =INSERT!C90 -> 0 | F96: =INSERT!D90 -> 0 | G96: =INSERT!E90 -> 0 | H96: =TERM3!Z103 -> 0 | I96: =TERM3!AR103 -> 0 | J96: =TERM3!BJ103 -> 0 | K96: =TERM3!CB103 -> 0 | L96: =TERM3!CT103 -> 0 | M96: 0 | N96: =TERM3!CY103 -> 0 | O96: ='FIN PAT MARK SHEET'!P105 -> 0 | P96: ='FIN PAT MARK SHEET'!Q105 -> 0 | Q96: ='FIN PAT MARK SHEET'!R105 -> 0 | R96: ='FIN PAT MARK SHEET'!S105 -> 0 | S96: ='FIN PAT MARK SHEET'!T105 -> 0 | T96: 0 | U96: 0 | V96: 0
A97: 89 | B97: 89 | C97: =INSERT!A91 -> 0 | D97: =INSERT!B91 -> 0 | E97: =INSERT!C91 -> 0 | F97: =INSERT!D91 -> 0 | G97: =INSERT!E91 -> 0 | H97: =TERM3!Z104 -> 0 | I97: =TERM3!AR104 -> 0 | J97: =TERM3!BJ104 -> 0 | K97: =TERM3!CB104 -> 0 | L97: =TERM3!CT104 -> 0 | M97: 0 | N97: =TERM3!CY104 -> 0 | O97: ='FIN PAT MARK SHEET'!P106 -> 0 | P97: ='FIN PAT MARK SHEET'!Q106 -> 0 | Q97: ='FIN PAT MARK SHEET'!R106 -> 0 | R97: ='FIN PAT MARK SHEET'!S106 -> 0 | S97: ='FIN PAT MARK SHEET'!T106 -> 0 | T97: 0 | U97: 0 | V97: 0
A98: 90 | B98: 90 | C98: =INSERT!A92 -> 0 | D98: =INSERT!B92 -> 0 | E98: =INSERT!C92 -> 0 | F98: =INSERT!D92 -> 0 | G98: =INSERT!E92 -> 0 | H98: =TERM3!Z105 -> 0 | I98: =TERM3!AR105 -> 0 | J98: =TERM3!BJ105 -> 0 | K98: =TERM3!CB105 -> 0 | L98: =TERM3!CT105 -> 0 | M98: 0 | N98: =TERM3!CY105 -> 0 | O98: ='FIN PAT MARK SHEET'!P107 -> 0 | P98: ='FIN PAT MARK SHEET'!Q107 -> 0 | Q98: ='FIN PAT MARK SHEET'!R107 -> 0 | R98: ='FIN PAT MARK SHEET'!S107 -> 0 | S98: ='FIN PAT MARK SHEET'!T107 -> 0 | T98: 0 | U98: 0 | V98: 0
A99: 91 | B99: 91 | C99: =INSERT!A93 -> 0 | D99: =INSERT!B93 -> 0 | E99: =INSERT!C93 -> 0 | F99: =INSERT!D93 -> 0 | G99: =INSERT!E93 -> 0 | H99: =TERM3!Z106 -> 0 | I99: =TERM3!AR106 -> 0 | J99: =TERM3!BJ106 -> 0 | K99: =TERM3!CB106 -> 0 | L99: =TERM3!CT106 -> 0 | M99: 0 | N99: =TERM3!CY106 -> 0 | O99: ='FIN PAT MARK SHEET'!P108 -> 0 | P99: ='FIN PAT MARK SHEET'!Q108 -> 0 | Q99: ='FIN PAT MARK SHEET'!R108 -> 0 | R99: ='FIN PAT MARK SHEET'!S108 -> 0 | S99: ='FIN PAT MARK SHEET'!T108 -> 0 | T99: 0 | U99: 0 | V99: 0
A100: 92 | B100: 92 | C100: =INSERT!A94 -> 0 | D100: =INSERT!B94 -> 0 | E100: =INSERT!C94 -> 0 | F100: =INSERT!D94 -> 0 | G100: =INSERT!E94 -> 0 | H100: =TERM3!Z107 -> 0 | I100: =TERM3!AR107 -> 0 | J100: =TERM3!BJ107 -> 0 | K100: =TERM3!CB107 -> 0 | L100: =TERM3!CT107 -> 0 | M100: 0 | N100: =TERM3!CY107 -> 0 | O100: ='FIN PAT MARK SHEET'!P109 -> 0 | P100: ='FIN PAT MARK SHEET'!Q109 -> 0 | Q100: ='FIN PAT MARK SHEET'!R109 -> 0 | R100: ='FIN PAT MARK SHEET'!S109 -> 0 | S100: ='FIN PAT MARK SHEET'!T109 -> 0 | T100: 0 | U100: 0 | V100: 0
A101: 93 | B101: 93 | C101: =INSERT!A95 -> 0 | D101: =INSERT!B95 -> 0 | E101: =INSERT!C95 -> 0 | F101: =INSERT!D95 -> 0 | G101: =INSERT!E95 -> 0 | H101: =TERM3!Z108 -> 0 | I101: =TERM3!AR108 -> 0 | J101: =TERM3!BJ108 -> 0 | K101: =TERM3!CB108 -> 0 | L101: =TERM3!CT108 -> 0 | M101: 0 | N101: =TERM3!CY108 -> 0 | O101: ='FIN PAT MARK SHEET'!P110 -> 0 | P101: ='FIN PAT MARK SHEET'!Q110 -> 0 | Q101: ='FIN PAT MARK SHEET'!R110 -> 0 | R101: ='FIN PAT MARK SHEET'!S110 -> 0 | S101: ='FIN PAT MARK SHEET'!T110 -> 0 | T101: 0 | U101: 0 | V101: 0
A102: 94 | B102: 94 | C102: =INSERT!A96 -> 0 | D102: =INSERT!B96 -> 0 | E102: =INSERT!C96 -> 0 | F102: =INSERT!D96 -> 0 | G102: =INSERT!E96 -> 0 | H102: =TERM3!Z109 -> 0 | I102: =TERM3!AR109 -> 0 | J102: =TERM3!BJ109 -> 0 | K102: =TERM3!CB109 -> 0 | L102: =TERM3!CT109 -> 0 | M102: 0 | N102: =TERM3!CY109 -> 0 | O102: ='FIN PAT MARK SHEET'!P111 -> 0 | P102: ='FIN PAT MARK SHEET'!Q111 -> 0 | Q102: ='FIN PAT MARK SHEET'!R111 -> 0 | R102: ='FIN PAT MARK SHEET'!S111 -> 0 | S102: ='FIN PAT MARK SHEET'!T111 -> 0 | T102: 0 | U102: 0 | V102: 0
A103: 95 | B103: 95 | C103: =INSERT!A97 -> 0 | D103: =INSERT!B97 -> 0 | E103: =INSERT!C97 -> 0 | F103: =INSERT!D97 -> 0 | G103: =INSERT!E97 -> 0 | H103: =TERM3!Z110 -> 0 | I103: =TERM3!AR110 -> 0 | J103: =TERM3!BJ110 -> 0 | K103: =TERM3!CB110 -> 0 | L103: =TERM3!CT110 -> 0 | M103: 0 | N103: =TERM3!CY110 -> 0 | O103: ='FIN PAT MARK SHEET'!P112 -> 0 | P103: ='FIN PAT MARK SHEET'!Q112 -> 0 | Q103: ='FIN PAT MARK SHEET'!R112 -> 0 | R103: ='FIN PAT MARK SHEET'!S112 -> 0 | S103: ='FIN PAT MARK SHEET'!T112 -> 0 | T103: 0 | U103: 0 | V103: 0
A104: 96 | B104: 96 | C104: =INSERT!A98 -> 0 | D104: =INSERT!B98 -> 0 | E104: =INSERT!C98 -> 0 | F104: =INSERT!D98 -> 0 | G104: =INSERT!E98 -> 0 | H104: =TERM3!Z111 -> 0 | I104: =TERM3!AR111 -> 0 | J104: =TERM3!BJ111 -> 0 | K104: =TERM3!CB111 -> 0 | L104: =TERM3!CT111 -> 0 | M104: 0 | N104: =TERM3!CY111 -> 0 | O104: ='FIN PAT MARK SHEET'!P113 -> 0 | P104: ='FIN PAT MARK SHEET'!Q113 -> 0 | Q104: ='FIN PAT MARK SHEET'!R113 -> 0 | R104: ='FIN PAT MARK SHEET'!S113 -> 0 | S104: ='FIN PAT MARK SHEET'!T113 -> 0 | T104: 0 | U104: 0 | V104: 0
A105: 97 | B105: 97 | C105: =INSERT!A99 -> 0 | D105: =INSERT!B99 -> 0 | E105: =INSERT!C99 -> 0 | F105: =INSERT!D99 -> 0 | G105: =INSERT!E99 -> 0 | H105: =TERM3!Z112 -> 0 | I105: =TERM3!AR112 -> 0 | J105: =TERM3!BJ112 -> 0 | K105: =TERM3!CB112 -> 0 | L105: =TERM3!CT112 -> 0 | M105: 0 | N105: =TERM3!CY112 -> 0 | O105: ='FIN PAT MARK SHEET'!P114 -> 0 | P105: ='FIN PAT MARK SHEET'!Q114 -> 0 | Q105: ='FIN PAT MARK SHEET'!R114 -> 0 | R105: ='FIN PAT MARK SHEET'!S114 -> 0 | S105: ='FIN PAT MARK SHEET'!T114 -> 0 | T105: 0 | U105: 0 | V105: 0 | W105: =IF(V105>79,"7",IF(V105>69,"6",IF(V105>59,"5",IF(V105>49,"4",IF(V105>39,"3",IF(V105>29,"2",IF(V105>0,"1",IF(V105=0,"")))))))) -> 
A106: 98 | B106: 98 | C106: =INSERT!A100 -> 0 | D106: =INSERT!B100 -> 0 | E106: =INSERT!C100 -> 0 | F106: =INSERT!D100 -> 0 | G106: =INSERT!E100 -> 0 | H106: =TERM3!Z113 -> 0 | I106: =TERM3!AR113 -> 0 | J106: =TERM3!BJ113 -> 0 | K106: =TERM3!CB113 -> 0 | L106: =TERM3!CT113 -> 0 | M106: 0 | N106: =TERM3!CY113 -> 0 | O106: ='FIN PAT MARK SHEET'!P115 -> 0 | P106: ='FIN PAT MARK SHEET'!Q115 -> 0 | Q106: ='FIN PAT MARK SHEET'!R115 -> 0 | R106: ='FIN PAT MARK SHEET'!S115 -> 0 | S106: ='FIN PAT MARK SHEET'!T115 -> 0 | T106: 0 | U106: 0 | V106: 0
A107: 99 | B107: 99 | C107: =INSERT!A101 -> 0 | D107: =INSERT!B101 -> 0 | E107: =INSERT!C101 -> 0 | F107: =INSERT!D101 -> 0 | G107: =INSERT!E101 -> 0 | H107: =TERM3!Z114 -> 0 | I107: =TERM3!AR114 -> 0 | J107: =TERM3!BJ114 -> 0 | K107: =TERM3!CB114 -> 0 | L107: =TERM3!CT114 -> 0 | M107: 0 | N107: =TERM3!CY114 -> 0 | O107: ='FIN PAT MARK SHEET'!P116 -> 0 | P107: ='FIN PAT MARK SHEET'!Q116 -> 0 | Q107: ='FIN PAT MARK SHEET'!R116 -> 0 | R107: ='FIN PAT MARK SHEET'!S116 -> 0 | S107: ='FIN PAT MARK SHEET'!T116 -> 0 | T107: 0 | U107: 0 | V107: 0
A108: 100 | B108: 100 | C108: =INSERT!A102 -> 0 | D108: =INSERT!B102 -> 0 | E108: =INSERT!C102 -> 0 | F108: =INSERT!D102 -> 0 | G108: =INSERT!E102 -> 0 | H108: =TERM3!Z115 -> 0 | I108: =TERM3!AR115 -> 0 | J108: =TERM3!BJ115 -> 0 | K108: =TERM3!CB115 -> 0 | L108: =TERM3!CT115 -> 0 | M108: 0 | N108: =TERM3!CY115 -> 0 | O108: ='FIN PAT MARK SHEET'!P117 -> 0 | P108: ='FIN PAT MARK SHEET'!Q117 -> 0 | Q108: ='FIN PAT MARK SHEET'!R117 -> 0 | R108: ='FIN PAT MARK SHEET'!S117 -> 0 | S108: ='FIN PAT MARK SHEET'!T117 -> 0 | T108: 0 | U108: 0 | V108: 0
A109: Total | H109: =SUM(O9:O108) -> 0 | I109: 0 | J109: 0 | K109: 0 | L109: 0 | M109: 0 | N109: =SUM(H9:H108) -> 0 | O109: 0 | P109: 0 | Q109: 0 | R109: 0 | S109: 0 | T109: 0 | U109: 0 | V109: =SUM(V9:V108) -> 0
A110: Average% | H110: =IFERROR(ROUND((AVERAGEIF(O9:O108,">0")/O4*100),1),"0") -> 0 | I110: 0 | J110: 0 | K110: 0 | L110: 0 | M110: 0 | N110: =IFERROR(ROUND((AVERAGEIF(H9:H108,">0")/H4*100),1),"0") -> 0 | O110: 0 | P110: 0 | Q110: 0 | R110: 0 | S110: 0 | T110: 0 | U110: 0 | V110: =IFERROR(ROUND((AVERAGEIF(V9:V108,">0")/V7*100),1),"0") -> 0
A111: Total amount of learners on mark sheet | E111: X | F111: Term results analysis | N111: LEVEL 1 | O111: LEVEL 2 | P111: LEVEL 3 | Q111: LEVEL 4 | R111: LEVEL 5 | S111: LEVEL 6 | T111: LEVEL 7 | U111: 0
E112: =INSERT!$E$103 -> 0 | N112: 0 - 29 | O112: 30 - 39 | P112: 40 - 49 | Q112: 50 - 59 | R112: 60 - 69 | S112: 70 - 79 | T112: 80 - 100
E113: X | N113: =COUNTIF(W9:W108,1) -> 0 | O113: =COUNTIF($W$9:$W$108,2) -> 0 | P113: =COUNTIF($W$9:$W$108,3) -> 0 | Q113: =COUNTIF($W$9:$W$108,4) -> 0 | R113: =COUNTIF($W$9:$W$108,5) -> 0 | S113: =COUNTIF($W$9:$W$108,6) -> 0 | T113: =COUNTIF($W$9:$W$108,7) -> 0 | U113: =SUM(N113:T113) -> 0

Sheet SASAMS TERM4
A1: Engineering Graphics and Design (Gr 11) Term 4: | G1: TASKS | I1: TASK 7 | N1: TASK 8 | Q1: TASK 9 | T1: TASK PAT (Phase 3) | AA1: TASK PAT (Q&M) | AB1: 1 CD | AC1: 2 CD | AD1: 3 June Exam | AE1: 4 CD | AF1: 5 Nov Exam | AG1: SBA Year Mark 1 - 7
A2: Grade: | D2: =TERM1!$F$6 -> 0 | G2: Activities | H2: =TERM4!$I$4 -> CD13 Loci: Cam | J2: PAT (Phase 1) | K2: PAT (Phase 2) | L2: PAT (Phase 3) | M2: PAT (Q&M) | O2: Paper 1 | P2: Paper 2 | R2: 6. Continuous evaluation | S2: 7. Final presentation & bibliografie | U2: Freehand Method | V2: Freehand Quality | W2: Instrument Method | X2: Instrument Quality | Y2: CAD Method | Z2: CAD Quality | AI2: 50
A3: Weighting | H3: 100 | I3: 0 | J3: 29 | K3: 35 | L3: 11 | M3: 25 | N3: 20 | O3: 50 | P3: 50 | Q3: 40 | R3: 50 | S3: 50 | T3: 0 | U3: 25 | V3: 25 | W3: 25 | X3: 25 | Y3: 0 | Z3: 0 | AA3: 0 | AG3: 40 | AH3: 40
A4: Marks: -1 = Absent, -2 = Not Captured | G4: Total Mark | H4: 10 | I4: 10 | J4: 29 | K4: 35 | L4: 11 | M4: 25 | N4: 100 | O4: 100 | P4: 100 | Q4: 200 | R4: 10 | S4: 10 | T4: 11 | U4: 10 | V4: 10 | W4: 10 | X4: 10 | Y4: 10 | Z4: 10 | AA4: 25 | AB4: 40 | AC4: 30 | AD4: 150 | AE4: 50 | AF4: 10 | AG4: =SUM(AB4:AF4) -> 280 | AH4: 100 | AI4: TOTAL Weighted Mark | AJ4: Term % | AK4: Level
A5: Include in SBA Year Mark | I5: Yes | AB5: Yes | AC5: Yes | AD5: Yes | AE5: Yes | AF5: Yes | AG5: Yes | AH5: Yes
A6: =HYPERLINK("#'"&"Index'!A1","Index") -> Index | I6: 2.31 | AB6: 13 | AC6: 9 | AD6: 60 | AE6: 15 | AF6: 3
G7: Term /Date | I7: Term4 | N7: Term4 | Q7: Term4 | T7: Term4 | AA7: Term4 | AB7: Term1 | AC7: Term2 | AD7: Term2 | AE7: Term3 | AF7: Term4 | AG7: Term4 | AH7: Term4
A8: No | C8: Class | D8: Acc No | E8: Learner | G8: Gender | H8: T3:A1 | I8: T3 | J8: T4:A1 | K8: T4:A2 | L8: T4:A3 | M8: T4:A4 | N8: T4 | O8: T5:A1 | P8: T5:A2 | Q8: T5 | R8: T1:A1 | S8: T1:A2 | T8: T1 | U8: T2:A1 | V8: T2:A2 | W8: T2:A3 | X8: T2:A4 | Y8: T2:A5 | Z8: T2:A6 | AA8: T2 | AB8: SBA 1 | AC8: SBA 3 | AD8: SBA 4 | AE8: SBA 5 | AF8: SBA 7 | AG8: SBAYEAR | AH8: SBAYEAR | AI8: 100 | AJ8: 100
A10: 1 | B10: 1 | C10: =INSERT!A3 -> 0 | D10: =INSERT!B3 -> 0 | E10: =INSERT!C3 -> 0 | F10: =INSERT!D3 -> 0 | G10: =INSERT!E3 -> 0 | H10: =TERM4!Z16 -> 0 | I10: =H10 -> 0 | J10: ='SASAMS TERM2'!T9 -> 0 | K10: ='SASAMS TERM3'!T9 -> 0 | L10: =T10 -> 0 | M10: =AA10 -> 0 | N10: =SUM(J10:M10) -> 0 | O10: =TERM4!AA16 -> 0 | P10: =TERM4!AC16 -> 0 | Q10: =SUM(O10:P10) -> 0 | R10: ='FIN PAT MARK SHEET'!AD18 -> 0 | S10: ='FIN PAT MARK SHEET'!AE18 -> 0 | T10: =SUMIF(R10:S10,">0")/1.818181818 -> 0 | U10: ='FIN PAT MARK SHEET'!V18 -> 0 | V10: ='FIN PAT MARK SHEET'!W18 -> 0 | W10: ='FIN PAT MARK SHEET'!X18 -> 0 | X10: ='FIN PAT MARK SHEET'!Y18 -> 0 | Y10: ='FIN PAT MARK SHEET'!Z18 -> 0 | Z10: ='FIN PAT MARK SHEET'!AA18 -> 0 | AA10: =IF(AN10=4,SUMIF(U10:Z10,">0")/1.6,IF(AN10=6,SUMIF(U10:Z10,">0")/2.4,SUMIF(U10:Z10,">0"))) -> 0 | AB10: ='SASAMS TERM1'!L9 -> 0 | AC10: ='SASAMS TERM2'!K9 -> 0 | AD10: ='SASAMS TERM2'!N9 -> 0 | AE10: ='SASAMS TERM3'!M9 -> 0 | AF10: =H10 -> 0 | AG10: =SUM(AB10:AF10) -> 0 | AH10: =SUM(AB10/3.076923076)+SUM(AC10/3.333333333)+SUM(AD10/2.5)+SUM(AE10/3.333333333)+SUM(AF10/3.333333333) -> 0 | AI10: =SUM(AH10/2.5)+SUM(Q10/5)+SUM(N10/5) -> 0 | AJ10: =SUM(AI10,0) -> 0 | AK10: =IF(AI10>79,"7",IF(AI10>69,"6",IF(AI10>59,"5",IF(AI10>49,"4",IF(AI10>39,"3",IF(AI10>29,"2",IF(AI10>0,"1",IF(AI10=0,"")))))))) ->  | AN10: =COUNTIF(U10:Z10,">0") -> 0
A11: 2 | B11: 36 | C11: =INSERT!A4 -> 0 | D11: =INSERT!B4 -> 0 | E11: =INSERT!C4 -> 0 | F11: =INSERT!D4 -> 0 | G11: =INSERT!E4 -> 0 | H11: =TERM4!Z17 -> 0 | I11: =H11 -> 0 | J11: ='SASAMS TERM2'!T10 -> 0 | K11: ='SASAMS TERM3'!T10 -> 0 | L11: 0 | M11: 0 | N11: =SUM(J11:M11) -> 0 | O11: =TERM4!AA17 -> 0 | P11: =TERM4!AC17 -> 0 | Q11: =SUM(O11:P11) -> 0 | R11: ='FIN PAT MARK SHEET'!AD19 -> 0 | S11: ='FIN PAT MARK SHEET'!AE19 -> 0 | T11: =SUMIF(R11:S11,">0")/1.818181818 -> 0 | U11: ='FIN PAT MARK SHEET'!V19 -> 0 | V11: ='FIN PAT MARK SHEET'!W19 -> 0 | W11: ='FIN PAT MARK SHEET'!X19 -> 0 | X11: ='FIN PAT MARK SHEET'!Y19 -> 0 | Y11: ='FIN PAT MARK SHEET'!Z19 -> 0 | Z11: ='FIN PAT MARK SHEET'!AA19 -> 0 | AA11: 0 | AB11: ='SASAMS TERM1'!L10 -> 0 | AC11: ='SASAMS TERM2'!K10 -> 0 | AD11: ='SASAMS TERM2'!N10 -> 0 | AE11: ='SASAMS TERM3'!M10 -> 0 | AF11: 0 | AG11: =SUM(AB11:AF11) -> 0 | AH11: =SUM(AB11/3.076923076)+SUM(AC11/3.333333333)+SUM(AD11/2.5)+SUM(AE11/3.333333333)+SUM(AF11/3.333333333) -> 0 | AI11: =SUM(AH11/2.5)+SUM(Q11/5)+SUM(N11/5) -> 0 | AJ11: =SUM(AI11,0) -> 0 | AK11: =IF(AJ11>79,"7",IF(AJ11>69,"6",IF(AJ11>59,"5",IF(AJ11>49,"4",IF(AJ11>39,"3",IF(AJ11>29,"2",IF(AJ11>0,"1",IF(AJ11=0,"")))))))) ->  | AN11: 0
A12: 3 | B12: 2 | C12: =INSERT!A5 -> 0 | D12: =INSERT!B5 -> 0 | E12: =INSERT!C5 -> 0 | F12: =INSERT!D5 -> 0 | G12: =INSERT!E5 -> 0 | H12: =TERM4!Z18 -> 0 | I12: 0 | J12: ='SASAMS TERM2'!T11 -> 0 | K12: ='SASAMS TERM3'!T11 -> 0 | L12: 0 | M12: 0 | N12: 0 | O12: =TERM4!AA18 -> 0 | P12: =TERM4!AC18 -> 0 | Q12: 0 | R12: ='FIN PAT MARK SHEET'!AD20 -> 0 | S12: ='FIN PAT MARK SHEET'!AE20 -> 0 | T12: 0 | U12: ='FIN PAT MARK SHEET'!V20 -> 0 | V12: ='FIN PAT MARK SHEET'!W20 -> 0 | W12: ='FIN PAT MARK SHEET'!X20 -> 0 | X12: ='FIN PAT MARK SHEET'!Y20 -> 0 | Y12: ='FIN PAT MARK SHEET'!Z20 -> 0 | Z12: ='FIN PAT MARK SHEET'!AA20 -> 0 | AA12: 0 | AB12: ='SASAMS TERM1'!L11 -> 0 | AC12: ='SASAMS TERM2'!K11 -> 0 | AD12: ='SASAMS TERM2'!N11 -> 0 | AE12: ='SASAMS TERM3'!M11 -> 0 | AF12: 0 | AG12: 0 | AH12: 0 | AI12: 0 | AJ12: 0 | AN12: 0
A13: 4 | B13: 3 | C13: =INSERT!A6 -> 0 | D13: =INSERT!B6 -> 0 | E13: =INSERT!C6 -> 0 | F13: =INSERT!D6 -> 0 | G13: =INSERT!E6 -> 0 | H13: =TERM4!Z19 -> 0 | I13: 0 | J13: ='SASAMS TERM2'!T12 -> 0 | K13: ='SASAMS TERM3'!T12 -> 0 | L13: 0 | M13: 0 | N13: 0 | O13: =TERM4!AA19 -> 0 | P13: =TERM4!AC19 -> 0 | Q13: 0 | R13: ='FIN PAT MARK SHEET'!AD21 -> 0 | S13: ='FIN PAT MARK SHEET'!AE21 -> 0 | T13: 0 | U13: ='FIN PAT MARK SHEET'!V21 -> 0 | V13: ='FIN PAT MARK SHEET'!W21 -> 0 | W13: ='FIN PAT MARK SHEET'!X21 -> 0 | X13: ='FIN PAT MARK SHEET'!Y21 -> 0 | Y13: ='FIN PAT MARK SHEET'!Z21 -> 0 | Z13: ='FIN PAT MARK SHEET'!AA21 -> 0 | AA13: 0 | AB13: ='SASAMS TERM1'!L12 -> 0 | AC13: ='SASAMS TERM2'!K12 -> 0 | AD13: ='SASAMS TERM2'!N12 -> 0 | AE13: ='SASAMS TERM3'!M12 -> 0 | AF13: 0 | AG13: 0 | AH13: 0 | AI13: 0 | AJ13: 0 | AN13: 0
A14: 5 | B14: 4 | C14: =INSERT!A7 -> 0 | D14: =INSERT!B7 -> 0 | E14: =INSERT!C7 -> 0 | F14: =INSERT!D7 -> 0 | G14: =INSERT!E7 -> 0 | H14: =TERM4!Z20 -> 0 | I14: 0 | J14: ='SASAMS TERM2'!T13 -> 0 | K14: ='SASAMS TERM3'!T13 -> 0 | L14: 0 | M14: 0 | N14: 0 | O14: =TERM4!AA20 -> 0 | P14: =TERM4!AC20 -> 0 | Q14: 0 | R14: ='FIN PAT MARK SHEET'!AD22 -> 0 | S14: ='FIN PAT MARK SHEET'!AE22 -> 0 | T14: 0 | U14: ='FIN PAT MARK SHEET'!V22 -> 0 | V14: ='FIN PAT MARK SHEET'!W22 -> 0 | W14: ='FIN PAT MARK SHEET'!X22 -> 0 | X14: ='FIN PAT MARK SHEET'!Y22 -> 0 | Y14: ='FIN PAT MARK SHEET'!Z22 -> 0 | Z14: ='FIN PAT MARK SHEET'!AA22 -> 0 | AA14: 0 | AB14: ='SASAMS TERM1'!L13 -> 0 | AC14: ='SASAMS TERM2'!K13 -> 0 | AD14: ='SASAMS TERM2'!N13 -> 0 | AE14: ='SASAMS TERM3'!M13 -> 0 | AF14: 0 | AG14: 0 | AH14: 0 | AI14: 0 | AJ14: 0 | AN14: 0
A15: 6 | B15: 5 | C15: =INSERT!A8 -> 0 | D15: =INSERT!B8 -> 0 | E15: =INSERT!C8 -> 0 | F15: =INSERT!D8 -> 0 | G15: =INSERT!E8 -> 0 | H15: =TERM4!Z21 -> 0 | I15: 0 | J15: ='SASAMS TERM2'!T14 -> 0 | K15: ='SASAMS TERM3'!T14 -> 0 | L15: 0 | M15: 0 | N15: 0 | O15: =TERM4!AA21 -> 0 | P15: =TERM4!AC21 -> 0 | Q15: 0 | R15: ='FIN PAT MARK SHEET'!AD23 -> 0 | S15: ='FIN PAT MARK SHEET'!AE23 -> 0 | T15: 0 | U15: ='FIN PAT MARK SHEET'!V23 -> 0 | V15: ='FIN PAT MARK SHEET'!W23 -> 0 | W15: ='FIN PAT MARK SHEET'!X23 -> 0 | X15: ='FIN PAT MARK SHEET'!Y23 -> 0 | Y15: ='FIN PAT MARK SHEET'!Z23 -> 0 | Z15: ='FIN PAT MARK SHEET'!AA23 -> 0 | AA15: 0 | AB15: ='SASAMS TERM1'!L14 -> 0 | AC15: ='SASAMS TERM2'!K14 -> 0 | AD15: ='SASAMS TERM2'!N14 -> 0 | AE15: ='SASAMS TERM3'!M14 -> 0 | AF15: 0 | AG15: 0 | AH15: 0 | AI15: 0 | AJ15: 0 | AN15: 0
A16: 7 | B16: 6 | C16: =INSERT!A9 -> 0 | D16: =INSERT!B9 -> 0 | E16: =INSERT!C9 -> 0 | F16: =INSERT!D9 -> 0 | G16: =INSERT!E9 -> 0 | H16: =TERM4!Z22 -> 0 | I16: 0 | J16: ='SASAMS TERM2'!T15 -> 0 | K16: ='SASAMS TERM3'!T15 -> 0 | L16: 0 | M16: 0 | N16: 0 | O16: =TERM4!AA22 -> 0 | P16: =TERM4!AC22 -> 0 | Q16: 0 | R16: ='FIN PAT MARK SHEET'!AD24 -> 0 | S16: ='FIN PAT MARK SHEET'!AE24 -> 0 | T16: 0 | U16: ='FIN PAT MARK SHEET'!V24 -> 0 | V16: ='FIN PAT MARK SHEET'!W24 -> 0 | W16: ='FIN PAT MARK SHEET'!X24 -> 0 | X16: ='FIN PAT MARK SHEET'!Y24 -> 0 | Y16: ='FIN PAT MARK SHEET'!Z24 -> 0 | Z16: ='FIN PAT MARK SHEET'!AA24 -> 0 | AA16: 0 | AB16: ='SASAMS TERM1'!L15 -> 0 | AC16: ='SASAMS TERM2'!K15 -> 0 | AD16: ='SASAMS TERM2'!N15 -> 0 | AE16: ='SASAMS TERM3'!M15 -> 0 | AF16: 0 | AG16: 0 | AH16: 0 | AI16: 0 | AJ16: 0 | AN16: 0
A17: 8 | B17: 7 | C17: =INSERT!A10 -> 0 | D17: =INSERT!B10 -> 0 | E17: =INSERT!C10 -> 0 | F17: =INSERT!D10 -> 0 | G17: =INSERT!E10 -> 0 | H17: =TERM4!Z23 -> 0 | I17: 0 | J17: ='SASAMS TERM2'!T16 -> 0 | K17: ='SASAMS TERM3'!T16 -> 0 | L17: 0 | M17: 0 | N17: 0 | O17: =TERM4!AA23 -> 0 | P17: =TERM4!AC23 -> 0 | Q17: 0 | R17: ='FIN PAT MARK SHEET'!AD25 -> 0 | S17: ='FIN PAT MARK SHEET'!AE25 -> 0 | T17: 0 | U17: ='FIN PAT MARK SHEET'!V25 -> 0 | V17: ='FIN PAT MARK SHEET'!W25 -> 0 | W17: ='FIN PAT MARK SHEET'!X25 -> 0 | X17: ='FIN PAT MARK SHEET'!Y25 -> 0 | Y17: ='FIN PAT MARK SHEET'!Z25 -> 0 | Z17: ='FIN PAT MARK SHEET'!AA25 -> 0 | AA17: 0 | AB17: ='SASAMS TERM1'!L16 -> 0 | AC17: ='SASAMS TERM2'!K16 -> 0 | AD17: ='SASAMS TERM2'!N16 -> 0 | AE17: ='SASAMS TERM3'!M16 -> 0 | AF17: 0 | AG17: 0 | AH17: 0 | AI17: 0 | AJ17: 0 | AN17: 0
A18: 9 | B18: 8 | C18: =INSERT!A11 -> 0 | D18: =INSERT!B11 -> 0 | E18: =INSERT!C11 -> 0 | F18: =INSERT!D11 -> 0 | G18: =INSERT!E11 -> 0 | H18: =TERM4!Z24 -> 0 | I18: 0 | J18: ='SASAMS TERM2'!T17 -> 0 | K18: ='SASAMS TERM3'!T17 -> 0 | L18: 0 | M18: 0 | N18: 0 | O18: =TERM4!AA24 -> 0 | P18: =TERM4!AC24 -> 0 | Q18: 0 | R18: ='FIN PAT MARK SHEET'!AD26 -> 0 | S18: ='FIN PAT MARK SHEET'!AE26 -> 0 | T18: 0 | U18: ='FIN PAT MARK SHEET'!V26 -> 0 | V18: ='FIN PAT MARK SHEET'!W26 -> 0 | W18: ='FIN PAT MARK SHEET'!X26 -> 0 | X18: ='FIN PAT MARK SHEET'!Y26 -> 0 | Y18: ='FIN PAT MARK SHEET'!Z26 -> 0 | Z18: ='FIN PAT MARK SHEET'!AA26 -> 0 | AA18: 0 | AB18: ='SASAMS TERM1'!L17 -> 0 | AC18: ='SASAMS TERM2'!K17 -> 0 | AD18: ='SASAMS TERM2'!N17 -> 0 | AE18: ='SASAMS TERM3'!M17 -> 0 | AF18: 0 | AG18: 0 | AH18: 0 | AI18: 0 | AJ18: 0 | AN18: 0
A19: 10 | B19: 9 | C19: =INSERT!A12 -> 0 | D19: =INSERT!B12 -> 0 | E19: =INSERT!C12 -> 0 | F19: =INSERT!D12 -> 0 | G19: =INSERT!E12 -> 0 | H19: =TERM4!Z25 -> 0 | I19: 0 | J19: ='SASAMS TERM2'!T18 -> 0 | K19: ='SASAMS TERM3'!T18 -> 0 | L19: 0 | M19: 0 | N19: 0 | O19: =TERM4!AA25 -> 0 | P19: =TERM4!AC25 -> 0 | Q19: 0 | R19: ='FIN PAT MARK SHEET'!AD27 -> 0 | S19: ='FIN PAT MARK SHEET'!AE27 -> 0 | T19: 0 | U19: ='FIN PAT MARK SHEET'!V27 -> 0 | V19: ='FIN PAT MARK SHEET'!W27 -> 0 | W19: ='FIN PAT MARK SHEET'!X27 -> 0 | X19: ='FIN PAT MARK SHEET'!Y27 -> 0 | Y19: ='FIN PAT MARK SHEET'!Z27 -> 0 | Z19: ='FIN PAT MARK SHEET'!AA27 -> 0 | AA19: 0 | AB19: ='SASAMS TERM1'!L18 -> 0 | AC19: ='SASAMS TERM2'!K18 -> 0 | AD19: ='SASAMS TERM2'!N18 -> 0 | AE19: ='SASAMS TERM3'!M18 -> 0 | AF19: 0 | AG19: 0 | AH19: 0 | AI19: 0 | AJ19: 0 | AN19: 0
A20: 11 | B20: 11 | C20: =INSERT!A13 -> 0 | D20: =INSERT!B13 -> 0 | E20: =INSERT!C13 -> 0 | F20: =INSERT!D13 -> 0 | G20: =INSERT!E13 -> 0 | H20: =TERM4!Z26 -> 0 | I20: 0 | J20: ='SASAMS TERM2'!T19 -> 0 | K20: ='SASAMS TERM3'!T19 -> 0 | L20: 0 | M20: 0 | N20: 0 | O20: =TERM4!AA26 -> 0 | P20: =TERM4!AC26 -> 0 | Q20: 0 | R20: ='FIN PAT MARK SHEET'!AD28 -> 0 | S20: ='FIN PAT MARK SHEET'!AE28 -> 0 | T20: 0 | U20: ='FIN PAT MARK SHEET'!V28 -> 0 | V20: ='FIN PAT MARK SHEET'!W28 -> 0 | W20: ='FIN PAT MARK SHEET'!X28 -> 0 | X20: ='FIN PAT MARK SHEET'!Y28 -> 0 | Y20: ='FIN PAT MARK SHEET'!Z28 -> 0 | Z20: ='FIN PAT MARK SHEET'!AA28 -> 0 | AA20: 0 | AB20: ='SASAMS TERM1'!L19 -> 0 | AC20: ='SASAMS TERM2'!K19 -> 0 | AD20: ='SASAMS TERM2'!N19 -> 0 | AE20: ='SASAMS TERM3'!M19 -> 0 | AF20: 0 | AG20: 0 | AH20: 0 | AI20: 0 | AJ20: 0 | AN20: 0
A21: 12 | B21: 12 | C21: =INSERT!A14 -> 0 | D21: =INSERT!B14 -> 0 | E21: =INSERT!C14 -> 0 | F21: =INSERT!D14 -> 0 | G21: =INSERT!E14 -> 0 | H21: =TERM4!Z27 -> 0 | I21: 0 | J21: ='SASAMS TERM2'!T20 -> 0 | K21: ='SASAMS TERM3'!T20 -> 0 | L21: 0 | M21: 0 | N21: 0 | O21: =TERM4!AA27 -> 0 | P21: =TERM4!AC27 -> 0 | Q21: 0 | R21: ='FIN PAT MARK SHEET'!AD29 -> 0 | S21: ='FIN PAT MARK SHEET'!AE29 -> 0 | T21: 0 | U21: ='FIN PAT MARK SHEET'!V29 -> 0 | V21: ='FIN PAT MARK SHEET'!W29 -> 0 | W21: ='FIN PAT MARK SHEET'!X29 -> 0 | X21: ='FIN PAT MARK SHEET'!Y29 -> 0 | Y21: ='FIN PAT MARK SHEET'!Z29 -> 0 | Z21: ='FIN PAT MARK SHEET'!AA29 -> 0 | AA21: 0 | AB21: ='SASAMS TERM1'!L20 -> 0 | AC21: ='SASAMS TERM2'!K20 -> 0 | AD21: ='SASAMS TERM2'!N20 -> 0 | AE21: ='SASAMS TERM3'!M20 -> 0 | AF21: 0 | AG21: 0 | AH21: 0 | AI21: 0 | AJ21: 0 | AN21: 0
A22: 13 | B22: 13 | C22: =INSERT!A15 -> 0 | D22: =INSERT!B15 -> 0 | E22: =INSERT!C15 -> 0 | F22: =INSERT!D15 -> 0 | G22: =INSERT!E15 -> 0 | H22: =TERM4!Z28 -> 0 | I22: 0 | J22: ='SASAMS TERM2'!T21 -> 0 | K22: ='SASAMS TERM3'!T21 -> 0 | L22: 0 | M22: 0 | N22: 0 | O22: =TERM4!AA28 -> 0 | P22: =TERM4!AC28 -> 0 | Q22: 0 | R22: ='FIN PAT MARK SHEET'!AD30 -> 0 | S22: ='FIN PAT MARK SHEET'!AE30 -> 0 | T22: 0 | U22: ='FIN PAT MARK SHEET'!V30 -> 0 | V22: ='FIN PAT MARK SHEET'!W30 -> 0 | W22: ='FIN PAT MARK SHEET'!X30 -> 0 | X22: ='FIN PAT MARK SHEET'!Y30 -> 0 | Y22: ='FIN PAT MARK SHEET'!Z30 -> 0 | Z22: ='FIN PAT MARK SHEET'!AA30 -> 0 | AA22: 0 | AB22: ='SASAMS TERM1'!L21 -> 0 | AC22: ='SASAMS TERM2'!K21 -> 0 | AD22: ='SASAMS TERM2'!N21 -> 0 | AE22: ='SASAMS TERM3'!M21 -> 0 | AF22: 0 | AG22: 0 | AH22: 0 | AI22: 0 | AJ22: 0 | AN22: 0
A23: 14 | B23: 14 | C23: =INSERT!A16 -> 0 | D23: =INSERT!B16 -> 0 | E23: =INSERT!C16 -> 0 | F23: =INSERT!D16 -> 0 | G23: =INSERT!E16 -> 0 | H23: =TERM4!Z29 -> 0 | I23: 0 | J23: ='SASAMS TERM2'!T22 -> 0 | K23: ='SASAMS TERM3'!T22 -> 0 | L23: 0 | M23: 0 | N23: 0 | O23: =TERM4!AA29 -> 0 | P23: =TERM4!AC29 -> 0 | Q23: 0 | R23: ='FIN PAT MARK SHEET'!AD31 -> 0 | S23: ='FIN PAT MARK SHEET'!AE31 -> 0 | T23: 0 | U23: ='FIN PAT MARK SHEET'!V31 -> 0 | V23: ='FIN PAT MARK SHEET'!W31 -> 0 | W23: ='FIN PAT MARK SHEET'!X31 -> 0 | X23: ='FIN PAT MARK SHEET'!Y31 -> 0 | Y23: ='FIN PAT MARK SHEET'!Z31 -> 0 | Z23: ='FIN PAT MARK SHEET'!AA31 -> 0 | AA23: 0 | AB23: ='SASAMS TERM1'!L22 -> 0 | AC23: ='SASAMS TERM2'!K22 -> 0 | AD23: ='SASAMS TERM2'!N22 -> 0 | AE23: ='SASAMS TERM3'!M22 -> 0 | AF23: 0 | AG23: 0 | AH23: 0 | AI23: 0 | AJ23: 0 | AN23: 0
